Workbook

Sheet Version History
C3: Version History
C5: Version 0.1
C6: Date: June 2010
C7: Status: Created Filtering system and created totals tables for Men. Distributed to experience BULSCA to review the process, linked field to those found in the BUSLCA online entry system.
C8: Written By: Oliver Coleman
C10: Version 0.2
C11: Date: June2010
C13: Problem / Change Request: Sheet now provides calculation for all the Men's and Womens Speed, including the Student only finshing Positions Alsonow has cell protection turned on Headings formatted
C14: Status: Ready for realse for testing
C15: Ammended By: Oliver Coleman
C17: Version 1
C18: Date: June2010
C20: Problem / Change Request: Format so cells are readable
C21: Status: Ready
C22: Ammended By: Oliver Coleman

Sheet detail
A2: what the Colours Mean
A4: Is a postion for the scorers to enter information
A5: Dead Areas
A6: Colums that are entered before and then hidden
A7: Colums that are entered before and then locked
A8: Calculated Columms to be hidden
A9: Calculated Colums to be viewed

Sheet Overall
B1: Overall All Clubs
A3: Club Code | B3: Club Name | C3: Men's Points | D3: Men's Position | E3: Women's Points | F3: Women's Position | G3: Overall Points | H3: Overall Positions
A4: 15 | B4: Bristol University | C4: =N39 -> 77 | D4: =O39 -> 7 | E4: =N74 -> 103 | F4: =O74 -> 11 | G4: =IF(A4="","",C4+E4) -> 180 | H4: =IF(B4="","",RANK(G4,$G$4:$G$34,1)) -> 11
A5: 49 | B5: Cardiff University | C5: =N40 -> 123 | D5: 14 | E5: =N75 -> 118 | F5: 13 | G5: =IF(A5="","",C5+E5) -> 241 | H5: =IF(B5="","",RANK(G5,$G$4:$G$34,1)) -> 14
A6: 7 | B6: Loughborough University | C6: 30 | D6: 1 | E6: 21 | F6: 1 | G6: 51 | H6: 1
A7: 46 | B7: Northfield | C7: 77 | D7: 7 | E7: 118 | F7: 13 | G7: 195 | H7: 12
A8: 21 | B8: Swansea Universities Lifesaving | C8: 41 | D8: 2 | E8: 26 | F8: 2 | G8: 67 | H8: 2
A9: 2 | B9: University of Bath | C9: 137 | D9: 15 | E9: 118 | F9: 13 | G9: 255 | H9: 15
A10: 14 | B10: University of Birmingham | C10: 72 | D10: 5 | E10: 62 | F10: 4 | G10: 134 | H10: 5
A11: 5 | B11: University of Cambridge | C11: 120 | D11: 13 | E11: 108 | F11: 12 | G11: 228 | H11: 13
A12: 16 | B12: University of London Union | C12: 86 | D12: 9 | E12: 87 | F12: 10 | G12: 173 | H12: 8
A13: 8 | B13: University of Nottingham | C13: 75 | D13: 6 | E13: 73 | F13: 8 | G13: 148 | H13: 6
A14: 18 | B14: University of Oxford | C14: 104 | D14: 12 | E14: 69 | F14: 6 | G14: 173 | H14: 8
A15: 9 | B15: University of Plymouth | C15: 88 | D15: 10 | E15: 69 | F15: 6 | G15: 157 | H15: 7
A16: 20 | B16: University of Southampton | C16: 51 | D16: 3 | E16: 30 | F16: 3 | G16: 81 | H16: 3
A17: 12 | B17: University of Warwick | C17: 67 | D17: 4 | E17: 65 | F17: 5 | G17: 132 | H17: 4
A18: 11 | B18: St. Andrews | C18: 93 | D18: 11 | E18: 84 | F18: 9 | G18: 177 | H18: 10
B36: Men's All Clubs
A38: Club Code | B38: Club Name | C38: 50m Manikin Carry | D38: 100m Carry with Fins | E38: 100m tow with fins | F38: 200m Obs | G38: 200 Super | H38: 100 rescue | I38: Line Throw | J38: 4 x 50 obs Relay | K38: 4 x 50 medley Relay | L38: 4 x 25 Manikin Carry Relay | M38: 4 x 12m Line Throw Relay | N38: Totals | O38: Position
A39: =IF(A4="","",A4) -> 15 | B39: =IF(B4="","",B4) -> Bristol University | C39: =IF($A39="","",IF(SUMIF('50m Manikin Carry Men'!$C$7:$C$46,$A39,'50m Manikin Carry Men'!$X$7:$X$46)=0,1+MAX('50m Manikin Carry Men'!$X$7:$X$46),SUMIF('50m Manikin Carry Men'!$C$7:$C$46,$A39,'50m Manikin Carry Men'!$X$7:$X$46))) -> 2 | D39: =IF($A39="","",IF(SUMIF('100m Manikin Carry Men'!$C$7:$C$46,$A39,'100m Manikin Carry Men'!$X$7:$X$46)=0,1+MAX('100m Manikin Carry Men'!$X$7:$X$46),SUMIF('100m Manikin Carry Men'!$C$7:$C$46,$A39,'100m Manikin Carry Men'!$X$7:$X$46))) -> 13 | E39: =IF($A39="","",IF(SUMIF('100m Manikin Tow Men'!$C$7:$C$46,$A39,'100m Manikin Tow Men'!$X$7:$X$46)=0,1+MAX('100m Manikin Tow Men'!$X$7:$X$46),SUMIF('100m Manikin Tow Men'!$C$7:$C$46,$A39,'100m Manikin Tow Men'!$X$7:$X$46))) -> 1 | F39: =IF($A39="","",IF(SUMIF('200m Obs Men'!$C$7:$C$46,$A39,'200m Obs Men'!$X$7:$X$46)=0,1+MAX('200m Obs Men'!$X$7:$X$46),SUMIF('200m Obs Men'!$C$7:$C$46,$A39,'200m Obs Men'!$X$7:$X$46))) -> 3 | G39: =IF($A39="","",IF(SUMIF('200m Super Men'!$C$7:$C$46,$A39,'200m Super Men'!$X$7:$X$46)=0,1+MAX('200m Super Men'!$X$7:$X$46),SUMIF('200m Super Men'!$C$7:$C$46,$A39,'200m Super Men'!$X$7:$X$46))) -> 3 | H39: =IF($A39="","",IF(SUMIF('100 Resue Men'!$C$7:$C$46,$A39,'100 Resue Men'!$X$7:$X$46)=0,1+MAX('100 Resue Men'!$X$7:$X$46),SUMIF('100 Resue Men'!$C$7:$C$46,$A39,'100 Resue Men'!$X$7:$X$46))) -> 2 | I39: =IF($A39="","",IF(SUMIF('Line Throw Men'!$C$7:$C$46,$A39,'Line Throw Men'!$Z$7:$Z$46)=0,MAX('Line Throw Men'!$Z$7:$Z$46),SUMIF('Line Throw Men'!$C$7:$C$46,$A39,'Line Throw Men'!$Z$7:$Z$46))) -> 13 | J39: =IF($A39="","",IF(SUMIF('4 x 50 Obs Relay Men'!$C$7:$C$46,$A39,'4 x 50 Obs Relay Men'!$U$7:$U$46)=0,1+MAX('4 x 50 Obs Relay Men'!$U$7:$U$46),SUMIF('4 x 50 Obs Relay Men'!$C$7:$C$46,$A39,'4 x 50 Obs Relay Men'!$U$7:$U$46))) -> 11 | K39: =IF($A39="","",IF(SUMIF('4 x 50 medley Relay Men'!$C$7:$C$46,$A39,'4 x 50 medley Relay Men'!$U$7:$U$46)=0,1+MAX('4 x 50 medley Relay Men'!$U$7:$U$46),SUMIF('4 x 50 medley Relay Men'!$C$7:$C$46,$A39,'4 x 50 medley Relay Men'!$U$7:$U$46))) -> 11 | L39: =IF($A39="","",IF(SUMIF('4 x 25 Manikin Carry Relay Men'!$C$7:$C$46,$A39,'4 x 25 Manikin Carry Relay Men'!$U$7:$U$46)=0,1+MAX('4 x 25 Manikin Carry Relay Men'!$U$7:$U$46),SUMIF('4 x 25 Manikin Carry Relay Men'!$C$7:$C$46,$A39,'4 x 25 Manikin Carry Relay Men'!$U$7:$U$46))) -> 10 | M39: =IF($A39="","",IF(SUMIF('4 x 12m Line Throw Men'!$C$7:$C$46,$A39,'4 x 12m Line Throw Men'!$U$7:$U$46)=0,1+MAX('4 x 12m Line Throw Men'!$U$7:$U$46),SUMIF('4 x 12m Line Throw Men'!$C$7:$C$46,$A39,'4 x 12m Line Throw Men'!$U$7:$U$46))) -> 8 | N39: =IF(A39="","",SUM(C39:M39)) -> 77 | O39: =IF(A39="","",RANK(N39,$N$39:$N$69,1)) -> 7
A40: =IF(A5="","",A5) -> 49 | B40: Cardiff University | C40: =IF($A40="","",IF(SUMIF('50m Manikin Carry Men'!$C$7:$C$46,$A40,'50m Manikin Carry Men'!$X$7:$X$46)=0,1+MAX('50m Manikin Carry Men'!$X$7:$X$46),SUMIF('50m Manikin Carry Men'!$C$7:$C$46,$A40,'50m Manikin Carry Men'!$X$7:$X$46))) -> 13 | D40: =IF($A40="","",IF(SUMIF('100m Manikin Carry Men'!$C$7:$C$46,$A40,'100m Manikin Carry Men'!$X$7:$X$46)=0,1+MAX('100m Manikin Carry Men'!$X$7:$X$46),SUMIF('100m Manikin Carry Men'!$C$7:$C$46,$A40,'100m Manikin Carry Men'!$X$7:$X$46))) -> 13 | E40: =IF($A40="","",IF(SUMIF('100m Manikin Tow Men'!$C$7:$C$46,$A40,'100m Manikin Tow Men'!$X$7:$X$46)=0,1+MAX('100m Manikin Tow Men'!$X$7:$X$46),SUMIF('100m Manikin Tow Men'!$C$7:$C$46,$A40,'100m Manikin Tow Men'!$X$7:$X$46))) -> 3 | F40: =IF($A40="","",IF(SUMIF('200m Obs Men'!$C$7:$C$46,$A40,'200m Obs Men'!$X$7:$X$46)=0,1+MAX('200m Obs Men'!$X$7:$X$46),SUMIF('200m Obs Men'!$C$7:$C$46,$A40,'200m Obs Men'!$X$7:$X$46))) -> 14 | G40: =IF($A40="","",IF(SUMIF('200m Super Men'!$C$7:$C$46,$A40,'200m Super Men'!$X$7:$X$46)=0,1+MAX('200m Super Men'!$X$7:$X$46),SUMIF('200m Super Men'!$C$7:$C$46,$A40,'200m Super Men'!$X$7:$X$46))) -> 14 | H40: =IF($A40="","",IF(SUMIF('100 Resue Men'!$C$7:$C$46,$A40,'100 Resue Men'!$X$7:$X$46)=0,MAX('100 Resue Men'!$X$7:$X$46),SUMIF('100 Resue Men'!$C$7:$C$46,$A40,'100 Resue Men'!$X$7:$X$46))) -> 13 | I40: =IF($A40="","",IF(SUMIF('Line Throw Men'!$C$7:$C$46,$A40,'Line Throw Men'!$Z$7:$Z$46)=0,MAX('Line Throw Men'!$Z$7:$Z$46),SUMIF('Line Throw Men'!$C$7:$C$46,$A40,'Line Throw Men'!$Z$7:$Z$46))) -> 13 | J40: =IF($A40="","",IF(SUMIF('4 x 50 Obs Relay Men'!$C$7:$C$46,$A40,'4 x 50 Obs Relay Men'!$U$7:$U$46)=0,1+MAX('4 x 50 Obs Relay Men'!$U$7:$U$46),SUMIF('4 x 50 Obs Relay Men'!$C$7:$C$46,$A40,'4 x 50 Obs Relay Men'!$U$7:$U$46))) -> 11 | K40: =IF($A40="","",IF(SUMIF('4 x 50 medley Relay Men'!$C$7:$C$46,$A40,'4 x 50 medley Relay Men'!$U$7:$U$46)=0,1+MAX('4 x 50 medley Relay Men'!$U$7:$U$46),SUMIF('4 x 50 medley Relay Men'!$C$7:$C$46,$A40,'4 x 50 medley Relay Men'!$U$7:$U$46))) -> 11 | L40: =IF($A40="","",IF(SUMIF('4 x 25 Manikin Carry Relay Men'!$C$7:$C$46,$A40,'4 x 25 Manikin Carry Relay Men'!$U$7:$U$46)=0,1+MAX('4 x 25 Manikin Carry Relay Men'!$U$7:$U$46),SUMIF('4 x 25 Manikin Carry Relay Men'!$C$7:$C$46,$A40,'4 x 25 Manikin Carry Relay Men'!$U$7:$U$46))) -> 10 | M40: =IF($A40="","",IF(SUMIF('4 x 12m Line Throw Men'!$C$7:$C$46,$A40,'4 x 12m Line Throw Men'!$U$7:$U$46)=0,1+MAX('4 x 12m Line Throw Men'!$U$7:$U$46),SUMIF('4 x 12m Line Throw Men'!$C$7:$C$46,$A40,'4 x 12m Line Throw Men'!$U$7:$U$46))) -> 8 | N40: 123 | O40: 14
A41: 7 | B41: Loughborough University | C41: =IF($A41="","",IF(SUMIF('50m Manikin Carry Men'!$C$7:$C$46,$A41,'50m Manikin Carry Men'!$X$7:$X$46)=0,1+MAX('50m Manikin Carry Men'!$X$7:$X$46),SUMIF('50m Manikin Carry Men'!$C$7:$C$46,$A41,'50m Manikin Carry Men'!$X$7:$X$46))) -> 1 | D41: =IF($A41="","",IF(SUMIF('100m Manikin Carry Men'!$C$7:$C$46,$A41,'100m Manikin Carry Men'!$X$7:$X$46)=0,1+MAX('100m Manikin Carry Men'!$X$7:$X$46),SUMIF('100m Manikin Carry Men'!$C$7:$C$46,$A41,'100m Manikin Carry Men'!$X$7:$X$46))) -> 1 | E41: =IF($A41="","",IF(SUMIF('100m Manikin Tow Men'!$C$7:$C$46,$A41,'100m Manikin Tow Men'!$X$7:$X$46)=0,1+MAX('100m Manikin Tow Men'!$X$7:$X$46),SUMIF('100m Manikin Tow Men'!$C$7:$C$46,$A41,'100m Manikin Tow Men'!$X$7:$X$46))) -> 2 | F41: =IF($A41="","",IF(SUMIF('200m Obs Men'!$C$7:$C$46,$A41,'200m Obs Men'!$X$7:$X$46)=0,1+MAX('200m Obs Men'!$X$7:$X$46),SUMIF('200m Obs Men'!$C$7:$C$46,$A41,'200m Obs Men'!$X$7:$X$46))) -> 1 | G41: =IF($A41="","",IF(SUMIF('200m Super Men'!$C$7:$C$46,$A41,'200m Super Men'!$X$7:$X$46)=0,1+MAX('200m Super Men'!$X$7:$X$46),SUMIF('200m Super Men'!$C$7:$C$46,$A41,'200m Super Men'!$X$7:$X$46))) -> 2 | H41: =IF($A41="","",IF(SUMIF('100 Resue Men'!$C$7:$C$46,$A41,'100 Resue Men'!$X$7:$X$46)=0,MAX('100 Resue Men'!$X$7:$X$46),SUMIF('100 Resue Men'!$C$7:$C$46,$A41,'100 Resue Men'!$X$7:$X$46))) -> 1 | I41: =IF($A41="","",IF(SUMIF('Line Throw Men'!$C$7:$C$46,$A41,'Line Throw Men'!$Z$7:$Z$46)=0,MAX('Line Throw Men'!$Z$7:$Z$46),SUMIF('Line Throw Men'!$C$7:$C$46,$A41,'Line Throw Men'!$Z$7:$Z$46))) -> 12 | J41: =IF($A41="","",IF(SUMIF('4 x 50 Obs Relay Men'!$C$7:$C$46,$A41,'4 x 50 Obs Relay Men'!$U$7:$U$46)=0,1+MAX('4 x 50 Obs Relay Men'!$U$7:$U$46),SUMIF('4 x 50 Obs Relay Men'!$C$7:$C$46,$A41,'4 x 50 Obs Relay Men'!$U$7:$U$46))) -> 1 | K41: =IF($A41="","",IF(SUMIF('4 x 50 medley Relay Men'!$C$7:$C$46,$A41,'4 x 50 medley Relay Men'!$U$7:$U$46)=0,1+MAX('4 x 50 medley Relay Men'!$U$7:$U$46),SUMIF('4 x 50 medley Relay Men'!$C$7:$C$46,$A41,'4 x 50 medley Relay Men'!$U$7:$U$46))) -> 1 | L41: =IF($A41="","",IF(SUMIF('4 x 25 Manikin Carry Relay Men'!$C$7:$C$46,$A41,'4 x 25 Manikin Carry Relay Men'!$U$7:$U$46)=0,1+MAX('4 x 25 Manikin Carry Relay Men'!$U$7:$U$46),SUMIF('4 x 25 Manikin Carry Relay Men'!$C$7:$C$46,$A41,'4 x 25 Manikin Carry Relay Men'!$U$7:$U$46))) -> 1 | M41: =IF($A41="","",IF(SUMIF('4 x 12m Line Throw Men'!$C$7:$C$46,$A41,'4 x 12m Line Throw Men'!$U$7:$U$46)=0,1+MAX('4 x 12m Line Throw Men'!$U$7:$U$46),SUMIF('4 x 12m Line Throw Men'!$C$7:$C$46,$A41,'4 x 12m Line Throw Men'!$U$7:$U$46))) -> 7 | N41: 30 | O41: 1
A42: 46 | B42: Northfield | C42: =IF($A42="","",IF(SUMIF('50m Manikin Carry Men'!$C$7:$C$46,$A42,'50m Manikin Carry Men'!$X$7:$X$46)=0,1+MAX('50m Manikin Carry Men'!$X$7:$X$46),SUMIF('50m Manikin Carry Men'!$C$7:$C$46,$A42,'50m Manikin Carry Men'!$X$7:$X$46))) -> 6 | D42: =IF($A42="","",IF(SUMIF('100m Manikin Carry Men'!$C$7:$C$46,$A42,'100m Manikin Carry Men'!$X$7:$X$46)=0,1+MAX('100m Manikin Carry Men'!$X$7:$X$46),SUMIF('100m Manikin Carry Men'!$C$7:$C$46,$A42,'100m Manikin Carry Men'!$X$7:$X$46))) -> 4 | E42: =IF($A42="","",IF(SUMIF('100m Manikin Tow Men'!$C$7:$C$46,$A42,'100m Manikin Tow Men'!$X$7:$X$46)=0,1+MAX('100m Manikin Tow Men'!$X$7:$X$46),SUMIF('100m Manikin Tow Men'!$C$7:$C$46,$A42,'100m Manikin Tow Men'!$X$7:$X$46))) -> 5 | F42: =IF($A42="","",IF(SUMIF('200m Obs Men'!$C$7:$C$46,$A42,'200m Obs Men'!$X$7:$X$46)=0,1+MAX('200m Obs Men'!$X$7:$X$46),SUMIF('200m Obs Men'!$C$7:$C$46,$A42,'200m Obs Men'!$X$7:$X$46))) -> 5 | G42: =IF($A42="","",IF(SUMIF('200m Super Men'!$C$7:$C$46,$A42,'200m Super Men'!$X$7:$X$46)=0,1+MAX('200m Super Men'!$X$7:$X$46),SUMIF('200m Super Men'!$C$7:$C$46,$A42,'200m Super Men'!$X$7:$X$46))) -> 6 | H42: =IF($A42="","",IF(SUMIF('100 Resue Men'!$C$7:$C$46,$A42,'100 Resue Men'!$X$7:$X$46)=0,MAX('100 Resue Men'!$X$7:$X$46),SUMIF('100 Resue Men'!$C$7:$C$46,$A42,'100 Resue Men'!$X$7:$X$46))) -> 4 | I42: =IF($A42="","",IF(SUMIF('Line Throw Men'!$C$7:$C$46,$A42,'Line Throw Men'!$Z$7:$Z$46)=0,MAX('Line Throw Men'!$Z$7:$Z$46),SUMIF('Line Throw Men'!$C$7:$C$46,$A42,'Line Throw Men'!$Z$7:$Z$46))) -> 7 | J42: =IF($A42="","",IF(SUMIF('4 x 50 Obs Relay Men'!$C$7:$C$46,$A42,'4 x 50 Obs Relay Men'!$U$7:$U$46)=0,1+MAX('4 x 50 Obs Relay Men'!$U$7:$U$46),SUMIF('4 x 50 Obs Relay Men'!$C$7:$C$46,$A42,'4 x 50 Obs Relay Men'!$U$7:$U$46))) -> 11 | K42: =IF($A42="","",IF(SUMIF('4 x 50 medley Relay Men'!$C$7:$C$46,$A42,'4 x 50 medley Relay Men'!$U$7:$U$46)=0,1+MAX('4 x 50 medley Relay Men'!$U$7:$U$46),SUMIF('4 x 50 medley Relay Men'!$C$7:$C$46,$A42,'4 x 50 medley Relay Men'!$U$7:$U$46))) -> 11 | L42: =IF($A42="","",IF(SUMIF('4 x 25 Manikin Carry Relay Men'!$C$7:$C$46,$A42,'4 x 25 Manikin Carry Relay Men'!$U$7:$U$46)=0,1+MAX('4 x 25 Manikin Carry Relay Men'!$U$7:$U$46),SUMIF('4 x 25 Manikin Carry Relay Men'!$C$7:$C$46,$A42,'4 x 25 Manikin Carry Relay Men'!$U$7:$U$46))) -> 10 | M42: =IF($A42="","",IF(SUMIF('4 x 12m Line Throw Men'!$C$7:$C$46,$A42,'4 x 12m Line Throw Men'!$U$7:$U$46)=0,1+MAX('4 x 12m Line Throw Men'!$U$7:$U$46),SUMIF('4 x 12m Line Throw Men'!$C$7:$C$46,$A42,'4 x 12m Line Throw Men'!$U$7:$U$46))) -> 8 | N42: 77 | O42: 7
A43: 21 | B43: Swansea Universities Lifesaving | C43: =IF($A43="","",IF(SUMIF('50m Manikin Carry Men'!$C$7:$C$46,$A43,'50m Manikin Carry Men'!$X$7:$X$46)=0,1+MAX('50m Manikin Carry Men'!$X$7:$X$46),SUMIF('50m Manikin Carry Men'!$C$7:$C$46,$A43,'50m Manikin Carry Men'!$X$7:$X$46))) -> 3 | D43: =IF($A43="","",IF(SUMIF('100m Manikin Carry Men'!$C$7:$C$46,$A43,'100m Manikin Carry Men'!$X$7:$X$46)=0,1+MAX('100m Manikin Carry Men'!$X$7:$X$46),SUMIF('100m Manikin Carry Men'!$C$7:$C$46,$A43,'100m Manikin Carry Men'!$X$7:$X$46))) -> 3 | E43: =IF($A43="","",IF(SUMIF('100m Manikin Tow Men'!$C$7:$C$46,$A43,'100m Manikin Tow Men'!$X$7:$X$46)=0,1+MAX('100m Manikin Tow Men'!$X$7:$X$46),SUMIF('100m Manikin Tow Men'!$C$7:$C$46,$A43,'100m Manikin Tow Men'!$X$7:$X$46))) -> 7 | F43: =IF($A43="","",IF(SUMIF('200m Obs Men'!$C$7:$C$46,$A43,'200m Obs Men'!$X$7:$X$46)=0,1+MAX('200m Obs Men'!$X$7:$X$46),SUMIF('200m Obs Men'!$C$7:$C$46,$A43,'200m Obs Men'!$X$7:$X$46))) -> 4 | G43: =IF($A43="","",IF(SUMIF('200m Super Men'!$C$7:$C$46,$A43,'200m Super Men'!$X$7:$X$46)=0,1+MAX('200m Super Men'!$X$7:$X$46),SUMIF('200m Super Men'!$C$7:$C$46,$A43,'200m Super Men'!$X$7:$X$46))) -> 1 | H43: =IF($A43="","",IF(SUMIF('100 Resue Men'!$C$7:$C$46,$A43,'100 Resue Men'!$X$7:$X$46)=0,MAX('100 Resue Men'!$X$7:$X$46),SUMIF('100 Resue Men'!$C$7:$C$46,$A43,'100 Resue Men'!$X$7:$X$46))) -> 3 | I43: =IF($A43="","",IF(SUMIF('Line Throw Men'!$C$7:$C$46,$A43,'Line Throw Men'!$Z$7:$Z$46)=0,MAX('Line Throw Men'!$Z$7:$Z$46),SUMIF('Line Throw Men'!$C$7:$C$46,$A43,'Line Throw Men'!$Z$7:$Z$46))) -> 3 | J43: =IF($A43="","",IF(SUMIF('4 x 50 Obs Relay Men'!$C$7:$C$46,$A43,'4 x 50 Obs Relay Men'!$U$7:$U$46)=0,1+MAX('4 x 50 Obs Relay Men'!$U$7:$U$46),SUMIF('4 x 50 Obs Relay Men'!$C$7:$C$46,$A43,'4 x 50 Obs Relay Men'!$U$7:$U$46))) -> 2 | K43: =IF($A43="","",IF(SUMIF('4 x 50 medley Relay Men'!$C$7:$C$46,$A43,'4 x 50 medley Relay Men'!$U$7:$U$46)=0,1+MAX('4 x 50 medley Relay Men'!$U$7:$U$46),SUMIF('4 x 50 medley Relay Men'!$C$7:$C$46,$A43,'4 x 50 medley Relay Men'!$U$7:$U$46))) -> 2 | L43: =IF($A43="","",IF(SUMIF('4 x 25 Manikin Carry Relay Men'!$C$7:$C$46,$A43,'4 x 25 Manikin Carry Relay Men'!$U$7:$U$46)=0,1+MAX('4 x 25 Manikin Carry Relay Men'!$U$7:$U$46),SUMIF('4 x 25 Manikin Carry Relay Men'!$C$7:$C$46,$A43,'4 x 25 Manikin Carry Relay Men'!$U$7:$U$46))) -> 9 | M43: =IF($A43="","",IF(SUMIF('4 x 12m Line Throw Men'!$C$7:$C$46,$A43,'4 x 12m Line Throw Men'!$U$7:$U$46)=0,1+MAX('4 x 12m Line Throw Men'!$U$7:$U$46),SUMIF('4 x 12m Line Throw Men'!$C$7:$C$46,$A43,'4 x 12m Line Throw Men'!$U$7:$U$46))) -> 4 | N43: 41 | O43: 2
A44: 2 | B44: University of Bath | C44: =IF($A44="","",IF(SUMIF('50m Manikin Carry Men'!$C$7:$C$46,$A44,'50m Manikin Carry Men'!$X$7:$X$46)=0,1+MAX('50m Manikin Carry Men'!$X$7:$X$46),SUMIF('50m Manikin Carry Men'!$C$7:$C$46,$A44,'50m Manikin Carry Men'!$X$7:$X$46))) -> 14 | D44: =IF($A44="","",IF(SUMIF('100m Manikin Carry Men'!$C$7:$C$46,$A44,'100m Manikin Carry Men'!$X$7:$X$46)=0,1+MAX('100m Manikin Carry Men'!$X$7:$X$46),SUMIF('100m Manikin Carry Men'!$C$7:$C$46,$A44,'100m Manikin Carry Men'!$X$7:$X$46))) -> 14 | E44: =IF($A44="","",IF(SUMIF('100m Manikin Tow Men'!$C$7:$C$46,$A44,'100m Manikin Tow Men'!$X$7:$X$46)=0,1+MAX('100m Manikin Tow Men'!$X$7:$X$46),SUMIF('100m Manikin Tow Men'!$C$7:$C$46,$A44,'100m Manikin Tow Men'!$X$7:$X$46))) -> 15 | F44: =IF($A44="","",IF(SUMIF('200m Obs Men'!$C$7:$C$46,$A44,'200m Obs Men'!$X$7:$X$46)=0,1+MAX('200m Obs Men'!$X$7:$X$46),SUMIF('200m Obs Men'!$C$7:$C$46,$A44,'200m Obs Men'!$X$7:$X$46))) -> 14 | G44: =IF($A44="","",IF(SUMIF('200m Super Men'!$C$7:$C$46,$A44,'200m Super Men'!$X$7:$X$46)=0,1+MAX('200m Super Men'!$X$7:$X$46),SUMIF('200m Super Men'!$C$7:$C$46,$A44,'200m Super Men'!$X$7:$X$46))) -> 14 | H44: =IF($A44="","",IF(SUMIF('100 Resue Men'!$C$7:$C$46,$A44,'100 Resue Men'!$X$7:$X$46)=0,MAX('100 Resue Men'!$X$7:$X$46),SUMIF('100 Resue Men'!$C$7:$C$46,$A44,'100 Resue Men'!$X$7:$X$46))) -> 13 | I44: =IF($A44="","",IF(SUMIF('Line Throw Men'!$C$7:$C$46,$A44,'Line Throw Men'!$Z$7:$Z$46)=0,MAX('Line Throw Men'!$Z$7:$Z$46),SUMIF('Line Throw Men'!$C$7:$C$46,$A44,'Line Throw Men'!$Z$7:$Z$46))) -> 13 | J44: =IF($A44="","",IF(SUMIF('4 x 50 Obs Relay Men'!$C$7:$C$46,$A44,'4 x 50 Obs Relay Men'!$U$7:$U$46)=0,1+MAX('4 x 50 Obs Relay Men'!$U$7:$U$46),SUMIF('4 x 50 Obs Relay Men'!$C$7:$C$46,$A44,'4 x 50 Obs Relay Men'!$U$7:$U$46))) -> 11 | K44: =IF($A44="","",IF(SUMIF('4 x 50 medley Relay Men'!$C$7:$C$46,$A44,'4 x 50 medley Relay Men'!$U$7:$U$46)=0,1+MAX('4 x 50 medley Relay Men'!$U$7:$U$46),SUMIF('4 x 50 medley Relay Men'!$C$7:$C$46,$A44,'4 x 50 medley Relay Men'!$U$7:$U$46))) -> 11 | L44: =IF($A44="","",IF(SUMIF('4 x 25 Manikin Carry Relay Men'!$C$7:$C$46,$A44,'4 x 25 Manikin Carry Relay Men'!$U$7:$U$46)=0,1+MAX('4 x 25 Manikin Carry Relay Men'!$U$7:$U$46),SUMIF('4 x 25 Manikin Carry Relay Men'!$C$7:$C$46,$A44,'4 x 25 Manikin Carry Relay Men'!$U$7:$U$46))) -> 10 | M44: =IF($A44="","",IF(SUMIF('4 x 12m Line Throw Men'!$C$7:$C$46,$A44,'4 x 12m Line Throw Men'!$U$7:$U$46)=0,1+MAX('4 x 12m Line Throw Men'!$U$7:$U$46),SUMIF('4 x 12m Line Throw Men'!$C$7:$C$46,$A44,'4 x 12m Line Throw Men'!$U$7:$U$46))) -> 8 | N44: =IF(A44="","",SUM(C44:M44)) -> 137 | O44: =IF(A44="","",RANK(N44,$N$39:$N$69,1)) -> 15
A45: 14 | B45: University of Birmingham | C45: =IF($A45="","",IF(SUMIF('50m Manikin Carry Men'!$C$7:$C$46,$A45,'50m Manikin Carry Men'!$X$7:$X$46)=0,1+MAX('50m Manikin Carry Men'!$X$7:$X$46),SUMIF('50m Manikin Carry Men'!$C$7:$C$46,$A45,'50m Manikin Carry Men'!$X$7:$X$46))) -> 4 | D45: =IF($A45="","",IF(SUMIF('100m Manikin Carry Men'!$C$7:$C$46,$A45,'100m Manikin Carry Men'!$X$7:$X$46)=0,1+MAX('100m Manikin Carry Men'!$X$7:$X$46),SUMIF('100m Manikin Carry Men'!$C$7:$C$46,$A45,'100m Manikin Carry Men'!$X$7:$X$46))) -> 6 | E45: =IF($A45="","",IF(SUMIF('100m Manikin Tow Men'!$C$7:$C$46,$A45,'100m Manikin Tow Men'!$X$7:$X$46)=0,1+MAX('100m Manikin Tow Men'!$X$7:$X$46),SUMIF('100m Manikin Tow Men'!$C$7:$C$46,$A45,'100m Manikin Tow Men'!$X$7:$X$46))) -> 10 | F45: =IF($A45="","",IF(SUMIF('200m Obs Men'!$C$7:$C$46,$A45,'200m Obs Men'!$X$7:$X$46)=0,1+MAX('200m Obs Men'!$X$7:$X$46),SUMIF('200m Obs Men'!$C$7:$C$46,$A45,'200m Obs Men'!$X$7:$X$46))) -> 6 | G45: =IF($A45="","",IF(SUMIF('200m Super Men'!$C$7:$C$46,$A45,'200m Super Men'!$X$7:$X$46)=0,1+MAX('200m Super Men'!$X$7:$X$46),SUMIF('200m Super Men'!$C$7:$C$46,$A45,'200m Super Men'!$X$7:$X$46))) -> 4 | H45: =IF($A45="","",IF(SUMIF('100 Resue Men'!$C$7:$C$46,$A45,'100 Resue Men'!$X$7:$X$46)=0,MAX('100 Resue Men'!$X$7:$X$46),SUMIF('100 Resue Men'!$C$7:$C$46,$A45,'100 Resue Men'!$X$7:$X$46))) -> 8 | I45: =IF($A45="","",IF(SUMIF('Line Throw Men'!$C$7:$C$46,$A45,'Line Throw Men'!$Z$7:$Z$46)=0,MAX('Line Throw Men'!$Z$7:$Z$46),SUMIF('Line Throw Men'!$C$7:$C$46,$A45,'Line Throw Men'!$Z$7:$Z$46))) -> 9 | J45: =IF($A45="","",IF(SUMIF('4 x 50 Obs Relay Men'!$C$7:$C$46,$A45,'4 x 50 Obs Relay Men'!$U$7:$U$46)=0,1+MAX('4 x 50 Obs Relay Men'!$U$7:$U$46),SUMIF('4 x 50 Obs Relay Men'!$C$7:$C$46,$A45,'4 x 50 Obs Relay Men'!$U$7:$U$46))) -> 10 | K45: =IF($A45="","",IF(SUMIF('4 x 50 medley Relay Men'!$C$7:$C$46,$A45,'4 x 50 medley Relay Men'!$U$7:$U$46)=0,1+MAX('4 x 50 medley Relay Men'!$U$7:$U$46),SUMIF('4 x 50 medley Relay Men'!$C$7:$C$46,$A45,'4 x 50 medley Relay Men'!$U$7:$U$46))) -> 10 | L45: =IF($A45="","",IF(SUMIF('4 x 25 Manikin Carry Relay Men'!$C$7:$C$46,$A45,'4 x 25 Manikin Carry Relay Men'!$U$7:$U$46)=0,1+MAX('4 x 25 Manikin Carry Relay Men'!$U$7:$U$46),SUMIF('4 x 25 Manikin Carry Relay Men'!$C$7:$C$46,$A45,'4 x 25 Manikin Carry Relay Men'!$U$7:$U$46))) -> 3 | M45: =IF($A45="","",IF(SUMIF('4 x 12m Line Throw Men'!$C$7:$C$46,$A45,'4 x 12m Line Throw Men'!$U$7:$U$46)=0,1+MAX('4 x 12m Line Throw Men'!$U$7:$U$46),SUMIF('4 x 12m Line Throw Men'!$C$7:$C$46,$A45,'4 x 12m Line Throw Men'!$U$7:$U$46))) -> 2 | N45: 72 | O45: 5
A46: 5 | B46: University of Cambridge | C46: =IF($A46="","",IF(SUMIF('50m Manikin Carry Men'!$C$7:$C$46,$A46,'50m Manikin Carry Men'!$X$7:$X$46)=0,1+MAX('50m Manikin Carry Men'!$X$7:$X$46),SUMIF('50m Manikin Carry Men'!$C$7:$C$46,$A46,'50m Manikin Carry Men'!$X$7:$X$46))) -> 12 | D46: =IF($A46="","",IF(SUMIF('100m Manikin Carry Men'!$C$7:$C$46,$A46,'100m Manikin Carry Men'!$X$7:$X$46)=0,1+MAX('100m Manikin Carry Men'!$X$7:$X$46),SUMIF('100m Manikin Carry Men'!$C$7:$C$46,$A46,'100m Manikin Carry Men'!$X$7:$X$46))) -> 11 | E46: =IF($A46="","",IF(SUMIF('100m Manikin Tow Men'!$C$7:$C$46,$A46,'100m Manikin Tow Men'!$X$7:$X$46)=0,1+MAX('100m Manikin Tow Men'!$X$7:$X$46),SUMIF('100m Manikin Tow Men'!$C$7:$C$46,$A46,'100m Manikin Tow Men'!$X$7:$X$46))) -> 11 | F46: =IF($A46="","",IF(SUMIF('200m Obs Men'!$C$7:$C$46,$A46,'200m Obs Men'!$X$7:$X$46)=0,1+MAX('200m Obs Men'!$X$7:$X$46),SUMIF('200m Obs Men'!$C$7:$C$46,$A46,'200m Obs Men'!$X$7:$X$46))) -> 13 | G46: =IF($A46="","",IF(SUMIF('200m Super Men'!$C$7:$C$46,$A46,'200m Super Men'!$X$7:$X$46)=0,1+MAX('200m Super Men'!$X$7:$X$46),SUMIF('200m Super Men'!$C$7:$C$46,$A46,'200m Super Men'!$X$7:$X$46))) -> 10 | H46: =IF($A46="","",IF(SUMIF('100 Resue Men'!$C$7:$C$46,$A46,'100 Resue Men'!$X$7:$X$46)=0,MAX('100 Resue Men'!$X$7:$X$46),SUMIF('100 Resue Men'!$C$7:$C$46,$A46,'100 Resue Men'!$X$7:$X$46))) -> 12 | I46: =IF($A46="","",IF(SUMIF('Line Throw Men'!$C$7:$C$46,$A46,'Line Throw Men'!$Z$7:$Z$46)=0,MAX('Line Throw Men'!$Z$7:$Z$46),SUMIF('Line Throw Men'!$C$7:$C$46,$A46,'Line Throw Men'!$Z$7:$Z$46))) -> 11 | J46: =IF($A46="","",IF(SUMIF('4 x 50 Obs Relay Men'!$C$7:$C$46,$A46,'4 x 50 Obs Relay Men'!$U$7:$U$46)=0,1+MAX('4 x 50 Obs Relay Men'!$U$7:$U$46),SUMIF('4 x 50 Obs Relay Men'!$C$7:$C$46,$A46,'4 x 50 Obs Relay Men'!$U$7:$U$46))) -> 11 | K46: =IF($A46="","",IF(SUMIF('4 x 50 medley Relay Men'!$C$7:$C$46,$A46,'4 x 50 medley Relay Men'!$U$7:$U$46)=0,1+MAX('4 x 50 medley Relay Men'!$U$7:$U$46),SUMIF('4 x 50 medley Relay Men'!$C$7:$C$46,$A46,'4 x 50 medley Relay Men'!$U$7:$U$46))) -> 11 | L46: =IF($A46="","",IF(SUMIF('4 x 25 Manikin Carry Relay Men'!$C$7:$C$46,$A46,'4 x 25 Manikin Carry Relay Men'!$U$7:$U$46)=0,1+MAX('4 x 25 Manikin Carry Relay Men'!$U$7:$U$46),SUMIF('4 x 25 Manikin Carry Relay Men'!$C$7:$C$46,$A46,'4 x 25 Manikin Carry Relay Men'!$U$7:$U$46))) -> 10 | M46: =IF($A46="","",IF(SUMIF('4 x 12m Line Throw Men'!$C$7:$C$46,$A46,'4 x 12m Line Throw Men'!$U$7:$U$46)=0,1+MAX('4 x 12m Line Throw Men'!$U$7:$U$46),SUMIF('4 x 12m Line Throw Men'!$C$7:$C$46,$A46,'4 x 12m Line Throw Men'!$U$7:$U$46))) -> 8 | N46: 120 | O46: 13
A47: 16 | B47: University of London Union | C47: =IF($A47="","",IF(SUMIF('50m Manikin Carry Men'!$C$7:$C$46,$A47,'50m Manikin Carry Men'!$X$7:$X$46)=0,1+MAX('50m Manikin Carry Men'!$X$7:$X$46),SUMIF('50m Manikin Carry Men'!$C$7:$C$46,$A47,'50m Manikin Carry Men'!$X$7:$X$46))) -> 7 | D47: =IF($A47="","",IF(SUMIF('100m Manikin Carry Men'!$C$7:$C$46,$A47,'100m Manikin Carry Men'!$X$7:$X$46)=0,1+MAX('100m Manikin Carry Men'!$X$7:$X$46),SUMIF('100m Manikin Carry Men'!$C$7:$C$46,$A47,'100m Manikin Carry Men'!$X$7:$X$46))) -> 9 | E47: =IF($A47="","",IF(SUMIF('100m Manikin Tow Men'!$C$7:$C$46,$A47,'100m Manikin Tow Men'!$X$7:$X$46)=0,1+MAX('100m Manikin Tow Men'!$X$7:$X$46),SUMIF('100m Manikin Tow Men'!$C$7:$C$46,$A47,'100m Manikin Tow Men'!$X$7:$X$46))) -> 12 | F47: =IF($A47="","",IF(SUMIF('200m Obs Men'!$C$7:$C$46,$A47,'200m Obs Men'!$X$7:$X$46)=0,1+MAX('200m Obs Men'!$X$7:$X$46),SUMIF('200m Obs Men'!$C$7:$C$46,$A47,'200m Obs Men'!$X$7:$X$46))) -> 12 | G47: =IF($A47="","",IF(SUMIF('200m Super Men'!$C$7:$C$46,$A47,'200m Super Men'!$X$7:$X$46)=0,1+MAX('200m Super Men'!$X$7:$X$46),SUMIF('200m Super Men'!$C$7:$C$46,$A47,'200m Super Men'!$X$7:$X$46))) -> 9 | H47: =IF($A47="","",IF(SUMIF('100 Resue Men'!$C$7:$C$46,$A47,'100 Resue Men'!$X$7:$X$46)=0,MAX('100 Resue Men'!$X$7:$X$46),SUMIF('100 Resue Men'!$C$7:$C$46,$A47,'100 Resue Men'!$X$7:$X$46))) -> 7 | I47: =IF($A47="","",IF(SUMIF('Line Throw Men'!$C$7:$C$46,$A47,'Line Throw Men'!$Z$7:$Z$46)=0,MAX('Line Throw Men'!$Z$7:$Z$46),SUMIF('Line Throw Men'!$C$7:$C$46,$A47,'Line Throw Men'!$Z$7:$Z$46))) -> 6 | J47: =IF($A47="","",IF(SUMIF('4 x 50 Obs Relay Men'!$C$7:$C$46,$A47,'4 x 50 Obs Relay Men'!$U$7:$U$46)=0,1+MAX('4 x 50 Obs Relay Men'!$U$7:$U$46),SUMIF('4 x 50 Obs Relay Men'!$C$7:$C$46,$A47,'4 x 50 Obs Relay Men'!$U$7:$U$46))) -> 9 | K47: =IF($A47="","",IF(SUMIF('4 x 50 medley Relay Men'!$C$7:$C$46,$A47,'4 x 50 medley Relay Men'!$U$7:$U$46)=0,1+MAX('4 x 50 medley Relay Men'!$U$7:$U$46),SUMIF('4 x 50 medley Relay Men'!$C$7:$C$46,$A47,'4 x 50 medley Relay Men'!$U$7:$U$46))) -> 6 | L47: =IF($A47="","",IF(SUMIF('4 x 25 Manikin Carry Relay Men'!$C$7:$C$46,$A47,'4 x 25 Manikin Carry Relay Men'!$U$7:$U$46)=0,1+MAX('4 x 25 Manikin Carry Relay Men'!$U$7:$U$46),SUMIF('4 x 25 Manikin Carry Relay Men'!$C$7:$C$46,$A47,'4 x 25 Manikin Carry Relay Men'!$U$7:$U$46))) -> 4 | M47: =IF($A47="","",IF(SUMIF('4 x 12m Line Throw Men'!$C$7:$C$46,$A47,'4 x 12m Line Throw Men'!$U$7:$U$46)=0,1+MAX('4 x 12m Line Throw Men'!$U$7:$U$46),SUMIF('4 x 12m Line Throw Men'!$C$7:$C$46,$A47,'4 x 12m Line Throw Men'!$U$7:$U$46))) -> 5 | N47: 86 | O47: 9
A48: 8 | B48: University of Nottingham | C48: =IF($A48="","",IF(SUMIF('50m Manikin Carry Men'!$C$7:$C$46,$A48,'50m Manikin Carry Men'!$X$7:$X$46)=0,1+MAX('50m Manikin Carry Men'!$X$7:$X$46),SUMIF('50m Manikin Carry Men'!$C$7:$C$46,$A48,'50m Manikin Carry Men'!$X$7:$X$46))) -> 9 | D48: =IF($A48="","",IF(SUMIF('100m Manikin Carry Men'!$C$7:$C$46,$A48,'100m Manikin Carry Men'!$X$7:$X$46)=0,1+MAX('100m Manikin Carry Men'!$X$7:$X$46),SUMIF('100m Manikin Carry Men'!$C$7:$C$46,$A48,'100m Manikin Carry Men'!$X$7:$X$46))) -> 8 | E48: =IF($A48="","",IF(SUMIF('100m Manikin Tow Men'!$C$7:$C$46,$A48,'100m Manikin Tow Men'!$X$7:$X$46)=0,1+MAX('100m Manikin Tow Men'!$X$7:$X$46),SUMIF('100m Manikin Tow Men'!$C$7:$C$46,$A48,'100m Manikin Tow Men'!$X$7:$X$46))) -> 8 | F48: =IF($A48="","",IF(SUMIF('200m Obs Men'!$C$7:$C$46,$A48,'200m Obs Men'!$X$7:$X$46)=0,1+MAX('200m Obs Men'!$X$7:$X$46),SUMIF('200m Obs Men'!$C$7:$C$46,$A48,'200m Obs Men'!$X$7:$X$46))) -> 2 | G48: =IF($A48="","",IF(SUMIF('200m Super Men'!$C$7:$C$46,$A48,'200m Super Men'!$X$7:$X$46)=0,1+MAX('200m Super Men'!$X$7:$X$46),SUMIF('200m Super Men'!$C$7:$C$46,$A48,'200m Super Men'!$X$7:$X$46))) -> 5 | H48: =IF($A48="","",IF(SUMIF('100 Resue Men'!$C$7:$C$46,$A48,'100 Resue Men'!$X$7:$X$46)=0,MAX('100 Resue Men'!$X$7:$X$46),SUMIF('100 Resue Men'!$C$7:$C$46,$A48,'100 Resue Men'!$X$7:$X$46))) -> 13 | I48: =IF($A48="","",IF(SUMIF('Line Throw Men'!$C$7:$C$46,$A48,'Line Throw Men'!$Z$7:$Z$46)=0,MAX('Line Throw Men'!$Z$7:$Z$46),SUMIF('Line Throw Men'!$C$7:$C$46,$A48,'Line Throw Men'!$Z$7:$Z$46))) -> 10 | J48: =IF($A48="","",IF(SUMIF('4 x 50 Obs Relay Men'!$C$7:$C$46,$A48,'4 x 50 Obs Relay Men'!$U$7:$U$46)=0,1+MAX('4 x 50 Obs Relay Men'!$U$7:$U$46),SUMIF('4 x 50 Obs Relay Men'!$C$7:$C$46,$A48,'4 x 50 Obs Relay Men'!$U$7:$U$46))) -> 6 | K48: =IF($A48="","",IF(SUMIF('4 x 50 medley Relay Men'!$C$7:$C$46,$A48,'4 x 50 medley Relay Men'!$U$7:$U$46)=0,1+MAX('4 x 50 medley Relay Men'!$U$7:$U$46),SUMIF('4 x 50 medley Relay Men'!$C$7:$C$46,$A48,'4 x 50 medley Relay Men'!$U$7:$U$46))) -> 8 | L48: =IF($A48="","",IF(SUMIF('4 x 25 Manikin Carry Relay Men'!$C$7:$C$46,$A48,'4 x 25 Manikin Carry Relay Men'!$U$7:$U$46)=0,1+MAX('4 x 25 Manikin Carry Relay Men'!$U$7:$U$46),SUMIF('4 x 25 Manikin Carry Relay Men'!$C$7:$C$46,$A48,'4 x 25 Manikin Carry Relay Men'!$U$7:$U$46))) -> 5 | M48: =IF($A48="","",IF(SUMIF('4 x 12m Line Throw Men'!$C$7:$C$46,$A48,'4 x 12m Line Throw Men'!$U$7:$U$46)=0,1+MAX('4 x 12m Line Throw Men'!$U$7:$U$46),SUMIF('4 x 12m Line Throw Men'!$C$7:$C$46,$A48,'4 x 12m Line Throw Men'!$U$7:$U$46))) -> 1 | N48: 75 | O48: 6
A49: 18 | B49: University of Oxford | C49: =IF($A49="","",IF(SUMIF('50m Manikin Carry Men'!$C$7:$C$46,$A49,'50m Manikin Carry Men'!$X$7:$X$46)=0,1+MAX('50m Manikin Carry Men'!$X$7:$X$46),SUMIF('50m Manikin Carry Men'!$C$7:$C$46,$A49,'50m Manikin Carry Men'!$X$7:$X$46))) -> 11 | D49: =IF($A49="","",IF(SUMIF('100m Manikin Carry Men'!$C$7:$C$46,$A49,'100m Manikin Carry Men'!$X$7:$X$46)=0,1+MAX('100m Manikin Carry Men'!$X$7:$X$46),SUMIF('100m Manikin Carry Men'!$C$7:$C$46,$A49,'100m Manikin Carry Men'!$X$7:$X$46))) -> 12 | E49: =IF($A49="","",IF(SUMIF('100m Manikin Tow Men'!$C$7:$C$46,$A49,'100m Manikin Tow Men'!$X$7:$X$46)=0,1+MAX('100m Manikin Tow Men'!$X$7:$X$46),SUMIF('100m Manikin Tow Men'!$C$7:$C$46,$A49,'100m Manikin Tow Men'!$X$7:$X$46))) -> 14 | F49: =IF($A49="","",IF(SUMIF('200m Obs Men'!$C$7:$C$46,$A49,'200m Obs Men'!$X$7:$X$46)=0,1+MAX('200m Obs Men'!$X$7:$X$46),SUMIF('200m Obs Men'!$C$7:$C$46,$A49,'200m Obs Men'!$X$7:$X$46))) -> 7 | G49: =IF($A49="","",IF(SUMIF('200m Super Men'!$C$7:$C$46,$A49,'200m Super Men'!$X$7:$X$46)=0,1+MAX('200m Super Men'!$X$7:$X$46),SUMIF('200m Super Men'!$C$7:$C$46,$A49,'200m Super Men'!$X$7:$X$46))) -> 12 | H49: =IF($A49="","",IF(SUMIF('100 Resue Men'!$C$7:$C$46,$A49,'100 Resue Men'!$X$7:$X$46)=0,MAX('100 Resue Men'!$X$7:$X$46),SUMIF('100 Resue Men'!$C$7:$C$46,$A49,'100 Resue Men'!$X$7:$X$46))) -> 11 | I49: =IF($A49="","",IF(SUMIF('Line Throw Men'!$C$7:$C$46,$A49,'Line Throw Men'!$Z$7:$Z$46)=0,MAX('Line Throw Men'!$Z$7:$Z$46),SUMIF('Line Throw Men'!$C$7:$C$46,$A49,'Line Throw Men'!$Z$7:$Z$46))) -> 8 | J49: =IF($A49="","",IF(SUMIF('4 x 50 Obs Relay Men'!$C$7:$C$46,$A49,'4 x 50 Obs Relay Men'!$U$7:$U$46)=0,1+MAX('4 x 50 Obs Relay Men'!$U$7:$U$46),SUMIF('4 x 50 Obs Relay Men'!$C$7:$C$46,$A49,'4 x 50 Obs Relay Men'!$U$7:$U$46))) -> 8 | K49: =IF($A49="","",IF(SUMIF('4 x 50 medley Relay Men'!$C$7:$C$46,$A49,'4 x 50 medley Relay Men'!$U$7:$U$46)=0,1+MAX('4 x 50 medley Relay Men'!$U$7:$U$46),SUMIF('4 x 50 medley Relay Men'!$C$7:$C$46,$A49,'4 x 50 medley Relay Men'!$U$7:$U$46))) -> 9 | L49: =IF($A49="","",IF(SUMIF('4 x 25 Manikin Carry Relay Men'!$C$7:$C$46,$A49,'4 x 25 Manikin Carry Relay Men'!$U$7:$U$46)=0,1+MAX('4 x 25 Manikin Carry Relay Men'!$U$7:$U$46),SUMIF('4 x 25 Manikin Carry Relay Men'!$C$7:$C$46,$A49,'4 x 25 Manikin Carry Relay Men'!$U$7:$U$46))) -> 6 | M49: =IF($A49="","",IF(SUMIF('4 x 12m Line Throw Men'!$C$7:$C$46,$A49,'4 x 12m Line Throw Men'!$U$7:$U$46)=0,1+MAX('4 x 12m Line Throw Men'!$U$7:$U$46),SUMIF('4 x 12m Line Throw Men'!$C$7:$C$46,$A49,'4 x 12m Line Throw Men'!$U$7:$U$46))) -> 6 | N49: 104 | O49: 12
A50: 9 | B50: University of Plymouth | C50: 13 | D50: =IF($A50="","",IF(SUMIF('100m Manikin Carry Men'!$C$7:$C$46,$A50,'100m Manikin Carry Men'!$X$7:$X$46)=0,1+MAX('100m Manikin Carry Men'!$X$7:$X$46),SUMIF('100m Manikin Carry Men'!$C$7:$C$46,$A50,'100m Manikin Carry Men'!$X$7:$X$46))) -> 7 | E50: =IF($A50="","",IF(SUMIF('100m Manikin Tow Men'!$C$7:$C$46,$A50,'100m Manikin Tow Men'!$X$7:$X$46)=0,1+MAX('100m Manikin Tow Men'!$X$7:$X$46),SUMIF('100m Manikin Tow Men'!$C$7:$C$46,$A50,'100m Manikin Tow Men'!$X$7:$X$46))) -> 13 | F50: =IF($A50="","",IF(SUMIF('200m Obs Men'!$C$7:$C$46,$A50,'200m Obs Men'!$X$7:$X$46)=0,1+MAX('200m Obs Men'!$X$7:$X$46),SUMIF('200m Obs Men'!$C$7:$C$46,$A50,'200m Obs Men'!$X$7:$X$46))) -> 9 | G50: =IF($A50="","",IF(SUMIF('200m Super Men'!$C$7:$C$46,$A50,'200m Super Men'!$X$7:$X$46)=0,1+MAX('200m Super Men'!$X$7:$X$46),SUMIF('200m Super Men'!$C$7:$C$46,$A50,'200m Super Men'!$X$7:$X$46))) -> 13 | H50: =IF($A50="","",IF(SUMIF('100 Resue Men'!$C$7:$C$46,$A50,'100 Resue Men'!$X$7:$X$46)=0,MAX('100 Resue Men'!$X$7:$X$46),SUMIF('100 Resue Men'!$C$7:$C$46,$A50,'100 Resue Men'!$X$7:$X$46))) -> 9 | I50: =IF($A50="","",IF(SUMIF('Line Throw Men'!$C$7:$C$46,$A50,'Line Throw Men'!$Z$7:$Z$46)=0,MAX('Line Throw Men'!$Z$7:$Z$46),SUMIF('Line Throw Men'!$C$7:$C$46,$A50,'Line Throw Men'!$Z$7:$Z$46))) -> 5 | J50: =IF($A50="","",IF(SUMIF('4 x 50 Obs Relay Men'!$C$7:$C$46,$A50,'4 x 50 Obs Relay Men'!$U$7:$U$46)=0,1+MAX('4 x 50 Obs Relay Men'!$U$7:$U$46),SUMIF('4 x 50 Obs Relay Men'!$C$7:$C$46,$A50,'4 x 50 Obs Relay Men'!$U$7:$U$46))) -> 4 | K50: =IF($A50="","",IF(SUMIF('4 x 50 medley Relay Men'!$C$7:$C$46,$A50,'4 x 50 medley Relay Men'!$U$7:$U$46)=0,1+MAX('4 x 50 medley Relay Men'!$U$7:$U$46),SUMIF('4 x 50 medley Relay Men'!$C$7:$C$46,$A50,'4 x 50 medley Relay Men'!$U$7:$U$46))) -> 4 | L50: =IF($A50="","",IF(SUMIF('4 x 25 Manikin Carry Relay Men'!$C$7:$C$46,$A50,'4 x 25 Manikin Carry Relay Men'!$U$7:$U$46)=0,1+MAX('4 x 25 Manikin Carry Relay Men'!$U$7:$U$46),SUMIF('4 x 25 Manikin Carry Relay Men'!$C$7:$C$46,$A50,'4 x 25 Manikin Carry Relay Men'!$U$7:$U$46))) -> 8 | M50: =IF($A50="","",IF(SUMIF('4 x 12m Line Throw Men'!$C$7:$C$46,$A50,'4 x 12m Line Throw Men'!$U$7:$U$46)=0,1+MAX('4 x 12m Line Throw Men'!$U$7:$U$46),SUMIF('4 x 12m Line Throw Men'!$C$7:$C$46,$A50,'4 x 12m Line Throw Men'!$U$7:$U$46))) -> 3 | N50: 88 | O50: 10
A51: 20 | B51: University of Southampton | C51: =IF($A51="","",IF(SUMIF('50m Manikin Carry Men'!$C$7:$C$46,$A51,'50m Manikin Carry Men'!$X$7:$X$46)=0,1+MAX('50m Manikin Carry Men'!$X$7:$X$46),SUMIF('50m Manikin Carry Men'!$C$7:$C$46,$A51,'50m Manikin Carry Men'!$X$7:$X$46))) -> 5 | D51: =IF($A51="","",IF(SUMIF('100m Manikin Carry Men'!$C$7:$C$46,$A51,'100m Manikin Carry Men'!$X$7:$X$46)=0,1+MAX('100m Manikin Carry Men'!$X$7:$X$46),SUMIF('100m Manikin Carry Men'!$C$7:$C$46,$A51,'100m Manikin Carry Men'!$X$7:$X$46))) -> 2 | E51: =IF($A51="","",IF(SUMIF('100m Manikin Tow Men'!$C$7:$C$46,$A51,'100m Manikin Tow Men'!$X$7:$X$46)=0,1+MAX('100m Manikin Tow Men'!$X$7:$X$46),SUMIF('100m Manikin Tow Men'!$C$7:$C$46,$A51,'100m Manikin Tow Men'!$X$7:$X$46))) -> 6 | F51: =IF($A51="","",IF(SUMIF('200m Obs Men'!$C$7:$C$46,$A51,'200m Obs Men'!$X$7:$X$46)=0,1+MAX('200m Obs Men'!$X$7:$X$46),SUMIF('200m Obs Men'!$C$7:$C$46,$A51,'200m Obs Men'!$X$7:$X$46))) -> 8 | G51: =IF($A51="","",IF(SUMIF('200m Super Men'!$C$7:$C$46,$A51,'200m Super Men'!$X$7:$X$46)=0,1+MAX('200m Super Men'!$X$7:$X$46),SUMIF('200m Super Men'!$C$7:$C$46,$A51,'200m Super Men'!$X$7:$X$46))) -> 8 | H51: =IF($A51="","",IF(SUMIF('100 Resue Men'!$C$7:$C$46,$A51,'100 Resue Men'!$X$7:$X$46)=0,MAX('100 Resue Men'!$X$7:$X$46),SUMIF('100 Resue Men'!$C$7:$C$46,$A51,'100 Resue Men'!$X$7:$X$46))) -> 5 | I51: =IF($A51="","",IF(SUMIF('Line Throw Men'!$C$7:$C$46,$A51,'Line Throw Men'!$Z$7:$Z$46)=0,MAX('Line Throw Men'!$Z$7:$Z$46),SUMIF('Line Throw Men'!$C$7:$C$46,$A51,'Line Throw Men'!$Z$7:$Z$46))) -> 2 | J51: =IF($A51="","",IF(SUMIF('4 x 50 Obs Relay Men'!$C$7:$C$46,$A51,'4 x 50 Obs Relay Men'!$U$7:$U$46)=0,1+MAX('4 x 50 Obs Relay Men'!$U$7:$U$46),SUMIF('4 x 50 Obs Relay Men'!$C$7:$C$46,$A51,'4 x 50 Obs Relay Men'!$U$7:$U$46))) -> 3 | K51: =IF($A51="","",IF(SUMIF('4 x 50 medley Relay Men'!$C$7:$C$46,$A51,'4 x 50 medley Relay Men'!$U$7:$U$46)=0,1+MAX('4 x 50 medley Relay Men'!$U$7:$U$46),SUMIF('4 x 50 medley Relay Men'!$C$7:$C$46,$A51,'4 x 50 medley Relay Men'!$U$7:$U$46))) -> 3 | L51: =IF($A51="","",IF(SUMIF('4 x 25 Manikin Carry Relay Men'!$C$7:$C$46,$A51,'4 x 25 Manikin Carry Relay Men'!$U$7:$U$46)=0,1+MAX('4 x 25 Manikin Carry Relay Men'!$U$7:$U$46),SUMIF('4 x 25 Manikin Carry Relay Men'!$C$7:$C$46,$A51,'4 x 25 Manikin Carry Relay Men'!$U$7:$U$46))) -> 2 | M51: =IF($A51="","",IF(SUMIF('4 x 12m Line Throw Men'!$C$7:$C$46,$A51,'4 x 12m Line Throw Men'!$U$7:$U$46)=0,1+MAX('4 x 12m Line Throw Men'!$U$7:$U$46),SUMIF('4 x 12m Line Throw Men'!$C$7:$C$46,$A51,'4 x 12m Line Throw Men'!$U$7:$U$46))) -> 7 | N51: 51 | O51: 3
A52: 12 | B52: University of Warwick | C52: =IF($A52="","",IF(SUMIF('50m Manikin Carry Men'!$C$7:$C$46,$A52,'50m Manikin Carry Men'!$X$7:$X$46)=0,1+MAX('50m Manikin Carry Men'!$X$7:$X$46),SUMIF('50m Manikin Carry Men'!$C$7:$C$46,$A52,'50m Manikin Carry Men'!$X$7:$X$46))) -> 8 | D52: =IF($A52="","",IF(SUMIF('100m Manikin Carry Men'!$C$7:$C$46,$A52,'100m Manikin Carry Men'!$X$7:$X$46)=0,1+MAX('100m Manikin Carry Men'!$X$7:$X$46),SUMIF('100m Manikin Carry Men'!$C$7:$C$46,$A52,'100m Manikin Carry Men'!$X$7:$X$46))) -> 5 | E52: =IF($A52="","",IF(SUMIF('100m Manikin Tow Men'!$C$7:$C$46,$A52,'100m Manikin Tow Men'!$X$7:$X$46)=0,1+MAX('100m Manikin Tow Men'!$X$7:$X$46),SUMIF('100m Manikin Tow Men'!$C$7:$C$46,$A52,'100m Manikin Tow Men'!$X$7:$X$46))) -> 4 | F52: =IF($A52="","",IF(SUMIF('200m Obs Men'!$C$7:$C$46,$A52,'200m Obs Men'!$X$7:$X$46)=0,1+MAX('200m Obs Men'!$X$7:$X$46),SUMIF('200m Obs Men'!$C$7:$C$46,$A52,'200m Obs Men'!$X$7:$X$46))) -> 10 | G52: =IF($A52="","",IF(SUMIF('200m Super Men'!$C$7:$C$46,$A52,'200m Super Men'!$X$7:$X$46)=0,1+MAX('200m Super Men'!$X$7:$X$46),SUMIF('200m Super Men'!$C$7:$C$46,$A52,'200m Super Men'!$X$7:$X$46))) -> 7 | H52: =IF($A52="","",IF(SUMIF('100 Resue Men'!$C$7:$C$46,$A52,'100 Resue Men'!$X$7:$X$46)=0,MAX('100 Resue Men'!$X$7:$X$46),SUMIF('100 Resue Men'!$C$7:$C$46,$A52,'100 Resue Men'!$X$7:$X$46))) -> 6 | I52: =IF($A52="","",IF(SUMIF('Line Throw Men'!$C$7:$C$46,$A52,'Line Throw Men'!$Z$7:$Z$46)=0,MAX('Line Throw Men'!$Z$7:$Z$46),SUMIF('Line Throw Men'!$C$7:$C$46,$A52,'Line Throw Men'!$Z$7:$Z$46))) -> 1 | J52: =IF($A52="","",IF(SUMIF('4 x 50 Obs Relay Men'!$C$7:$C$46,$A52,'4 x 50 Obs Relay Men'!$U$7:$U$46)=0,1+MAX('4 x 50 Obs Relay Men'!$U$7:$U$46),SUMIF('4 x 50 Obs Relay Men'!$C$7:$C$46,$A52,'4 x 50 Obs Relay Men'!$U$7:$U$46))) -> 5 | K52: =IF($A52="","",IF(SUMIF('4 x 50 medley Relay Men'!$C$7:$C$46,$A52,'4 x 50 medley Relay Men'!$U$7:$U$46)=0,1+MAX('4 x 50 medley Relay Men'!$U$7:$U$46),SUMIF('4 x 50 medley Relay Men'!$C$7:$C$46,$A52,'4 x 50 medley Relay Men'!$U$7:$U$46))) -> 5 | L52: =IF($A52="","",IF(SUMIF('4 x 25 Manikin Carry Relay Men'!$C$7:$C$46,$A52,'4 x 25 Manikin Carry Relay Men'!$U$7:$U$46)=0,1+MAX('4 x 25 Manikin Carry Relay Men'!$U$7:$U$46),SUMIF('4 x 25 Manikin Carry Relay Men'!$C$7:$C$46,$A52,'4 x 25 Manikin Carry Relay Men'!$U$7:$U$46))) -> 9 | M52: =IF($A52="","",IF(SUMIF('4 x 12m Line Throw Men'!$C$7:$C$46,$A52,'4 x 12m Line Throw Men'!$U$7:$U$46)=0,1+MAX('4 x 12m Line Throw Men'!$U$7:$U$46),SUMIF('4 x 12m Line Throw Men'!$C$7:$C$46,$A52,'4 x 12m Line Throw Men'!$U$7:$U$46))) -> 7 | N52: 67 | O52: 4
A53: 11 | B53: St. Andrews | C53: =IF($A53="","",IF(SUMIF('50m Manikin Carry Men'!$C$7:$C$46,$A53,'50m Manikin Carry Men'!$X$7:$X$46)=0,1+MAX('50m Manikin Carry Men'!$X$7:$X$46),SUMIF('50m Manikin Carry Men'!$C$7:$C$46,$A53,'50m Manikin Carry Men'!$X$7:$X$46))) -> 10 | D53: =IF($A53="","",IF(SUMIF('100m Manikin Carry Men'!$C$7:$C$46,$A53,'100m Manikin Carry Men'!$X$7:$X$46)=0,1+MAX('100m Manikin Carry Men'!$X$7:$X$46),SUMIF('100m Manikin Carry Men'!$C$7:$C$46,$A53,'100m Manikin Carry Men'!$X$7:$X$46))) -> 10 | E53: =IF($A53="","",IF(SUMIF('100m Manikin Tow Men'!$C$7:$C$46,$A53,'100m Manikin Tow Men'!$X$7:$X$46)=0,1+MAX('100m Manikin Tow Men'!$X$7:$X$46),SUMIF('100m Manikin Tow Men'!$C$7:$C$46,$A53,'100m Manikin Tow Men'!$X$7:$X$46))) -> 9 | F53: =IF($A53="","",IF(SUMIF('200m Obs Men'!$C$7:$C$46,$A53,'200m Obs Men'!$X$7:$X$46)=0,1+MAX('200m Obs Men'!$X$7:$X$46),SUMIF('200m Obs Men'!$C$7:$C$46,$A53,'200m Obs Men'!$X$7:$X$46))) -> 11 | G53: =IF($A53="","",IF(SUMIF('200m Super Men'!$C$7:$C$46,$A53,'200m Super Men'!$X$7:$X$46)=0,1+MAX('200m Super Men'!$X$7:$X$46),SUMIF('200m Super Men'!$C$7:$C$46,$A53,'200m Super Men'!$X$7:$X$46))) -> 11 | H53: =IF($A53="","",IF(SUMIF('100 Resue Men'!$C$7:$C$46,$A53,'100 Resue Men'!$X$7:$X$46)=0,MAX('100 Resue Men'!$X$7:$X$46),SUMIF('100 Resue Men'!$C$7:$C$46,$A53,'100 Resue Men'!$X$7:$X$46))) -> 10 | I53: =IF($A53="","",IF(SUMIF('Line Throw Men'!$C$7:$C$46,$A53,'Line Throw Men'!$Z$7:$Z$46)=0,MAX('Line Throw Men'!$Z$7:$Z$46),SUMIF('Line Throw Men'!$C$7:$C$46,$A53,'Line Throw Men'!$Z$7:$Z$46))) -> 4 | J53: =IF($A53="","",IF(SUMIF('4 x 50 Obs Relay Men'!$C$7:$C$46,$A53,'4 x 50 Obs Relay Men'!$U$7:$U$46)=0,1+MAX('4 x 50 Obs Relay Men'!$U$7:$U$46),SUMIF('4 x 50 Obs Relay Men'!$C$7:$C$46,$A53,'4 x 50 Obs Relay Men'!$U$7:$U$46))) -> 7 | K53: =IF($A53="","",IF(SUMIF('4 x 50 medley Relay Men'!$C$7:$C$46,$A53,'4 x 50 medley Relay Men'!$U$7:$U$46)=0,1+MAX('4 x 50 medley Relay Men'!$U$7:$U$46),SUMIF('4 x 50 medley Relay Men'!$C$7:$C$46,$A53,'4 x 50 medley Relay Men'!$U$7:$U$46))) -> 7 | L53: =IF($A53="","",IF(SUMIF('4 x 25 Manikin Carry Relay Men'!$C$7:$C$46,$A53,'4 x 25 Manikin Carry Relay Men'!$U$7:$U$46)=0,1+MAX('4 x 25 Manikin Carry Relay Men'!$U$7:$U$46),SUMIF('4 x 25 Manikin Carry Relay Men'!$C$7:$C$46,$A53,'4 x 25 Manikin Carry Relay Men'!$U$7:$U$46))) -> 7 | M53: =IF($A53="","",IF(SUMIF('4 x 12m Line Throw Men'!$C$7:$C$46,$A53,'4 x 12m Line Throw Men'!$U$7:$U$46)=0,1+MAX('4 x 12m Line Throw Men'!$U$7:$U$46),SUMIF('4 x 12m Line Throw Men'!$C$7:$C$46,$A53,'4 x 12m Line Throw Men'!$U$7:$U$46))) -> 7 | N53: 93 | O53: 11
C54: =IF($A54="","",IF(SUMIF('50m Manikin Carry Men'!$C$7:$C$46,$A54,'50m Manikin Carry Men'!$X$7:$X$46)=0,1+MAX('50m Manikin Carry Men'!$X$7:$X$46),SUMIF('50m Manikin Carry Men'!$C$7:$C$46,$A54,'50m Manikin Carry Men'!$X$7:$X$46))) ->  | D54: =IF($A54="","",IF(SUMIF('100m Manikin Carry Men'!$C$7:$C$46,$A54,'100m Manikin Carry Men'!$X$7:$X$46)=0,1+MAX('100m Manikin Carry Men'!$X$7:$X$46),SUMIF('100m Manikin Carry Men'!$C$7:$C$46,$A54,'100m Manikin Carry Men'!$X$7:$X$46))) ->  | E54: =IF($A54="","",IF(SUMIF('100m Manikin Tow Men'!$C$7:$C$46,$A54,'100m Manikin Tow Men'!$X$7:$X$46)=0,1+MAX('100m Manikin Tow Men'!$X$7:$X$46),SUMIF('100m Manikin Tow Men'!$C$7:$C$46,$A54,'100m Manikin Tow Men'!$X$7:$X$46))) ->  | F54: =IF($A54="","",IF(SUMIF('200m Obs Men'!$C$7:$C$46,$A54,'200m Obs Men'!$X$7:$X$46)=0,1+MAX('200m Obs Men'!$X$7:$X$46),SUMIF('200m Obs Men'!$C$7:$C$46,$A54,'200m Obs Men'!$X$7:$X$46))) ->  | G54: =IF($A54="","",IF(SUMIF('200m Super Men'!$C$7:$C$46,$A54,'200m Super Men'!$X$7:$X$46)=0,1+MAX('200m Super Men'!$X$7:$X$46),SUMIF('200m Super Men'!$C$7:$C$46,$A54,'200m Super Men'!$X$7:$X$46))) ->  | H54: =IF($A54="","",IF(SUMIF('100 Resue Men'!$C$7:$C$46,$A54,'100 Resue Men'!$X$7:$X$46)=0,MAX('100 Resue Men'!$X$7:$X$46),SUMIF('100 Resue Men'!$C$7:$C$46,$A54,'100 Resue Men'!$X$7:$X$46))) ->  | I54: =IF($A54="","",IF(SUMIF('Line Throw Men'!$C$7:$C$46,$A54,'Line Throw Men'!$Z$7:$Z$46)=0,MAX('Line Throw Men'!$Z$7:$Z$46),SUMIF('Line Throw Men'!$C$7:$C$46,$A54,'Line Throw Men'!$Z$7:$Z$46))) ->  | J54: =IF($A54="","",IF(SUMIF('4 x 50 Obs Relay Men'!$C$7:$C$46,$A54,'4 x 50 Obs Relay Men'!$U$7:$U$46)=0,1+MAX('4 x 50 Obs Relay Men'!$U$7:$U$46),SUMIF('4 x 50 Obs Relay Men'!$C$7:$C$46,$A54,'4 x 50 Obs Relay Men'!$U$7:$U$46))) ->  | K54: =IF($A54="","",IF(SUMIF('4 x 50 medley Relay Men'!$C$7:$C$46,$A54,'4 x 50 medley Relay Men'!$U$7:$U$46)=0,1+MAX('4 x 50 medley Relay Men'!$U$7:$U$46),SUMIF('4 x 50 medley Relay Men'!$C$7:$C$46,$A54,'4 x 50 medley Relay Men'!$U$7:$U$46))) ->  | L54: =IF($A54="","",IF(SUMIF('4 x 25 Manikin Carry Relay Men'!$C$7:$C$46,$A54,'4 x 25 Manikin Carry Relay Men'!$U$7:$U$46)=0,1+MAX('4 x 25 Manikin Carry Relay Men'!$U$7:$U$46),SUMIF('4 x 25 Manikin Carry Relay Men'!$C$7:$C$46,$A54,'4 x 25 Manikin Carry Relay Men'!$U$7:$U$46))) ->  | M54: =IF($A54="","",IF(SUMIF('4 x 12m Line Throw Men'!$C$7:$C$46,$A54,'4 x 12m Line Throw Men'!$U$7:$U$46)=0,1+MAX('4 x 12m Line Throw Men'!$U$7:$U$46),SUMIF('4 x 12m Line Throw Men'!$C$7:$C$46,$A54,'4 x 12m Line Throw Men'!$U$7:$U$46))) -> 
C55: =IF($A55="","",IF(SUMIF('50m Manikin Carry Men'!$C$7:$C$46,$A55,'50m Manikin Carry Men'!$X$7:$X$46)=0,1+MAX('50m Manikin Carry Men'!$X$7:$X$46),SUMIF('50m Manikin Carry Men'!$C$7:$C$46,$A55,'50m Manikin Carry Men'!$X$7:$X$46))) ->  | D55: =IF($A55="","",IF(SUMIF('100m Manikin Carry Men'!$C$7:$C$46,$A55,'100m Manikin Carry Men'!$X$7:$X$46)=0,1+MAX('100m Manikin Carry Men'!$X$7:$X$46),SUMIF('100m Manikin Carry Men'!$C$7:$C$46,$A55,'100m Manikin Carry Men'!$X$7:$X$46))) ->  | E55: =IF($A55="","",IF(SUMIF('100m Manikin Tow Men'!$C$7:$C$46,$A55,'100m Manikin Tow Men'!$X$7:$X$46)=0,1+MAX('100m Manikin Tow Men'!$X$7:$X$46),SUMIF('100m Manikin Tow Men'!$C$7:$C$46,$A55,'100m Manikin Tow Men'!$X$7:$X$46))) ->  | F55: =IF($A55="","",IF(SUMIF('200m Obs Men'!$C$7:$C$46,$A55,'200m Obs Men'!$X$7:$X$46)=0,1+MAX('200m Obs Men'!$X$7:$X$46),SUMIF('200m Obs Men'!$C$7:$C$46,$A55,'200m Obs Men'!$X$7:$X$46))) ->  | G55: =IF($A55="","",IF(SUMIF('200m Super Men'!$C$7:$C$46,$A55,'200m Super Men'!$X$7:$X$46)=0,1+MAX('200m Super Men'!$X$7:$X$46),SUMIF('200m Super Men'!$C$7:$C$46,$A55,'200m Super Men'!$X$7:$X$46))) ->  | H55: =IF($A55="","",IF(SUMIF('100 Resue Men'!$C$7:$C$46,$A55,'100 Resue Men'!$X$7:$X$46)=0,MAX('100 Resue Men'!$X$7:$X$46),SUMIF('100 Resue Men'!$C$7:$C$46,$A55,'100 Resue Men'!$X$7:$X$46))) ->  | I55: =IF($A55="","",IF(SUMIF('Line Throw Men'!$C$7:$C$46,$A55,'Line Throw Men'!$Z$7:$Z$46)=0,MAX('Line Throw Men'!$Z$7:$Z$46),SUMIF('Line Throw Men'!$C$7:$C$46,$A55,'Line Throw Men'!$Z$7:$Z$46))) ->  | J55: =IF($A55="","",IF(SUMIF('4 x 50 Obs Relay Men'!$C$7:$C$46,$A55,'4 x 50 Obs Relay Men'!$U$7:$U$46)=0,1+MAX('4 x 50 Obs Relay Men'!$U$7:$U$46),SUMIF('4 x 50 Obs Relay Men'!$C$7:$C$46,$A55,'4 x 50 Obs Relay Men'!$U$7:$U$46))) ->  | K55: =IF($A55="","",IF(SUMIF('4 x 50 medley Relay Men'!$C$7:$C$46,$A55,'4 x 50 medley Relay Men'!$U$7:$U$46)=0,1+MAX('4 x 50 medley Relay Men'!$U$7:$U$46),SUMIF('4 x 50 medley Relay Men'!$C$7:$C$46,$A55,'4 x 50 medley Relay Men'!$U$7:$U$46))) ->  | L55: =IF($A55="","",IF(SUMIF('4 x 25 Manikin Carry Relay Men'!$C$7:$C$46,$A55,'4 x 25 Manikin Carry Relay Men'!$U$7:$U$46)=0,1+MAX('4 x 25 Manikin Carry Relay Men'!$U$7:$U$46),SUMIF('4 x 25 Manikin Carry Relay Men'!$C$7:$C$46,$A55,'4 x 25 Manikin Carry Relay Men'!$U$7:$U$46))) ->  | M55: =IF($A55="","",IF(SUMIF('4 x 12m Line Throw Men'!$C$7:$C$46,$A55,'4 x 12m Line Throw Men'!$U$7:$U$46)=0,1+MAX('4 x 12m Line Throw Men'!$U$7:$U$46),SUMIF('4 x 12m Line Throw Men'!$C$7:$C$46,$A55,'4 x 12m Line Throw Men'!$U$7:$U$46))) -> 
A56: =IF(A21="","",A21) ->  | C56: =IF($A56="","",IF(SUMIF('50m Manikin Carry Men'!$C$7:$C$46,$A56,'50m Manikin Carry Men'!$X$7:$X$46)=0,1+MAX('50m Manikin Carry Men'!$X$7:$X$46),SUMIF('50m Manikin Carry Men'!$C$7:$C$46,$A56,'50m Manikin Carry Men'!$X$7:$X$46))) ->  | D56: =IF($A56="","",IF(SUMIF('100m Manikin Carry Men'!$C$7:$C$46,$A56,'100m Manikin Carry Men'!$X$7:$X$46)=0,1+MAX('100m Manikin Carry Men'!$X$7:$X$46),SUMIF('100m Manikin Carry Men'!$C$7:$C$46,$A56,'100m Manikin Carry Men'!$X$7:$X$46))) ->  | E56: =IF($A56="","",IF(SUMIF('100m Manikin Tow Men'!$C$7:$C$46,$A56,'100m Manikin Tow Men'!$X$7:$X$46)=0,1+MAX('100m Manikin Tow Men'!$X$7:$X$46),SUMIF('100m Manikin Tow Men'!$C$7:$C$46,$A56,'100m Manikin Tow Men'!$X$7:$X$46))) ->  | F56: =IF($A56="","",IF(SUMIF('200m Obs Men'!$C$7:$C$46,$A56,'200m Obs Men'!$X$7:$X$46)=0,1+MAX('200m Obs Men'!$X$7:$X$46),SUMIF('200m Obs Men'!$C$7:$C$46,$A56,'200m Obs Men'!$X$7:$X$46))) ->  | G56: =IF($A56="","",IF(SUMIF('200m Super Men'!$C$7:$C$46,$A56,'200m Super Men'!$X$7:$X$46)=0,1+MAX('200m Super Men'!$X$7:$X$46),SUMIF('200m Super Men'!$C$7:$C$46,$A56,'200m Super Men'!$X$7:$X$46))) ->  | H56: =IF($A56="","",IF(SUMIF('100 Resue Men'!$C$7:$C$46,$A56,'100 Resue Men'!$X$7:$X$46)=0,MAX('100 Resue Men'!$X$7:$X$46),SUMIF('100 Resue Men'!$C$7:$C$46,$A56,'100 Resue Men'!$X$7:$X$46))) ->  | I56: =IF($A56="","",IF(SUMIF('Line Throw Men'!$C$7:$C$46,$A56,'Line Throw Men'!$Z$7:$Z$46)=0,MAX('Line Throw Men'!$Z$7:$Z$46),SUMIF('Line Throw Men'!$C$7:$C$46,$A56,'Line Throw Men'!$Z$7:$Z$46))) ->  | J56: =IF($A56="","",IF(SUMIF('4 x 50 Obs Relay Men'!$C$7:$C$46,$A56,'4 x 50 Obs Relay Men'!$U$7:$U$46)=0,1+MAX('4 x 50 Obs Relay Men'!$U$7:$U$46),SUMIF('4 x 50 Obs Relay Men'!$C$7:$C$46,$A56,'4 x 50 Obs Relay Men'!$U$7:$U$46))) ->  | K56: =IF($A56="","",IF(SUMIF('4 x 50 medley Relay Men'!$C$7:$C$46,$A56,'4 x 50 medley Relay Men'!$U$7:$U$46)=0,1+MAX('4 x 50 medley Relay Men'!$U$7:$U$46),SUMIF('4 x 50 medley Relay Men'!$C$7:$C$46,$A56,'4 x 50 medley Relay Men'!$U$7:$U$46))) ->  | L56: =IF($A56="","",IF(SUMIF('4 x 25 Manikin Carry Relay Men'!$C$7:$C$46,$A56,'4 x 25 Manikin Carry Relay Men'!$U$7:$U$46)=0,1+MAX('4 x 25 Manikin Carry Relay Men'!$U$7:$U$46),SUMIF('4 x 25 Manikin Carry Relay Men'!$C$7:$C$46,$A56,'4 x 25 Manikin Carry Relay Men'!$U$7:$U$46))) ->  | M56: =IF($A56="","",IF(SUMIF('4 x 12m Line Throw Men'!$C$7:$C$46,$A56,'4 x 12m Line Throw Men'!$U$7:$U$46)=0,1+MAX('4 x 12m Line Throw Men'!$U$7:$U$46),SUMIF('4 x 12m Line Throw Men'!$C$7:$C$46,$A56,'4 x 12m Line Throw Men'!$U$7:$U$46))) -> 
C57: =IF($A57="","",IF(SUMIF('50m Manikin Carry Men'!$C$7:$C$46,$A57,'50m Manikin Carry Men'!$X$7:$X$46)=0,1+MAX('50m Manikin Carry Men'!$X$7:$X$46),SUMIF('50m Manikin Carry Men'!$C$7:$C$46,$A57,'50m Manikin Carry Men'!$X$7:$X$46))) ->  | D57: =IF($A57="","",IF(SUMIF('100m Manikin Carry Men'!$C$7:$C$46,$A57,'100m Manikin Carry Men'!$X$7:$X$46)=0,1+MAX('100m Manikin Carry Men'!$X$7:$X$46),SUMIF('100m Manikin Carry Men'!$C$7:$C$46,$A57,'100m Manikin Carry Men'!$X$7:$X$46))) ->  | E57: =IF($A57="","",IF(SUMIF('100m Manikin Tow Men'!$C$7:$C$46,$A57,'100m Manikin Tow Men'!$X$7:$X$46)=0,1+MAX('100m Manikin Tow Men'!$X$7:$X$46),SUMIF('100m Manikin Tow Men'!$C$7:$C$46,$A57,'100m Manikin Tow Men'!$X$7:$X$46))) ->  | F57: =IF($A57="","",IF(SUMIF('200m Obs Men'!$C$7:$C$46,$A57,'200m Obs Men'!$X$7:$X$46)=0,1+MAX('200m Obs Men'!$X$7:$X$46),SUMIF('200m Obs Men'!$C$7:$C$46,$A57,'200m Obs Men'!$X$7:$X$46))) ->  | G57: =IF($A57="","",IF(SUMIF('200m Super Men'!$C$7:$C$46,$A57,'200m Super Men'!$X$7:$X$46)=0,1+MAX('200m Super Men'!$X$7:$X$46),SUMIF('200m Super Men'!$C$7:$C$46,$A57,'200m Super Men'!$X$7:$X$46))) ->  | H57: =IF($A57="","",IF(SUMIF('100 Resue Men'!$C$7:$C$46,$A57,'100 Resue Men'!$X$7:$X$46)=0,MAX('100 Resue Men'!$X$7:$X$46),SUMIF('100 Resue Men'!$C$7:$C$46,$A57,'100 Resue Men'!$X$7:$X$46))) ->  | I57: =IF($A57="","",IF(SUMIF('Line Throw Men'!$C$7:$C$46,$A57,'Line Throw Men'!$Z$7:$Z$46)=0,MAX('Line Throw Men'!$Z$7:$Z$46),SUMIF('Line Throw Men'!$C$7:$C$46,$A57,'Line Throw Men'!$Z$7:$Z$46))) ->  | J57: =IF($A57="","",IF(SUMIF('4 x 50 Obs Relay Men'!$C$7:$C$46,$A57,'4 x 50 Obs Relay Men'!$U$7:$U$46)=0,1+MAX('4 x 50 Obs Relay Men'!$U$7:$U$46),SUMIF('4 x 50 Obs Relay Men'!$C$7:$C$46,$A57,'4 x 50 Obs Relay Men'!$U$7:$U$46))) ->  | K57: =IF($A57="","",IF(SUMIF('4 x 50 medley Relay Men'!$C$7:$C$46,$A57,'4 x 50 medley Relay Men'!$U$7:$U$46)=0,1+MAX('4 x 50 medley Relay Men'!$U$7:$U$46),SUMIF('4 x 50 medley Relay Men'!$C$7:$C$46,$A57,'4 x 50 medley Relay Men'!$U$7:$U$46))) ->  | L57: =IF($A57="","",IF(SUMIF('4 x 25 Manikin Carry Relay Men'!$C$7:$C$46,$A57,'4 x 25 Manikin Carry Relay Men'!$U$7:$U$46)=0,1+MAX('4 x 25 Manikin Carry Relay Men'!$U$7:$U$46),SUMIF('4 x 25 Manikin Carry Relay Men'!$C$7:$C$46,$A57,'4 x 25 Manikin Carry Relay Men'!$U$7:$U$46))) ->  | M57: =IF($A57="","",IF(SUMIF('4 x 12m Line Throw Men'!$C$7:$C$46,$A57,'4 x 12m Line Throw Men'!$U$7:$U$46)=0,1+MAX('4 x 12m Line Throw Men'!$U$7:$U$46),SUMIF('4 x 12m Line Throw Men'!$C$7:$C$46,$A57,'4 x 12m Line Throw Men'!$U$7:$U$46))) -> 
C58: =IF($A58="","",IF(SUMIF('50m Manikin Carry Men'!$C$7:$C$46,$A58,'50m Manikin Carry Men'!$X$7:$X$46)=0,1+MAX('50m Manikin Carry Men'!$X$7:$X$46),SUMIF('50m Manikin Carry Men'!$C$7:$C$46,$A58,'50m Manikin Carry Men'!$X$7:$X$46))) ->  | D58: =IF($A58="","",IF(SUMIF('100m Manikin Carry Men'!$C$7:$C$46,$A58,'100m Manikin Carry Men'!$X$7:$X$46)=0,1+MAX('100m Manikin Carry Men'!$X$7:$X$46),SUMIF('100m Manikin Carry Men'!$C$7:$C$46,$A58,'100m Manikin Carry Men'!$X$7:$X$46))) ->  | E58: =IF($A58="","",IF(SUMIF('100m Manikin Tow Men'!$C$7:$C$46,$A58,'100m Manikin Tow Men'!$X$7:$X$46)=0,1+MAX('100m Manikin Tow Men'!$X$7:$X$46),SUMIF('100m Manikin Tow Men'!$C$7:$C$46,$A58,'100m Manikin Tow Men'!$X$7:$X$46))) ->  | F58: =IF($A58="","",IF(SUMIF('200m Obs Men'!$C$7:$C$46,$A58,'200m Obs Men'!$X$7:$X$46)=0,1+MAX('200m Obs Men'!$X$7:$X$46),SUMIF('200m Obs Men'!$C$7:$C$46,$A58,'200m Obs Men'!$X$7:$X$46))) ->  | G58: =IF($A58="","",IF(SUMIF('200m Super Men'!$C$7:$C$46,$A58,'200m Super Men'!$X$7:$X$46)=0,1+MAX('200m Super Men'!$X$7:$X$46),SUMIF('200m Super Men'!$C$7:$C$46,$A58,'200m Super Men'!$X$7:$X$46))) ->  | H58: =IF($A58="","",IF(SUMIF('100 Resue Men'!$C$7:$C$46,$A58,'100 Resue Men'!$X$7:$X$46)=0,MAX('100 Resue Men'!$X$7:$X$46),SUMIF('100 Resue Men'!$C$7:$C$46,$A58,'100 Resue Men'!$X$7:$X$46))) ->  | I58: =IF($A58="","",IF(SUMIF('Line Throw Men'!$C$7:$C$46,$A58,'Line Throw Men'!$Z$7:$Z$46)=0,MAX('Line Throw Men'!$Z$7:$Z$46),SUMIF('Line Throw Men'!$C$7:$C$46,$A58,'Line Throw Men'!$Z$7:$Z$46))) ->  | J58: =IF($A58="","",IF(SUMIF('4 x 50 Obs Relay Men'!$C$7:$C$46,$A58,'4 x 50 Obs Relay Men'!$U$7:$U$46)=0,1+MAX('4 x 50 Obs Relay Men'!$U$7:$U$46),SUMIF('4 x 50 Obs Relay Men'!$C$7:$C$46,$A58,'4 x 50 Obs Relay Men'!$U$7:$U$46))) ->  | K58: =IF($A58="","",IF(SUMIF('4 x 50 medley Relay Men'!$C$7:$C$46,$A58,'4 x 50 medley Relay Men'!$U$7:$U$46)=0,1+MAX('4 x 50 medley Relay Men'!$U$7:$U$46),SUMIF('4 x 50 medley Relay Men'!$C$7:$C$46,$A58,'4 x 50 medley Relay Men'!$U$7:$U$46))) ->  | L58: =IF($A58="","",IF(SUMIF('4 x 25 Manikin Carry Relay Men'!$C$7:$C$46,$A58,'4 x 25 Manikin Carry Relay Men'!$U$7:$U$46)=0,1+MAX('4 x 25 Manikin Carry Relay Men'!$U$7:$U$46),SUMIF('4 x 25 Manikin Carry Relay Men'!$C$7:$C$46,$A58,'4 x 25 Manikin Carry Relay Men'!$U$7:$U$46))) ->  | M58: =IF($A58="","",IF(SUMIF('4 x 12m Line Throw Men'!$C$7:$C$46,$A58,'4 x 12m Line Throw Men'!$U$7:$U$46)=0,1+MAX('4 x 12m Line Throw Men'!$U$7:$U$46),SUMIF('4 x 12m Line Throw Men'!$C$7:$C$46,$A58,'4 x 12m Line Throw Men'!$U$7:$U$46))) -> 
C59: =IF($A59="","",IF(SUMIF('50m Manikin Carry Men'!$C$7:$C$46,$A59,'50m Manikin Carry Men'!$X$7:$X$46)=0,1+MAX('50m Manikin Carry Men'!$X$7:$X$46),SUMIF('50m Manikin Carry Men'!$C$7:$C$46,$A59,'50m Manikin Carry Men'!$X$7:$X$46))) ->  | D59: =IF($A59="","",IF(SUMIF('100m Manikin Carry Men'!$C$7:$C$46,$A59,'100m Manikin Carry Men'!$X$7:$X$46)=0,1+MAX('100m Manikin Carry Men'!$X$7:$X$46),SUMIF('100m Manikin Carry Men'!$C$7:$C$46,$A59,'100m Manikin Carry Men'!$X$7:$X$46))) ->  | E59: =IF($A59="","",IF(SUMIF('100m Manikin Tow Men'!$C$7:$C$46,$A59,'100m Manikin Tow Men'!$X$7:$X$46)=0,1+MAX('100m Manikin Tow Men'!$X$7:$X$46),SUMIF('100m Manikin Tow Men'!$C$7:$C$46,$A59,'100m Manikin Tow Men'!$X$7:$X$46))) ->  | F59: =IF($A59="","",IF(SUMIF('200m Obs Men'!$C$7:$C$46,$A59,'200m Obs Men'!$X$7:$X$46)=0,1+MAX('200m Obs Men'!$X$7:$X$46),SUMIF('200m Obs Men'!$C$7:$C$46,$A59,'200m Obs Men'!$X$7:$X$46))) ->  | G59: =IF($A59="","",IF(SUMIF('200m Super Men'!$C$7:$C$46,$A59,'200m Super Men'!$X$7:$X$46)=0,1+MAX('200m Super Men'!$X$7:$X$46),SUMIF('200m Super Men'!$C$7:$C$46,$A59,'200m Super Men'!$X$7:$X$46))) ->  | H59: =IF($A59="","",IF(SUMIF('100 Resue Men'!$C$7:$C$46,$A59,'100 Resue Men'!$X$7:$X$46)=0,MAX('100 Resue Men'!$X$7:$X$46),SUMIF('100 Resue Men'!$C$7:$C$46,$A59,'100 Resue Men'!$X$7:$X$46))) ->  | I59: =IF($A59="","",IF(SUMIF('Line Throw Men'!$C$7:$C$46,$A59,'Line Throw Men'!$Z$7:$Z$46)=0,MAX('Line Throw Men'!$Z$7:$Z$46),SUMIF('Line Throw Men'!$C$7:$C$46,$A59,'Line Throw Men'!$Z$7:$Z$46))) ->  | J59: =IF($A59="","",IF(SUMIF('4 x 50 Obs Relay Men'!$C$7:$C$46,$A59,'4 x 50 Obs Relay Men'!$U$7:$U$46)=0,1+MAX('4 x 50 Obs Relay Men'!$U$7:$U$46),SUMIF('4 x 50 Obs Relay Men'!$C$7:$C$46,$A59,'4 x 50 Obs Relay Men'!$U$7:$U$46))) ->  | K59: =IF($A59="","",IF(SUMIF('4 x 50 medley Relay Men'!$C$7:$C$46,$A59,'4 x 50 medley Relay Men'!$U$7:$U$46)=0,1+MAX('4 x 50 medley Relay Men'!$U$7:$U$46),SUMIF('4 x 50 medley Relay Men'!$C$7:$C$46,$A59,'4 x 50 medley Relay Men'!$U$7:$U$46))) ->  | L59: =IF($A59="","",IF(SUMIF('4 x 25 Manikin Carry Relay Men'!$C$7:$C$46,$A59,'4 x 25 Manikin Carry Relay Men'!$U$7:$U$46)=0,1+MAX('4 x 25 Manikin Carry Relay Men'!$U$7:$U$46),SUMIF('4 x 25 Manikin Carry Relay Men'!$C$7:$C$46,$A59,'4 x 25 Manikin Carry Relay Men'!$U$7:$U$46))) ->  | M59: =IF($A59="","",IF(SUMIF('4 x 12m Line Throw Men'!$C$7:$C$46,$A59,'4 x 12m Line Throw Men'!$U$7:$U$46)=0,1+MAX('4 x 12m Line Throw Men'!$U$7:$U$46),SUMIF('4 x 12m Line Throw Men'!$C$7:$C$46,$A59,'4 x 12m Line Throw Men'!$U$7:$U$46))) -> 
C60: =IF($A60="","",IF(SUMIF('50m Manikin Carry Men'!$C$7:$C$46,$A60,'50m Manikin Carry Men'!$X$7:$X$46)=0,1+MAX('50m Manikin Carry Men'!$X$7:$X$46),SUMIF('50m Manikin Carry Men'!$C$7:$C$46,$A60,'50m Manikin Carry Men'!$X$7:$X$46))) ->  | D60: =IF($A60="","",IF(SUMIF('100m Manikin Carry Men'!$C$7:$C$46,$A60,'100m Manikin Carry Men'!$X$7:$X$46)=0,1+MAX('100m Manikin Carry Men'!$X$7:$X$46),SUMIF('100m Manikin Carry Men'!$C$7:$C$46,$A60,'100m Manikin Carry Men'!$X$7:$X$46))) ->  | E60: =IF($A60="","",IF(SUMIF('100m Manikin Tow Men'!$C$7:$C$46,$A60,'100m Manikin Tow Men'!$X$7:$X$46)=0,1+MAX('100m Manikin Tow Men'!$X$7:$X$46),SUMIF('100m Manikin Tow Men'!$C$7:$C$46,$A60,'100m Manikin Tow Men'!$X$7:$X$46))) ->  | F60: =IF($A60="","",IF(SUMIF('200m Obs Men'!$C$7:$C$46,$A60,'200m Obs Men'!$X$7:$X$46)=0,1+MAX('200m Obs Men'!$X$7:$X$46),SUMIF('200m Obs Men'!$C$7:$C$46,$A60,'200m Obs Men'!$X$7:$X$46))) ->  | G60: =IF($A60="","",IF(SUMIF('200m Super Men'!$C$7:$C$46,$A60,'200m Super Men'!$X$7:$X$46)=0,1+MAX('200m Super Men'!$X$7:$X$46),SUMIF('200m Super Men'!$C$7:$C$46,$A60,'200m Super Men'!$X$7:$X$46))) ->  | H60: =IF($A60="","",IF(SUMIF('100 Resue Men'!$C$7:$C$46,$A60,'100 Resue Men'!$X$7:$X$46)=0,MAX('100 Resue Men'!$X$7:$X$46),SUMIF('100 Resue Men'!$C$7:$C$46,$A60,'100 Resue Men'!$X$7:$X$46))) ->  | I60: =IF($A60="","",IF(SUMIF('Line Throw Men'!$C$7:$C$46,$A60,'Line Throw Men'!$Z$7:$Z$46)=0,MAX('Line Throw Men'!$Z$7:$Z$46),SUMIF('Line Throw Men'!$C$7:$C$46,$A60,'Line Throw Men'!$Z$7:$Z$46))) ->  | J60: =IF($A60="","",IF(SUMIF('4 x 50 Obs Relay Men'!$C$7:$C$46,$A60,'4 x 50 Obs Relay Men'!$U$7:$U$46)=0,1+MAX('4 x 50 Obs Relay Men'!$U$7:$U$46),SUMIF('4 x 50 Obs Relay Men'!$C$7:$C$46,$A60,'4 x 50 Obs Relay Men'!$U$7:$U$46))) ->  | K60: =IF($A60="","",IF(SUMIF('4 x 50 medley Relay Men'!$C$7:$C$46,$A60,'4 x 50 medley Relay Men'!$U$7:$U$46)=0,1+MAX('4 x 50 medley Relay Men'!$U$7:$U$46),SUMIF('4 x 50 medley Relay Men'!$C$7:$C$46,$A60,'4 x 50 medley Relay Men'!$U$7:$U$46))) ->  | L60: =IF($A60="","",IF(SUMIF('4 x 25 Manikin Carry Relay Men'!$C$7:$C$46,$A60,'4 x 25 Manikin Carry Relay Men'!$U$7:$U$46)=0,1+MAX('4 x 25 Manikin Carry Relay Men'!$U$7:$U$46),SUMIF('4 x 25 Manikin Carry Relay Men'!$C$7:$C$46,$A60,'4 x 25 Manikin Carry Relay Men'!$U$7:$U$46))) ->  | M60: =IF($A60="","",IF(SUMIF('4 x 12m Line Throw Men'!$C$7:$C$46,$A60,'4 x 12m Line Throw Men'!$U$7:$U$46)=0,1+MAX('4 x 12m Line Throw Men'!$U$7:$U$46),SUMIF('4 x 12m Line Throw Men'!$C$7:$C$46,$A60,'4 x 12m Line Throw Men'!$U$7:$U$46))) -> 
C61: =IF($A61="","",IF(SUMIF('50m Manikin Carry Men'!$C$7:$C$46,$A61,'50m Manikin Carry Men'!$X$7:$X$46)=0,1+MAX('50m Manikin Carry Men'!$X$7:$X$46),SUMIF('50m Manikin Carry Men'!$C$7:$C$46,$A61,'50m Manikin Carry Men'!$X$7:$X$46))) ->  | D61: =IF($A61="","",IF(SUMIF('100m Manikin Carry Men'!$C$7:$C$46,$A61,'100m Manikin Carry Men'!$X$7:$X$46)=0,1+MAX('100m Manikin Carry Men'!$X$7:$X$46),SUMIF('100m Manikin Carry Men'!$C$7:$C$46,$A61,'100m Manikin Carry Men'!$X$7:$X$46))) ->  | E61: =IF($A61="","",IF(SUMIF('100m Manikin Tow Men'!$C$7:$C$46,$A61,'100m Manikin Tow Men'!$X$7:$X$46)=0,1+MAX('100m Manikin Tow Men'!$X$7:$X$46),SUMIF('100m Manikin Tow Men'!$C$7:$C$46,$A61,'100m Manikin Tow Men'!$X$7:$X$46))) ->  | F61: =IF($A61="","",IF(SUMIF('200m Obs Men'!$C$7:$C$46,$A61,'200m Obs Men'!$X$7:$X$46)=0,1+MAX('200m Obs Men'!$X$7:$X$46),SUMIF('200m Obs Men'!$C$7:$C$46,$A61,'200m Obs Men'!$X$7:$X$46))) ->  | G61: =IF($A61="","",IF(SUMIF('200m Super Men'!$C$7:$C$46,$A61,'200m Super Men'!$X$7:$X$46)=0,1+MAX('200m Super Men'!$X$7:$X$46),SUMIF('200m Super Men'!$C$7:$C$46,$A61,'200m Super Men'!$X$7:$X$46))) ->  | H61: =IF($A61="","",IF(SUMIF('100 Resue Men'!$C$7:$C$46,$A61,'100 Resue Men'!$X$7:$X$46)=0,MAX('100 Resue Men'!$X$7:$X$46),SUMIF('100 Resue Men'!$C$7:$C$46,$A61,'100 Resue Men'!$X$7:$X$46))) ->  | I61: =IF($A61="","",IF(SUMIF('Line Throw Men'!$C$7:$C$46,$A61,'Line Throw Men'!$Z$7:$Z$46)=0,MAX('Line Throw Men'!$Z$7:$Z$46),SUMIF('Line Throw Men'!$C$7:$C$46,$A61,'Line Throw Men'!$Z$7:$Z$46))) ->  | J61: =IF($A61="","",IF(SUMIF('4 x 50 Obs Relay Men'!$C$7:$C$46,$A61,'4 x 50 Obs Relay Men'!$U$7:$U$46)=0,1+MAX('4 x 50 Obs Relay Men'!$U$7:$U$46),SUMIF('4 x 50 Obs Relay Men'!$C$7:$C$46,$A61,'4 x 50 Obs Relay Men'!$U$7:$U$46))) ->  | K61: =IF($A61="","",IF(SUMIF('4 x 50 medley Relay Men'!$C$7:$C$46,$A61,'4 x 50 medley Relay Men'!$U$7:$U$46)=0,1+MAX('4 x 50 medley Relay Men'!$U$7:$U$46),SUMIF('4 x 50 medley Relay Men'!$C$7:$C$46,$A61,'4 x 50 medley Relay Men'!$U$7:$U$46))) ->  | L61: =IF($A61="","",IF(SUMIF('4 x 25 Manikin Carry Relay Men'!$C$7:$C$46,$A61,'4 x 25 Manikin Carry Relay Men'!$U$7:$U$46)=0,1+MAX('4 x 25 Manikin Carry Relay Men'!$U$7:$U$46),SUMIF('4 x 25 Manikin Carry Relay Men'!$C$7:$C$46,$A61,'4 x 25 Manikin Carry Relay Men'!$U$7:$U$46))) ->  | M61: =IF($A61="","",IF(SUMIF('4 x 12m Line Throw Men'!$C$7:$C$46,$A61,'4 x 12m Line Throw Men'!$U$7:$U$46)=0,1+MAX('4 x 12m Line Throw Men'!$U$7:$U$46),SUMIF('4 x 12m Line Throw Men'!$C$7:$C$46,$A61,'4 x 12m Line Throw Men'!$U$7:$U$46))) -> 
C62: =IF($A62="","",IF(SUMIF('50m Manikin Carry Men'!$C$7:$C$46,$A62,'50m Manikin Carry Men'!$X$7:$X$46)=0,1+MAX('50m Manikin Carry Men'!$X$7:$X$46),SUMIF('50m Manikin Carry Men'!$C$7:$C$46,$A62,'50m Manikin Carry Men'!$X$7:$X$46))) ->  | D62: =IF($A62="","",IF(SUMIF('100m Manikin Carry Men'!$C$7:$C$46,$A62,'100m Manikin Carry Men'!$X$7:$X$46)=0,1+MAX('100m Manikin Carry Men'!$X$7:$X$46),SUMIF('100m Manikin Carry Men'!$C$7:$C$46,$A62,'100m Manikin Carry Men'!$X$7:$X$46))) ->  | E62: =IF($A62="","",IF(SUMIF('100m Manikin Tow Men'!$C$7:$C$46,$A62,'100m Manikin Tow Men'!$X$7:$X$46)=0,1+MAX('100m Manikin Tow Men'!$X$7:$X$46),SUMIF('100m Manikin Tow Men'!$C$7:$C$46,$A62,'100m Manikin Tow Men'!$X$7:$X$46))) ->  | F62: =IF($A62="","",IF(SUMIF('200m Obs Men'!$C$7:$C$46,$A62,'200m Obs Men'!$X$7:$X$46)=0,1+MAX('200m Obs Men'!$X$7:$X$46),SUMIF('200m Obs Men'!$C$7:$C$46,$A62,'200m Obs Men'!$X$7:$X$46))) ->  | G62: =IF($A62="","",IF(SUMIF('200m Super Men'!$C$7:$C$46,$A62,'200m Super Men'!$X$7:$X$46)=0,1+MAX('200m Super Men'!$X$7:$X$46),SUMIF('200m Super Men'!$C$7:$C$46,$A62,'200m Super Men'!$X$7:$X$46))) ->  | H62: =IF($A62="","",IF(SUMIF('100 Resue Men'!$C$7:$C$46,$A62,'100 Resue Men'!$X$7:$X$46)=0,MAX('100 Resue Men'!$X$7:$X$46),SUMIF('100 Resue Men'!$C$7:$C$46,$A62,'100 Resue Men'!$X$7:$X$46))) ->  | I62: =IF($A62="","",IF(SUMIF('Line Throw Men'!$C$7:$C$46,$A62,'Line Throw Men'!$Z$7:$Z$46)=0,MAX('Line Throw Men'!$Z$7:$Z$46),SUMIF('Line Throw Men'!$C$7:$C$46,$A62,'Line Throw Men'!$Z$7:$Z$46))) ->  | J62: =IF($A62="","",IF(SUMIF('4 x 50 Obs Relay Men'!$C$7:$C$46,$A62,'4 x 50 Obs Relay Men'!$U$7:$U$46)=0,1+MAX('4 x 50 Obs Relay Men'!$U$7:$U$46),SUMIF('4 x 50 Obs Relay Men'!$C$7:$C$46,$A62,'4 x 50 Obs Relay Men'!$U$7:$U$46))) ->  | K62: =IF($A62="","",IF(SUMIF('4 x 50 medley Relay Men'!$C$7:$C$46,$A62,'4 x 50 medley Relay Men'!$U$7:$U$46)=0,1+MAX('4 x 50 medley Relay Men'!$U$7:$U$46),SUMIF('4 x 50 medley Relay Men'!$C$7:$C$46,$A62,'4 x 50 medley Relay Men'!$U$7:$U$46))) ->  | L62: =IF($A62="","",IF(SUMIF('4 x 25 Manikin Carry Relay Men'!$C$7:$C$46,$A62,'4 x 25 Manikin Carry Relay Men'!$U$7:$U$46)=0,1+MAX('4 x 25 Manikin Carry Relay Men'!$U$7:$U$46),SUMIF('4 x 25 Manikin Carry Relay Men'!$C$7:$C$46,$A62,'4 x 25 Manikin Carry Relay Men'!$U$7:$U$46))) ->  | M62: =IF($A62="","",IF(SUMIF('4 x 12m Line Throw Men'!$C$7:$C$46,$A62,'4 x 12m Line Throw Men'!$U$7:$U$46)=0,1+MAX('4 x 12m Line Throw Men'!$U$7:$U$46),SUMIF('4 x 12m Line Throw Men'!$C$7:$C$46,$A62,'4 x 12m Line Throw Men'!$U$7:$U$46))) -> 
C63: =IF($A63="","",IF(SUMIF('50m Manikin Carry Men'!$C$7:$C$46,$A63,'50m Manikin Carry Men'!$X$7:$X$46)=0,1+MAX('50m Manikin Carry Men'!$X$7:$X$46),SUMIF('50m Manikin Carry Men'!$C$7:$C$46,$A63,'50m Manikin Carry Men'!$X$7:$X$46))) ->  | D63: =IF($A63="","",IF(SUMIF('100m Manikin Carry Men'!$C$7:$C$46,$A63,'100m Manikin Carry Men'!$X$7:$X$46)=0,1+MAX('100m Manikin Carry Men'!$X$7:$X$46),SUMIF('100m Manikin Carry Men'!$C$7:$C$46,$A63,'100m Manikin Carry Men'!$X$7:$X$46))) ->  | E63: =IF($A63="","",IF(SUMIF('100m Manikin Tow Men'!$C$7:$C$46,$A63,'100m Manikin Tow Men'!$X$7:$X$46)=0,1+MAX('100m Manikin Tow Men'!$X$7:$X$46),SUMIF('100m Manikin Tow Men'!$C$7:$C$46,$A63,'100m Manikin Tow Men'!$X$7:$X$46))) ->  | F63: =IF($A63="","",IF(SUMIF('200m Obs Men'!$C$7:$C$46,$A63,'200m Obs Men'!$X$7:$X$46)=0,1+MAX('200m Obs Men'!$X$7:$X$46),SUMIF('200m Obs Men'!$C$7:$C$46,$A63,'200m Obs Men'!$X$7:$X$46))) ->  | G63: =IF($A63="","",IF(SUMIF('200m Super Men'!$C$7:$C$46,$A63,'200m Super Men'!$X$7:$X$46)=0,1+MAX('200m Super Men'!$X$7:$X$46),SUMIF('200m Super Men'!$C$7:$C$46,$A63,'200m Super Men'!$X$7:$X$46))) ->  | H63: =IF($A63="","",IF(SUMIF('100 Resue Men'!$C$7:$C$46,$A63,'100 Resue Men'!$X$7:$X$46)=0,MAX('100 Resue Men'!$X$7:$X$46),SUMIF('100 Resue Men'!$C$7:$C$46,$A63,'100 Resue Men'!$X$7:$X$46))) ->  | I63: =IF($A63="","",IF(SUMIF('Line Throw Men'!$C$7:$C$46,$A63,'Line Throw Men'!$Z$7:$Z$46)=0,MAX('Line Throw Men'!$Z$7:$Z$46),SUMIF('Line Throw Men'!$C$7:$C$46,$A63,'Line Throw Men'!$Z$7:$Z$46))) ->  | J63: =IF($A63="","",IF(SUMIF('4 x 50 Obs Relay Men'!$C$7:$C$46,$A63,'4 x 50 Obs Relay Men'!$U$7:$U$46)=0,1+MAX('4 x 50 Obs Relay Men'!$U$7:$U$46),SUMIF('4 x 50 Obs Relay Men'!$C$7:$C$46,$A63,'4 x 50 Obs Relay Men'!$U$7:$U$46))) ->  | K63: =IF($A63="","",IF(SUMIF('4 x 50 medley Relay Men'!$C$7:$C$46,$A63,'4 x 50 medley Relay Men'!$U$7:$U$46)=0,1+MAX('4 x 50 medley Relay Men'!$U$7:$U$46),SUMIF('4 x 50 medley Relay Men'!$C$7:$C$46,$A63,'4 x 50 medley Relay Men'!$U$7:$U$46))) ->  | L63: =IF($A63="","",IF(SUMIF('4 x 25 Manikin Carry Relay Men'!$C$7:$C$46,$A63,'4 x 25 Manikin Carry Relay Men'!$U$7:$U$46)=0,1+MAX('4 x 25 Manikin Carry Relay Men'!$U$7:$U$46),SUMIF('4 x 25 Manikin Carry Relay Men'!$C$7:$C$46,$A63,'4 x 25 Manikin Carry Relay Men'!$U$7:$U$46))) ->  | M63: =IF($A63="","",IF(SUMIF('4 x 12m Line Throw Men'!$C$7:$C$46,$A63,'4 x 12m Line Throw Men'!$U$7:$U$46)=0,1+MAX('4 x 12m Line Throw Men'!$U$7:$U$46),SUMIF('4 x 12m Line Throw Men'!$C$7:$C$46,$A63,'4 x 12m Line Throw Men'!$U$7:$U$46))) -> 
C64: =IF($A64="","",IF(SUMIF('50m Manikin Carry Men'!$C$7:$C$46,$A64,'50m Manikin Carry Men'!$X$7:$X$46)=0,1+MAX('50m Manikin Carry Men'!$X$7:$X$46),SUMIF('50m Manikin Carry Men'!$C$7:$C$46,$A64,'50m Manikin Carry Men'!$X$7:$X$46))) ->  | D64: =IF($A64="","",IF(SUMIF('100m Manikin Carry Men'!$C$7:$C$46,$A64,'100m Manikin Carry Men'!$X$7:$X$46)=0,1+MAX('100m Manikin Carry Men'!$X$7:$X$46),SUMIF('100m Manikin Carry Men'!$C$7:$C$46,$A64,'100m Manikin Carry Men'!$X$7:$X$46))) ->  | E64: =IF($A64="","",IF(SUMIF('100m Manikin Tow Men'!$C$7:$C$46,$A64,'100m Manikin Tow Men'!$X$7:$X$46)=0,1+MAX('100m Manikin Tow Men'!$X$7:$X$46),SUMIF('100m Manikin Tow Men'!$C$7:$C$46,$A64,'100m Manikin Tow Men'!$X$7:$X$46))) ->  | F64: =IF($A64="","",IF(SUMIF('200m Obs Men'!$C$7:$C$46,$A64,'200m Obs Men'!$X$7:$X$46)=0,1+MAX('200m Obs Men'!$X$7:$X$46),SUMIF('200m Obs Men'!$C$7:$C$46,$A64,'200m Obs Men'!$X$7:$X$46))) ->  | G64: =IF($A64="","",IF(SUMIF('200m Super Men'!$C$7:$C$46,$A64,'200m Super Men'!$X$7:$X$46)=0,1+MAX('200m Super Men'!$X$7:$X$46),SUMIF('200m Super Men'!$C$7:$C$46,$A64,'200m Super Men'!$X$7:$X$46))) ->  | H64: =IF($A64="","",IF(SUMIF('100 Resue Men'!$C$7:$C$46,$A64,'100 Resue Men'!$X$7:$X$46)=0,MAX('100 Resue Men'!$X$7:$X$46),SUMIF('100 Resue Men'!$C$7:$C$46,$A64,'100 Resue Men'!$X$7:$X$46))) ->  | I64: =IF($A64="","",IF(SUMIF('Line Throw Men'!$C$7:$C$46,$A64,'Line Throw Men'!$Z$7:$Z$46)=0,MAX('Line Throw Men'!$Z$7:$Z$46),SUMIF('Line Throw Men'!$C$7:$C$46,$A64,'Line Throw Men'!$Z$7:$Z$46))) ->  | J64: =IF($A64="","",IF(SUMIF('4 x 50 Obs Relay Men'!$C$7:$C$46,$A64,'4 x 50 Obs Relay Men'!$U$7:$U$46)=0,1+MAX('4 x 50 Obs Relay Men'!$U$7:$U$46),SUMIF('4 x 50 Obs Relay Men'!$C$7:$C$46,$A64,'4 x 50 Obs Relay Men'!$U$7:$U$46))) ->  | K64: =IF($A64="","",IF(SUMIF('4 x 50 medley Relay Men'!$C$7:$C$46,$A64,'4 x 50 medley Relay Men'!$U$7:$U$46)=0,1+MAX('4 x 50 medley Relay Men'!$U$7:$U$46),SUMIF('4 x 50 medley Relay Men'!$C$7:$C$46,$A64,'4 x 50 medley Relay Men'!$U$7:$U$46))) ->  | L64: =IF($A64="","",IF(SUMIF('4 x 25 Manikin Carry Relay Men'!$C$7:$C$46,$A64,'4 x 25 Manikin Carry Relay Men'!$U$7:$U$46)=0,1+MAX('4 x 25 Manikin Carry Relay Men'!$U$7:$U$46),SUMIF('4 x 25 Manikin Carry Relay Men'!$C$7:$C$46,$A64,'4 x 25 Manikin Carry Relay Men'!$U$7:$U$46))) ->  | M64: =IF($A64="","",IF(SUMIF('4 x 12m Line Throw Men'!$C$7:$C$46,$A64,'4 x 12m Line Throw Men'!$U$7:$U$46)=0,1+MAX('4 x 12m Line Throw Men'!$U$7:$U$46),SUMIF('4 x 12m Line Throw Men'!$C$7:$C$46,$A64,'4 x 12m Line Throw Men'!$U$7:$U$46))) -> 
C65: =IF($A65="","",IF(SUMIF('50m Manikin Carry Men'!$C$7:$C$46,$A65,'50m Manikin Carry Men'!$X$7:$X$46)=0,1+MAX('50m Manikin Carry Men'!$X$7:$X$46),SUMIF('50m Manikin Carry Men'!$C$7:$C$46,$A65,'50m Manikin Carry Men'!$X$7:$X$46))) ->  | D65: =IF($A65="","",IF(SUMIF('100m Manikin Carry Men'!$C$7:$C$46,$A65,'100m Manikin Carry Men'!$X$7:$X$46)=0,1+MAX('100m Manikin Carry Men'!$X$7:$X$46),SUMIF('100m Manikin Carry Men'!$C$7:$C$46,$A65,'100m Manikin Carry Men'!$X$7:$X$46))) ->  | E65: =IF($A65="","",IF(SUMIF('100m Manikin Tow Men'!$C$7:$C$46,$A65,'100m Manikin Tow Men'!$X$7:$X$46)=0,1+MAX('100m Manikin Tow Men'!$X$7:$X$46),SUMIF('100m Manikin Tow Men'!$C$7:$C$46,$A65,'100m Manikin Tow Men'!$X$7:$X$46))) ->  | F65: =IF($A65="","",IF(SUMIF('200m Obs Men'!$C$7:$C$46,$A65,'200m Obs Men'!$X$7:$X$46)=0,1+MAX('200m Obs Men'!$X$7:$X$46),SUMIF('200m Obs Men'!$C$7:$C$46,$A65,'200m Obs Men'!$X$7:$X$46))) ->  | G65: =IF($A65="","",IF(SUMIF('200m Super Men'!$C$7:$C$46,$A65,'200m Super Men'!$X$7:$X$46)=0,1+MAX('200m Super Men'!$X$7:$X$46),SUMIF('200m Super Men'!$C$7:$C$46,$A65,'200m Super Men'!$X$7:$X$46))) ->  | H65: =IF($A65="","",IF(SUMIF('100 Resue Men'!$C$7:$C$46,$A65,'100 Resue Men'!$X$7:$X$46)=0,MAX('100 Resue Men'!$X$7:$X$46),SUMIF('100 Resue Men'!$C$7:$C$46,$A65,'100 Resue Men'!$X$7:$X$46))) ->  | I65: =IF($A65="","",IF(SUMIF('Line Throw Men'!$C$7:$C$46,$A65,'Line Throw Men'!$Z$7:$Z$46)=0,MAX('Line Throw Men'!$Z$7:$Z$46),SUMIF('Line Throw Men'!$C$7:$C$46,$A65,'Line Throw Men'!$Z$7:$Z$46))) ->  | J65: =IF($A65="","",IF(SUMIF('4 x 50 Obs Relay Men'!$C$7:$C$46,$A65,'4 x 50 Obs Relay Men'!$U$7:$U$46)=0,1+MAX('4 x 50 Obs Relay Men'!$U$7:$U$46),SUMIF('4 x 50 Obs Relay Men'!$C$7:$C$46,$A65,'4 x 50 Obs Relay Men'!$U$7:$U$46))) ->  | K65: =IF($A65="","",IF(SUMIF('4 x 50 medley Relay Men'!$C$7:$C$46,$A65,'4 x 50 medley Relay Men'!$U$7:$U$46)=0,1+MAX('4 x 50 medley Relay Men'!$U$7:$U$46),SUMIF('4 x 50 medley Relay Men'!$C$7:$C$46,$A65,'4 x 50 medley Relay Men'!$U$7:$U$46))) ->  | L65: =IF($A65="","",IF(SUMIF('4 x 25 Manikin Carry Relay Men'!$C$7:$C$46,$A65,'4 x 25 Manikin Carry Relay Men'!$U$7:$U$46)=0,1+MAX('4 x 25 Manikin Carry Relay Men'!$U$7:$U$46),SUMIF('4 x 25 Manikin Carry Relay Men'!$C$7:$C$46,$A65,'4 x 25 Manikin Carry Relay Men'!$U$7:$U$46))) ->  | M65: =IF($A65="","",IF(SUMIF('4 x 12m Line Throw Men'!$C$7:$C$46,$A65,'4 x 12m Line Throw Men'!$U$7:$U$46)=0,1+MAX('4 x 12m Line Throw Men'!$U$7:$U$46),SUMIF('4 x 12m Line Throw Men'!$C$7:$C$46,$A65,'4 x 12m Line Throw Men'!$U$7:$U$46))) -> 
C66: =IF($A66="","",IF(SUMIF('50m Manikin Carry Men'!$C$7:$C$46,$A66,'50m Manikin Carry Men'!$X$7:$X$46)=0,1+MAX('50m Manikin Carry Men'!$X$7:$X$46),SUMIF('50m Manikin Carry Men'!$C$7:$C$46,$A66,'50m Manikin Carry Men'!$X$7:$X$46))) ->  | D66: =IF($A66="","",IF(SUMIF('100m Manikin Carry Men'!$C$7:$C$46,$A66,'100m Manikin Carry Men'!$X$7:$X$46)=0,1+MAX('100m Manikin Carry Men'!$X$7:$X$46),SUMIF('100m Manikin Carry Men'!$C$7:$C$46,$A66,'100m Manikin Carry Men'!$X$7:$X$46))) ->  | E66: =IF($A66="","",IF(SUMIF('100m Manikin Tow Men'!$C$7:$C$46,$A66,'100m Manikin Tow Men'!$X$7:$X$46)=0,1+MAX('100m Manikin Tow Men'!$X$7:$X$46),SUMIF('100m Manikin Tow Men'!$C$7:$C$46,$A66,'100m Manikin Tow Men'!$X$7:$X$46))) ->  | F66: =IF($A66="","",IF(SUMIF('200m Obs Men'!$C$7:$C$46,$A66,'200m Obs Men'!$X$7:$X$46)=0,1+MAX('200m Obs Men'!$X$7:$X$46),SUMIF('200m Obs Men'!$C$7:$C$46,$A66,'200m Obs Men'!$X$7:$X$46))) ->  | G66: =IF($A66="","",IF(SUMIF('200m Super Men'!$C$7:$C$46,$A66,'200m Super Men'!$X$7:$X$46)=0,1+MAX('200m Super Men'!$X$7:$X$46),SUMIF('200m Super Men'!$C$7:$C$46,$A66,'200m Super Men'!$X$7:$X$46))) ->  | H66: =IF($A66="","",IF(SUMIF('100 Resue Men'!$C$7:$C$46,$A66,'100 Resue Men'!$X$7:$X$46)=0,MAX('100 Resue Men'!$X$7:$X$46),SUMIF('100 Resue Men'!$C$7:$C$46,$A66,'100 Resue Men'!$X$7:$X$46))) ->  | I66: =IF($A66="","",IF(SUMIF('Line Throw Men'!$C$7:$C$46,$A66,'Line Throw Men'!$Z$7:$Z$46)=0,MAX('Line Throw Men'!$Z$7:$Z$46),SUMIF('Line Throw Men'!$C$7:$C$46,$A66,'Line Throw Men'!$Z$7:$Z$46))) ->  | J66: =IF($A66="","",IF(SUMIF('4 x 50 Obs Relay Men'!$C$7:$C$46,$A66,'4 x 50 Obs Relay Men'!$U$7:$U$46)=0,1+MAX('4 x 50 Obs Relay Men'!$U$7:$U$46),SUMIF('4 x 50 Obs Relay Men'!$C$7:$C$46,$A66,'4 x 50 Obs Relay Men'!$U$7:$U$46))) ->  | K66: =IF($A66="","",IF(SUMIF('4 x 50 medley Relay Men'!$C$7:$C$46,$A66,'4 x 50 medley Relay Men'!$U$7:$U$46)=0,1+MAX('4 x 50 medley Relay Men'!$U$7:$U$46),SUMIF('4 x 50 medley Relay Men'!$C$7:$C$46,$A66,'4 x 50 medley Relay Men'!$U$7:$U$46))) ->  | L66: =IF($A66="","",IF(SUMIF('4 x 25 Manikin Carry Relay Men'!$C$7:$C$46,$A66,'4 x 25 Manikin Carry Relay Men'!$U$7:$U$46)=0,1+MAX('4 x 25 Manikin Carry Relay Men'!$U$7:$U$46),SUMIF('4 x 25 Manikin Carry Relay Men'!$C$7:$C$46,$A66,'4 x 25 Manikin Carry Relay Men'!$U$7:$U$46))) ->  | M66: =IF($A66="","",IF(SUMIF('4 x 12m Line Throw Men'!$C$7:$C$46,$A66,'4 x 12m Line Throw Men'!$U$7:$U$46)=0,1+MAX('4 x 12m Line Throw Men'!$U$7:$U$46),SUMIF('4 x 12m Line Throw Men'!$C$7:$C$46,$A66,'4 x 12m Line Throw Men'!$U$7:$U$46))) -> 
C67: =IF($A67="","",IF(SUMIF('50m Manikin Carry Men'!$C$7:$C$46,$A67,'50m Manikin Carry Men'!$X$7:$X$46)=0,1+MAX('50m Manikin Carry Men'!$X$7:$X$46),SUMIF('50m Manikin Carry Men'!$C$7:$C$46,$A67,'50m Manikin Carry Men'!$X$7:$X$46))) ->  | D67: =IF($A67="","",IF(SUMIF('100m Manikin Carry Men'!$C$7:$C$46,$A67,'100m Manikin Carry Men'!$X$7:$X$46)=0,1+MAX('100m Manikin Carry Men'!$X$7:$X$46),SUMIF('100m Manikin Carry Men'!$C$7:$C$46,$A67,'100m Manikin Carry Men'!$X$7:$X$46))) ->  | E67: =IF($A67="","",IF(SUMIF('100m Manikin Tow Men'!$C$7:$C$46,$A67,'100m Manikin Tow Men'!$X$7:$X$46)=0,1+MAX('100m Manikin Tow Men'!$X$7:$X$46),SUMIF('100m Manikin Tow Men'!$C$7:$C$46,$A67,'100m Manikin Tow Men'!$X$7:$X$46))) ->  | F67: =IF($A67="","",IF(SUMIF('200m Obs Men'!$C$7:$C$46,$A67,'200m Obs Men'!$X$7:$X$46)=0,1+MAX('200m Obs Men'!$X$7:$X$46),SUMIF('200m Obs Men'!$C$7:$C$46,$A67,'200m Obs Men'!$X$7:$X$46))) ->  | G67: =IF($A67="","",IF(SUMIF('200m Super Men'!$C$7:$C$46,$A67,'200m Super Men'!$X$7:$X$46)=0,1+MAX('200m Super Men'!$X$7:$X$46),SUMIF('200m Super Men'!$C$7:$C$46,$A67,'200m Super Men'!$X$7:$X$46))) ->  | H67: =IF($A67="","",IF(SUMIF('100 Resue Men'!$C$7:$C$46,$A67,'100 Resue Men'!$X$7:$X$46)=0,MAX('100 Resue Men'!$X$7:$X$46),SUMIF('100 Resue Men'!$C$7:$C$46,$A67,'100 Resue Men'!$X$7:$X$46))) ->  | I67: =IF($A67="","",IF(SUMIF('Line Throw Men'!$C$7:$C$46,$A67,'Line Throw Men'!$Z$7:$Z$46)=0,MAX('Line Throw Men'!$Z$7:$Z$46),SUMIF('Line Throw Men'!$C$7:$C$46,$A67,'Line Throw Men'!$Z$7:$Z$46))) ->  | J67: =IF($A67="","",IF(SUMIF('4 x 50 Obs Relay Men'!$C$7:$C$46,$A67,'4 x 50 Obs Relay Men'!$U$7:$U$46)=0,1+MAX('4 x 50 Obs Relay Men'!$U$7:$U$46),SUMIF('4 x 50 Obs Relay Men'!$C$7:$C$46,$A67,'4 x 50 Obs Relay Men'!$U$7:$U$46))) ->  | K67: =IF($A67="","",IF(SUMIF('4 x 50 medley Relay Men'!$C$7:$C$46,$A67,'4 x 50 medley Relay Men'!$U$7:$U$46)=0,1+MAX('4 x 50 medley Relay Men'!$U$7:$U$46),SUMIF('4 x 50 medley Relay Men'!$C$7:$C$46,$A67,'4 x 50 medley Relay Men'!$U$7:$U$46))) ->  | L67: =IF($A67="","",IF(SUMIF('4 x 25 Manikin Carry Relay Men'!$C$7:$C$46,$A67,'4 x 25 Manikin Carry Relay Men'!$U$7:$U$46)=0,1+MAX('4 x 25 Manikin Carry Relay Men'!$U$7:$U$46),SUMIF('4 x 25 Manikin Carry Relay Men'!$C$7:$C$46,$A67,'4 x 25 Manikin Carry Relay Men'!$U$7:$U$46))) ->  | M67: =IF($A67="","",IF(SUMIF('4 x 12m Line Throw Men'!$C$7:$C$46,$A67,'4 x 12m Line Throw Men'!$U$7:$U$46)=0,1+MAX('4 x 12m Line Throw Men'!$U$7:$U$46),SUMIF('4 x 12m Line Throw Men'!$C$7:$C$46,$A67,'4 x 12m Line Throw Men'!$U$7:$U$46))) -> 
C68: =IF($A68="","",IF(SUMIF('50m Manikin Carry Men'!$C$7:$C$46,$A68,'50m Manikin Carry Men'!$X$7:$X$46)=0,1+MAX('50m Manikin Carry Men'!$X$7:$X$46),SUMIF('50m Manikin Carry Men'!$C$7:$C$46,$A68,'50m Manikin Carry Men'!$X$7:$X$46))) ->  | D68: =IF($A68="","",IF(SUMIF('100m Manikin Carry Men'!$C$7:$C$46,$A68,'100m Manikin Carry Men'!$X$7:$X$46)=0,1+MAX('100m Manikin Carry Men'!$X$7:$X$46),SUMIF('100m Manikin Carry Men'!$C$7:$C$46,$A68,'100m Manikin Carry Men'!$X$7:$X$46))) ->  | E68: =IF($A68="","",IF(SUMIF('100m Manikin Tow Men'!$C$7:$C$46,$A68,'100m Manikin Tow Men'!$X$7:$X$46)=0,1+MAX('100m Manikin Tow Men'!$X$7:$X$46),SUMIF('100m Manikin Tow Men'!$C$7:$C$46,$A68,'100m Manikin Tow Men'!$X$7:$X$46))) ->  | F68: =IF($A68="","",IF(SUMIF('200m Obs Men'!$C$7:$C$46,$A68,'200m Obs Men'!$X$7:$X$46)=0,1+MAX('200m Obs Men'!$X$7:$X$46),SUMIF('200m Obs Men'!$C$7:$C$46,$A68,'200m Obs Men'!$X$7:$X$46))) ->  | G68: =IF($A68="","",IF(SUMIF('200m Super Men'!$C$7:$C$46,$A68,'200m Super Men'!$X$7:$X$46)=0,1+MAX('200m Super Men'!$X$7:$X$46),SUMIF('200m Super Men'!$C$7:$C$46,$A68,'200m Super Men'!$X$7:$X$46))) ->  | H68: =IF($A68="","",IF(SUMIF('100 Resue Men'!$C$7:$C$46,$A68,'100 Resue Men'!$X$7:$X$46)=0,MAX('100 Resue Men'!$X$7:$X$46),SUMIF('100 Resue Men'!$C$7:$C$46,$A68,'100 Resue Men'!$X$7:$X$46))) ->  | I68: =IF($A68="","",IF(SUMIF('Line Throw Men'!$C$7:$C$46,$A68,'Line Throw Men'!$Z$7:$Z$46)=0,MAX('Line Throw Men'!$Z$7:$Z$46),SUMIF('Line Throw Men'!$C$7:$C$46,$A68,'Line Throw Men'!$Z$7:$Z$46))) ->  | J68: =IF($A68="","",IF(SUMIF('4 x 50 Obs Relay Men'!$C$7:$C$46,$A68,'4 x 50 Obs Relay Men'!$U$7:$U$46)=0,1+MAX('4 x 50 Obs Relay Men'!$U$7:$U$46),SUMIF('4 x 50 Obs Relay Men'!$C$7:$C$46,$A68,'4 x 50 Obs Relay Men'!$U$7:$U$46))) ->  | K68: =IF($A68="","",IF(SUMIF('4 x 50 medley Relay Men'!$C$7:$C$46,$A68,'4 x 50 medley Relay Men'!$U$7:$U$46)=0,1+MAX('4 x 50 medley Relay Men'!$U$7:$U$46),SUMIF('4 x 50 medley Relay Men'!$C$7:$C$46,$A68,'4 x 50 medley Relay Men'!$U$7:$U$46))) ->  | L68: =IF($A68="","",IF(SUMIF('4 x 25 Manikin Carry Relay Men'!$C$7:$C$46,$A68,'4 x 25 Manikin Carry Relay Men'!$U$7:$U$46)=0,1+MAX('4 x 25 Manikin Carry Relay Men'!$U$7:$U$46),SUMIF('4 x 25 Manikin Carry Relay Men'!$C$7:$C$46,$A68,'4 x 25 Manikin Carry Relay Men'!$U$7:$U$46))) ->  | M68: =IF($A68="","",IF(SUMIF('4 x 12m Line Throw Men'!$C$7:$C$46,$A68,'4 x 12m Line Throw Men'!$U$7:$U$46)=0,1+MAX('4 x 12m Line Throw Men'!$U$7:$U$46),SUMIF('4 x 12m Line Throw Men'!$C$7:$C$46,$A68,'4 x 12m Line Throw Men'!$U$7:$U$46))) -> 
C69: =IF($A69="","",IF(SUMIF('50m Manikin Carry Men'!$C$7:$C$46,$A69,'50m Manikin Carry Men'!$X$7:$X$46)=0,1+MAX('50m Manikin Carry Men'!$X$7:$X$46),SUMIF('50m Manikin Carry Men'!$C$7:$C$46,$A69,'50m Manikin Carry Men'!$X$7:$X$46))) ->  | D69: =IF($A69="","",IF(SUMIF('100m Manikin Carry Men'!$C$7:$C$46,$A69,'100m Manikin Carry Men'!$X$7:$X$46)=0,1+MAX('100m Manikin Carry Men'!$X$7:$X$46),SUMIF('100m Manikin Carry Men'!$C$7:$C$46,$A69,'100m Manikin Carry Men'!$X$7:$X$46))) ->  | E69: =IF($A69="","",IF(SUMIF('100m Manikin Tow Men'!$C$7:$C$46,$A69,'100m Manikin Tow Men'!$X$7:$X$46)=0,1+MAX('100m Manikin Tow Men'!$X$7:$X$46),SUMIF('100m Manikin Tow Men'!$C$7:$C$46,$A69,'100m Manikin Tow Men'!$X$7:$X$46))) ->  | F69: =IF($A69="","",IF(SUMIF('200m Obs Men'!$C$7:$C$46,$A69,'200m Obs Men'!$X$7:$X$46)=0,1+MAX('200m Obs Men'!$X$7:$X$46),SUMIF('200m Obs Men'!$C$7:$C$46,$A69,'200m Obs Men'!$X$7:$X$46))) ->  | G69: =IF($A69="","",IF(SUMIF('200m Super Men'!$C$7:$C$46,$A69,'200m Super Men'!$X$7:$X$46)=0,1+MAX('200m Super Men'!$X$7:$X$46),SUMIF('200m Super Men'!$C$7:$C$46,$A69,'200m Super Men'!$X$7:$X$46))) ->  | H69: =IF($A69="","",IF(SUMIF('100 Resue Men'!$C$7:$C$46,$A69,'100 Resue Men'!$X$7:$X$46)=0,MAX('100 Resue Men'!$X$7:$X$46),SUMIF('100 Resue Men'!$C$7:$C$46,$A69,'100 Resue Men'!$X$7:$X$46))) ->  | I69: =IF($A69="","",IF(SUMIF('Line Throw Men'!$C$7:$C$46,$A69,'Line Throw Men'!$Z$7:$Z$46)=0,MAX('Line Throw Men'!$Z$7:$Z$46),SUMIF('Line Throw Men'!$C$7:$C$46,$A69,'Line Throw Men'!$Z$7:$Z$46))) ->  | J69: =IF($A69="","",IF(SUMIF('4 x 50 Obs Relay Men'!$C$7:$C$46,$A69,'4 x 50 Obs Relay Men'!$U$7:$U$46)=0,1+MAX('4 x 50 Obs Relay Men'!$U$7:$U$46),SUMIF('4 x 50 Obs Relay Men'!$C$7:$C$46,$A69,'4 x 50 Obs Relay Men'!$U$7:$U$46))) ->  | K69: =IF($A69="","",IF(SUMIF('4 x 50 medley Relay Men'!$C$7:$C$46,$A69,'4 x 50 medley Relay Men'!$U$7:$U$46)=0,1+MAX('4 x 50 medley Relay Men'!$U$7:$U$46),SUMIF('4 x 50 medley Relay Men'!$C$7:$C$46,$A69,'4 x 50 medley Relay Men'!$U$7:$U$46))) ->  | L69: =IF($A69="","",IF(SUMIF('4 x 25 Manikin Carry Relay Men'!$C$7:$C$46,$A69,'4 x 25 Manikin Carry Relay Men'!$U$7:$U$46)=0,1+MAX('4 x 25 Manikin Carry Relay Men'!$U$7:$U$46),SUMIF('4 x 25 Manikin Carry Relay Men'!$C$7:$C$46,$A69,'4 x 25 Manikin Carry Relay Men'!$U$7:$U$46))) ->  | M69: =IF($A69="","",IF(SUMIF('4 x 12m Line Throw Men'!$C$7:$C$46,$A69,'4 x 12m Line Throw Men'!$U$7:$U$46)=0,1+MAX('4 x 12m Line Throw Men'!$U$7:$U$46),SUMIF('4 x 12m Line Throw Men'!$C$7:$C$46,$A69,'4 x 12m Line Throw Men'!$U$7:$U$46))) -> 
B71: Women's All Clubs
A73: Club Code | B73: Club Name | C73: 50m Manikin Carry | D73: 100m Carry with Fins | E73: 100m tow with fins | F73: 200m Obs | G73: 200 Super | H73: 100 rescue | I73: Line Throw | J73: 4 x 50 obs Relay | K73: 4 x 50 medley Relay | L73: 4 x 25 Manikin Carry Relay | M73: 4 x 12m Line Throw Relay | N73: Totals | O73: Position
A74: =IF(A4="","",A4) -> 15 | B74: =IF(B4="","",B4) -> Bristol University | C74: =IF($A74="","",IF(SUMIF('50m Manikin Carry Women'!$C$7:$C$46,$A74,'50m Manikin Carry Women'!$X$7:$X$46)=0,1+MAX('50m Manikin Carry Women'!$X$7:$X$46),SUMIF('50m Manikin Carry Women'!$C$7:$C$46,$A74,'50m Manikin Carry Women'!$X$7:$X$46))) -> 8 | D74: =IF($A74="","",IF(SUMIF('100m Manikin Carry Women'!$C$7:$C$46,$A74,'100m Manikin Carry Women'!$X$7:$X$46)=0,1+MAX('100m Manikin Carry Women'!$X$7:$X$46),SUMIF('100m Manikin Carry Women'!$C$7:$C$46,$A74,'100m Manikin Carry Women'!$X$7:$X$46))) -> 10 | E74: =IF($A74="","",IF(SUMIF('100m Manikin Tow Women'!$C$7:$C$46,$A74,'100m Manikin Tow Women'!$X$7:$X$46)=0,1+MAX('100m Manikin Tow Women'!$X$7:$X$46),SUMIF('100m Manikin Tow Women'!$C$7:$C$46,$A74,'100m Manikin Tow Women'!$X$7:$X$46))) -> 12 | F74: =IF($A74="","",IF(SUMIF('200m Obs Women'!$C$7:$C$46,$A74,'200m Obs Women'!$X$7:$X$46)=0,1+MAX('200m Obs Women'!$X$7:$X$46),SUMIF('200m Obs Women'!$C$7:$C$46,$A74,'200m Obs Women'!$X$7:$X$46))) -> 7 | G74: =IF($A74="","",IF(SUMIF('200m Super Women'!$C$7:$C$46,$A74,'200m Super Women'!$X$7:$X$46)=0,1+MAX('200m Super Women'!$X$7:$X$46),SUMIF('200m Super Women'!$C$7:$C$46,$A74,'200m Super Women'!$X$7:$X$46))) -> 12 | H74: =IF($A74="","",IF(SUMIF('100 Resue Women'!$C$7:$C$46,$A74,'100 Resue Women'!$X$7:$X$46)=0,1+MAX('100 Resue Women'!$X$7:$X$46),SUMIF('100 Resue Women'!$C$7:$C$46,$A74,'100 Resue Women'!$X$7:$X$46))) -> 11 | I74: =IF($A74="","",IF(SUMIF('Line Throw Women'!$C$7:$C$46,$A74,'Line Throw Women'!$Z$7:$Z$46)=0,1+MAX('Line Throw Women'!$Z$7:$Z$46),SUMIF('Line Throw Women'!$C$7:$C$46,$A74,'Line Throw Women'!$Z$7:$Z$46))) -> 9 | J74: =IF($A74="","",IF(SUMIF('4 x 50 Obs Relay Women'!$C$7:$C$46,$A74,'4 x 50 Obs Relay Women'!$U$7:$U$46)=0,1+MAX('4 x 50 Obs Relay Women'!$U$7:$U$46),SUMIF('4 x 50 Obs Relay Women'!$C$7:$C$46,$A74,'4 x 50 Obs Relay Women'!$U$7:$U$46))) -> 10 | K74: =IF($A74="","",IF(SUMIF('4 x 50 medley Relay Women'!$C$7:$C$46,$A74,'4 x 50 medley Relay Women'!$U$7:$U$46)=0,1+MAX('4 x 50 medley Relay Women'!$U$7:$U$46),SUMIF('4 x 50 medley Relay Women'!$C$7:$C$46,$A74,'4 x 50 medley Relay Women'!$U$7:$U$46))) -> 10 | L74: =IF($A74="","",IF(SUMIF('4 x 25 Manikin Carry Women'!$C$7:$C$46,$A74,'4 x 25 Manikin Carry Women'!$U$7:$U$46)=0,1+MAX('4 x 25 Manikin Carry Women'!$U$7:$U$46),SUMIF('4 x 25 Manikin Carry Women'!$C$7:$C$46,$A74,'4 x 25 Manikin Carry Women'!$U$7:$U$46))) -> 10 | M74: =IF($A74="","",IF(SUMIF('4 x 12m Line Throw Women'!$C$7:$C$46,$A74,'4 x 12m Line Throw Women'!$U$7:$U$46)=0,1+MAX('4 x 12m Line Throw Women'!$U$7:$U$46),SUMIF('4 x 12m Line Throw Women'!$C$7:$C$46,$A74,'4 x 12m Line Throw Women'!$U$7:$U$46))) -> 4 | N74: =IF(A74="","",SUM(C74:M74)) -> 103 | O74: =IF(A74="","",RANK(N74,N$74:N$104,1)) -> 11
A75: =IF(A5="","",A5) -> 49 | B75: Cardiff University | C75: =IF($A75="","",IF(SUMIF('50m Manikin Carry Women'!$C$7:$C$46,$A75,'50m Manikin Carry Women'!$X$7:$X$46)=0,1+MAX('50m Manikin Carry Women'!$X$7:$X$46),SUMIF('50m Manikin Carry Women'!$C$7:$C$46,$A75,'50m Manikin Carry Women'!$X$7:$X$46))) -> 13 | D75: =IF($A75="","",IF(SUMIF('100m Manikin Carry Women'!$C$7:$C$46,$A75,'100m Manikin Carry Women'!$X$7:$X$46)=0,1+MAX('100m Manikin Carry Women'!$X$7:$X$46),SUMIF('100m Manikin Carry Women'!$C$7:$C$46,$A75,'100m Manikin Carry Women'!$X$7:$X$46))) -> 13 | E75: =IF($A75="","",IF(SUMIF('100m Manikin Tow Women'!$C$7:$C$46,$A75,'100m Manikin Tow Women'!$X$7:$X$46)=0,1+MAX('100m Manikin Tow Women'!$X$7:$X$46),SUMIF('100m Manikin Tow Women'!$C$7:$C$46,$A75,'100m Manikin Tow Women'!$X$7:$X$46))) -> 13 | F75: =IF($A75="","",IF(SUMIF('200m Obs Women'!$C$7:$C$46,$A75,'200m Obs Women'!$X$7:$X$46)=0,1+MAX('200m Obs Women'!$X$7:$X$46),SUMIF('200m Obs Women'!$C$7:$C$46,$A75,'200m Obs Women'!$X$7:$X$46))) -> 13 | G75: =IF($A75="","",IF(SUMIF('200m Super Women'!$C$7:$C$46,$A75,'200m Super Women'!$X$7:$X$46)=0,1+MAX('200m Super Women'!$X$7:$X$46),SUMIF('200m Super Women'!$C$7:$C$46,$A75,'200m Super Women'!$X$7:$X$46))) -> 12 | H75: =IF($A75="","",IF(SUMIF('100 Resue Women'!$C$7:$C$46,$A75,'100 Resue Women'!$X$7:$X$46)=0,1+MAX('100 Resue Women'!$X$7:$X$46),SUMIF('100 Resue Women'!$C$7:$C$46,$A75,'100 Resue Women'!$X$7:$X$46))) -> 11 | I75: =IF($A75="","",IF(SUMIF('Line Throw Women'!$C$7:$C$46,$A75,'Line Throw Women'!$Z$7:$Z$46)=0,1+MAX('Line Throw Women'!$Z$7:$Z$46),SUMIF('Line Throw Women'!$C$7:$C$46,$A75,'Line Throw Women'!$Z$7:$Z$46))) -> 9 | J75: =IF($A75="","",IF(SUMIF('4 x 50 Obs Relay Women'!$C$7:$C$46,$A75,'4 x 50 Obs Relay Women'!$U$7:$U$46)=0,1+MAX('4 x 50 Obs Relay Women'!$U$7:$U$46),SUMIF('4 x 50 Obs Relay Women'!$C$7:$C$46,$A75,'4 x 50 Obs Relay Women'!$U$7:$U$46))) -> 10 | K75: =IF($A75="","",IF(SUMIF('4 x 50 medley Relay Women'!$C$7:$C$46,$A75,'4 x 50 medley Relay Women'!$U$7:$U$46)=0,1+MAX('4 x 50 medley Relay Women'!$U$7:$U$46),SUMIF('4 x 50 medley Relay Women'!$C$7:$C$46,$A75,'4 x 50 medley Relay Women'!$U$7:$U$46))) -> 10 | L75: =IF($A75="","",IF(SUMIF('4 x 25 Manikin Carry Women'!$C$7:$C$46,$A75,'4 x 25 Manikin Carry Women'!$U$7:$U$46)=0,1+MAX('4 x 25 Manikin Carry Women'!$U$7:$U$46),SUMIF('4 x 25 Manikin Carry Women'!$C$7:$C$46,$A75,'4 x 25 Manikin Carry Women'!$U$7:$U$46))) -> 10 | M75: =IF($A75="","",IF(SUMIF('4 x 12m Line Throw Women'!$C$7:$C$46,$A75,'4 x 12m Line Throw Women'!$U$7:$U$46)=0,1+MAX('4 x 12m Line Throw Women'!$U$7:$U$46),SUMIF('4 x 12m Line Throw Women'!$C$7:$C$46,$A75,'4 x 12m Line Throw Women'!$U$7:$U$46))) -> 4 | N75: 118 | O75: =IF(A75="","",RANK(N75,N$74:N$104,1)) -> 13
A76: 7 | B76: Loughborough University | C76: =IF($A76="","",IF(SUMIF('50m Manikin Carry Women'!$C$7:$C$46,$A76,'50m Manikin Carry Women'!$X$7:$X$46)=0,1+MAX('50m Manikin Carry Women'!$X$7:$X$46),SUMIF('50m Manikin Carry Women'!$C$7:$C$46,$A76,'50m Manikin Carry Women'!$X$7:$X$46))) -> 1 | D76: =IF($A76="","",IF(SUMIF('100m Manikin Carry Women'!$C$7:$C$46,$A76,'100m Manikin Carry Women'!$X$7:$X$46)=0,1+MAX('100m Manikin Carry Women'!$X$7:$X$46),SUMIF('100m Manikin Carry Women'!$C$7:$C$46,$A76,'100m Manikin Carry Women'!$X$7:$X$46))) -> 2 | E76: =IF($A76="","",IF(SUMIF('100m Manikin Tow Women'!$C$7:$C$46,$A76,'100m Manikin Tow Women'!$X$7:$X$46)=0,1+MAX('100m Manikin Tow Women'!$X$7:$X$46),SUMIF('100m Manikin Tow Women'!$C$7:$C$46,$A76,'100m Manikin Tow Women'!$X$7:$X$46))) -> 3 | F76: =IF($A76="","",IF(SUMIF('200m Obs Women'!$C$7:$C$46,$A76,'200m Obs Women'!$X$7:$X$46)=0,1+MAX('200m Obs Women'!$X$7:$X$46),SUMIF('200m Obs Women'!$C$7:$C$46,$A76,'200m Obs Women'!$X$7:$X$46))) -> 2 | G76: =IF($A76="","",IF(SUMIF('200m Super Women'!$C$7:$C$46,$A76,'200m Super Women'!$X$7:$X$46)=0,1+MAX('200m Super Women'!$X$7:$X$46),SUMIF('200m Super Women'!$C$7:$C$46,$A76,'200m Super Women'!$X$7:$X$46))) -> 3 | H76: =IF($A76="","",IF(SUMIF('100 Resue Women'!$C$7:$C$46,$A76,'100 Resue Women'!$X$7:$X$46)=0,1+MAX('100 Resue Women'!$X$7:$X$46),SUMIF('100 Resue Women'!$C$7:$C$46,$A76,'100 Resue Women'!$X$7:$X$46))) -> 1 | I76: =IF($A76="","",IF(SUMIF('Line Throw Women'!$C$7:$C$46,$A76,'Line Throw Women'!$Z$7:$Z$46)=0,1+MAX('Line Throw Women'!$Z$7:$Z$46),SUMIF('Line Throw Women'!$C$7:$C$46,$A76,'Line Throw Women'!$Z$7:$Z$46))) -> 1 | J76: =IF($A76="","",IF(SUMIF('4 x 50 Obs Relay Women'!$C$7:$C$46,$A76,'4 x 50 Obs Relay Women'!$U$7:$U$46)=0,1+MAX('4 x 50 Obs Relay Women'!$U$7:$U$46),SUMIF('4 x 50 Obs Relay Women'!$C$7:$C$46,$A76,'4 x 50 Obs Relay Women'!$U$7:$U$46))) -> 3 | K76: =IF($A76="","",IF(SUMIF('4 x 50 medley Relay Women'!$C$7:$C$46,$A76,'4 x 50 medley Relay Women'!$U$7:$U$46)=0,1+MAX('4 x 50 medley Relay Women'!$U$7:$U$46),SUMIF('4 x 50 medley Relay Women'!$C$7:$C$46,$A76,'4 x 50 medley Relay Women'!$U$7:$U$46))) -> 2 | L76: =IF($A76="","",IF(SUMIF('4 x 25 Manikin Carry Women'!$C$7:$C$46,$A76,'4 x 25 Manikin Carry Women'!$U$7:$U$46)=0,1+MAX('4 x 25 Manikin Carry Women'!$U$7:$U$46),SUMIF('4 x 25 Manikin Carry Women'!$C$7:$C$46,$A76,'4 x 25 Manikin Carry Women'!$U$7:$U$46))) -> 1 | M76: =IF($A76="","",IF(SUMIF('4 x 12m Line Throw Women'!$C$7:$C$46,$A76,'4 x 12m Line Throw Women'!$U$7:$U$46)=0,1+MAX('4 x 12m Line Throw Women'!$U$7:$U$46),SUMIF('4 x 12m Line Throw Women'!$C$7:$C$46,$A76,'4 x 12m Line Throw Women'!$U$7:$U$46))) -> 2 | N76: 21 | O76: 1
A77: 46 | B77: Northfield | C77: =IF($A77="","",IF(SUMIF('50m Manikin Carry Women'!$C$7:$C$46,$A77,'50m Manikin Carry Women'!$X$7:$X$46)=0,1+MAX('50m Manikin Carry Women'!$X$7:$X$46),SUMIF('50m Manikin Carry Women'!$C$7:$C$46,$A77,'50m Manikin Carry Women'!$X$7:$X$46))) -> 13 | D77: =IF($A77="","",IF(SUMIF('100m Manikin Carry Women'!$C$7:$C$46,$A77,'100m Manikin Carry Women'!$X$7:$X$46)=0,1+MAX('100m Manikin Carry Women'!$X$7:$X$46),SUMIF('100m Manikin Carry Women'!$C$7:$C$46,$A77,'100m Manikin Carry Women'!$X$7:$X$46))) -> 13 | E77: =IF($A77="","",IF(SUMIF('100m Manikin Tow Women'!$C$7:$C$46,$A77,'100m Manikin Tow Women'!$X$7:$X$46)=0,1+MAX('100m Manikin Tow Women'!$X$7:$X$46),SUMIF('100m Manikin Tow Women'!$C$7:$C$46,$A77,'100m Manikin Tow Women'!$X$7:$X$46))) -> 13 | F77: =IF($A77="","",IF(SUMIF('200m Obs Women'!$C$7:$C$46,$A77,'200m Obs Women'!$X$7:$X$46)=0,1+MAX('200m Obs Women'!$X$7:$X$46),SUMIF('200m Obs Women'!$C$7:$C$46,$A77,'200m Obs Women'!$X$7:$X$46))) -> 13 | G77: =IF($A77="","",IF(SUMIF('200m Super Women'!$C$7:$C$46,$A77,'200m Super Women'!$X$7:$X$46)=0,1+MAX('200m Super Women'!$X$7:$X$46),SUMIF('200m Super Women'!$C$7:$C$46,$A77,'200m Super Women'!$X$7:$X$46))) -> 12 | H77: =IF($A77="","",IF(SUMIF('100 Resue Women'!$C$7:$C$46,$A77,'100 Resue Women'!$X$7:$X$46)=0,1+MAX('100 Resue Women'!$X$7:$X$46),SUMIF('100 Resue Women'!$C$7:$C$46,$A77,'100 Resue Women'!$X$7:$X$46))) -> 11 | I77: =IF($A77="","",IF(SUMIF('Line Throw Women'!$C$7:$C$46,$A77,'Line Throw Women'!$Z$7:$Z$46)=0,1+MAX('Line Throw Women'!$Z$7:$Z$46),SUMIF('Line Throw Women'!$C$7:$C$46,$A77,'Line Throw Women'!$Z$7:$Z$46))) -> 9 | J77: =IF($A77="","",IF(SUMIF('4 x 50 Obs Relay Women'!$C$7:$C$46,$A77,'4 x 50 Obs Relay Women'!$U$7:$U$46)=0,1+MAX('4 x 50 Obs Relay Women'!$U$7:$U$46),SUMIF('4 x 50 Obs Relay Women'!$C$7:$C$46,$A77,'4 x 50 Obs Relay Women'!$U$7:$U$46))) -> 10 | K77: =IF($A77="","",IF(SUMIF('4 x 50 medley Relay Women'!$C$7:$C$46,$A77,'4 x 50 medley Relay Women'!$U$7:$U$46)=0,1+MAX('4 x 50 medley Relay Women'!$U$7:$U$46),SUMIF('4 x 50 medley Relay Women'!$C$7:$C$46,$A77,'4 x 50 medley Relay Women'!$U$7:$U$46))) -> 10 | L77: =IF($A77="","",IF(SUMIF('4 x 25 Manikin Carry Women'!$C$7:$C$46,$A77,'4 x 25 Manikin Carry Women'!$U$7:$U$46)=0,1+MAX('4 x 25 Manikin Carry Women'!$U$7:$U$46),SUMIF('4 x 25 Manikin Carry Women'!$C$7:$C$46,$A77,'4 x 25 Manikin Carry Women'!$U$7:$U$46))) -> 10 | M77: =IF($A77="","",IF(SUMIF('4 x 12m Line Throw Women'!$C$7:$C$46,$A77,'4 x 12m Line Throw Women'!$U$7:$U$46)=0,1+MAX('4 x 12m Line Throw Women'!$U$7:$U$46),SUMIF('4 x 12m Line Throw Women'!$C$7:$C$46,$A77,'4 x 12m Line Throw Women'!$U$7:$U$46))) -> 4 | N77: 118 | O77: 13
A78: 21 | B78: Swansea Universities Lifesaving | C78: =IF($A78="","",IF(SUMIF('50m Manikin Carry Women'!$C$7:$C$46,$A78,'50m Manikin Carry Women'!$X$7:$X$46)=0,1+MAX('50m Manikin Carry Women'!$X$7:$X$46),SUMIF('50m Manikin Carry Women'!$C$7:$C$46,$A78,'50m Manikin Carry Women'!$X$7:$X$46))) -> 3 | D78: =IF($A78="","",IF(SUMIF('100m Manikin Carry Women'!$C$7:$C$46,$A78,'100m Manikin Carry Women'!$X$7:$X$46)=0,1+MAX('100m Manikin Carry Women'!$X$7:$X$46),SUMIF('100m Manikin Carry Women'!$C$7:$C$46,$A78,'100m Manikin Carry Women'!$X$7:$X$46))) -> 1 | E78: =IF($A78="","",IF(SUMIF('100m Manikin Tow Women'!$C$7:$C$46,$A78,'100m Manikin Tow Women'!$X$7:$X$46)=0,1+MAX('100m Manikin Tow Women'!$X$7:$X$46),SUMIF('100m Manikin Tow Women'!$C$7:$C$46,$A78,'100m Manikin Tow Women'!$X$7:$X$46))) -> 1 | F78: =IF($A78="","",IF(SUMIF('200m Obs Women'!$C$7:$C$46,$A78,'200m Obs Women'!$X$7:$X$46)=0,1+MAX('200m Obs Women'!$X$7:$X$46),SUMIF('200m Obs Women'!$C$7:$C$46,$A78,'200m Obs Women'!$X$7:$X$46))) -> 1 | G78: =IF($A78="","",IF(SUMIF('200m Super Women'!$C$7:$C$46,$A78,'200m Super Women'!$X$7:$X$46)=0,1+MAX('200m Super Women'!$X$7:$X$46),SUMIF('200m Super Women'!$C$7:$C$46,$A78,'200m Super Women'!$X$7:$X$46))) -> 1 | H78: =IF($A78="","",IF(SUMIF('100 Resue Women'!$C$7:$C$46,$A78,'100 Resue Women'!$X$7:$X$46)=0,1+MAX('100 Resue Women'!$X$7:$X$46),SUMIF('100 Resue Women'!$C$7:$C$46,$A78,'100 Resue Women'!$X$7:$X$46))) -> 6 | I78: =IF($A78="","",IF(SUMIF('Line Throw Women'!$C$7:$C$46,$A78,'Line Throw Women'!$Z$7:$Z$46)=0,1+MAX('Line Throw Women'!$Z$7:$Z$46),SUMIF('Line Throw Women'!$C$7:$C$46,$A78,'Line Throw Women'!$Z$7:$Z$46))) -> 2 | J78: =IF($A78="","",IF(SUMIF('4 x 50 Obs Relay Women'!$C$7:$C$46,$A78,'4 x 50 Obs Relay Women'!$U$7:$U$46)=0,1+MAX('4 x 50 Obs Relay Women'!$U$7:$U$46),SUMIF('4 x 50 Obs Relay Women'!$C$7:$C$46,$A78,'4 x 50 Obs Relay Women'!$U$7:$U$46))) -> 1 | K78: =IF($A78="","",IF(SUMIF('4 x 50 medley Relay Women'!$C$7:$C$46,$A78,'4 x 50 medley Relay Women'!$U$7:$U$46)=0,1+MAX('4 x 50 medley Relay Women'!$U$7:$U$46),SUMIF('4 x 50 medley Relay Women'!$C$7:$C$46,$A78,'4 x 50 medley Relay Women'!$U$7:$U$46))) -> 1 | L78: =IF($A78="","",IF(SUMIF('4 x 25 Manikin Carry Women'!$C$7:$C$46,$A78,'4 x 25 Manikin Carry Women'!$U$7:$U$46)=0,1+MAX('4 x 25 Manikin Carry Women'!$U$7:$U$46),SUMIF('4 x 25 Manikin Carry Women'!$C$7:$C$46,$A78,'4 x 25 Manikin Carry Women'!$U$7:$U$46))) -> 6 | M78: =IF($A78="","",IF(SUMIF('4 x 12m Line Throw Women'!$C$7:$C$46,$A78,'4 x 12m Line Throw Women'!$U$7:$U$46)=0,1+MAX('4 x 12m Line Throw Women'!$U$7:$U$46),SUMIF('4 x 12m Line Throw Women'!$C$7:$C$46,$A78,'4 x 12m Line Throw Women'!$U$7:$U$46))) -> 3 | N78: 26 | O78: 2
A79: 2 | B79: University of Bath | C79: =IF($A79="","",IF(SUMIF('50m Manikin Carry Women'!$C$7:$C$46,$A79,'50m Manikin Carry Women'!$X$7:$X$46)=0,1+MAX('50m Manikin Carry Women'!$X$7:$X$46),SUMIF('50m Manikin Carry Women'!$C$7:$C$46,$A79,'50m Manikin Carry Women'!$X$7:$X$46))) -> 13 | D79: =IF($A79="","",IF(SUMIF('100m Manikin Carry Women'!$C$7:$C$46,$A79,'100m Manikin Carry Women'!$X$7:$X$46)=0,1+MAX('100m Manikin Carry Women'!$X$7:$X$46),SUMIF('100m Manikin Carry Women'!$C$7:$C$46,$A79,'100m Manikin Carry Women'!$X$7:$X$46))) -> 13 | E79: =IF($A79="","",IF(SUMIF('100m Manikin Tow Women'!$C$7:$C$46,$A79,'100m Manikin Tow Women'!$X$7:$X$46)=0,1+MAX('100m Manikin Tow Women'!$X$7:$X$46),SUMIF('100m Manikin Tow Women'!$C$7:$C$46,$A79,'100m Manikin Tow Women'!$X$7:$X$46))) -> 13 | F79: =IF($A79="","",IF(SUMIF('200m Obs Women'!$C$7:$C$46,$A79,'200m Obs Women'!$X$7:$X$46)=0,1+MAX('200m Obs Women'!$X$7:$X$46),SUMIF('200m Obs Women'!$C$7:$C$46,$A79,'200m Obs Women'!$X$7:$X$46))) -> 13 | G79: =IF($A79="","",IF(SUMIF('200m Super Women'!$C$7:$C$46,$A79,'200m Super Women'!$X$7:$X$46)=0,1+MAX('200m Super Women'!$X$7:$X$46),SUMIF('200m Super Women'!$C$7:$C$46,$A79,'200m Super Women'!$X$7:$X$46))) -> 12 | H79: =IF($A79="","",IF(SUMIF('100 Resue Women'!$C$7:$C$46,$A79,'100 Resue Women'!$X$7:$X$46)=0,1+MAX('100 Resue Women'!$X$7:$X$46),SUMIF('100 Resue Women'!$C$7:$C$46,$A79,'100 Resue Women'!$X$7:$X$46))) -> 11 | I79: =IF($A79="","",IF(SUMIF('Line Throw Women'!$C$7:$C$46,$A79,'Line Throw Women'!$Z$7:$Z$46)=0,1+MAX('Line Throw Women'!$Z$7:$Z$46),SUMIF('Line Throw Women'!$C$7:$C$46,$A79,'Line Throw Women'!$Z$7:$Z$46))) -> 9 | J79: =IF($A79="","",IF(SUMIF('4 x 50 Obs Relay Women'!$C$7:$C$46,$A79,'4 x 50 Obs Relay Women'!$U$7:$U$46)=0,1+MAX('4 x 50 Obs Relay Women'!$U$7:$U$46),SUMIF('4 x 50 Obs Relay Women'!$C$7:$C$46,$A79,'4 x 50 Obs Relay Women'!$U$7:$U$46))) -> 10 | K79: =IF($A79="","",IF(SUMIF('4 x 50 medley Relay Women'!$C$7:$C$46,$A79,'4 x 50 medley Relay Women'!$U$7:$U$46)=0,1+MAX('4 x 50 medley Relay Women'!$U$7:$U$46),SUMIF('4 x 50 medley Relay Women'!$C$7:$C$46,$A79,'4 x 50 medley Relay Women'!$U$7:$U$46))) -> 10 | L79: =IF($A79="","",IF(SUMIF('4 x 25 Manikin Carry Women'!$C$7:$C$46,$A79,'4 x 25 Manikin Carry Women'!$U$7:$U$46)=0,1+MAX('4 x 25 Manikin Carry Women'!$U$7:$U$46),SUMIF('4 x 25 Manikin Carry Women'!$C$7:$C$46,$A79,'4 x 25 Manikin Carry Women'!$U$7:$U$46))) -> 10 | M79: =IF($A79="","",IF(SUMIF('4 x 12m Line Throw Women'!$C$7:$C$46,$A79,'4 x 12m Line Throw Women'!$U$7:$U$46)=0,1+MAX('4 x 12m Line Throw Women'!$U$7:$U$46),SUMIF('4 x 12m Line Throw Women'!$C$7:$C$46,$A79,'4 x 12m Line Throw Women'!$U$7:$U$46))) -> 4 | N79: 118 | O79: 13
A80: 14 | B80: University of Birmingham | C80: =IF($A80="","",IF(SUMIF('50m Manikin Carry Women'!$C$7:$C$46,$A80,'50m Manikin Carry Women'!$X$7:$X$46)=0,1+MAX('50m Manikin Carry Women'!$X$7:$X$46),SUMIF('50m Manikin Carry Women'!$C$7:$C$46,$A80,'50m Manikin Carry Women'!$X$7:$X$46))) -> 7 | D80: =IF($A80="","",IF(SUMIF('100m Manikin Carry Women'!$C$7:$C$46,$A80,'100m Manikin Carry Women'!$X$7:$X$46)=0,1+MAX('100m Manikin Carry Women'!$X$7:$X$46),SUMIF('100m Manikin Carry Women'!$C$7:$C$46,$A80,'100m Manikin Carry Women'!$X$7:$X$46))) -> 9 | E80: =IF($A80="","",IF(SUMIF('100m Manikin Tow Women'!$C$7:$C$46,$A80,'100m Manikin Tow Women'!$X$7:$X$46)=0,1+MAX('100m Manikin Tow Women'!$X$7:$X$46),SUMIF('100m Manikin Tow Women'!$C$7:$C$46,$A80,'100m Manikin Tow Women'!$X$7:$X$46))) -> 4 | F80: =IF($A80="","",IF(SUMIF('200m Obs Women'!$C$7:$C$46,$A80,'200m Obs Women'!$X$7:$X$46)=0,1+MAX('200m Obs Women'!$X$7:$X$46),SUMIF('200m Obs Women'!$C$7:$C$46,$A80,'200m Obs Women'!$X$7:$X$46))) -> 9 | G80: =IF($A80="","",IF(SUMIF('200m Super Women'!$C$7:$C$46,$A80,'200m Super Women'!$X$7:$X$46)=0,1+MAX('200m Super Women'!$X$7:$X$46),SUMIF('200m Super Women'!$C$7:$C$46,$A80,'200m Super Women'!$X$7:$X$46))) -> 6 | H80: =IF($A80="","",IF(SUMIF('100 Resue Women'!$C$7:$C$46,$A80,'100 Resue Women'!$X$7:$X$46)=0,1+MAX('100 Resue Women'!$X$7:$X$46),SUMIF('100 Resue Women'!$C$7:$C$46,$A80,'100 Resue Women'!$X$7:$X$46))) -> 4 | I80: =IF($A80="","",IF(SUMIF('Line Throw Women'!$C$7:$C$46,$A80,'Line Throw Women'!$Z$7:$Z$46)=0,1+MAX('Line Throw Women'!$Z$7:$Z$46),SUMIF('Line Throw Women'!$C$7:$C$46,$A80,'Line Throw Women'!$Z$7:$Z$46))) -> 6 | J80: =IF($A80="","",IF(SUMIF('4 x 50 Obs Relay Women'!$C$7:$C$46,$A80,'4 x 50 Obs Relay Women'!$U$7:$U$46)=0,1+MAX('4 x 50 Obs Relay Women'!$U$7:$U$46),SUMIF('4 x 50 Obs Relay Women'!$C$7:$C$46,$A80,'4 x 50 Obs Relay Women'!$U$7:$U$46))) -> 6 | K80: =IF($A80="","",IF(SUMIF('4 x 50 medley Relay Women'!$C$7:$C$46,$A80,'4 x 50 medley Relay Women'!$U$7:$U$46)=0,1+MAX('4 x 50 medley Relay Women'!$U$7:$U$46),SUMIF('4 x 50 medley Relay Women'!$C$7:$C$46,$A80,'4 x 50 medley Relay Women'!$U$7:$U$46))) -> 4 | L80: =IF($A80="","",IF(SUMIF('4 x 25 Manikin Carry Women'!$C$7:$C$46,$A80,'4 x 25 Manikin Carry Women'!$U$7:$U$46)=0,1+MAX('4 x 25 Manikin Carry Women'!$U$7:$U$46),SUMIF('4 x 25 Manikin Carry Women'!$C$7:$C$46,$A80,'4 x 25 Manikin Carry Women'!$U$7:$U$46))) -> 4 | M80: =IF($A80="","",IF(SUMIF('4 x 12m Line Throw Women'!$C$7:$C$46,$A80,'4 x 12m Line Throw Women'!$U$7:$U$46)=0,1+MAX('4 x 12m Line Throw Women'!$U$7:$U$46),SUMIF('4 x 12m Line Throw Women'!$C$7:$C$46,$A80,'4 x 12m Line Throw Women'!$U$7:$U$46))) -> 3 | N80: =IF(A80="","",SUM(C80:M80)) -> 62 | O80: 4
A81: 5 | B81: University of Cambridge | C81: 12 | D81: 12 | E81: =IF($A81="","",IF(SUMIF('100m Manikin Tow Women'!$C$7:$C$46,$A81,'100m Manikin Tow Women'!$X$7:$X$46)=0,1+MAX('100m Manikin Tow Women'!$X$7:$X$46),SUMIF('100m Manikin Tow Women'!$C$7:$C$46,$A81,'100m Manikin Tow Women'!$X$7:$X$46))) -> 11 | F81: =IF($A81="","",IF(SUMIF('200m Obs Women'!$C$7:$C$46,$A81,'200m Obs Women'!$X$7:$X$46)=0,1+MAX('200m Obs Women'!$X$7:$X$46),SUMIF('200m Obs Women'!$C$7:$C$46,$A81,'200m Obs Women'!$X$7:$X$46))) -> 12 | G81: =IF($A81="","",IF(SUMIF('200m Super Women'!$C$7:$C$46,$A81,'200m Super Women'!$X$7:$X$46)=0,1+MAX('200m Super Women'!$X$7:$X$46),SUMIF('200m Super Women'!$C$7:$C$46,$A81,'200m Super Women'!$X$7:$X$46))) -> 11 | H81: =IF($A81="","",IF(SUMIF('100 Resue Women'!$C$7:$C$46,$A81,'100 Resue Women'!$X$7:$X$46)=0,1+MAX('100 Resue Women'!$X$7:$X$46),SUMIF('100 Resue Women'!$C$7:$C$46,$A81,'100 Resue Women'!$X$7:$X$46))) -> 8 | I81: =IF($A81="","",IF(SUMIF('Line Throw Women'!$C$7:$C$46,$A81,'Line Throw Women'!$Z$7:$Z$46)=0,1+MAX('Line Throw Women'!$Z$7:$Z$46),SUMIF('Line Throw Women'!$C$7:$C$46,$A81,'Line Throw Women'!$Z$7:$Z$46))) -> 8 | J81: =IF($A81="","",IF(SUMIF('4 x 50 Obs Relay Women'!$C$7:$C$46,$A81,'4 x 50 Obs Relay Women'!$U$7:$U$46)=0,1+MAX('4 x 50 Obs Relay Women'!$U$7:$U$46),SUMIF('4 x 50 Obs Relay Women'!$C$7:$C$46,$A81,'4 x 50 Obs Relay Women'!$U$7:$U$46))) -> 10 | K81: =IF($A81="","",IF(SUMIF('4 x 50 medley Relay Women'!$C$7:$C$46,$A81,'4 x 50 medley Relay Women'!$U$7:$U$46)=0,1+MAX('4 x 50 medley Relay Women'!$U$7:$U$46),SUMIF('4 x 50 medley Relay Women'!$C$7:$C$46,$A81,'4 x 50 medley Relay Women'!$U$7:$U$46))) -> 10 | L81: =IF($A81="","",IF(SUMIF('4 x 25 Manikin Carry Women'!$C$7:$C$46,$A81,'4 x 25 Manikin Carry Women'!$U$7:$U$46)=0,1+MAX('4 x 25 Manikin Carry Women'!$U$7:$U$46),SUMIF('4 x 25 Manikin Carry Women'!$C$7:$C$46,$A81,'4 x 25 Manikin Carry Women'!$U$7:$U$46))) -> 10 | M81: =IF($A81="","",IF(SUMIF('4 x 12m Line Throw Women'!$C$7:$C$46,$A81,'4 x 12m Line Throw Women'!$U$7:$U$46)=0,1+MAX('4 x 12m Line Throw Women'!$U$7:$U$46),SUMIF('4 x 12m Line Throw Women'!$C$7:$C$46,$A81,'4 x 12m Line Throw Women'!$U$7:$U$46))) -> 4 | N81: 108 | O81: 12
A82: 16 | B82: University of London Union | C82: =IF($A82="","",IF(SUMIF('50m Manikin Carry Women'!$C$7:$C$46,$A82,'50m Manikin Carry Women'!$X$7:$X$46)=0,1+MAX('50m Manikin Carry Women'!$X$7:$X$46),SUMIF('50m Manikin Carry Women'!$C$7:$C$46,$A82,'50m Manikin Carry Women'!$X$7:$X$46))) -> 11 | D82: =IF($A82="","",IF(SUMIF('100m Manikin Carry Women'!$C$7:$C$46,$A82,'100m Manikin Carry Women'!$X$7:$X$46)=0,1+MAX('100m Manikin Carry Women'!$X$7:$X$46),SUMIF('100m Manikin Carry Women'!$C$7:$C$46,$A82,'100m Manikin Carry Women'!$X$7:$X$46))) -> 11 | E82: =IF($A82="","",IF(SUMIF('100m Manikin Tow Women'!$C$7:$C$46,$A82,'100m Manikin Tow Women'!$X$7:$X$46)=0,1+MAX('100m Manikin Tow Women'!$X$7:$X$46),SUMIF('100m Manikin Tow Women'!$C$7:$C$46,$A82,'100m Manikin Tow Women'!$X$7:$X$46))) -> 9 | F82: =IF($A82="","",IF(SUMIF('200m Obs Women'!$C$7:$C$46,$A82,'200m Obs Women'!$X$7:$X$46)=0,1+MAX('200m Obs Women'!$X$7:$X$46),SUMIF('200m Obs Women'!$C$7:$C$46,$A82,'200m Obs Women'!$X$7:$X$46))) -> 11 | G82: =IF($A82="","",IF(SUMIF('200m Super Women'!$C$7:$C$46,$A82,'200m Super Women'!$X$7:$X$46)=0,1+MAX('200m Super Women'!$X$7:$X$46),SUMIF('200m Super Women'!$C$7:$C$46,$A82,'200m Super Women'!$X$7:$X$46))) -> 7 | H82: =IF($A82="","",IF(SUMIF('100 Resue Women'!$C$7:$C$46,$A82,'100 Resue Women'!$X$7:$X$46)=0,1+MAX('100 Resue Women'!$X$7:$X$46),SUMIF('100 Resue Women'!$C$7:$C$46,$A82,'100 Resue Women'!$X$7:$X$46))) -> 11 | I82: =IF($A82="","",IF(SUMIF('Line Throw Women'!$C$7:$C$46,$A82,'Line Throw Women'!$Z$7:$Z$46)=0,1+MAX('Line Throw Women'!$Z$7:$Z$46),SUMIF('Line Throw Women'!$C$7:$C$46,$A82,'Line Throw Women'!$Z$7:$Z$46))) -> 3 | J82: =IF($A82="","",IF(SUMIF('4 x 50 Obs Relay Women'!$C$7:$C$46,$A82,'4 x 50 Obs Relay Women'!$U$7:$U$46)=0,1+MAX('4 x 50 Obs Relay Women'!$U$7:$U$46),SUMIF('4 x 50 Obs Relay Women'!$C$7:$C$46,$A82,'4 x 50 Obs Relay Women'!$U$7:$U$46))) -> 9 | K82: =IF($A82="","",IF(SUMIF('4 x 50 medley Relay Women'!$C$7:$C$46,$A82,'4 x 50 medley Relay Women'!$U$7:$U$46)=0,1+MAX('4 x 50 medley Relay Women'!$U$7:$U$46),SUMIF('4 x 50 medley Relay Women'!$C$7:$C$46,$A82,'4 x 50 medley Relay Women'!$U$7:$U$46))) -> 7 | L82: =IF($A82="","",IF(SUMIF('4 x 25 Manikin Carry Women'!$C$7:$C$46,$A82,'4 x 25 Manikin Carry Women'!$U$7:$U$46)=0,1+MAX('4 x 25 Manikin Carry Women'!$U$7:$U$46),SUMIF('4 x 25 Manikin Carry Women'!$C$7:$C$46,$A82,'4 x 25 Manikin Carry Women'!$U$7:$U$46))) -> 5 | M82: =IF($A82="","",IF(SUMIF('4 x 12m Line Throw Women'!$C$7:$C$46,$A82,'4 x 12m Line Throw Women'!$U$7:$U$46)=0,1+MAX('4 x 12m Line Throw Women'!$U$7:$U$46),SUMIF('4 x 12m Line Throw Women'!$C$7:$C$46,$A82,'4 x 12m Line Throw Women'!$U$7:$U$46))) -> 3 | N82: 87 | O82: 10
A83: 8 | B83: University of Nottingham | C83: =IF($A83="","",IF(SUMIF('50m Manikin Carry Women'!$C$7:$C$46,$A83,'50m Manikin Carry Women'!$X$7:$X$46)=0,1+MAX('50m Manikin Carry Women'!$X$7:$X$46),SUMIF('50m Manikin Carry Women'!$C$7:$C$46,$A83,'50m Manikin Carry Women'!$X$7:$X$46))) -> 6 | D83: =IF($A83="","",IF(SUMIF('100m Manikin Carry Women'!$C$7:$C$46,$A83,'100m Manikin Carry Women'!$X$7:$X$46)=0,1+MAX('100m Manikin Carry Women'!$X$7:$X$46),SUMIF('100m Manikin Carry Women'!$C$7:$C$46,$A83,'100m Manikin Carry Women'!$X$7:$X$46))) -> 7 | E83: =IF($A83="","",IF(SUMIF('100m Manikin Tow Women'!$C$7:$C$46,$A83,'100m Manikin Tow Women'!$X$7:$X$46)=0,1+MAX('100m Manikin Tow Women'!$X$7:$X$46),SUMIF('100m Manikin Tow Women'!$C$7:$C$46,$A83,'100m Manikin Tow Women'!$X$7:$X$46))) -> 8 | F83: =IF($A83="","",IF(SUMIF('200m Obs Women'!$C$7:$C$46,$A83,'200m Obs Women'!$X$7:$X$46)=0,1+MAX('200m Obs Women'!$X$7:$X$46),SUMIF('200m Obs Women'!$C$7:$C$46,$A83,'200m Obs Women'!$X$7:$X$46))) -> 6 | G83: =IF($A83="","",IF(SUMIF('200m Super Women'!$C$7:$C$46,$A83,'200m Super Women'!$X$7:$X$46)=0,1+MAX('200m Super Women'!$X$7:$X$46),SUMIF('200m Super Women'!$C$7:$C$46,$A83,'200m Super Women'!$X$7:$X$46))) -> 10 | H83: =IF($A83="","",IF(SUMIF('100 Resue Women'!$C$7:$C$46,$A83,'100 Resue Women'!$X$7:$X$46)=0,1+MAX('100 Resue Women'!$X$7:$X$46),SUMIF('100 Resue Women'!$C$7:$C$46,$A83,'100 Resue Women'!$X$7:$X$46))) -> 9 | I83: 8 | J83: =IF($A83="","",IF(SUMIF('4 x 50 Obs Relay Women'!$C$7:$C$46,$A83,'4 x 50 Obs Relay Women'!$U$7:$U$46)=0,1+MAX('4 x 50 Obs Relay Women'!$U$7:$U$46),SUMIF('4 x 50 Obs Relay Women'!$C$7:$C$46,$A83,'4 x 50 Obs Relay Women'!$U$7:$U$46))) -> 4 | K83: =IF($A83="","",IF(SUMIF('4 x 50 medley Relay Women'!$C$7:$C$46,$A83,'4 x 50 medley Relay Women'!$U$7:$U$46)=0,1+MAX('4 x 50 medley Relay Women'!$U$7:$U$46),SUMIF('4 x 50 medley Relay Women'!$C$7:$C$46,$A83,'4 x 50 medley Relay Women'!$U$7:$U$46))) -> 5 | L83: =IF($A83="","",IF(SUMIF('4 x 25 Manikin Carry Women'!$C$7:$C$46,$A83,'4 x 25 Manikin Carry Women'!$U$7:$U$46)=0,1+MAX('4 x 25 Manikin Carry Women'!$U$7:$U$46),SUMIF('4 x 25 Manikin Carry Women'!$C$7:$C$46,$A83,'4 x 25 Manikin Carry Women'!$U$7:$U$46))) -> 7 | M83: =IF($A83="","",IF(SUMIF('4 x 12m Line Throw Women'!$C$7:$C$46,$A83,'4 x 12m Line Throw Women'!$U$7:$U$46)=0,1+MAX('4 x 12m Line Throw Women'!$U$7:$U$46),SUMIF('4 x 12m Line Throw Women'!$C$7:$C$46,$A83,'4 x 12m Line Throw Women'!$U$7:$U$46))) -> 3 | N83: 73 | O83: 8
A84: 18 | B84: University of Oxford | C84: =IF($A84="","",IF(SUMIF('50m Manikin Carry Women'!$C$7:$C$46,$A84,'50m Manikin Carry Women'!$X$7:$X$46)=0,1+MAX('50m Manikin Carry Women'!$X$7:$X$46),SUMIF('50m Manikin Carry Women'!$C$7:$C$46,$A84,'50m Manikin Carry Women'!$X$7:$X$46))) -> 4 | D84: =IF($A84="","",IF(SUMIF('100m Manikin Carry Women'!$C$7:$C$46,$A84,'100m Manikin Carry Women'!$X$7:$X$46)=0,1+MAX('100m Manikin Carry Women'!$X$7:$X$46),SUMIF('100m Manikin Carry Women'!$C$7:$C$46,$A84,'100m Manikin Carry Women'!$X$7:$X$46))) -> 5 | E84: =IF($A84="","",IF(SUMIF('100m Manikin Tow Women'!$C$7:$C$46,$A84,'100m Manikin Tow Women'!$X$7:$X$46)=0,1+MAX('100m Manikin Tow Women'!$X$7:$X$46),SUMIF('100m Manikin Tow Women'!$C$7:$C$46,$A84,'100m Manikin Tow Women'!$X$7:$X$46))) -> 6 | F84: =IF($A84="","",IF(SUMIF('200m Obs Women'!$C$7:$C$46,$A84,'200m Obs Women'!$X$7:$X$46)=0,1+MAX('200m Obs Women'!$X$7:$X$46),SUMIF('200m Obs Women'!$C$7:$C$46,$A84,'200m Obs Women'!$X$7:$X$46))) -> 5 | G84: =IF($A84="","",IF(SUMIF('200m Super Women'!$C$7:$C$46,$A84,'200m Super Women'!$X$7:$X$46)=0,1+MAX('200m Super Women'!$X$7:$X$46),SUMIF('200m Super Women'!$C$7:$C$46,$A84,'200m Super Women'!$X$7:$X$46))) -> 5 | H84: =IF($A84="","",IF(SUMIF('100 Resue Women'!$C$7:$C$46,$A84,'100 Resue Women'!$X$7:$X$46)=0,1+MAX('100 Resue Women'!$X$7:$X$46),SUMIF('100 Resue Women'!$C$7:$C$46,$A84,'100 Resue Women'!$X$7:$X$46))) -> 3 | I84: =IF($A84="","",IF(SUMIF('Line Throw Women'!$C$7:$C$46,$A84,'Line Throw Women'!$Z$7:$Z$46)=0,1+MAX('Line Throw Women'!$Z$7:$Z$46),SUMIF('Line Throw Women'!$C$7:$C$46,$A84,'Line Throw Women'!$Z$7:$Z$46))) -> 7 | J84: =IF($A84="","",IF(SUMIF('4 x 50 Obs Relay Women'!$C$7:$C$46,$A84,'4 x 50 Obs Relay Women'!$U$7:$U$46)=0,1+MAX('4 x 50 Obs Relay Women'!$U$7:$U$46),SUMIF('4 x 50 Obs Relay Women'!$C$7:$C$46,$A84,'4 x 50 Obs Relay Women'!$U$7:$U$46))) -> 10 | K84: =IF($A84="","",IF(SUMIF('4 x 50 medley Relay Women'!$C$7:$C$46,$A84,'4 x 50 medley Relay Women'!$U$7:$U$46)=0,1+MAX('4 x 50 medley Relay Women'!$U$7:$U$46),SUMIF('4 x 50 medley Relay Women'!$C$7:$C$46,$A84,'4 x 50 medley Relay Women'!$U$7:$U$46))) -> 10 | L84: =IF($A84="","",IF(SUMIF('4 x 25 Manikin Carry Women'!$C$7:$C$46,$A84,'4 x 25 Manikin Carry Women'!$U$7:$U$46)=0,1+MAX('4 x 25 Manikin Carry Women'!$U$7:$U$46),SUMIF('4 x 25 Manikin Carry Women'!$C$7:$C$46,$A84,'4 x 25 Manikin Carry Women'!$U$7:$U$46))) -> 10 | M84: =IF($A84="","",IF(SUMIF('4 x 12m Line Throw Women'!$C$7:$C$46,$A84,'4 x 12m Line Throw Women'!$U$7:$U$46)=0,1+MAX('4 x 12m Line Throw Women'!$U$7:$U$46),SUMIF('4 x 12m Line Throw Women'!$C$7:$C$46,$A84,'4 x 12m Line Throw Women'!$U$7:$U$46))) -> 4 | N84: 69 | O84: 6
A85: 9 | B85: University of Plymouth | C85: =IF($A85="","",IF(SUMIF('50m Manikin Carry Women'!$C$7:$C$46,$A85,'50m Manikin Carry Women'!$X$7:$X$46)=0,1+MAX('50m Manikin Carry Women'!$X$7:$X$46),SUMIF('50m Manikin Carry Women'!$C$7:$C$46,$A85,'50m Manikin Carry Women'!$X$7:$X$46))) -> 10 | D85: =IF($A85="","",IF(SUMIF('100m Manikin Carry Women'!$C$7:$C$46,$A85,'100m Manikin Carry Women'!$X$7:$X$46)=0,1+MAX('100m Manikin Carry Women'!$X$7:$X$46),SUMIF('100m Manikin Carry Women'!$C$7:$C$46,$A85,'100m Manikin Carry Women'!$X$7:$X$46))) -> 4 | E85: =IF($A85="","",IF(SUMIF('100m Manikin Tow Women'!$C$7:$C$46,$A85,'100m Manikin Tow Women'!$X$7:$X$46)=0,1+MAX('100m Manikin Tow Women'!$X$7:$X$46),SUMIF('100m Manikin Tow Women'!$C$7:$C$46,$A85,'100m Manikin Tow Women'!$X$7:$X$46))) -> 10 | F85: =IF($A85="","",IF(SUMIF('200m Obs Women'!$C$7:$C$46,$A85,'200m Obs Women'!$X$7:$X$46)=0,1+MAX('200m Obs Women'!$X$7:$X$46),SUMIF('200m Obs Women'!$C$7:$C$46,$A85,'200m Obs Women'!$X$7:$X$46))) -> 4 | G85: =IF($A85="","",IF(SUMIF('200m Super Women'!$C$7:$C$46,$A85,'200m Super Women'!$X$7:$X$46)=0,1+MAX('200m Super Women'!$X$7:$X$46),SUMIF('200m Super Women'!$C$7:$C$46,$A85,'200m Super Women'!$X$7:$X$46))) -> 4 | H85: =IF($A85="","",IF(SUMIF('100 Resue Women'!$C$7:$C$46,$A85,'100 Resue Women'!$X$7:$X$46)=0,1+MAX('100 Resue Women'!$X$7:$X$46),SUMIF('100 Resue Women'!$C$7:$C$46,$A85,'100 Resue Women'!$X$7:$X$46))) -> 5 | I85: 8 | J85: =IF($A85="","",IF(SUMIF('4 x 50 Obs Relay Women'!$C$7:$C$46,$A85,'4 x 50 Obs Relay Women'!$U$7:$U$46)=0,1+MAX('4 x 50 Obs Relay Women'!$U$7:$U$46),SUMIF('4 x 50 Obs Relay Women'!$C$7:$C$46,$A85,'4 x 50 Obs Relay Women'!$U$7:$U$46))) -> 5 | K85: =IF($A85="","",IF(SUMIF('4 x 50 medley Relay Women'!$C$7:$C$46,$A85,'4 x 50 medley Relay Women'!$U$7:$U$46)=0,1+MAX('4 x 50 medley Relay Women'!$U$7:$U$46),SUMIF('4 x 50 medley Relay Women'!$C$7:$C$46,$A85,'4 x 50 medley Relay Women'!$U$7:$U$46))) -> 8 | L85: =IF($A85="","",IF(SUMIF('4 x 25 Manikin Carry Women'!$C$7:$C$46,$A85,'4 x 25 Manikin Carry Women'!$U$7:$U$46)=0,1+MAX('4 x 25 Manikin Carry Women'!$U$7:$U$46),SUMIF('4 x 25 Manikin Carry Women'!$C$7:$C$46,$A85,'4 x 25 Manikin Carry Women'!$U$7:$U$46))) -> 8 | M85: =IF($A85="","",IF(SUMIF('4 x 12m Line Throw Women'!$C$7:$C$46,$A85,'4 x 12m Line Throw Women'!$U$7:$U$46)=0,1+MAX('4 x 12m Line Throw Women'!$U$7:$U$46),SUMIF('4 x 12m Line Throw Women'!$C$7:$C$46,$A85,'4 x 12m Line Throw Women'!$U$7:$U$46))) -> 3 | N85: 69 | O85: 6
A86: 20 | B86: University of Southampton | C86: =IF($A86="","",IF(SUMIF('50m Manikin Carry Women'!$C$7:$C$46,$A86,'50m Manikin Carry Women'!$X$7:$X$46)=0,1+MAX('50m Manikin Carry Women'!$X$7:$X$46),SUMIF('50m Manikin Carry Women'!$C$7:$C$46,$A86,'50m Manikin Carry Women'!$X$7:$X$46))) -> 2 | D86: =IF($A86="","",IF(SUMIF('100m Manikin Carry Women'!$C$7:$C$46,$A86,'100m Manikin Carry Women'!$X$7:$X$46)=0,1+MAX('100m Manikin Carry Women'!$X$7:$X$46),SUMIF('100m Manikin Carry Women'!$C$7:$C$46,$A86,'100m Manikin Carry Women'!$X$7:$X$46))) -> 3 | E86: =IF($A86="","",IF(SUMIF('100m Manikin Tow Women'!$C$7:$C$46,$A86,'100m Manikin Tow Women'!$X$7:$X$46)=0,1+MAX('100m Manikin Tow Women'!$X$7:$X$46),SUMIF('100m Manikin Tow Women'!$C$7:$C$46,$A86,'100m Manikin Tow Women'!$X$7:$X$46))) -> 2 | F86: =IF($A86="","",IF(SUMIF('200m Obs Women'!$C$7:$C$46,$A86,'200m Obs Women'!$X$7:$X$46)=0,1+MAX('200m Obs Women'!$X$7:$X$46),SUMIF('200m Obs Women'!$C$7:$C$46,$A86,'200m Obs Women'!$X$7:$X$46))) -> 3 | G86: =IF($A86="","",IF(SUMIF('200m Super Women'!$C$7:$C$46,$A86,'200m Super Women'!$X$7:$X$46)=0,1+MAX('200m Super Women'!$X$7:$X$46),SUMIF('200m Super Women'!$C$7:$C$46,$A86,'200m Super Women'!$X$7:$X$46))) -> 2 | H86: =IF($A86="","",IF(SUMIF('100 Resue Women'!$C$7:$C$46,$A86,'100 Resue Women'!$X$7:$X$46)=0,1+MAX('100 Resue Women'!$X$7:$X$46),SUMIF('100 Resue Women'!$C$7:$C$46,$A86,'100 Resue Women'!$X$7:$X$46))) -> 2 | I86: 8 | J86: =IF($A86="","",IF(SUMIF('4 x 50 Obs Relay Women'!$C$7:$C$46,$A86,'4 x 50 Obs Relay Women'!$U$7:$U$46)=0,1+MAX('4 x 50 Obs Relay Women'!$U$7:$U$46),SUMIF('4 x 50 Obs Relay Women'!$C$7:$C$46,$A86,'4 x 50 Obs Relay Women'!$U$7:$U$46))) -> 2 | K86: =IF($A86="","",IF(SUMIF('4 x 50 medley Relay Women'!$C$7:$C$46,$A86,'4 x 50 medley Relay Women'!$U$7:$U$46)=0,1+MAX('4 x 50 medley Relay Women'!$U$7:$U$46),SUMIF('4 x 50 medley Relay Women'!$C$7:$C$46,$A86,'4 x 50 medley Relay Women'!$U$7:$U$46))) -> 3 | L86: =IF($A86="","",IF(SUMIF('4 x 25 Manikin Carry Women'!$C$7:$C$46,$A86,'4 x 25 Manikin Carry Women'!$U$7:$U$46)=0,1+MAX('4 x 25 Manikin Carry Women'!$U$7:$U$46),SUMIF('4 x 25 Manikin Carry Women'!$C$7:$C$46,$A86,'4 x 25 Manikin Carry Women'!$U$7:$U$46))) -> 2 | M86: =IF($A86="","",IF(SUMIF('4 x 12m Line Throw Women'!$C$7:$C$46,$A86,'4 x 12m Line Throw Women'!$U$7:$U$46)=0,1+MAX('4 x 12m Line Throw Women'!$U$7:$U$46),SUMIF('4 x 12m Line Throw Women'!$C$7:$C$46,$A86,'4 x 12m Line Throw Women'!$U$7:$U$46))) -> 1 | N86: 30 | O86: 3
A87: 12 | B87: University of Warwick | C87: =IF($A87="","",IF(SUMIF('50m Manikin Carry Women'!$C$7:$C$46,$A87,'50m Manikin Carry Women'!$X$7:$X$46)=0,1+MAX('50m Manikin Carry Women'!$X$7:$X$46),SUMIF('50m Manikin Carry Women'!$C$7:$C$46,$A87,'50m Manikin Carry Women'!$X$7:$X$46))) -> 5 | D87: =IF($A87="","",IF(SUMIF('100m Manikin Carry Women'!$C$7:$C$46,$A87,'100m Manikin Carry Women'!$X$7:$X$46)=0,1+MAX('100m Manikin Carry Women'!$X$7:$X$46),SUMIF('100m Manikin Carry Women'!$C$7:$C$46,$A87,'100m Manikin Carry Women'!$X$7:$X$46))) -> 8 | E87: =IF($A87="","",IF(SUMIF('100m Manikin Tow Women'!$C$7:$C$46,$A87,'100m Manikin Tow Women'!$X$7:$X$46)=0,1+MAX('100m Manikin Tow Women'!$X$7:$X$46),SUMIF('100m Manikin Tow Women'!$C$7:$C$46,$A87,'100m Manikin Tow Women'!$X$7:$X$46))) -> 5 | F87: =IF($A87="","",IF(SUMIF('200m Obs Women'!$C$7:$C$46,$A87,'200m Obs Women'!$X$7:$X$46)=0,1+MAX('200m Obs Women'!$X$7:$X$46),SUMIF('200m Obs Women'!$C$7:$C$46,$A87,'200m Obs Women'!$X$7:$X$46))) -> 8 | G87: =IF($A87="","",IF(SUMIF('200m Super Women'!$C$7:$C$46,$A87,'200m Super Women'!$X$7:$X$46)=0,1+MAX('200m Super Women'!$X$7:$X$46),SUMIF('200m Super Women'!$C$7:$C$46,$A87,'200m Super Women'!$X$7:$X$46))) -> 8 | H87: =IF($A87="","",IF(SUMIF('100 Resue Women'!$C$7:$C$46,$A87,'100 Resue Women'!$X$7:$X$46)=0,1+MAX('100 Resue Women'!$X$7:$X$46),SUMIF('100 Resue Women'!$C$7:$C$46,$A87,'100 Resue Women'!$X$7:$X$46))) -> 7 | I87: =IF($A87="","",IF(SUMIF('Line Throw Women'!$C$7:$C$46,$A87,'Line Throw Women'!$Z$7:$Z$46)=0,1+MAX('Line Throw Women'!$Z$7:$Z$46),SUMIF('Line Throw Women'!$C$7:$C$46,$A87,'Line Throw Women'!$Z$7:$Z$46))) -> 5 | J87: =IF($A87="","",IF(SUMIF('4 x 50 Obs Relay Women'!$C$7:$C$46,$A87,'4 x 50 Obs Relay Women'!$U$7:$U$46)=0,1+MAX('4 x 50 Obs Relay Women'!$U$7:$U$46),SUMIF('4 x 50 Obs Relay Women'!$C$7:$C$46,$A87,'4 x 50 Obs Relay Women'!$U$7:$U$46))) -> 7 | K87: =IF($A87="","",IF(SUMIF('4 x 50 medley Relay Women'!$C$7:$C$46,$A87,'4 x 50 medley Relay Women'!$U$7:$U$46)=0,1+MAX('4 x 50 medley Relay Women'!$U$7:$U$46),SUMIF('4 x 50 medley Relay Women'!$C$7:$C$46,$A87,'4 x 50 medley Relay Women'!$U$7:$U$46))) -> 6 | L87: =IF($A87="","",IF(SUMIF('4 x 25 Manikin Carry Women'!$C$7:$C$46,$A87,'4 x 25 Manikin Carry Women'!$U$7:$U$46)=0,1+MAX('4 x 25 Manikin Carry Women'!$U$7:$U$46),SUMIF('4 x 25 Manikin Carry Women'!$C$7:$C$46,$A87,'4 x 25 Manikin Carry Women'!$U$7:$U$46))) -> 3 | M87: =IF($A87="","",IF(SUMIF('4 x 12m Line Throw Women'!$C$7:$C$46,$A87,'4 x 12m Line Throw Women'!$U$7:$U$46)=0,1+MAX('4 x 12m Line Throw Women'!$U$7:$U$46),SUMIF('4 x 12m Line Throw Women'!$C$7:$C$46,$A87,'4 x 12m Line Throw Women'!$U$7:$U$46))) -> 3 | N87: 65 | O87: 5
A88: 11 | B88: St. Andrews | C88: =IF($A88="","",IF(SUMIF('50m Manikin Carry Women'!$C$7:$C$46,$A88,'50m Manikin Carry Women'!$X$7:$X$46)=0,1+MAX('50m Manikin Carry Women'!$X$7:$X$46),SUMIF('50m Manikin Carry Women'!$C$7:$C$46,$A88,'50m Manikin Carry Women'!$X$7:$X$46))) -> 9 | D88: =IF($A88="","",IF(SUMIF('100m Manikin Carry Women'!$C$7:$C$46,$A88,'100m Manikin Carry Women'!$X$7:$X$46)=0,1+MAX('100m Manikin Carry Women'!$X$7:$X$46),SUMIF('100m Manikin Carry Women'!$C$7:$C$46,$A88,'100m Manikin Carry Women'!$X$7:$X$46))) -> 6 | E88: =IF($A88="","",IF(SUMIF('100m Manikin Tow Women'!$C$7:$C$46,$A88,'100m Manikin Tow Women'!$X$7:$X$46)=0,1+MAX('100m Manikin Tow Women'!$X$7:$X$46),SUMIF('100m Manikin Tow Women'!$C$7:$C$46,$A88,'100m Manikin Tow Women'!$X$7:$X$46))) -> 7 | F88: =IF($A88="","",IF(SUMIF('200m Obs Women'!$C$7:$C$46,$A88,'200m Obs Women'!$X$7:$X$46)=0,1+MAX('200m Obs Women'!$X$7:$X$46),SUMIF('200m Obs Women'!$C$7:$C$46,$A88,'200m Obs Women'!$X$7:$X$46))) -> 10 | G88: =IF($A88="","",IF(SUMIF('200m Super Women'!$C$7:$C$46,$A88,'200m Super Women'!$X$7:$X$46)=0,1+MAX('200m Super Women'!$X$7:$X$46),SUMIF('200m Super Women'!$C$7:$C$46,$A88,'200m Super Women'!$X$7:$X$46))) -> 9 | H88: =IF($A88="","",IF(SUMIF('100 Resue Women'!$C$7:$C$46,$A88,'100 Resue Women'!$X$7:$X$46)=0,1+MAX('100 Resue Women'!$X$7:$X$46),SUMIF('100 Resue Women'!$C$7:$C$46,$A88,'100 Resue Women'!$X$7:$X$46))) -> 10 | I88: =IF($A88="","",IF(SUMIF('Line Throw Women'!$C$7:$C$46,$A88,'Line Throw Women'!$Z$7:$Z$46)=0,1+MAX('Line Throw Women'!$Z$7:$Z$46),SUMIF('Line Throw Women'!$C$7:$C$46,$A88,'Line Throw Women'!$Z$7:$Z$46))) -> 4 | J88: =IF($A88="","",IF(SUMIF('4 x 50 Obs Relay Women'!$C$7:$C$46,$A88,'4 x 50 Obs Relay Women'!$U$7:$U$46)=0,1+MAX('4 x 50 Obs Relay Women'!$U$7:$U$46),SUMIF('4 x 50 Obs Relay Women'!$C$7:$C$46,$A88,'4 x 50 Obs Relay Women'!$U$7:$U$46))) -> 8 | K88: =IF($A88="","",IF(SUMIF('4 x 50 medley Relay Women'!$C$7:$C$46,$A88,'4 x 50 medley Relay Women'!$U$7:$U$46)=0,1+MAX('4 x 50 medley Relay Women'!$U$7:$U$46),SUMIF('4 x 50 medley Relay Women'!$C$7:$C$46,$A88,'4 x 50 medley Relay Women'!$U$7:$U$46))) -> 9 | L88: =IF($A88="","",IF(SUMIF('4 x 25 Manikin Carry Women'!$C$7:$C$46,$A88,'4 x 25 Manikin Carry Women'!$U$7:$U$46)=0,1+MAX('4 x 25 Manikin Carry Women'!$U$7:$U$46),SUMIF('4 x 25 Manikin Carry Women'!$C$7:$C$46,$A88,'4 x 25 Manikin Carry Women'!$U$7:$U$46))) -> 9 | M88: =IF($A88="","",IF(SUMIF('4 x 12m Line Throw Women'!$C$7:$C$46,$A88,'4 x 12m Line Throw Women'!$U$7:$U$46)=0,1+MAX('4 x 12m Line Throw Women'!$U$7:$U$46),SUMIF('4 x 12m Line Throw Women'!$C$7:$C$46,$A88,'4 x 12m Line Throw Women'!$U$7:$U$46))) -> 3 | N88: 84 | O88: 9
C89: =IF($A89="","",IF(SUMIF('50m Manikin Carry Women'!$C$7:$C$46,$A89,'50m Manikin Carry Women'!$X$7:$X$46)=0,1+MAX('50m Manikin Carry Women'!$X$7:$X$46),SUMIF('50m Manikin Carry Women'!$C$7:$C$46,$A89,'50m Manikin Carry Women'!$X$7:$X$46))) ->  | D89: =IF($A89="","",IF(SUMIF('100m Manikin Carry Women'!$C$7:$C$46,$A89,'100m Manikin Carry Women'!$X$7:$X$46)=0,1+MAX('100m Manikin Carry Women'!$X$7:$X$46),SUMIF('100m Manikin Carry Women'!$C$7:$C$46,$A89,'100m Manikin Carry Women'!$X$7:$X$46))) ->  | E89: =IF($A89="","",IF(SUMIF('100m Manikin Tow Women'!$C$7:$C$46,$A89,'100m Manikin Tow Women'!$X$7:$X$46)=0,1+MAX('100m Manikin Tow Women'!$X$7:$X$46),SUMIF('100m Manikin Tow Women'!$C$7:$C$46,$A89,'100m Manikin Tow Women'!$X$7:$X$46))) ->  | F89: =IF($A89="","",IF(SUMIF('200m Obs Women'!$C$7:$C$46,$A89,'200m Obs Women'!$X$7:$X$46)=0,1+MAX('200m Obs Women'!$X$7:$X$46),SUMIF('200m Obs Women'!$C$7:$C$46,$A89,'200m Obs Women'!$X$7:$X$46))) ->  | G89: =IF($A89="","",IF(SUMIF('200m Super Women'!$C$7:$C$46,$A89,'200m Super Women'!$X$7:$X$46)=0,1+MAX('200m Super Women'!$X$7:$X$46),SUMIF('200m Super Women'!$C$7:$C$46,$A89,'200m Super Women'!$X$7:$X$46))) ->  | H89: =IF($A89="","",IF(SUMIF('100 Resue Women'!$C$7:$C$46,$A89,'100 Resue Women'!$X$7:$X$46)=0,1+MAX('100 Resue Women'!$X$7:$X$46),SUMIF('100 Resue Women'!$C$7:$C$46,$A89,'100 Resue Women'!$X$7:$X$46))) ->  | I89: =IF($A89="","",IF(SUMIF('Line Throw Women'!$C$7:$C$46,$A89,'Line Throw Women'!$Z$7:$Z$46)=0,1+MAX('Line Throw Women'!$Z$7:$Z$46),SUMIF('Line Throw Women'!$C$7:$C$46,$A89,'Line Throw Women'!$Z$7:$Z$46))) ->  | J89: =IF($A89="","",IF(SUMIF('4 x 50 Obs Relay Women'!$C$7:$C$46,$A89,'4 x 50 Obs Relay Women'!$U$7:$U$46)=0,1+MAX('4 x 50 Obs Relay Women'!$U$7:$U$46),SUMIF('4 x 50 Obs Relay Women'!$C$7:$C$46,$A89,'4 x 50 Obs Relay Women'!$U$7:$U$46))) ->  | K89: =IF($A89="","",IF(SUMIF('4 x 50 medley Relay Women'!$C$7:$C$46,$A89,'4 x 50 medley Relay Women'!$U$7:$U$46)=0,1+MAX('4 x 50 medley Relay Women'!$U$7:$U$46),SUMIF('4 x 50 medley Relay Women'!$C$7:$C$46,$A89,'4 x 50 medley Relay Women'!$U$7:$U$46))) ->  | L89: =IF($A89="","",IF(SUMIF('4 x 25 Manikin Carry Women'!$C$7:$C$46,$A89,'4 x 25 Manikin Carry Women'!$U$7:$U$46)=0,1+MAX('4 x 25 Manikin Carry Women'!$U$7:$U$46),SUMIF('4 x 25 Manikin Carry Women'!$C$7:$C$46,$A89,'4 x 25 Manikin Carry Women'!$U$7:$U$46))) ->  | M89: =IF($A89="","",IF(SUMIF('4 x 12m Line Throw Women'!$C$7:$C$46,$A89,'4 x 12m Line Throw Women'!$U$7:$U$46)=0,1+MAX('4 x 12m Line Throw Women'!$U$7:$U$46),SUMIF('4 x 12m Line Throw Women'!$C$7:$C$46,$A89,'4 x 12m Line Throw Women'!$U$7:$U$46))) -> 
C90: =IF($A90="","",IF(SUMIF('50m Manikin Carry Women'!$C$7:$C$46,$A90,'50m Manikin Carry Women'!$X$7:$X$46)=0,1+MAX('50m Manikin Carry Women'!$X$7:$X$46),SUMIF('50m Manikin Carry Women'!$C$7:$C$46,$A90,'50m Manikin Carry Women'!$X$7:$X$46))) ->  | D90: =IF($A90="","",IF(SUMIF('100m Manikin Carry Women'!$C$7:$C$46,$A90,'100m Manikin Carry Women'!$X$7:$X$46)=0,1+MAX('100m Manikin Carry Women'!$X$7:$X$46),SUMIF('100m Manikin Carry Women'!$C$7:$C$46,$A90,'100m Manikin Carry Women'!$X$7:$X$46))) ->  | E90: =IF($A90="","",IF(SUMIF('100m Manikin Tow Women'!$C$7:$C$46,$A90,'100m Manikin Tow Women'!$X$7:$X$46)=0,1+MAX('100m Manikin Tow Women'!$X$7:$X$46),SUMIF('100m Manikin Tow Women'!$C$7:$C$46,$A90,'100m Manikin Tow Women'!$X$7:$X$46))) ->  | F90: =IF($A90="","",IF(SUMIF('200m Obs Women'!$C$7:$C$46,$A90,'200m Obs Women'!$X$7:$X$46)=0,1+MAX('200m Obs Women'!$X$7:$X$46),SUMIF('200m Obs Women'!$C$7:$C$46,$A90,'200m Obs Women'!$X$7:$X$46))) ->  | G90: =IF($A90="","",IF(SUMIF('200m Super Women'!$C$7:$C$46,$A90,'200m Super Women'!$X$7:$X$46)=0,1+MAX('200m Super Women'!$X$7:$X$46),SUMIF('200m Super Women'!$C$7:$C$46,$A90,'200m Super Women'!$X$7:$X$46))) ->  | H90: =IF($A90="","",IF(SUMIF('100 Resue Women'!$C$7:$C$46,$A90,'100 Resue Women'!$X$7:$X$46)=0,1+MAX('100 Resue Women'!$X$7:$X$46),SUMIF('100 Resue Women'!$C$7:$C$46,$A90,'100 Resue Women'!$X$7:$X$46))) ->  | I90: =IF($A90="","",IF(SUMIF('Line Throw Women'!$C$7:$C$46,$A90,'Line Throw Women'!$Z$7:$Z$46)=0,1+MAX('Line Throw Women'!$Z$7:$Z$46),SUMIF('Line Throw Women'!$C$7:$C$46,$A90,'Line Throw Women'!$Z$7:$Z$46))) ->  | J90: =IF($A90="","",IF(SUMIF('4 x 50 Obs Relay Women'!$C$7:$C$46,$A90,'4 x 50 Obs Relay Women'!$U$7:$U$46)=0,1+MAX('4 x 50 Obs Relay Women'!$U$7:$U$46),SUMIF('4 x 50 Obs Relay Women'!$C$7:$C$46,$A90,'4 x 50 Obs Relay Women'!$U$7:$U$46))) ->  | K90: =IF($A90="","",IF(SUMIF('4 x 50 medley Relay Women'!$C$7:$C$46,$A90,'4 x 50 medley Relay Women'!$U$7:$U$46)=0,1+MAX('4 x 50 medley Relay Women'!$U$7:$U$46),SUMIF('4 x 50 medley Relay Women'!$C$7:$C$46,$A90,'4 x 50 medley Relay Women'!$U$7:$U$46))) ->  | L90: =IF($A90="","",IF(SUMIF('4 x 25 Manikin Carry Women'!$C$7:$C$46,$A90,'4 x 25 Manikin Carry Women'!$U$7:$U$46)=0,1+MAX('4 x 25 Manikin Carry Women'!$U$7:$U$46),SUMIF('4 x 25 Manikin Carry Women'!$C$7:$C$46,$A90,'4 x 25 Manikin Carry Women'!$U$7:$U$46))) ->  | M90: =IF($A90="","",IF(SUMIF('4 x 12m Line Throw Women'!$C$7:$C$46,$A90,'4 x 12m Line Throw Women'!$U$7:$U$46)=0,1+MAX('4 x 12m Line Throw Women'!$U$7:$U$46),SUMIF('4 x 12m Line Throw Women'!$C$7:$C$46,$A90,'4 x 12m Line Throw Women'!$U$7:$U$46))) -> 
A91: =IF(A21="","",A21) ->  | C91: =IF($A91="","",IF(SUMIF('50m Manikin Carry Women'!$C$7:$C$46,$A91,'50m Manikin Carry Women'!$X$7:$X$46)=0,1+MAX('50m Manikin Carry Women'!$X$7:$X$46),SUMIF('50m Manikin Carry Women'!$C$7:$C$46,$A91,'50m Manikin Carry Women'!$X$7:$X$46))) ->  | D91: =IF($A91="","",IF(SUMIF('100m Manikin Carry Women'!$C$7:$C$46,$A91,'100m Manikin Carry Women'!$X$7:$X$46)=0,1+MAX('100m Manikin Carry Women'!$X$7:$X$46),SUMIF('100m Manikin Carry Women'!$C$7:$C$46,$A91,'100m Manikin Carry Women'!$X$7:$X$46))) ->  | E91: =IF($A91="","",IF(SUMIF('100m Manikin Tow Women'!$C$7:$C$46,$A91,'100m Manikin Tow Women'!$X$7:$X$46)=0,1+MAX('100m Manikin Tow Women'!$X$7:$X$46),SUMIF('100m Manikin Tow Women'!$C$7:$C$46,$A91,'100m Manikin Tow Women'!$X$7:$X$46))) ->  | F91: =IF($A91="","",IF(SUMIF('200m Obs Women'!$C$7:$C$46,$A91,'200m Obs Women'!$X$7:$X$46)=0,1+MAX('200m Obs Women'!$X$7:$X$46),SUMIF('200m Obs Women'!$C$7:$C$46,$A91,'200m Obs Women'!$X$7:$X$46))) ->  | G91: =IF($A91="","",IF(SUMIF('200m Super Women'!$C$7:$C$46,$A91,'200m Super Women'!$X$7:$X$46)=0,1+MAX('200m Super Women'!$X$7:$X$46),SUMIF('200m Super Women'!$C$7:$C$46,$A91,'200m Super Women'!$X$7:$X$46))) ->  | H91: =IF($A91="","",IF(SUMIF('100 Resue Women'!$C$7:$C$46,$A91,'100 Resue Women'!$X$7:$X$46)=0,1+MAX('100 Resue Women'!$X$7:$X$46),SUMIF('100 Resue Women'!$C$7:$C$46,$A91,'100 Resue Women'!$X$7:$X$46))) ->  | I91: =IF($A91="","",IF(SUMIF('Line Throw Women'!$C$7:$C$46,$A91,'Line Throw Women'!$Z$7:$Z$46)=0,1+MAX('Line Throw Women'!$Z$7:$Z$46),SUMIF('Line Throw Women'!$C$7:$C$46,$A91,'Line Throw Women'!$Z$7:$Z$46))) ->  | J91: =IF($A91="","",IF(SUMIF('4 x 50 Obs Relay Women'!$C$7:$C$46,$A91,'4 x 50 Obs Relay Women'!$U$7:$U$46)=0,1+MAX('4 x 50 Obs Relay Women'!$U$7:$U$46),SUMIF('4 x 50 Obs Relay Women'!$C$7:$C$46,$A91,'4 x 50 Obs Relay Women'!$U$7:$U$46))) ->  | K91: =IF($A91="","",IF(SUMIF('4 x 50 medley Relay Women'!$C$7:$C$46,$A91,'4 x 50 medley Relay Women'!$U$7:$U$46)=0,1+MAX('4 x 50 medley Relay Women'!$U$7:$U$46),SUMIF('4 x 50 medley Relay Women'!$C$7:$C$46,$A91,'4 x 50 medley Relay Women'!$U$7:$U$46))) ->  | L91: =IF($A91="","",IF(SUMIF('4 x 25 Manikin Carry Women'!$C$7:$C$46,$A91,'4 x 25 Manikin Carry Women'!$U$7:$U$46)=0,1+MAX('4 x 25 Manikin Carry Women'!$U$7:$U$46),SUMIF('4 x 25 Manikin Carry Women'!$C$7:$C$46,$A91,'4 x 25 Manikin Carry Women'!$U$7:$U$46))) ->  | M91: =IF($A91="","",IF(SUMIF('4 x 12m Line Throw Women'!$C$7:$C$46,$A91,'4 x 12m Line Throw Women'!$U$7:$U$46)=0,1+MAX('4 x 12m Line Throw Women'!$U$7:$U$46),SUMIF('4 x 12m Line Throw Women'!$C$7:$C$46,$A91,'4 x 12m Line Throw Women'!$U$7:$U$46))) -> 
C92: =IF($A92="","",IF(SUMIF('50m Manikin Carry Women'!$C$7:$C$46,$A92,'50m Manikin Carry Women'!$X$7:$X$46)=0,1+MAX('50m Manikin Carry Women'!$X$7:$X$46),SUMIF('50m Manikin Carry Women'!$C$7:$C$46,$A92,'50m Manikin Carry Women'!$X$7:$X$46))) ->  | D92: =IF($A92="","",IF(SUMIF('100m Manikin Carry Women'!$C$7:$C$46,$A92,'100m Manikin Carry Women'!$X$7:$X$46)=0,1+MAX('100m Manikin Carry Women'!$X$7:$X$46),SUMIF('100m Manikin Carry Women'!$C$7:$C$46,$A92,'100m Manikin Carry Women'!$X$7:$X$46))) ->  | E92: =IF($A92="","",IF(SUMIF('100m Manikin Tow Women'!$C$7:$C$46,$A92,'100m Manikin Tow Women'!$X$7:$X$46)=0,1+MAX('100m Manikin Tow Women'!$X$7:$X$46),SUMIF('100m Manikin Tow Women'!$C$7:$C$46,$A92,'100m Manikin Tow Women'!$X$7:$X$46))) ->  | F92: =IF($A92="","",IF(SUMIF('200m Obs Women'!$C$7:$C$46,$A92,'200m Obs Women'!$X$7:$X$46)=0,1+MAX('200m Obs Women'!$X$7:$X$46),SUMIF('200m Obs Women'!$C$7:$C$46,$A92,'200m Obs Women'!$X$7:$X$46))) ->  | G92: =IF($A92="","",IF(SUMIF('200m Super Women'!$C$7:$C$46,$A92,'200m Super Women'!$X$7:$X$46)=0,1+MAX('200m Super Women'!$X$7:$X$46),SUMIF('200m Super Women'!$C$7:$C$46,$A92,'200m Super Women'!$X$7:$X$46))) ->  | H92: =IF($A92="","",IF(SUMIF('100 Resue Women'!$C$7:$C$46,$A92,'100 Resue Women'!$X$7:$X$46)=0,1+MAX('100 Resue Women'!$X$7:$X$46),SUMIF('100 Resue Women'!$C$7:$C$46,$A92,'100 Resue Women'!$X$7:$X$46))) ->  | I92: =IF($A92="","",IF(SUMIF('Line Throw Women'!$C$7:$C$46,$A92,'Line Throw Women'!$Z$7:$Z$46)=0,1+MAX('Line Throw Women'!$Z$7:$Z$46),SUMIF('Line Throw Women'!$C$7:$C$46,$A92,'Line Throw Women'!$Z$7:$Z$46))) ->  | J92: =IF($A92="","",IF(SUMIF('4 x 50 Obs Relay Women'!$C$7:$C$46,$A92,'4 x 50 Obs Relay Women'!$U$7:$U$46)=0,1+MAX('4 x 50 Obs Relay Women'!$U$7:$U$46),SUMIF('4 x 50 Obs Relay Women'!$C$7:$C$46,$A92,'4 x 50 Obs Relay Women'!$U$7:$U$46))) ->  | K92: =IF($A92="","",IF(SUMIF('4 x 50 medley Relay Women'!$C$7:$C$46,$A92,'4 x 50 medley Relay Women'!$U$7:$U$46)=0,1+MAX('4 x 50 medley Relay Women'!$U$7:$U$46),SUMIF('4 x 50 medley Relay Women'!$C$7:$C$46,$A92,'4 x 50 medley Relay Women'!$U$7:$U$46))) ->  | L92: =IF($A92="","",IF(SUMIF('4 x 25 Manikin Carry Women'!$C$7:$C$46,$A92,'4 x 25 Manikin Carry Women'!$U$7:$U$46)=0,1+MAX('4 x 25 Manikin Carry Women'!$U$7:$U$46),SUMIF('4 x 25 Manikin Carry Women'!$C$7:$C$46,$A92,'4 x 25 Manikin Carry Women'!$U$7:$U$46))) ->  | M92: =IF($A92="","",IF(SUMIF('4 x 12m Line Throw Women'!$C$7:$C$46,$A92,'4 x 12m Line Throw Women'!$U$7:$U$46)=0,1+MAX('4 x 12m Line Throw Women'!$U$7:$U$46),SUMIF('4 x 12m Line Throw Women'!$C$7:$C$46,$A92,'4 x 12m Line Throw Women'!$U$7:$U$46))) -> 
C93: =IF($A93="","",IF(SUMIF('50m Manikin Carry Women'!$C$7:$C$46,$A93,'50m Manikin Carry Women'!$X$7:$X$46)=0,1+MAX('50m Manikin Carry Women'!$X$7:$X$46),SUMIF('50m Manikin Carry Women'!$C$7:$C$46,$A93,'50m Manikin Carry Women'!$X$7:$X$46))) ->  | D93: =IF($A93="","",IF(SUMIF('100m Manikin Carry Women'!$C$7:$C$46,$A93,'100m Manikin Carry Women'!$X$7:$X$46)=0,1+MAX('100m Manikin Carry Women'!$X$7:$X$46),SUMIF('100m Manikin Carry Women'!$C$7:$C$46,$A93,'100m Manikin Carry Women'!$X$7:$X$46))) ->  | E93: =IF($A93="","",IF(SUMIF('100m Manikin Tow Women'!$C$7:$C$46,$A93,'100m Manikin Tow Women'!$X$7:$X$46)=0,1+MAX('100m Manikin Tow Women'!$X$7:$X$46),SUMIF('100m Manikin Tow Women'!$C$7:$C$46,$A93,'100m Manikin Tow Women'!$X$7:$X$46))) ->  | F93: =IF($A93="","",IF(SUMIF('200m Obs Women'!$C$7:$C$46,$A93,'200m Obs Women'!$X$7:$X$46)=0,1+MAX('200m Obs Women'!$X$7:$X$46),SUMIF('200m Obs Women'!$C$7:$C$46,$A93,'200m Obs Women'!$X$7:$X$46))) ->  | G93: =IF($A93="","",IF(SUMIF('200m Super Women'!$C$7:$C$46,$A93,'200m Super Women'!$X$7:$X$46)=0,1+MAX('200m Super Women'!$X$7:$X$46),SUMIF('200m Super Women'!$C$7:$C$46,$A93,'200m Super Women'!$X$7:$X$46))) ->  | H93: =IF($A93="","",IF(SUMIF('100 Resue Women'!$C$7:$C$46,$A93,'100 Resue Women'!$X$7:$X$46)=0,1+MAX('100 Resue Women'!$X$7:$X$46),SUMIF('100 Resue Women'!$C$7:$C$46,$A93,'100 Resue Women'!$X$7:$X$46))) ->  | I93: =IF($A93="","",IF(SUMIF('Line Throw Women'!$C$7:$C$46,$A93,'Line Throw Women'!$Z$7:$Z$46)=0,1+MAX('Line Throw Women'!$Z$7:$Z$46),SUMIF('Line Throw Women'!$C$7:$C$46,$A93,'Line Throw Women'!$Z$7:$Z$46))) ->  | J93: =IF($A93="","",IF(SUMIF('4 x 50 Obs Relay Women'!$C$7:$C$46,$A93,'4 x 50 Obs Relay Women'!$U$7:$U$46)=0,1+MAX('4 x 50 Obs Relay Women'!$U$7:$U$46),SUMIF('4 x 50 Obs Relay Women'!$C$7:$C$46,$A93,'4 x 50 Obs Relay Women'!$U$7:$U$46))) ->  | K93: =IF($A93="","",IF(SUMIF('4 x 50 medley Relay Women'!$C$7:$C$46,$A93,'4 x 50 medley Relay Women'!$U$7:$U$46)=0,1+MAX('4 x 50 medley Relay Women'!$U$7:$U$46),SUMIF('4 x 50 medley Relay Women'!$C$7:$C$46,$A93,'4 x 50 medley Relay Women'!$U$7:$U$46))) ->  | L93: =IF($A93="","",IF(SUMIF('4 x 25 Manikin Carry Women'!$C$7:$C$46,$A93,'4 x 25 Manikin Carry Women'!$U$7:$U$46)=0,1+MAX('4 x 25 Manikin Carry Women'!$U$7:$U$46),SUMIF('4 x 25 Manikin Carry Women'!$C$7:$C$46,$A93,'4 x 25 Manikin Carry Women'!$U$7:$U$46))) ->  | M93: =IF($A93="","",IF(SUMIF('4 x 12m Line Throw Women'!$C$7:$C$46,$A93,'4 x 12m Line Throw Women'!$U$7:$U$46)=0,1+MAX('4 x 12m Line Throw Women'!$U$7:$U$46),SUMIF('4 x 12m Line Throw Women'!$C$7:$C$46,$A93,'4 x 12m Line Throw Women'!$U$7:$U$46))) -> 
C94: =IF($A94="","",IF(SUMIF('50m Manikin Carry Women'!$C$7:$C$46,$A94,'50m Manikin Carry Women'!$X$7:$X$46)=0,1+MAX('50m Manikin Carry Women'!$X$7:$X$46),SUMIF('50m Manikin Carry Women'!$C$7:$C$46,$A94,'50m Manikin Carry Women'!$X$7:$X$46))) ->  | D94: =IF($A94="","",IF(SUMIF('100m Manikin Carry Women'!$C$7:$C$46,$A94,'100m Manikin Carry Women'!$X$7:$X$46)=0,1+MAX('100m Manikin Carry Women'!$X$7:$X$46),SUMIF('100m Manikin Carry Women'!$C$7:$C$46,$A94,'100m Manikin Carry Women'!$X$7:$X$46))) ->  | E94: =IF($A94="","",IF(SUMIF('100m Manikin Tow Women'!$C$7:$C$46,$A94,'100m Manikin Tow Women'!$X$7:$X$46)=0,1+MAX('100m Manikin Tow Women'!$X$7:$X$46),SUMIF('100m Manikin Tow Women'!$C$7:$C$46,$A94,'100m Manikin Tow Women'!$X$7:$X$46))) ->  | F94: =IF($A94="","",IF(SUMIF('200m Obs Women'!$C$7:$C$46,$A94,'200m Obs Women'!$X$7:$X$46)=0,1+MAX('200m Obs Women'!$X$7:$X$46),SUMIF('200m Obs Women'!$C$7:$C$46,$A94,'200m Obs Women'!$X$7:$X$46))) ->  | G94: =IF($A94="","",IF(SUMIF('200m Super Women'!$C$7:$C$46,$A94,'200m Super Women'!$X$7:$X$46)=0,1+MAX('200m Super Women'!$X$7:$X$46),SUMIF('200m Super Women'!$C$7:$C$46,$A94,'200m Super Women'!$X$7:$X$46))) ->  | H94: =IF($A94="","",IF(SUMIF('100 Resue Women'!$C$7:$C$46,$A94,'100 Resue Women'!$X$7:$X$46)=0,1+MAX('100 Resue Women'!$X$7:$X$46),SUMIF('100 Resue Women'!$C$7:$C$46,$A94,'100 Resue Women'!$X$7:$X$46))) ->  | I94: =IF($A94="","",IF(SUMIF('Line Throw Women'!$C$7:$C$46,$A94,'Line Throw Women'!$Z$7:$Z$46)=0,1+MAX('Line Throw Women'!$Z$7:$Z$46),SUMIF('Line Throw Women'!$C$7:$C$46,$A94,'Line Throw Women'!$Z$7:$Z$46))) ->  | J94: =IF($A94="","",IF(SUMIF('4 x 50 Obs Relay Women'!$C$7:$C$46,$A94,'4 x 50 Obs Relay Women'!$U$7:$U$46)=0,1+MAX('4 x 50 Obs Relay Women'!$U$7:$U$46),SUMIF('4 x 50 Obs Relay Women'!$C$7:$C$46,$A94,'4 x 50 Obs Relay Women'!$U$7:$U$46))) ->  | K94: =IF($A94="","",IF(SUMIF('4 x 50 medley Relay Women'!$C$7:$C$46,$A94,'4 x 50 medley Relay Women'!$U$7:$U$46)=0,1+MAX('4 x 50 medley Relay Women'!$U$7:$U$46),SUMIF('4 x 50 medley Relay Women'!$C$7:$C$46,$A94,'4 x 50 medley Relay Women'!$U$7:$U$46))) ->  | L94: =IF($A94="","",IF(SUMIF('4 x 25 Manikin Carry Women'!$C$7:$C$46,$A94,'4 x 25 Manikin Carry Women'!$U$7:$U$46)=0,1+MAX('4 x 25 Manikin Carry Women'!$U$7:$U$46),SUMIF('4 x 25 Manikin Carry Women'!$C$7:$C$46,$A94,'4 x 25 Manikin Carry Women'!$U$7:$U$46))) ->  | M94: =IF($A94="","",IF(SUMIF('4 x 12m Line Throw Women'!$C$7:$C$46,$A94,'4 x 12m Line Throw Women'!$U$7:$U$46)=0,1+MAX('4 x 12m Line Throw Women'!$U$7:$U$46),SUMIF('4 x 12m Line Throw Women'!$C$7:$C$46,$A94,'4 x 12m Line Throw Women'!$U$7:$U$46))) -> 
C95: =IF($A95="","",IF(SUMIF('50m Manikin Carry Women'!$C$7:$C$46,$A95,'50m Manikin Carry Women'!$X$7:$X$46)=0,1+MAX('50m Manikin Carry Women'!$X$7:$X$46),SUMIF('50m Manikin Carry Women'!$C$7:$C$46,$A95,'50m Manikin Carry Women'!$X$7:$X$46))) ->  | D95: =IF($A95="","",IF(SUMIF('100m Manikin Carry Women'!$C$7:$C$46,$A95,'100m Manikin Carry Women'!$X$7:$X$46)=0,1+MAX('100m Manikin Carry Women'!$X$7:$X$46),SUMIF('100m Manikin Carry Women'!$C$7:$C$46,$A95,'100m Manikin Carry Women'!$X$7:$X$46))) ->  | E95: =IF($A95="","",IF(SUMIF('100m Manikin Tow Women'!$C$7:$C$46,$A95,'100m Manikin Tow Women'!$X$7:$X$46)=0,1+MAX('100m Manikin Tow Women'!$X$7:$X$46),SUMIF('100m Manikin Tow Women'!$C$7:$C$46,$A95,'100m Manikin Tow Women'!$X$7:$X$46))) ->  | F95: =IF($A95="","",IF(SUMIF('200m Obs Women'!$C$7:$C$46,$A95,'200m Obs Women'!$X$7:$X$46)=0,1+MAX('200m Obs Women'!$X$7:$X$46),SUMIF('200m Obs Women'!$C$7:$C$46,$A95,'200m Obs Women'!$X$7:$X$46))) ->  | G95: =IF($A95="","",IF(SUMIF('200m Super Women'!$C$7:$C$46,$A95,'200m Super Women'!$X$7:$X$46)=0,1+MAX('200m Super Women'!$X$7:$X$46),SUMIF('200m Super Women'!$C$7:$C$46,$A95,'200m Super Women'!$X$7:$X$46))) ->  | H95: =IF($A95="","",IF(SUMIF('100 Resue Women'!$C$7:$C$46,$A95,'100 Resue Women'!$X$7:$X$46)=0,1+MAX('100 Resue Women'!$X$7:$X$46),SUMIF('100 Resue Women'!$C$7:$C$46,$A95,'100 Resue Women'!$X$7:$X$46))) ->  | I95: =IF($A95="","",IF(SUMIF('Line Throw Women'!$C$7:$C$46,$A95,'Line Throw Women'!$Z$7:$Z$46)=0,1+MAX('Line Throw Women'!$Z$7:$Z$46),SUMIF('Line Throw Women'!$C$7:$C$46,$A95,'Line Throw Women'!$Z$7:$Z$46))) ->  | J95: =IF($A95="","",IF(SUMIF('4 x 50 Obs Relay Women'!$C$7:$C$46,$A95,'4 x 50 Obs Relay Women'!$U$7:$U$46)=0,1+MAX('4 x 50 Obs Relay Women'!$U$7:$U$46),SUMIF('4 x 50 Obs Relay Women'!$C$7:$C$46,$A95,'4 x 50 Obs Relay Women'!$U$7:$U$46))) ->  | K95: =IF($A95="","",IF(SUMIF('4 x 50 medley Relay Women'!$C$7:$C$46,$A95,'4 x 50 medley Relay Women'!$U$7:$U$46)=0,1+MAX('4 x 50 medley Relay Women'!$U$7:$U$46),SUMIF('4 x 50 medley Relay Women'!$C$7:$C$46,$A95,'4 x 50 medley Relay Women'!$U$7:$U$46))) ->  | L95: =IF($A95="","",IF(SUMIF('4 x 25 Manikin Carry Women'!$C$7:$C$46,$A95,'4 x 25 Manikin Carry Women'!$U$7:$U$46)=0,1+MAX('4 x 25 Manikin Carry Women'!$U$7:$U$46),SUMIF('4 x 25 Manikin Carry Women'!$C$7:$C$46,$A95,'4 x 25 Manikin Carry Women'!$U$7:$U$46))) ->  | M95: =IF($A95="","",IF(SUMIF('4 x 12m Line Throw Women'!$C$7:$C$46,$A95,'4 x 12m Line Throw Women'!$U$7:$U$46)=0,1+MAX('4 x 12m Line Throw Women'!$U$7:$U$46),SUMIF('4 x 12m Line Throw Women'!$C$7:$C$46,$A95,'4 x 12m Line Throw Women'!$U$7:$U$46))) -> 
C96: =IF($A96="","",IF(SUMIF('50m Manikin Carry Women'!$C$7:$C$46,$A96,'50m Manikin Carry Women'!$X$7:$X$46)=0,1+MAX('50m Manikin Carry Women'!$X$7:$X$46),SUMIF('50m Manikin Carry Women'!$C$7:$C$46,$A96,'50m Manikin Carry Women'!$X$7:$X$46))) ->  | D96: =IF($A96="","",IF(SUMIF('100m Manikin Carry Women'!$C$7:$C$46,$A96,'100m Manikin Carry Women'!$X$7:$X$46)=0,1+MAX('100m Manikin Carry Women'!$X$7:$X$46),SUMIF('100m Manikin Carry Women'!$C$7:$C$46,$A96,'100m Manikin Carry Women'!$X$7:$X$46))) ->  | E96: =IF($A96="","",IF(SUMIF('100m Manikin Tow Women'!$C$7:$C$46,$A96,'100m Manikin Tow Women'!$X$7:$X$46)=0,1+MAX('100m Manikin Tow Women'!$X$7:$X$46),SUMIF('100m Manikin Tow Women'!$C$7:$C$46,$A96,'100m Manikin Tow Women'!$X$7:$X$46))) ->  | F96: =IF($A96="","",IF(SUMIF('200m Obs Women'!$C$7:$C$46,$A96,'200m Obs Women'!$X$7:$X$46)=0,1+MAX('200m Obs Women'!$X$7:$X$46),SUMIF('200m Obs Women'!$C$7:$C$46,$A96,'200m Obs Women'!$X$7:$X$46))) ->  | G96: =IF($A96="","",IF(SUMIF('200m Super Women'!$C$7:$C$46,$A96,'200m Super Women'!$X$7:$X$46)=0,1+MAX('200m Super Women'!$X$7:$X$46),SUMIF('200m Super Women'!$C$7:$C$46,$A96,'200m Super Women'!$X$7:$X$46))) ->  | H96: =IF($A96="","",IF(SUMIF('100 Resue Women'!$C$7:$C$46,$A96,'100 Resue Women'!$X$7:$X$46)=0,1+MAX('100 Resue Women'!$X$7:$X$46),SUMIF('100 Resue Women'!$C$7:$C$46,$A96,'100 Resue Women'!$X$7:$X$46))) ->  | I96: =IF($A96="","",IF(SUMIF('Line Throw Women'!$C$7:$C$46,$A96,'Line Throw Women'!$Z$7:$Z$46)=0,1+MAX('Line Throw Women'!$Z$7:$Z$46),SUMIF('Line Throw Women'!$C$7:$C$46,$A96,'Line Throw Women'!$Z$7:$Z$46))) ->  | J96: =IF($A96="","",IF(SUMIF('4 x 50 Obs Relay Women'!$C$7:$C$46,$A96,'4 x 50 Obs Relay Women'!$U$7:$U$46)=0,1+MAX('4 x 50 Obs Relay Women'!$U$7:$U$46),SUMIF('4 x 50 Obs Relay Women'!$C$7:$C$46,$A96,'4 x 50 Obs Relay Women'!$U$7:$U$46))) ->  | K96: =IF($A96="","",IF(SUMIF('4 x 50 medley Relay Women'!$C$7:$C$46,$A96,'4 x 50 medley Relay Women'!$U$7:$U$46)=0,1+MAX('4 x 50 medley Relay Women'!$U$7:$U$46),SUMIF('4 x 50 medley Relay Women'!$C$7:$C$46,$A96,'4 x 50 medley Relay Women'!$U$7:$U$46))) ->  | L96: =IF($A96="","",IF(SUMIF('4 x 25 Manikin Carry Women'!$C$7:$C$46,$A96,'4 x 25 Manikin Carry Women'!$U$7:$U$46)=0,1+MAX('4 x 25 Manikin Carry Women'!$U$7:$U$46),SUMIF('4 x 25 Manikin Carry Women'!$C$7:$C$46,$A96,'4 x 25 Manikin Carry Women'!$U$7:$U$46))) ->  | M96: =IF($A96="","",IF(SUMIF('4 x 12m Line Throw Women'!$C$7:$C$46,$A96,'4 x 12m Line Throw Women'!$U$7:$U$46)=0,1+MAX('4 x 12m Line Throw Women'!$U$7:$U$46),SUMIF('4 x 12m Line Throw Women'!$C$7:$C$46,$A96,'4 x 12m Line Throw Women'!$U$7:$U$46))) -> 
C97: =IF($A97="","",IF(SUMIF('50m Manikin Carry Women'!$C$7:$C$46,$A97,'50m Manikin Carry Women'!$X$7:$X$46)=0,1+MAX('50m Manikin Carry Women'!$X$7:$X$46),SUMIF('50m Manikin Carry Women'!$C$7:$C$46,$A97,'50m Manikin Carry Women'!$X$7:$X$46))) ->  | D97: =IF($A97="","",IF(SUMIF('100m Manikin Carry Women'!$C$7:$C$46,$A97,'100m Manikin Carry Women'!$X$7:$X$46)=0,1+MAX('100m Manikin Carry Women'!$X$7:$X$46),SUMIF('100m Manikin Carry Women'!$C$7:$C$46,$A97,'100m Manikin Carry Women'!$X$7:$X$46))) ->  | E97: =IF($A97="","",IF(SUMIF('100m Manikin Tow Women'!$C$7:$C$46,$A97,'100m Manikin Tow Women'!$X$7:$X$46)=0,1+MAX('100m Manikin Tow Women'!$X$7:$X$46),SUMIF('100m Manikin Tow Women'!$C$7:$C$46,$A97,'100m Manikin Tow Women'!$X$7:$X$46))) ->  | F97: =IF($A97="","",IF(SUMIF('200m Obs Women'!$C$7:$C$46,$A97,'200m Obs Women'!$X$7:$X$46)=0,1+MAX('200m Obs Women'!$X$7:$X$46),SUMIF('200m Obs Women'!$C$7:$C$46,$A97,'200m Obs Women'!$X$7:$X$46))) ->  | G97: =IF($A97="","",IF(SUMIF('200m Super Women'!$C$7:$C$46,$A97,'200m Super Women'!$X$7:$X$46)=0,1+MAX('200m Super Women'!$X$7:$X$46),SUMIF('200m Super Women'!$C$7:$C$46,$A97,'200m Super Women'!$X$7:$X$46))) ->  | H97: =IF($A97="","",IF(SUMIF('100 Resue Women'!$C$7:$C$46,$A97,'100 Resue Women'!$X$7:$X$46)=0,1+MAX('100 Resue Women'!$X$7:$X$46),SUMIF('100 Resue Women'!$C$7:$C$46,$A97,'100 Resue Women'!$X$7:$X$46))) ->  | I97: =IF($A97="","",IF(SUMIF('Line Throw Women'!$C$7:$C$46,$A97,'Line Throw Women'!$Z$7:$Z$46)=0,1+MAX('Line Throw Women'!$Z$7:$Z$46),SUMIF('Line Throw Women'!$C$7:$C$46,$A97,'Line Throw Women'!$Z$7:$Z$46))) ->  | J97: =IF($A97="","",IF(SUMIF('4 x 50 Obs Relay Women'!$C$7:$C$46,$A97,'4 x 50 Obs Relay Women'!$U$7:$U$46)=0,1+MAX('4 x 50 Obs Relay Women'!$U$7:$U$46),SUMIF('4 x 50 Obs Relay Women'!$C$7:$C$46,$A97,'4 x 50 Obs Relay Women'!$U$7:$U$46))) ->  | K97: =IF($A97="","",IF(SUMIF('4 x 50 medley Relay Women'!$C$7:$C$46,$A97,'4 x 50 medley Relay Women'!$U$7:$U$46)=0,1+MAX('4 x 50 medley Relay Women'!$U$7:$U$46),SUMIF('4 x 50 medley Relay Women'!$C$7:$C$46,$A97,'4 x 50 medley Relay Women'!$U$7:$U$46))) ->  | L97: =IF($A97="","",IF(SUMIF('4 x 25 Manikin Carry Women'!$C$7:$C$46,$A97,'4 x 25 Manikin Carry Women'!$U$7:$U$46)=0,1+MAX('4 x 25 Manikin Carry Women'!$U$7:$U$46),SUMIF('4 x 25 Manikin Carry Women'!$C$7:$C$46,$A97,'4 x 25 Manikin Carry Women'!$U$7:$U$46))) ->  | M97: =IF($A97="","",IF(SUMIF('4 x 12m Line Throw Women'!$C$7:$C$46,$A97,'4 x 12m Line Throw Women'!$U$7:$U$46)=0,1+MAX('4 x 12m Line Throw Women'!$U$7:$U$46),SUMIF('4 x 12m Line Throw Women'!$C$7:$C$46,$A97,'4 x 12m Line Throw Women'!$U$7:$U$46))) -> 
C98: =IF($A98="","",IF(SUMIF('50m Manikin Carry Women'!$C$7:$C$46,$A98,'50m Manikin Carry Women'!$X$7:$X$46)=0,1+MAX('50m Manikin Carry Women'!$X$7:$X$46),SUMIF('50m Manikin Carry Women'!$C$7:$C$46,$A98,'50m Manikin Carry Women'!$X$7:$X$46))) ->  | D98: =IF($A98="","",IF(SUMIF('100m Manikin Carry Women'!$C$7:$C$46,$A98,'100m Manikin Carry Women'!$X$7:$X$46)=0,1+MAX('100m Manikin Carry Women'!$X$7:$X$46),SUMIF('100m Manikin Carry Women'!$C$7:$C$46,$A98,'100m Manikin Carry Women'!$X$7:$X$46))) ->  | E98: =IF($A98="","",IF(SUMIF('100m Manikin Tow Women'!$C$7:$C$46,$A98,'100m Manikin Tow Women'!$X$7:$X$46)=0,1+MAX('100m Manikin Tow Women'!$X$7:$X$46),SUMIF('100m Manikin Tow Women'!$C$7:$C$46,$A98,'100m Manikin Tow Women'!$X$7:$X$46))) ->  | F98: =IF($A98="","",IF(SUMIF('200m Obs Women'!$C$7:$C$46,$A98,'200m Obs Women'!$X$7:$X$46)=0,1+MAX('200m Obs Women'!$X$7:$X$46),SUMIF('200m Obs Women'!$C$7:$C$46,$A98,'200m Obs Women'!$X$7:$X$46))) ->  | G98: =IF($A98="","",IF(SUMIF('200m Super Women'!$C$7:$C$46,$A98,'200m Super Women'!$X$7:$X$46)=0,1+MAX('200m Super Women'!$X$7:$X$46),SUMIF('200m Super Women'!$C$7:$C$46,$A98,'200m Super Women'!$X$7:$X$46))) ->  | H98: =IF($A98="","",IF(SUMIF('100 Resue Women'!$C$7:$C$46,$A98,'100 Resue Women'!$X$7:$X$46)=0,1+MAX('100 Resue Women'!$X$7:$X$46),SUMIF('100 Resue Women'!$C$7:$C$46,$A98,'100 Resue Women'!$X$7:$X$46))) ->  | I98: =IF($A98="","",IF(SUMIF('Line Throw Women'!$C$7:$C$46,$A98,'Line Throw Women'!$Z$7:$Z$46)=0,1+MAX('Line Throw Women'!$Z$7:$Z$46),SUMIF('Line Throw Women'!$C$7:$C$46,$A98,'Line Throw Women'!$Z$7:$Z$46))) ->  | J98: =IF($A98="","",IF(SUMIF('4 x 50 Obs Relay Women'!$C$7:$C$46,$A98,'4 x 50 Obs Relay Women'!$U$7:$U$46)=0,1+MAX('4 x 50 Obs Relay Women'!$U$7:$U$46),SUMIF('4 x 50 Obs Relay Women'!$C$7:$C$46,$A98,'4 x 50 Obs Relay Women'!$U$7:$U$46))) ->  | K98: =IF($A98="","",IF(SUMIF('4 x 50 medley Relay Women'!$C$7:$C$46,$A98,'4 x 50 medley Relay Women'!$U$7:$U$46)=0,1+MAX('4 x 50 medley Relay Women'!$U$7:$U$46),SUMIF('4 x 50 medley Relay Women'!$C$7:$C$46,$A98,'4 x 50 medley Relay Women'!$U$7:$U$46))) ->  | L98: =IF($A98="","",IF(SUMIF('4 x 25 Manikin Carry Women'!$C$7:$C$46,$A98,'4 x 25 Manikin Carry Women'!$U$7:$U$46)=0,1+MAX('4 x 25 Manikin Carry Women'!$U$7:$U$46),SUMIF('4 x 25 Manikin Carry Women'!$C$7:$C$46,$A98,'4 x 25 Manikin Carry Women'!$U$7:$U$46))) ->  | M98: =IF($A98="","",IF(SUMIF('4 x 12m Line Throw Women'!$C$7:$C$46,$A98,'4 x 12m Line Throw Women'!$U$7:$U$46)=0,1+MAX('4 x 12m Line Throw Women'!$U$7:$U$46),SUMIF('4 x 12m Line Throw Women'!$C$7:$C$46,$A98,'4 x 12m Line Throw Women'!$U$7:$U$46))) -> 
C99: =IF($A99="","",IF(SUMIF('50m Manikin Carry Women'!$C$7:$C$46,$A99,'50m Manikin Carry Women'!$X$7:$X$46)=0,1+MAX('50m Manikin Carry Women'!$X$7:$X$46),SUMIF('50m Manikin Carry Women'!$C$7:$C$46,$A99,'50m Manikin Carry Women'!$X$7:$X$46))) ->  | D99: =IF($A99="","",IF(SUMIF('100m Manikin Carry Women'!$C$7:$C$46,$A99,'100m Manikin Carry Women'!$X$7:$X$46)=0,1+MAX('100m Manikin Carry Women'!$X$7:$X$46),SUMIF('100m Manikin Carry Women'!$C$7:$C$46,$A99,'100m Manikin Carry Women'!$X$7:$X$46))) ->  | E99: =IF($A99="","",IF(SUMIF('100m Manikin Tow Women'!$C$7:$C$46,$A99,'100m Manikin Tow Women'!$X$7:$X$46)=0,1+MAX('100m Manikin Tow Women'!$X$7:$X$46),SUMIF('100m Manikin Tow Women'!$C$7:$C$46,$A99,'100m Manikin Tow Women'!$X$7:$X$46))) ->  | F99: =IF($A99="","",IF(SUMIF('200m Obs Women'!$C$7:$C$46,$A99,'200m Obs Women'!$X$7:$X$46)=0,1+MAX('200m Obs Women'!$X$7:$X$46),SUMIF('200m Obs Women'!$C$7:$C$46,$A99,'200m Obs Women'!$X$7:$X$46))) ->  | G99: =IF($A99="","",IF(SUMIF('200m Super Women'!$C$7:$C$46,$A99,'200m Super Women'!$X$7:$X$46)=0,1+MAX('200m Super Women'!$X$7:$X$46),SUMIF('200m Super Women'!$C$7:$C$46,$A99,'200m Super Women'!$X$7:$X$46))) ->  | H99: =IF($A99="","",IF(SUMIF('100 Resue Women'!$C$7:$C$46,$A99,'100 Resue Women'!$X$7:$X$46)=0,1+MAX('100 Resue Women'!$X$7:$X$46),SUMIF('100 Resue Women'!$C$7:$C$46,$A99,'100 Resue Women'!$X$7:$X$46))) ->  | I99: =IF($A99="","",IF(SUMIF('Line Throw Women'!$C$7:$C$46,$A99,'Line Throw Women'!$Z$7:$Z$46)=0,1+MAX('Line Throw Women'!$Z$7:$Z$46),SUMIF('Line Throw Women'!$C$7:$C$46,$A99,'Line Throw Women'!$Z$7:$Z$46))) ->  | J99: =IF($A99="","",IF(SUMIF('4 x 50 Obs Relay Women'!$C$7:$C$46,$A99,'4 x 50 Obs Relay Women'!$U$7:$U$46)=0,1+MAX('4 x 50 Obs Relay Women'!$U$7:$U$46),SUMIF('4 x 50 Obs Relay Women'!$C$7:$C$46,$A99,'4 x 50 Obs Relay Women'!$U$7:$U$46))) ->  | K99: =IF($A99="","",IF(SUMIF('4 x 50 medley Relay Women'!$C$7:$C$46,$A99,'4 x 50 medley Relay Women'!$U$7:$U$46)=0,1+MAX('4 x 50 medley Relay Women'!$U$7:$U$46),SUMIF('4 x 50 medley Relay Women'!$C$7:$C$46,$A99,'4 x 50 medley Relay Women'!$U$7:$U$46))) ->  | L99: =IF($A99="","",IF(SUMIF('4 x 25 Manikin Carry Women'!$C$7:$C$46,$A99,'4 x 25 Manikin Carry Women'!$U$7:$U$46)=0,1+MAX('4 x 25 Manikin Carry Women'!$U$7:$U$46),SUMIF('4 x 25 Manikin Carry Women'!$C$7:$C$46,$A99,'4 x 25 Manikin Carry Women'!$U$7:$U$46))) ->  | M99: =IF($A99="","",IF(SUMIF('4 x 12m Line Throw Women'!$C$7:$C$46,$A99,'4 x 12m Line Throw Women'!$U$7:$U$46)=0,1+MAX('4 x 12m Line Throw Women'!$U$7:$U$46),SUMIF('4 x 12m Line Throw Women'!$C$7:$C$46,$A99,'4 x 12m Line Throw Women'!$U$7:$U$46))) -> 
C100: =IF($A100="","",IF(SUMIF('50m Manikin Carry Women'!$C$7:$C$46,$A100,'50m Manikin Carry Women'!$X$7:$X$46)=0,1+MAX('50m Manikin Carry Women'!$X$7:$X$46),SUMIF('50m Manikin Carry Women'!$C$7:$C$46,$A100,'50m Manikin Carry Women'!$X$7:$X$46))) ->  | D100: =IF($A100="","",IF(SUMIF('100m Manikin Carry Women'!$C$7:$C$46,$A100,'100m Manikin Carry Women'!$X$7:$X$46)=0,1+MAX('100m Manikin Carry Women'!$X$7:$X$46),SUMIF('100m Manikin Carry Women'!$C$7:$C$46,$A100,'100m Manikin Carry Women'!$X$7:$X$46))) ->  | E100: =IF($A100="","",IF(SUMIF('100m Manikin Tow Women'!$C$7:$C$46,$A100,'100m Manikin Tow Women'!$X$7:$X$46)=0,1+MAX('100m Manikin Tow Women'!$X$7:$X$46),SUMIF('100m Manikin Tow Women'!$C$7:$C$46,$A100,'100m Manikin Tow Women'!$X$7:$X$46))) ->  | F100: =IF($A100="","",IF(SUMIF('200m Obs Women'!$C$7:$C$46,$A100,'200m Obs Women'!$X$7:$X$46)=0,1+MAX('200m Obs Women'!$X$7:$X$46),SUMIF('200m Obs Women'!$C$7:$C$46,$A100,'200m Obs Women'!$X$7:$X$46))) ->  | G100: =IF($A100="","",IF(SUMIF('200m Super Women'!$C$7:$C$46,$A100,'200m Super Women'!$X$7:$X$46)=0,1+MAX('200m Super Women'!$X$7:$X$46),SUMIF('200m Super Women'!$C$7:$C$46,$A100,'200m Super Women'!$X$7:$X$46))) ->  | H100: =IF($A100="","",IF(SUMIF('100 Resue Women'!$C$7:$C$46,$A100,'100 Resue Women'!$X$7:$X$46)=0,1+MAX('100 Resue Women'!$X$7:$X$46),SUMIF('100 Resue Women'!$C$7:$C$46,$A100,'100 Resue Women'!$X$7:$X$46))) ->  | I100: =IF($A100="","",IF(SUMIF('Line Throw Women'!$C$7:$C$46,$A100,'Line Throw Women'!$Z$7:$Z$46)=0,1+MAX('Line Throw Women'!$Z$7:$Z$46),SUMIF('Line Throw Women'!$C$7:$C$46,$A100,'Line Throw Women'!$Z$7:$Z$46))) ->  | J100: =IF($A100="","",IF(SUMIF('4 x 50 Obs Relay Women'!$C$7:$C$46,$A100,'4 x 50 Obs Relay Women'!$U$7:$U$46)=0,1+MAX('4 x 50 Obs Relay Women'!$U$7:$U$46),SUMIF('4 x 50 Obs Relay Women'!$C$7:$C$46,$A100,'4 x 50 Obs Relay Women'!$U$7:$U$46))) ->  | K100: =IF($A100="","",IF(SUMIF('4 x 50 medley Relay Women'!$C$7:$C$46,$A100,'4 x 50 medley Relay Women'!$U$7:$U$46)=0,1+MAX('4 x 50 medley Relay Women'!$U$7:$U$46),SUMIF('4 x 50 medley Relay Women'!$C$7:$C$46,$A100,'4 x 50 medley Relay Women'!$U$7:$U$46))) ->  | L100: =IF($A100="","",IF(SUMIF('4 x 25 Manikin Carry Women'!$C$7:$C$46,$A100,'4 x 25 Manikin Carry Women'!$U$7:$U$46)=0,1+MAX('4 x 25 Manikin Carry Women'!$U$7:$U$46),SUMIF('4 x 25 Manikin Carry Women'!$C$7:$C$46,$A100,'4 x 25 Manikin Carry Women'!$U$7:$U$46))) ->  | M100: =IF($A100="","",IF(SUMIF('4 x 12m Line Throw Women'!$C$7:$C$46,$A100,'4 x 12m Line Throw Women'!$U$7:$U$46)=0,1+MAX('4 x 12m Line Throw Women'!$U$7:$U$46),SUMIF('4 x 12m Line Throw Women'!$C$7:$C$46,$A100,'4 x 12m Line Throw Women'!$U$7:$U$46))) -> 
C101: =IF($A101="","",IF(SUMIF('50m Manikin Carry Women'!$C$7:$C$46,$A101,'50m Manikin Carry Women'!$X$7:$X$46)=0,1+MAX('50m Manikin Carry Women'!$X$7:$X$46),SUMIF('50m Manikin Carry Women'!$C$7:$C$46,$A101,'50m Manikin Carry Women'!$X$7:$X$46))) ->  | D101: =IF($A101="","",IF(SUMIF('100m Manikin Carry Women'!$C$7:$C$46,$A101,'100m Manikin Carry Women'!$X$7:$X$46)=0,1+MAX('100m Manikin Carry Women'!$X$7:$X$46),SUMIF('100m Manikin Carry Women'!$C$7:$C$46,$A101,'100m Manikin Carry Women'!$X$7:$X$46))) ->  | E101: =IF($A101="","",IF(SUMIF('100m Manikin Tow Women'!$C$7:$C$46,$A101,'100m Manikin Tow Women'!$X$7:$X$46)=0,1+MAX('100m Manikin Tow Women'!$X$7:$X$46),SUMIF('100m Manikin Tow Women'!$C$7:$C$46,$A101,'100m Manikin Tow Women'!$X$7:$X$46))) ->  | F101: =IF($A101="","",IF(SUMIF('200m Obs Women'!$C$7:$C$46,$A101,'200m Obs Women'!$X$7:$X$46)=0,1+MAX('200m Obs Women'!$X$7:$X$46),SUMIF('200m Obs Women'!$C$7:$C$46,$A101,'200m Obs Women'!$X$7:$X$46))) ->  | G101: =IF($A101="","",IF(SUMIF('200m Super Women'!$C$7:$C$46,$A101,'200m Super Women'!$X$7:$X$46)=0,1+MAX('200m Super Women'!$X$7:$X$46),SUMIF('200m Super Women'!$C$7:$C$46,$A101,'200m Super Women'!$X$7:$X$46))) ->  | H101: =IF($A101="","",IF(SUMIF('100 Resue Women'!$C$7:$C$46,$A101,'100 Resue Women'!$X$7:$X$46)=0,1+MAX('100 Resue Women'!$X$7:$X$46),SUMIF('100 Resue Women'!$C$7:$C$46,$A101,'100 Resue Women'!$X$7:$X$46))) ->  | I101: =IF($A101="","",IF(SUMIF('Line Throw Women'!$C$7:$C$46,$A101,'Line Throw Women'!$Z$7:$Z$46)=0,1+MAX('Line Throw Women'!$Z$7:$Z$46),SUMIF('Line Throw Women'!$C$7:$C$46,$A101,'Line Throw Women'!$Z$7:$Z$46))) ->  | J101: =IF($A101="","",IF(SUMIF('4 x 50 Obs Relay Women'!$C$7:$C$46,$A101,'4 x 50 Obs Relay Women'!$U$7:$U$46)=0,1+MAX('4 x 50 Obs Relay Women'!$U$7:$U$46),SUMIF('4 x 50 Obs Relay Women'!$C$7:$C$46,$A101,'4 x 50 Obs Relay Women'!$U$7:$U$46))) ->  | K101: =IF($A101="","",IF(SUMIF('4 x 50 medley Relay Women'!$C$7:$C$46,$A101,'4 x 50 medley Relay Women'!$U$7:$U$46)=0,1+MAX('4 x 50 medley Relay Women'!$U$7:$U$46),SUMIF('4 x 50 medley Relay Women'!$C$7:$C$46,$A101,'4 x 50 medley Relay Women'!$U$7:$U$46))) ->  | L101: =IF($A101="","",IF(SUMIF('4 x 25 Manikin Carry Women'!$C$7:$C$46,$A101,'4 x 25 Manikin Carry Women'!$U$7:$U$46)=0,1+MAX('4 x 25 Manikin Carry Women'!$U$7:$U$46),SUMIF('4 x 25 Manikin Carry Women'!$C$7:$C$46,$A101,'4 x 25 Manikin Carry Women'!$U$7:$U$46))) ->  | M101: =IF($A101="","",IF(SUMIF('4 x 12m Line Throw Women'!$C$7:$C$46,$A101,'4 x 12m Line Throw Women'!$U$7:$U$46)=0,1+MAX('4 x 12m Line Throw Women'!$U$7:$U$46),SUMIF('4 x 12m Line Throw Women'!$C$7:$C$46,$A101,'4 x 12m Line Throw Women'!$U$7:$U$46))) -> 
C102: =IF($A102="","",IF(SUMIF('50m Manikin Carry Women'!$C$7:$C$46,$A102,'50m Manikin Carry Women'!$X$7:$X$46)=0,1+MAX('50m Manikin Carry Women'!$X$7:$X$46),SUMIF('50m Manikin Carry Women'!$C$7:$C$46,$A102,'50m Manikin Carry Women'!$X$7:$X$46))) ->  | D102: =IF($A102="","",IF(SUMIF('100m Manikin Carry Women'!$C$7:$C$46,$A102,'100m Manikin Carry Women'!$X$7:$X$46)=0,1+MAX('100m Manikin Carry Women'!$X$7:$X$46),SUMIF('100m Manikin Carry Women'!$C$7:$C$46,$A102,'100m Manikin Carry Women'!$X$7:$X$46))) ->  | E102: =IF($A102="","",IF(SUMIF('100m Manikin Tow Women'!$C$7:$C$46,$A102,'100m Manikin Tow Women'!$X$7:$X$46)=0,1+MAX('100m Manikin Tow Women'!$X$7:$X$46),SUMIF('100m Manikin Tow Women'!$C$7:$C$46,$A102,'100m Manikin Tow Women'!$X$7:$X$46))) ->  | F102: =IF($A102="","",IF(SUMIF('200m Obs Women'!$C$7:$C$46,$A102,'200m Obs Women'!$X$7:$X$46)=0,1+MAX('200m Obs Women'!$X$7:$X$46),SUMIF('200m Obs Women'!$C$7:$C$46,$A102,'200m Obs Women'!$X$7:$X$46))) ->  | G102: =IF($A102="","",IF(SUMIF('200m Super Women'!$C$7:$C$46,$A102,'200m Super Women'!$X$7:$X$46)=0,1+MAX('200m Super Women'!$X$7:$X$46),SUMIF('200m Super Women'!$C$7:$C$46,$A102,'200m Super Women'!$X$7:$X$46))) ->  | H102: =IF($A102="","",IF(SUMIF('100 Resue Women'!$C$7:$C$46,$A102,'100 Resue Women'!$X$7:$X$46)=0,1+MAX('100 Resue Women'!$X$7:$X$46),SUMIF('100 Resue Women'!$C$7:$C$46,$A102,'100 Resue Women'!$X$7:$X$46))) ->  | I102: =IF($A102="","",IF(SUMIF('Line Throw Women'!$C$7:$C$46,$A102,'Line Throw Women'!$Z$7:$Z$46)=0,1+MAX('Line Throw Women'!$Z$7:$Z$46),SUMIF('Line Throw Women'!$C$7:$C$46,$A102,'Line Throw Women'!$Z$7:$Z$46))) ->  | J102: =IF($A102="","",IF(SUMIF('4 x 50 Obs Relay Women'!$C$7:$C$46,$A102,'4 x 50 Obs Relay Women'!$U$7:$U$46)=0,1+MAX('4 x 50 Obs Relay Women'!$U$7:$U$46),SUMIF('4 x 50 Obs Relay Women'!$C$7:$C$46,$A102,'4 x 50 Obs Relay Women'!$U$7:$U$46))) ->  | K102: =IF($A102="","",IF(SUMIF('4 x 50 medley Relay Women'!$C$7:$C$46,$A102,'4 x 50 medley Relay Women'!$U$7:$U$46)=0,1+MAX('4 x 50 medley Relay Women'!$U$7:$U$46),SUMIF('4 x 50 medley Relay Women'!$C$7:$C$46,$A102,'4 x 50 medley Relay Women'!$U$7:$U$46))) ->  | L102: =IF($A102="","",IF(SUMIF('4 x 25 Manikin Carry Women'!$C$7:$C$46,$A102,'4 x 25 Manikin Carry Women'!$U$7:$U$46)=0,1+MAX('4 x 25 Manikin Carry Women'!$U$7:$U$46),SUMIF('4 x 25 Manikin Carry Women'!$C$7:$C$46,$A102,'4 x 25 Manikin Carry Women'!$U$7:$U$46))) ->  | M102: =IF($A102="","",IF(SUMIF('4 x 12m Line Throw Women'!$C$7:$C$46,$A102,'4 x 12m Line Throw Women'!$U$7:$U$46)=0,1+MAX('4 x 12m Line Throw Women'!$U$7:$U$46),SUMIF('4 x 12m Line Throw Women'!$C$7:$C$46,$A102,'4 x 12m Line Throw Women'!$U$7:$U$46))) -> 
C103: =IF($A103="","",IF(SUMIF('50m Manikin Carry Women'!$C$7:$C$46,$A103,'50m Manikin Carry Women'!$X$7:$X$46)=0,1+MAX('50m Manikin Carry Women'!$X$7:$X$46),SUMIF('50m Manikin Carry Women'!$C$7:$C$46,$A103,'50m Manikin Carry Women'!$X$7:$X$46))) ->  | D103: =IF($A103="","",IF(SUMIF('100m Manikin Carry Women'!$C$7:$C$46,$A103,'100m Manikin Carry Women'!$X$7:$X$46)=0,1+MAX('100m Manikin Carry Women'!$X$7:$X$46),SUMIF('100m Manikin Carry Women'!$C$7:$C$46,$A103,'100m Manikin Carry Women'!$X$7:$X$46))) ->  | E103: =IF($A103="","",IF(SUMIF('100m Manikin Tow Women'!$C$7:$C$46,$A103,'100m Manikin Tow Women'!$X$7:$X$46)=0,1+MAX('100m Manikin Tow Women'!$X$7:$X$46),SUMIF('100m Manikin Tow Women'!$C$7:$C$46,$A103,'100m Manikin Tow Women'!$X$7:$X$46))) ->  | F103: =IF($A103="","",IF(SUMIF('200m Obs Women'!$C$7:$C$46,$A103,'200m Obs Women'!$X$7:$X$46)=0,1+MAX('200m Obs Women'!$X$7:$X$46),SUMIF('200m Obs Women'!$C$7:$C$46,$A103,'200m Obs Women'!$X$7:$X$46))) ->  | G103: =IF($A103="","",IF(SUMIF('200m Super Women'!$C$7:$C$46,$A103,'200m Super Women'!$X$7:$X$46)=0,1+MAX('200m Super Women'!$X$7:$X$46),SUMIF('200m Super Women'!$C$7:$C$46,$A103,'200m Super Women'!$X$7:$X$46))) ->  | H103: =IF($A103="","",IF(SUMIF('100 Resue Women'!$C$7:$C$46,$A103,'100 Resue Women'!$X$7:$X$46)=0,1+MAX('100 Resue Women'!$X$7:$X$46),SUMIF('100 Resue Women'!$C$7:$C$46,$A103,'100 Resue Women'!$X$7:$X$46))) ->  | I103: =IF($A103="","",IF(SUMIF('Line Throw Women'!$C$7:$C$46,$A103,'Line Throw Women'!$Z$7:$Z$46)=0,1+MAX('Line Throw Women'!$Z$7:$Z$46),SUMIF('Line Throw Women'!$C$7:$C$46,$A103,'Line Throw Women'!$Z$7:$Z$46))) ->  | J103: =IF($A103="","",IF(SUMIF('4 x 50 Obs Relay Women'!$C$7:$C$46,$A103,'4 x 50 Obs Relay Women'!$U$7:$U$46)=0,1+MAX('4 x 50 Obs Relay Women'!$U$7:$U$46),SUMIF('4 x 50 Obs Relay Women'!$C$7:$C$46,$A103,'4 x 50 Obs Relay Women'!$U$7:$U$46))) ->  | K103: =IF($A103="","",IF(SUMIF('4 x 50 medley Relay Women'!$C$7:$C$46,$A103,'4 x 50 medley Relay Women'!$U$7:$U$46)=0,1+MAX('4 x 50 medley Relay Women'!$U$7:$U$46),SUMIF('4 x 50 medley Relay Women'!$C$7:$C$46,$A103,'4 x 50 medley Relay Women'!$U$7:$U$46))) ->  | L103: =IF($A103="","",IF(SUMIF('4 x 25 Manikin Carry Women'!$C$7:$C$46,$A103,'4 x 25 Manikin Carry Women'!$U$7:$U$46)=0,1+MAX('4 x 25 Manikin Carry Women'!$U$7:$U$46),SUMIF('4 x 25 Manikin Carry Women'!$C$7:$C$46,$A103,'4 x 25 Manikin Carry Women'!$U$7:$U$46))) ->  | M103: =IF($A103="","",IF(SUMIF('4 x 12m Line Throw Women'!$C$7:$C$46,$A103,'4 x 12m Line Throw Women'!$U$7:$U$46)=0,1+MAX('4 x 12m Line Throw Women'!$U$7:$U$46),SUMIF('4 x 12m Line Throw Women'!$C$7:$C$46,$A103,'4 x 12m Line Throw Women'!$U$7:$U$46))) -> 
C104: =IF($A104="","",IF(SUMIF('50m Manikin Carry Women'!$C$7:$C$46,$A104,'50m Manikin Carry Women'!$X$7:$X$46)=0,1+MAX('50m Manikin Carry Women'!$X$7:$X$46),SUMIF('50m Manikin Carry Women'!$C$7:$C$46,$A104,'50m Manikin Carry Women'!$X$7:$X$46))) ->  | D104: =IF($A104="","",IF(SUMIF('100m Manikin Carry Women'!$C$7:$C$46,$A104,'100m Manikin Carry Women'!$X$7:$X$46)=0,1+MAX('100m Manikin Carry Women'!$X$7:$X$46),SUMIF('100m Manikin Carry Women'!$C$7:$C$46,$A104,'100m Manikin Carry Women'!$X$7:$X$46))) ->  | E104: =IF($A104="","",IF(SUMIF('100m Manikin Tow Women'!$C$7:$C$46,$A104,'100m Manikin Tow Women'!$X$7:$X$46)=0,1+MAX('100m Manikin Tow Women'!$X$7:$X$46),SUMIF('100m Manikin Tow Women'!$C$7:$C$46,$A104,'100m Manikin Tow Women'!$X$7:$X$46))) ->  | F104: =IF($A104="","",IF(SUMIF('200m Obs Women'!$C$7:$C$46,$A104,'200m Obs Women'!$X$7:$X$46)=0,1+MAX('200m Obs Women'!$X$7:$X$46),SUMIF('200m Obs Women'!$C$7:$C$46,$A104,'200m Obs Women'!$X$7:$X$46))) ->  | G104: =IF($A104="","",IF(SUMIF('200m Super Women'!$C$7:$C$46,$A104,'200m Super Women'!$X$7:$X$46)=0,1+MAX('200m Super Women'!$X$7:$X$46),SUMIF('200m Super Women'!$C$7:$C$46,$A104,'200m Super Women'!$X$7:$X$46))) ->  | H104: =IF($A104="","",IF(SUMIF('100 Resue Women'!$C$7:$C$46,$A104,'100 Resue Women'!$X$7:$X$46)=0,1+MAX('100 Resue Women'!$X$7:$X$46),SUMIF('100 Resue Women'!$C$7:$C$46,$A104,'100 Resue Women'!$X$7:$X$46))) ->  | I104: =IF($A104="","",IF(SUMIF('Line Throw Women'!$C$7:$C$46,$A104,'Line Throw Women'!$Z$7:$Z$46)=0,1+MAX('Line Throw Women'!$Z$7:$Z$46),SUMIF('Line Throw Women'!$C$7:$C$46,$A104,'Line Throw Women'!$Z$7:$Z$46))) ->  | J104: =IF($A104="","",IF(SUMIF('4 x 50 Obs Relay Women'!$C$7:$C$46,$A104,'4 x 50 Obs Relay Women'!$U$7:$U$46)=0,1+MAX('4 x 50 Obs Relay Women'!$U$7:$U$46),SUMIF('4 x 50 Obs Relay Women'!$C$7:$C$46,$A104,'4 x 50 Obs Relay Women'!$U$7:$U$46))) ->  | K104: =IF($A104="","",IF(SUMIF('4 x 50 medley Relay Women'!$C$7:$C$46,$A104,'4 x 50 medley Relay Women'!$U$7:$U$46)=0,1+MAX('4 x 50 medley Relay Women'!$U$7:$U$46),SUMIF('4 x 50 medley Relay Women'!$C$7:$C$46,$A104,'4 x 50 medley Relay Women'!$U$7:$U$46))) ->  | L104: =IF($A104="","",IF(SUMIF('4 x 25 Manikin Carry Women'!$C$7:$C$46,$A104,'4 x 25 Manikin Carry Women'!$U$7:$U$46)=0,1+MAX('4 x 25 Manikin Carry Women'!$U$7:$U$46),SUMIF('4 x 25 Manikin Carry Women'!$C$7:$C$46,$A104,'4 x 25 Manikin Carry Women'!$U$7:$U$46))) ->  | M104: =IF($A104="","",IF(SUMIF('4 x 12m Line Throw Women'!$C$7:$C$46,$A104,'4 x 12m Line Throw Women'!$U$7:$U$46)=0,1+MAX('4 x 12m Line Throw Women'!$U$7:$U$46),SUMIF('4 x 12m Line Throw Women'!$C$7:$C$46,$A104,'4 x 12m Line Throw Women'!$U$7:$U$46))) -> 

Sheet Overall Student Only
B1: Overall Students
A3: Club Code | B3: Club Name | C3: Men's Points | D3: Men's Position | E3: Women's Points | F3: Women's Position | G3: Overall Points | H3: Overall Positions
A4: 15 | B4: Bristol University | C4: =N39 -> 75 | D4: =O39 -> 7 | E4: =N74 -> 103 | F4: =O74 -> 11 | G4: =IF(A4="","",C4+E4) -> 178 | H4: =IF(B4="","",RANK(G4,$G$4:$G$34,1)) -> 11
A5: 49 | B5: Cardiff University | C5: =N40 -> 118 | D5: =O40 -> 13 | E5: =N75 -> 118 | F5: =O75 -> 13 | G5: =IF(A5="","",C5+E5) -> 236 | H5: =IF(B5="","",RANK(G5,$G$4:$G$34,1)) -> 13
A6: 7 | B6: Loughborough University | C6: 29 | D6: 1 | E6: 21 | F6: 1 | G6: 50 | H6: 1
A7: 21 | B7: Swansea Universities Lifesaving | C7: 40 | D7: 2 | E7: =N77 -> 26 | F7: 2 | G7: 66 | H7: 2
A8: 2 | B8: University of Bath | C8: 132 | D8: 14 | E8: 118 | F8: 13 | G8: 250 | H8: 14
A9: 14 | B9: University of Birmingham | C9: 67 | D9: 5 | E9: 62 | F9: 4 | G9: 129 | H9: 5
A10: 5 | B10: University of Cambridge | C10: 113 | D10: 12 | E10: 108 | F10: 12 | G10: 221 | H10: 12
A11: 16 | B11: University of London Union | C11: 80 | D11: 8 | E11: 87 | F11: 10 | G11: 167 | H11: 9
A12: 8 | B12: University of Nottingham | C12: 70 | D12: 6 | E12: 73 | F12: 8 | G12: 143 | H12: 6
A13: 18 | B13: University of Oxford | C13: 97 | D13: 11 | E13: 69 | F13: 6 | G13: 166 | H13: 8
A14: 9 | B14: University of Plymouth | C14: 82 | D14: 9 | E14: 69 | F14: 6 | G14: 151 | H14: 7
A15: 20 | B15: University of Southampton | C15: 47 | D15: 3 | E15: 30 | F15: 3 | G15: 77 | H15: 3
A16: 12 | B16: University of Warwick | C16: 62 | D16: 4 | E16: 65 | F16: 5 | G16: 127 | H16: 4
A17: 11 | B17: St. Andrews | C17: 87 | D17: 10 | E17: 84 | F17: 9 | G17: 171 | H17: 10
B36: Men's Students
A38: Club Code | B38: Club Name | C38: 50m Manikin Carry | D38: 100m Carry with Fins | E38: 100m tow with fins | F38: 200m Obs | G38: 200 Super | H38: 100 rescue | I38: Line Throw | J38: 4 x 50 obs Relay | K38: 4 x 50 medley Relay | L38: 4 x 25 Manikin Carry Relay | M38: 4 x 12m Line Throw Relay | N38: Totals | O38: Position
A39: =IF(A4="","",A4) -> 15 | B39: =IF(B4="","",B4) -> Bristol University | C39: =IF($A39="","",IF(SUMIF('50m Manikin Carry Men'!$C$7:$C$46,$A39,'50m Manikin Carry Men'!$Z$7:$Z$46)=0,1+MAX('50m Manikin Carry Men'!$Z$7:$Z$46),SUMIF('50m Manikin Carry Men'!$C$7:$C$46,$A39,'50m Manikin Carry Men'!$Z$7:$Z$46))) -> 2 | D39: =IF($A39="","",IF(SUMIF('100m Manikin Carry Men'!$C$7:$C$46,$A39,'100m Manikin Carry Men'!$Z$7:$Z$46)=0,1+MAX('100m Manikin Carry Men'!$Z$7:$Z$46),SUMIF('100m Manikin Carry Men'!$C$7:$C$46,$A39,'100m Manikin Carry Men'!$Z$7:$Z$46))) -> 12 | E39: =IF($A39="","",IF(SUMIF('100m Manikin Tow Men'!$C$7:$C$46,$A39,'100m Manikin Tow Men'!$Z$7:$Z$46)=0,1+MAX('100m Manikin Tow Men'!$Z$7:$Z$46),SUMIF('100m Manikin Tow Men'!$C$7:$C$46,$A39,'100m Manikin Tow Men'!$Z$7:$Z$46))) -> 1 | F39: =IF($A39="","",IF(SUMIF('200m Obs Men'!$C$7:$C$46,$A39,'200m Obs Men'!$Z$7:$Z$46)=0,1+MAX('200m Obs Men'!$Z$7:$Z$46),SUMIF('200m Obs Men'!$C$7:$C$46,$A39,'200m Obs Men'!$Z$7:$Z$46))) -> 3 | G39: =IF($A39="","",IF(SUMIF('200m Super Men'!$C$7:$C$46,$A39,'200m Super Men'!$Z$7:$Z$46)=0,1+MAX('200m Super Men'!$Z$7:$Z$46),SUMIF('200m Super Men'!$C$7:$C$46,$A39,'200m Super Men'!$Z$7:$Z$46))) -> 3 | H39: =IF($A39="","",IF(SUMIF('100 Resue Men'!$C$7:$C$46,$A39,'100 Resue Men'!$Z$7:$Z$46)=0,1+MAX('100 Resue Men'!$Z$7:$Z$46),SUMIF('100 Resue Men'!$C$7:$C$46,$A39,'100 Resue Men'!$Z$7:$Z$46))) -> 2 | I39: =IF($A39="","",IF(SUMIF('Line Throw Men'!$C$7:$C$46,$A39,'Line Throw Men'!$AB$7:$AB$46)=0,1+MAX('Line Throw Men'!$AB$7:$AB$46),SUMIF('Line Throw Men'!$C$7:$C$46,$A39,'Line Throw Men'!$AB$7:$AB$46))) -> 12 | J39: =IF($A39="","",IF(SUMIF('4 x 50 Obs Relay Men'!$C$7:$C$46,$A39,'4 x 50 Obs Relay Men'!$W$7:$W$46)=0,1+MAX('4 x 50 Obs Relay Men'!$W$7:$W$46),SUMIF('4 x 50 Obs Relay Men'!$C$7:$C$46,$A39,'4 x 50 Obs Relay Men'!$W$7:$W$46))) -> 11 | K39: =IF($A39="","",IF(SUMIF('4 x 50 medley Relay Men'!$C$7:$C$46,$A39,'4 x 50 medley Relay Men'!$W$7:$W$46)=0,1+MAX('4 x 50 medley Relay Men'!$W$7:$W$46),SUMIF('4 x 50 medley Relay Men'!$C$7:$C$46,$A39,'4 x 50 medley Relay Men'!$W$7:$W$46))) -> 11 | L39: =IF($A39="","",IF(SUMIF('4 x 25 Manikin Carry Relay Men'!$C$7:$C$46,$A39,'4 x 25 Manikin Carry Relay Men'!$W$7:$W$46)=0,1+MAX('4 x 25 Manikin Carry Relay Men'!$W$7:$W$46),SUMIF('4 x 25 Manikin Carry Relay Men'!$C$7:$C$46,$A39,'4 x 25 Manikin Carry Relay Men'!$W$7:$W$46))) -> 10 | M39: =IF($A39="","",IF(SUMIF('4 x 12m Line Throw Men'!$C$7:$C$46,$A39,'4 x 12m Line Throw Men'!$W$7:$W$46)=0,1+MAX('4 x 12m Line Throw Men'!$W$7:$W$46),SUMIF('4 x 12m Line Throw Men'!$C$7:$C$46,$A39,'4 x 12m Line Throw Men'!$W$7:$W$46))) -> 8 | N39: =IF(A39="","",SUM(C39:M39)) -> 75 | O39: =IF(A39="","",RANK(N39,$N$39:$N$69,1)) -> 7
A40: =IF(A5="","",A5) -> 49 | B40: =IF(B5="","",B5) -> Cardiff University | C40: =IF($A40="","",IF(SUMIF('50m Manikin Carry Men'!$C$7:$C$46,$A40,'50m Manikin Carry Men'!$Z$7:$Z$46)=0,1+MAX('50m Manikin Carry Men'!$Z$7:$Z$46),SUMIF('50m Manikin Carry Men'!$C$7:$C$46,$A40,'50m Manikin Carry Men'!$Z$7:$Z$46))) -> 12 | D40: =IF($A40="","",IF(SUMIF('100m Manikin Carry Men'!$C$7:$C$46,$A40,'100m Manikin Carry Men'!$Z$7:$Z$46)=0,1+MAX('100m Manikin Carry Men'!$Z$7:$Z$46),SUMIF('100m Manikin Carry Men'!$C$7:$C$46,$A40,'100m Manikin Carry Men'!$Z$7:$Z$46))) -> 12 | E40: =IF($A40="","",IF(SUMIF('100m Manikin Tow Men'!$C$7:$C$46,$A40,'100m Manikin Tow Men'!$Z$7:$Z$46)=0,1+MAX('100m Manikin Tow Men'!$Z$7:$Z$46),SUMIF('100m Manikin Tow Men'!$C$7:$C$46,$A40,'100m Manikin Tow Men'!$Z$7:$Z$46))) -> 3 | F40: =IF($A40="","",IF(SUMIF('200m Obs Men'!$C$7:$C$46,$A40,'200m Obs Men'!$Z$7:$Z$46)=0,1+MAX('200m Obs Men'!$Z$7:$Z$46),SUMIF('200m Obs Men'!$C$7:$C$46,$A40,'200m Obs Men'!$Z$7:$Z$46))) -> 13 | G40: =IF($A40="","",IF(SUMIF('200m Super Men'!$C$7:$C$46,$A40,'200m Super Men'!$Z$7:$Z$46)=0,1+MAX('200m Super Men'!$Z$7:$Z$46),SUMIF('200m Super Men'!$C$7:$C$46,$A40,'200m Super Men'!$Z$7:$Z$46))) -> 13 | H40: =IF($A40="","",IF(SUMIF('100 Resue Men'!$C$7:$C$46,$A40,'100 Resue Men'!$Z$7:$Z$46)=0,1+MAX('100 Resue Men'!$Z$7:$Z$46),SUMIF('100 Resue Men'!$C$7:$C$46,$A40,'100 Resue Men'!$Z$7:$Z$46))) -> 13 | I40: =IF($A40="","",IF(SUMIF('Line Throw Men'!$C$7:$C$46,$A40,'Line Throw Men'!$AB$7:$AB$46)=0,1+MAX('Line Throw Men'!$AB$7:$AB$46),SUMIF('Line Throw Men'!$C$7:$C$46,$A40,'Line Throw Men'!$AB$7:$AB$46))) -> 12 | J40: =IF($A40="","",IF(SUMIF('4 x 50 Obs Relay Men'!$C$7:$C$46,$A40,'4 x 50 Obs Relay Men'!$W$7:$W$46)=0,1+MAX('4 x 50 Obs Relay Men'!$W$7:$W$46),SUMIF('4 x 50 Obs Relay Men'!$C$7:$C$46,$A40,'4 x 50 Obs Relay Men'!$W$7:$W$46))) -> 11 | K40: =IF($A40="","",IF(SUMIF('4 x 50 medley Relay Men'!$C$7:$C$46,$A40,'4 x 50 medley Relay Men'!$W$7:$W$46)=0,1+MAX('4 x 50 medley Relay Men'!$W$7:$W$46),SUMIF('4 x 50 medley Relay Men'!$C$7:$C$46,$A40,'4 x 50 medley Relay Men'!$W$7:$W$46))) -> 11 | L40: =IF($A40="","",IF(SUMIF('4 x 25 Manikin Carry Relay Men'!$C$7:$C$46,$A40,'4 x 25 Manikin Carry Relay Men'!$W$7:$W$46)=0,1+MAX('4 x 25 Manikin Carry Relay Men'!$W$7:$W$46),SUMIF('4 x 25 Manikin Carry Relay Men'!$C$7:$C$46,$A40,'4 x 25 Manikin Carry Relay Men'!$W$7:$W$46))) -> 10 | M40: =IF($A40="","",IF(SUMIF('4 x 12m Line Throw Men'!$C$7:$C$46,$A40,'4 x 12m Line Throw Men'!$W$7:$W$46)=0,1+MAX('4 x 12m Line Throw Men'!$W$7:$W$46),SUMIF('4 x 12m Line Throw Men'!$C$7:$C$46,$A40,'4 x 12m Line Throw Men'!$W$7:$W$46))) -> 8 | N40: =IF(A40="","",SUM(C40:M40)) -> 118 | O40: =IF(A40="","",RANK(N40,$N$39:$N$69,1)) -> 13
A41: 7 | B41: Loughborough University | C41: =IF($A41="","",IF(SUMIF('50m Manikin Carry Men'!$C$7:$C$46,$A41,'50m Manikin Carry Men'!$Z$7:$Z$46)=0,1+MAX('50m Manikin Carry Men'!$Z$7:$Z$46),SUMIF('50m Manikin Carry Men'!$C$7:$C$46,$A41,'50m Manikin Carry Men'!$Z$7:$Z$46))) -> 1 | D41: =IF($A41="","",IF(SUMIF('100m Manikin Carry Men'!$C$7:$C$46,$A41,'100m Manikin Carry Men'!$Z$7:$Z$46)=0,1+MAX('100m Manikin Carry Men'!$Z$7:$Z$46),SUMIF('100m Manikin Carry Men'!$C$7:$C$46,$A41,'100m Manikin Carry Men'!$Z$7:$Z$46))) -> 1 | E41: =IF($A41="","",IF(SUMIF('100m Manikin Tow Men'!$C$7:$C$46,$A41,'100m Manikin Tow Men'!$Z$7:$Z$46)=0,1+MAX('100m Manikin Tow Men'!$Z$7:$Z$46),SUMIF('100m Manikin Tow Men'!$C$7:$C$46,$A41,'100m Manikin Tow Men'!$Z$7:$Z$46))) -> 2 | F41: =IF($A41="","",IF(SUMIF('200m Obs Men'!$C$7:$C$46,$A41,'200m Obs Men'!$Z$7:$Z$46)=0,1+MAX('200m Obs Men'!$Z$7:$Z$46),SUMIF('200m Obs Men'!$C$7:$C$46,$A41,'200m Obs Men'!$Z$7:$Z$46))) -> 1 | G41: =IF($A41="","",IF(SUMIF('200m Super Men'!$C$7:$C$46,$A41,'200m Super Men'!$Z$7:$Z$46)=0,1+MAX('200m Super Men'!$Z$7:$Z$46),SUMIF('200m Super Men'!$C$7:$C$46,$A41,'200m Super Men'!$Z$7:$Z$46))) -> 2 | H41: =IF($A41="","",IF(SUMIF('100 Resue Men'!$C$7:$C$46,$A41,'100 Resue Men'!$Z$7:$Z$46)=0,1+MAX('100 Resue Men'!$Z$7:$Z$46),SUMIF('100 Resue Men'!$C$7:$C$46,$A41,'100 Resue Men'!$Z$7:$Z$46))) -> 1 | I41: =IF($A41="","",IF(SUMIF('Line Throw Men'!$C$7:$C$46,$A41,'Line Throw Men'!$AB$7:$AB$46)=0,1+MAX('Line Throw Men'!$AB$7:$AB$46),SUMIF('Line Throw Men'!$C$7:$C$46,$A41,'Line Throw Men'!$AB$7:$AB$46))) -> 11 | J41: =IF($A41="","",IF(SUMIF('4 x 50 Obs Relay Men'!$C$7:$C$46,$A41,'4 x 50 Obs Relay Men'!$W$7:$W$46)=0,1+MAX('4 x 50 Obs Relay Men'!$W$7:$W$46),SUMIF('4 x 50 Obs Relay Men'!$C$7:$C$46,$A41,'4 x 50 Obs Relay Men'!$W$7:$W$46))) -> 1 | K41: =IF($A41="","",IF(SUMIF('4 x 50 medley Relay Men'!$C$7:$C$46,$A41,'4 x 50 medley Relay Men'!$W$7:$W$46)=0,1+MAX('4 x 50 medley Relay Men'!$W$7:$W$46),SUMIF('4 x 50 medley Relay Men'!$C$7:$C$46,$A41,'4 x 50 medley Relay Men'!$W$7:$W$46))) -> 1 | L41: =IF($A41="","",IF(SUMIF('4 x 25 Manikin Carry Relay Men'!$C$7:$C$46,$A41,'4 x 25 Manikin Carry Relay Men'!$W$7:$W$46)=0,1+MAX('4 x 25 Manikin Carry Relay Men'!$W$7:$W$46),SUMIF('4 x 25 Manikin Carry Relay Men'!$C$7:$C$46,$A41,'4 x 25 Manikin Carry Relay Men'!$W$7:$W$46))) -> 1 | M41: =IF($A41="","",IF(SUMIF('4 x 12m Line Throw Men'!$C$7:$C$46,$A41,'4 x 12m Line Throw Men'!$W$7:$W$46)=0,1+MAX('4 x 12m Line Throw Men'!$W$7:$W$46),SUMIF('4 x 12m Line Throw Men'!$C$7:$C$46,$A41,'4 x 12m Line Throw Men'!$W$7:$W$46))) -> 7 | N41: 29 | O41: 1
A42: 21 | B42: Swansea Universities Lifesaving | C42: =IF($A42="","",IF(SUMIF('50m Manikin Carry Men'!$C$7:$C$46,$A42,'50m Manikin Carry Men'!$Z$7:$Z$46)=0,1+MAX('50m Manikin Carry Men'!$Z$7:$Z$46),SUMIF('50m Manikin Carry Men'!$C$7:$C$46,$A42,'50m Manikin Carry Men'!$Z$7:$Z$46))) -> 3 | D42: =IF($A42="","",IF(SUMIF('100m Manikin Carry Men'!$C$7:$C$46,$A42,'100m Manikin Carry Men'!$Z$7:$Z$46)=0,1+MAX('100m Manikin Carry Men'!$Z$7:$Z$46),SUMIF('100m Manikin Carry Men'!$C$7:$C$46,$A42,'100m Manikin Carry Men'!$Z$7:$Z$46))) -> 3 | E42: =IF($A42="","",IF(SUMIF('100m Manikin Tow Men'!$C$7:$C$46,$A42,'100m Manikin Tow Men'!$Z$7:$Z$46)=0,1+MAX('100m Manikin Tow Men'!$Z$7:$Z$46),SUMIF('100m Manikin Tow Men'!$C$7:$C$46,$A42,'100m Manikin Tow Men'!$Z$7:$Z$46))) -> 6 | F42: =IF($A42="","",IF(SUMIF('200m Obs Men'!$C$7:$C$46,$A42,'200m Obs Men'!$Z$7:$Z$46)=0,1+MAX('200m Obs Men'!$Z$7:$Z$46),SUMIF('200m Obs Men'!$C$7:$C$46,$A42,'200m Obs Men'!$Z$7:$Z$46))) -> 4 | G42: =IF($A42="","",IF(SUMIF('200m Super Men'!$C$7:$C$46,$A42,'200m Super Men'!$Z$7:$Z$46)=0,1+MAX('200m Super Men'!$Z$7:$Z$46),SUMIF('200m Super Men'!$C$7:$C$46,$A42,'200m Super Men'!$Z$7:$Z$46))) -> 1 | H42: =IF($A42="","",IF(SUMIF('100 Resue Men'!$C$7:$C$46,$A42,'100 Resue Men'!$Z$7:$Z$46)=0,1+MAX('100 Resue Men'!$Z$7:$Z$46),SUMIF('100 Resue Men'!$C$7:$C$46,$A42,'100 Resue Men'!$Z$7:$Z$46))) -> 3 | I42: =IF($A42="","",IF(SUMIF('Line Throw Men'!$C$7:$C$46,$A42,'Line Throw Men'!$AB$7:$AB$46)=0,1+MAX('Line Throw Men'!$AB$7:$AB$46),SUMIF('Line Throw Men'!$C$7:$C$46,$A42,'Line Throw Men'!$AB$7:$AB$46))) -> 3 | J42: =IF($A42="","",IF(SUMIF('4 x 50 Obs Relay Men'!$C$7:$C$46,$A42,'4 x 50 Obs Relay Men'!$W$7:$W$46)=0,1+MAX('4 x 50 Obs Relay Men'!$W$7:$W$46),SUMIF('4 x 50 Obs Relay Men'!$C$7:$C$46,$A42,'4 x 50 Obs Relay Men'!$W$7:$W$46))) -> 2 | K42: =IF($A42="","",IF(SUMIF('4 x 50 medley Relay Men'!$C$7:$C$46,$A42,'4 x 50 medley Relay Men'!$W$7:$W$46)=0,1+MAX('4 x 50 medley Relay Men'!$W$7:$W$46),SUMIF('4 x 50 medley Relay Men'!$C$7:$C$46,$A42,'4 x 50 medley Relay Men'!$W$7:$W$46))) -> 2 | L42: =IF($A42="","",IF(SUMIF('4 x 25 Manikin Carry Relay Men'!$C$7:$C$46,$A42,'4 x 25 Manikin Carry Relay Men'!$W$7:$W$46)=0,1+MAX('4 x 25 Manikin Carry Relay Men'!$W$7:$W$46),SUMIF('4 x 25 Manikin Carry Relay Men'!$C$7:$C$46,$A42,'4 x 25 Manikin Carry Relay Men'!$W$7:$W$46))) -> 9 | M42: =IF($A42="","",IF(SUMIF('4 x 12m Line Throw Men'!$C$7:$C$46,$A42,'4 x 12m Line Throw Men'!$W$7:$W$46)=0,1+MAX('4 x 12m Line Throw Men'!$W$7:$W$46),SUMIF('4 x 12m Line Throw Men'!$C$7:$C$46,$A42,'4 x 12m Line Throw Men'!$W$7:$W$46))) -> 4 | N42: 40 | O42: 2
A43: 2 | B43: University of Bath | C43: =IF($A43="","",IF(SUMIF('50m Manikin Carry Men'!$C$7:$C$46,$A43,'50m Manikin Carry Men'!$Z$7:$Z$46)=0,1+MAX('50m Manikin Carry Men'!$Z$7:$Z$46),SUMIF('50m Manikin Carry Men'!$C$7:$C$46,$A43,'50m Manikin Carry Men'!$Z$7:$Z$46))) -> 13 | D43: =IF($A43="","",IF(SUMIF('100m Manikin Carry Men'!$C$7:$C$46,$A43,'100m Manikin Carry Men'!$Z$7:$Z$46)=0,1+MAX('100m Manikin Carry Men'!$Z$7:$Z$46),SUMIF('100m Manikin Carry Men'!$C$7:$C$46,$A43,'100m Manikin Carry Men'!$Z$7:$Z$46))) -> 13 | E43: =IF($A43="","",IF(SUMIF('100m Manikin Tow Men'!$C$7:$C$46,$A43,'100m Manikin Tow Men'!$Z$7:$Z$46)=0,1+MAX('100m Manikin Tow Men'!$Z$7:$Z$46),SUMIF('100m Manikin Tow Men'!$C$7:$C$46,$A43,'100m Manikin Tow Men'!$Z$7:$Z$46))) -> 14 | F43: =IF($A43="","",IF(SUMIF('200m Obs Men'!$C$7:$C$46,$A43,'200m Obs Men'!$Z$7:$Z$46)=0,1+MAX('200m Obs Men'!$Z$7:$Z$46),SUMIF('200m Obs Men'!$C$7:$C$46,$A43,'200m Obs Men'!$Z$7:$Z$46))) -> 13 | G43: =IF($A43="","",IF(SUMIF('200m Super Men'!$C$7:$C$46,$A43,'200m Super Men'!$Z$7:$Z$46)=0,1+MAX('200m Super Men'!$Z$7:$Z$46),SUMIF('200m Super Men'!$C$7:$C$46,$A43,'200m Super Men'!$Z$7:$Z$46))) -> 13 | H43: =IF($A43="","",IF(SUMIF('100 Resue Men'!$C$7:$C$46,$A43,'100 Resue Men'!$Z$7:$Z$46)=0,1+MAX('100 Resue Men'!$Z$7:$Z$46),SUMIF('100 Resue Men'!$C$7:$C$46,$A43,'100 Resue Men'!$Z$7:$Z$46))) -> 13 | I43: =IF($A43="","",IF(SUMIF('Line Throw Men'!$C$7:$C$46,$A43,'Line Throw Men'!$AB$7:$AB$46)=0,1+MAX('Line Throw Men'!$AB$7:$AB$46),SUMIF('Line Throw Men'!$C$7:$C$46,$A43,'Line Throw Men'!$AB$7:$AB$46))) -> 13 | J43: =IF($A43="","",IF(SUMIF('4 x 50 Obs Relay Men'!$C$7:$C$46,$A43,'4 x 50 Obs Relay Men'!$W$7:$W$46)=0,1+MAX('4 x 50 Obs Relay Men'!$W$7:$W$46),SUMIF('4 x 50 Obs Relay Men'!$C$7:$C$46,$A43,'4 x 50 Obs Relay Men'!$W$7:$W$46))) -> 11 | K43: =IF($A43="","",IF(SUMIF('4 x 50 medley Relay Men'!$C$7:$C$46,$A43,'4 x 50 medley Relay Men'!$W$7:$W$46)=0,1+MAX('4 x 50 medley Relay Men'!$W$7:$W$46),SUMIF('4 x 50 medley Relay Men'!$C$7:$C$46,$A43,'4 x 50 medley Relay Men'!$W$7:$W$46))) -> 11 | L43: =IF($A43="","",IF(SUMIF('4 x 25 Manikin Carry Relay Men'!$C$7:$C$46,$A43,'4 x 25 Manikin Carry Relay Men'!$W$7:$W$46)=0,1+MAX('4 x 25 Manikin Carry Relay Men'!$W$7:$W$46),SUMIF('4 x 25 Manikin Carry Relay Men'!$C$7:$C$46,$A43,'4 x 25 Manikin Carry Relay Men'!$W$7:$W$46))) -> 10 | M43: =IF($A43="","",IF(SUMIF('4 x 12m Line Throw Men'!$C$7:$C$46,$A43,'4 x 12m Line Throw Men'!$W$7:$W$46)=0,1+MAX('4 x 12m Line Throw Men'!$W$7:$W$46),SUMIF('4 x 12m Line Throw Men'!$C$7:$C$46,$A43,'4 x 12m Line Throw Men'!$W$7:$W$46))) -> 8 | N43: 132 | O43: 14
A44: 14 | B44: University of Birmingham | C44: =IF($A44="","",IF(SUMIF('50m Manikin Carry Men'!$C$7:$C$46,$A44,'50m Manikin Carry Men'!$Z$7:$Z$46)=0,1+MAX('50m Manikin Carry Men'!$Z$7:$Z$46),SUMIF('50m Manikin Carry Men'!$C$7:$C$46,$A44,'50m Manikin Carry Men'!$Z$7:$Z$46))) -> 4 | D44: =IF($A44="","",IF(SUMIF('100m Manikin Carry Men'!$C$7:$C$46,$A44,'100m Manikin Carry Men'!$Z$7:$Z$46)=0,1+MAX('100m Manikin Carry Men'!$Z$7:$Z$46),SUMIF('100m Manikin Carry Men'!$C$7:$C$46,$A44,'100m Manikin Carry Men'!$Z$7:$Z$46))) -> 5 | E44: =IF($A44="","",IF(SUMIF('100m Manikin Tow Men'!$C$7:$C$46,$A44,'100m Manikin Tow Men'!$Z$7:$Z$46)=0,1+MAX('100m Manikin Tow Men'!$Z$7:$Z$46),SUMIF('100m Manikin Tow Men'!$C$7:$C$46,$A44,'100m Manikin Tow Men'!$Z$7:$Z$46))) -> 9 | F44: =IF($A44="","",IF(SUMIF('200m Obs Men'!$C$7:$C$46,$A44,'200m Obs Men'!$Z$7:$Z$46)=0,1+MAX('200m Obs Men'!$Z$7:$Z$46),SUMIF('200m Obs Men'!$C$7:$C$46,$A44,'200m Obs Men'!$Z$7:$Z$46))) -> 5 | G44: =IF($A44="","",IF(SUMIF('200m Super Men'!$C$7:$C$46,$A44,'200m Super Men'!$Z$7:$Z$46)=0,1+MAX('200m Super Men'!$Z$7:$Z$46),SUMIF('200m Super Men'!$C$7:$C$46,$A44,'200m Super Men'!$Z$7:$Z$46))) -> 4 | H44: =IF($A44="","",IF(SUMIF('100 Resue Men'!$C$7:$C$46,$A44,'100 Resue Men'!$Z$7:$Z$46)=0,1+MAX('100 Resue Men'!$Z$7:$Z$46),SUMIF('100 Resue Men'!$C$7:$C$46,$A44,'100 Resue Men'!$Z$7:$Z$46))) -> 7 | I44: =IF($A44="","",IF(SUMIF('Line Throw Men'!$C$7:$C$46,$A44,'Line Throw Men'!$AB$7:$AB$46)=0,1+MAX('Line Throw Men'!$AB$7:$AB$46),SUMIF('Line Throw Men'!$C$7:$C$46,$A44,'Line Throw Men'!$AB$7:$AB$46))) -> 8 | J44: =IF($A44="","",IF(SUMIF('4 x 50 Obs Relay Men'!$C$7:$C$46,$A44,'4 x 50 Obs Relay Men'!$W$7:$W$46)=0,1+MAX('4 x 50 Obs Relay Men'!$W$7:$W$46),SUMIF('4 x 50 Obs Relay Men'!$C$7:$C$46,$A44,'4 x 50 Obs Relay Men'!$W$7:$W$46))) -> 10 | K44: =IF($A44="","",IF(SUMIF('4 x 50 medley Relay Men'!$C$7:$C$46,$A44,'4 x 50 medley Relay Men'!$W$7:$W$46)=0,1+MAX('4 x 50 medley Relay Men'!$W$7:$W$46),SUMIF('4 x 50 medley Relay Men'!$C$7:$C$46,$A44,'4 x 50 medley Relay Men'!$W$7:$W$46))) -> 10 | L44: =IF($A44="","",IF(SUMIF('4 x 25 Manikin Carry Relay Men'!$C$7:$C$46,$A44,'4 x 25 Manikin Carry Relay Men'!$W$7:$W$46)=0,1+MAX('4 x 25 Manikin Carry Relay Men'!$W$7:$W$46),SUMIF('4 x 25 Manikin Carry Relay Men'!$C$7:$C$46,$A44,'4 x 25 Manikin Carry Relay Men'!$W$7:$W$46))) -> 3 | M44: =IF($A44="","",IF(SUMIF('4 x 12m Line Throw Men'!$C$7:$C$46,$A44,'4 x 12m Line Throw Men'!$W$7:$W$46)=0,1+MAX('4 x 12m Line Throw Men'!$W$7:$W$46),SUMIF('4 x 12m Line Throw Men'!$C$7:$C$46,$A44,'4 x 12m Line Throw Men'!$W$7:$W$46))) -> 2 | N44: 67 | O44: 5
A45: 5 | B45: University of Cambridge | C45: =IF($A45="","",IF(SUMIF('50m Manikin Carry Men'!$C$7:$C$46,$A45,'50m Manikin Carry Men'!$Z$7:$Z$46)=0,1+MAX('50m Manikin Carry Men'!$Z$7:$Z$46),SUMIF('50m Manikin Carry Men'!$C$7:$C$46,$A45,'50m Manikin Carry Men'!$Z$7:$Z$46))) -> 11 | D45: =IF($A45="","",IF(SUMIF('100m Manikin Carry Men'!$C$7:$C$46,$A45,'100m Manikin Carry Men'!$Z$7:$Z$46)=0,1+MAX('100m Manikin Carry Men'!$Z$7:$Z$46),SUMIF('100m Manikin Carry Men'!$C$7:$C$46,$A45,'100m Manikin Carry Men'!$Z$7:$Z$46))) -> 10 | E45: =IF($A45="","",IF(SUMIF('100m Manikin Tow Men'!$C$7:$C$46,$A45,'100m Manikin Tow Men'!$Z$7:$Z$46)=0,1+MAX('100m Manikin Tow Men'!$Z$7:$Z$46),SUMIF('100m Manikin Tow Men'!$C$7:$C$46,$A45,'100m Manikin Tow Men'!$Z$7:$Z$46))) -> 10 | F45: =IF($A45="","",IF(SUMIF('200m Obs Men'!$C$7:$C$46,$A45,'200m Obs Men'!$Z$7:$Z$46)=0,1+MAX('200m Obs Men'!$Z$7:$Z$46),SUMIF('200m Obs Men'!$C$7:$C$46,$A45,'200m Obs Men'!$Z$7:$Z$46))) -> 12 | G45: =IF($A45="","",IF(SUMIF('200m Super Men'!$C$7:$C$46,$A45,'200m Super Men'!$Z$7:$Z$46)=0,1+MAX('200m Super Men'!$Z$7:$Z$46),SUMIF('200m Super Men'!$C$7:$C$46,$A45,'200m Super Men'!$Z$7:$Z$46))) -> 9 | H45: =IF($A45="","",IF(SUMIF('100 Resue Men'!$C$7:$C$46,$A45,'100 Resue Men'!$Z$7:$Z$46)=0,1+MAX('100 Resue Men'!$Z$7:$Z$46),SUMIF('100 Resue Men'!$C$7:$C$46,$A45,'100 Resue Men'!$Z$7:$Z$46))) -> 11 | I45: =IF($A45="","",IF(SUMIF('Line Throw Men'!$C$7:$C$46,$A45,'Line Throw Men'!$AB$7:$AB$46)=0,1+MAX('Line Throw Men'!$AB$7:$AB$46),SUMIF('Line Throw Men'!$C$7:$C$46,$A45,'Line Throw Men'!$AB$7:$AB$46))) -> 10 | J45: =IF($A45="","",IF(SUMIF('4 x 50 Obs Relay Men'!$C$7:$C$46,$A45,'4 x 50 Obs Relay Men'!$W$7:$W$46)=0,1+MAX('4 x 50 Obs Relay Men'!$W$7:$W$46),SUMIF('4 x 50 Obs Relay Men'!$C$7:$C$46,$A45,'4 x 50 Obs Relay Men'!$W$7:$W$46))) -> 11 | K45: =IF($A45="","",IF(SUMIF('4 x 50 medley Relay Men'!$C$7:$C$46,$A45,'4 x 50 medley Relay Men'!$W$7:$W$46)=0,1+MAX('4 x 50 medley Relay Men'!$W$7:$W$46),SUMIF('4 x 50 medley Relay Men'!$C$7:$C$46,$A45,'4 x 50 medley Relay Men'!$W$7:$W$46))) -> 11 | L45: =IF($A45="","",IF(SUMIF('4 x 25 Manikin Carry Relay Men'!$C$7:$C$46,$A45,'4 x 25 Manikin Carry Relay Men'!$W$7:$W$46)=0,1+MAX('4 x 25 Manikin Carry Relay Men'!$W$7:$W$46),SUMIF('4 x 25 Manikin Carry Relay Men'!$C$7:$C$46,$A45,'4 x 25 Manikin Carry Relay Men'!$W$7:$W$46))) -> 10 | M45: =IF($A45="","",IF(SUMIF('4 x 12m Line Throw Men'!$C$7:$C$46,$A45,'4 x 12m Line Throw Men'!$W$7:$W$46)=0,1+MAX('4 x 12m Line Throw Men'!$W$7:$W$46),SUMIF('4 x 12m Line Throw Men'!$C$7:$C$46,$A45,'4 x 12m Line Throw Men'!$W$7:$W$46))) -> 8 | N45: 113 | O45: 12
A46: 16 | B46: University of London Union | C46: =IF($A46="","",IF(SUMIF('50m Manikin Carry Men'!$C$7:$C$46,$A46,'50m Manikin Carry Men'!$Z$7:$Z$46)=0,1+MAX('50m Manikin Carry Men'!$Z$7:$Z$46),SUMIF('50m Manikin Carry Men'!$C$7:$C$46,$A46,'50m Manikin Carry Men'!$Z$7:$Z$46))) -> 6 | D46: =IF($A46="","",IF(SUMIF('100m Manikin Carry Men'!$C$7:$C$46,$A46,'100m Manikin Carry Men'!$Z$7:$Z$46)=0,1+MAX('100m Manikin Carry Men'!$Z$7:$Z$46),SUMIF('100m Manikin Carry Men'!$C$7:$C$46,$A46,'100m Manikin Carry Men'!$Z$7:$Z$46))) -> 8 | E46: =IF($A46="","",IF(SUMIF('100m Manikin Tow Men'!$C$7:$C$46,$A46,'100m Manikin Tow Men'!$Z$7:$Z$46)=0,1+MAX('100m Manikin Tow Men'!$Z$7:$Z$46),SUMIF('100m Manikin Tow Men'!$C$7:$C$46,$A46,'100m Manikin Tow Men'!$Z$7:$Z$46))) -> 11 | F46: =IF($A46="","",IF(SUMIF('200m Obs Men'!$C$7:$C$46,$A46,'200m Obs Men'!$Z$7:$Z$46)=0,1+MAX('200m Obs Men'!$Z$7:$Z$46),SUMIF('200m Obs Men'!$C$7:$C$46,$A46,'200m Obs Men'!$Z$7:$Z$46))) -> 11 | G46: =IF($A46="","",IF(SUMIF('200m Super Men'!$C$7:$C$46,$A46,'200m Super Men'!$Z$7:$Z$46)=0,1+MAX('200m Super Men'!$Z$7:$Z$46),SUMIF('200m Super Men'!$C$7:$C$46,$A46,'200m Super Men'!$Z$7:$Z$46))) -> 8 | H46: =IF($A46="","",IF(SUMIF('100 Resue Men'!$C$7:$C$46,$A46,'100 Resue Men'!$Z$7:$Z$46)=0,1+MAX('100 Resue Men'!$Z$7:$Z$46),SUMIF('100 Resue Men'!$C$7:$C$46,$A46,'100 Resue Men'!$Z$7:$Z$46))) -> 6 | I46: =IF($A46="","",IF(SUMIF('Line Throw Men'!$C$7:$C$46,$A46,'Line Throw Men'!$AB$7:$AB$46)=0,1+MAX('Line Throw Men'!$AB$7:$AB$46),SUMIF('Line Throw Men'!$C$7:$C$46,$A46,'Line Throw Men'!$AB$7:$AB$46))) -> 6 | J46: =IF($A46="","",IF(SUMIF('4 x 50 Obs Relay Men'!$C$7:$C$46,$A46,'4 x 50 Obs Relay Men'!$W$7:$W$46)=0,1+MAX('4 x 50 Obs Relay Men'!$W$7:$W$46),SUMIF('4 x 50 Obs Relay Men'!$C$7:$C$46,$A46,'4 x 50 Obs Relay Men'!$W$7:$W$46))) -> 9 | K46: =IF($A46="","",IF(SUMIF('4 x 50 medley Relay Men'!$C$7:$C$46,$A46,'4 x 50 medley Relay Men'!$W$7:$W$46)=0,1+MAX('4 x 50 medley Relay Men'!$W$7:$W$46),SUMIF('4 x 50 medley Relay Men'!$C$7:$C$46,$A46,'4 x 50 medley Relay Men'!$W$7:$W$46))) -> 6 | L46: =IF($A46="","",IF(SUMIF('4 x 25 Manikin Carry Relay Men'!$C$7:$C$46,$A46,'4 x 25 Manikin Carry Relay Men'!$W$7:$W$46)=0,1+MAX('4 x 25 Manikin Carry Relay Men'!$W$7:$W$46),SUMIF('4 x 25 Manikin Carry Relay Men'!$C$7:$C$46,$A46,'4 x 25 Manikin Carry Relay Men'!$W$7:$W$46))) -> 4 | M46: =IF($A46="","",IF(SUMIF('4 x 12m Line Throw Men'!$C$7:$C$46,$A46,'4 x 12m Line Throw Men'!$W$7:$W$46)=0,1+MAX('4 x 12m Line Throw Men'!$W$7:$W$46),SUMIF('4 x 12m Line Throw Men'!$C$7:$C$46,$A46,'4 x 12m Line Throw Men'!$W$7:$W$46))) -> 5 | N46: 80 | O46: 8
A47: 8 | B47: University of Nottingham | C47: =IF($A47="","",IF(SUMIF('50m Manikin Carry Men'!$C$7:$C$46,$A47,'50m Manikin Carry Men'!$Z$7:$Z$46)=0,1+MAX('50m Manikin Carry Men'!$Z$7:$Z$46),SUMIF('50m Manikin Carry Men'!$C$7:$C$46,$A47,'50m Manikin Carry Men'!$Z$7:$Z$46))) -> 8 | D47: =IF($A47="","",IF(SUMIF('100m Manikin Carry Men'!$C$7:$C$46,$A47,'100m Manikin Carry Men'!$Z$7:$Z$46)=0,1+MAX('100m Manikin Carry Men'!$Z$7:$Z$46),SUMIF('100m Manikin Carry Men'!$C$7:$C$46,$A47,'100m Manikin Carry Men'!$Z$7:$Z$46))) -> 7 | E47: =IF($A47="","",IF(SUMIF('100m Manikin Tow Men'!$C$7:$C$46,$A47,'100m Manikin Tow Men'!$Z$7:$Z$46)=0,1+MAX('100m Manikin Tow Men'!$Z$7:$Z$46),SUMIF('100m Manikin Tow Men'!$C$7:$C$46,$A47,'100m Manikin Tow Men'!$Z$7:$Z$46))) -> 7 | F47: =IF($A47="","",IF(SUMIF('200m Obs Men'!$C$7:$C$46,$A47,'200m Obs Men'!$Z$7:$Z$46)=0,1+MAX('200m Obs Men'!$Z$7:$Z$46),SUMIF('200m Obs Men'!$C$7:$C$46,$A47,'200m Obs Men'!$Z$7:$Z$46))) -> 2 | G47: =IF($A47="","",IF(SUMIF('200m Super Men'!$C$7:$C$46,$A47,'200m Super Men'!$Z$7:$Z$46)=0,1+MAX('200m Super Men'!$Z$7:$Z$46),SUMIF('200m Super Men'!$C$7:$C$46,$A47,'200m Super Men'!$Z$7:$Z$46))) -> 5 | H47: =IF($A47="","",IF(SUMIF('100 Resue Men'!$C$7:$C$46,$A47,'100 Resue Men'!$Z$7:$Z$46)=0,1+MAX('100 Resue Men'!$Z$7:$Z$46),SUMIF('100 Resue Men'!$C$7:$C$46,$A47,'100 Resue Men'!$Z$7:$Z$46))) -> 12 | I47: =IF($A47="","",IF(SUMIF('Line Throw Men'!$C$7:$C$46,$A47,'Line Throw Men'!$AB$7:$AB$46)=0,1+MAX('Line Throw Men'!$AB$7:$AB$46),SUMIF('Line Throw Men'!$C$7:$C$46,$A47,'Line Throw Men'!$AB$7:$AB$46))) -> 9 | J47: =IF($A47="","",IF(SUMIF('4 x 50 Obs Relay Men'!$C$7:$C$46,$A47,'4 x 50 Obs Relay Men'!$W$7:$W$46)=0,1+MAX('4 x 50 Obs Relay Men'!$W$7:$W$46),SUMIF('4 x 50 Obs Relay Men'!$C$7:$C$46,$A47,'4 x 50 Obs Relay Men'!$W$7:$W$46))) -> 6 | K47: =IF($A47="","",IF(SUMIF('4 x 50 medley Relay Men'!$C$7:$C$46,$A47,'4 x 50 medley Relay Men'!$W$7:$W$46)=0,1+MAX('4 x 50 medley Relay Men'!$W$7:$W$46),SUMIF('4 x 50 medley Relay Men'!$C$7:$C$46,$A47,'4 x 50 medley Relay Men'!$W$7:$W$46))) -> 8 | L47: =IF($A47="","",IF(SUMIF('4 x 25 Manikin Carry Relay Men'!$C$7:$C$46,$A47,'4 x 25 Manikin Carry Relay Men'!$W$7:$W$46)=0,1+MAX('4 x 25 Manikin Carry Relay Men'!$W$7:$W$46),SUMIF('4 x 25 Manikin Carry Relay Men'!$C$7:$C$46,$A47,'4 x 25 Manikin Carry Relay Men'!$W$7:$W$46))) -> 5 | M47: =IF($A47="","",IF(SUMIF('4 x 12m Line Throw Men'!$C$7:$C$46,$A47,'4 x 12m Line Throw Men'!$W$7:$W$46)=0,1+MAX('4 x 12m Line Throw Men'!$W$7:$W$46),SUMIF('4 x 12m Line Throw Men'!$C$7:$C$46,$A47,'4 x 12m Line Throw Men'!$W$7:$W$46))) -> 1 | N47: 70 | O47: 6
A48: 18 | B48: University of Oxford | C48: =IF($A48="","",IF(SUMIF('50m Manikin Carry Men'!$C$7:$C$46,$A48,'50m Manikin Carry Men'!$Z$7:$Z$46)=0,1+MAX('50m Manikin Carry Men'!$Z$7:$Z$46),SUMIF('50m Manikin Carry Men'!$C$7:$C$46,$A48,'50m Manikin Carry Men'!$Z$7:$Z$46))) -> 10 | D48: =IF($A48="","",IF(SUMIF('100m Manikin Carry Men'!$C$7:$C$46,$A48,'100m Manikin Carry Men'!$Z$7:$Z$46)=0,1+MAX('100m Manikin Carry Men'!$Z$7:$Z$46),SUMIF('100m Manikin Carry Men'!$C$7:$C$46,$A48,'100m Manikin Carry Men'!$Z$7:$Z$46))) -> 11 | E48: =IF($A48="","",IF(SUMIF('100m Manikin Tow Men'!$C$7:$C$46,$A48,'100m Manikin Tow Men'!$Z$7:$Z$46)=0,1+MAX('100m Manikin Tow Men'!$Z$7:$Z$46),SUMIF('100m Manikin Tow Men'!$C$7:$C$46,$A48,'100m Manikin Tow Men'!$Z$7:$Z$46))) -> 13 | F48: =IF($A48="","",IF(SUMIF('200m Obs Men'!$C$7:$C$46,$A48,'200m Obs Men'!$Z$7:$Z$46)=0,1+MAX('200m Obs Men'!$Z$7:$Z$46),SUMIF('200m Obs Men'!$C$7:$C$46,$A48,'200m Obs Men'!$Z$7:$Z$46))) -> 6 | G48: =IF($A48="","",IF(SUMIF('200m Super Men'!$C$7:$C$46,$A48,'200m Super Men'!$Z$7:$Z$46)=0,1+MAX('200m Super Men'!$Z$7:$Z$46),SUMIF('200m Super Men'!$C$7:$C$46,$A48,'200m Super Men'!$Z$7:$Z$46))) -> 11 | H48: =IF($A48="","",IF(SUMIF('100 Resue Men'!$C$7:$C$46,$A48,'100 Resue Men'!$Z$7:$Z$46)=0,1+MAX('100 Resue Men'!$Z$7:$Z$46),SUMIF('100 Resue Men'!$C$7:$C$46,$A48,'100 Resue Men'!$Z$7:$Z$46))) -> 10 | I48: =IF($A48="","",IF(SUMIF('Line Throw Men'!$C$7:$C$46,$A48,'Line Throw Men'!$AB$7:$AB$46)=0,1+MAX('Line Throw Men'!$AB$7:$AB$46),SUMIF('Line Throw Men'!$C$7:$C$46,$A48,'Line Throw Men'!$AB$7:$AB$46))) -> 7 | J48: =IF($A48="","",IF(SUMIF('4 x 50 Obs Relay Men'!$C$7:$C$46,$A48,'4 x 50 Obs Relay Men'!$W$7:$W$46)=0,1+MAX('4 x 50 Obs Relay Men'!$W$7:$W$46),SUMIF('4 x 50 Obs Relay Men'!$C$7:$C$46,$A48,'4 x 50 Obs Relay Men'!$W$7:$W$46))) -> 8 | K48: =IF($A48="","",IF(SUMIF('4 x 50 medley Relay Men'!$C$7:$C$46,$A48,'4 x 50 medley Relay Men'!$W$7:$W$46)=0,1+MAX('4 x 50 medley Relay Men'!$W$7:$W$46),SUMIF('4 x 50 medley Relay Men'!$C$7:$C$46,$A48,'4 x 50 medley Relay Men'!$W$7:$W$46))) -> 9 | L48: =IF($A48="","",IF(SUMIF('4 x 25 Manikin Carry Relay Men'!$C$7:$C$46,$A48,'4 x 25 Manikin Carry Relay Men'!$W$7:$W$46)=0,1+MAX('4 x 25 Manikin Carry Relay Men'!$W$7:$W$46),SUMIF('4 x 25 Manikin Carry Relay Men'!$C$7:$C$46,$A48,'4 x 25 Manikin Carry Relay Men'!$W$7:$W$46))) -> 6 | M48: =IF($A48="","",IF(SUMIF('4 x 12m Line Throw Men'!$C$7:$C$46,$A48,'4 x 12m Line Throw Men'!$W$7:$W$46)=0,1+MAX('4 x 12m Line Throw Men'!$W$7:$W$46),SUMIF('4 x 12m Line Throw Men'!$C$7:$C$46,$A48,'4 x 12m Line Throw Men'!$W$7:$W$46))) -> 6 | N48: 97 | O48: 11
A49: 9 | B49: University of Plymouth | C49: 12 | D49: =IF($A49="","",IF(SUMIF('100m Manikin Carry Men'!$C$7:$C$46,$A49,'100m Manikin Carry Men'!$Z$7:$Z$46)=0,1+MAX('100m Manikin Carry Men'!$Z$7:$Z$46),SUMIF('100m Manikin Carry Men'!$C$7:$C$46,$A49,'100m Manikin Carry Men'!$Z$7:$Z$46))) -> 6 | E49: =IF($A49="","",IF(SUMIF('100m Manikin Tow Men'!$C$7:$C$46,$A49,'100m Manikin Tow Men'!$Z$7:$Z$46)=0,1+MAX('100m Manikin Tow Men'!$Z$7:$Z$46),SUMIF('100m Manikin Tow Men'!$C$7:$C$46,$A49,'100m Manikin Tow Men'!$Z$7:$Z$46))) -> 12 | F49: =IF($A49="","",IF(SUMIF('200m Obs Men'!$C$7:$C$46,$A49,'200m Obs Men'!$Z$7:$Z$46)=0,1+MAX('200m Obs Men'!$Z$7:$Z$46),SUMIF('200m Obs Men'!$C$7:$C$46,$A49,'200m Obs Men'!$Z$7:$Z$46))) -> 8 | G49: =IF($A49="","",IF(SUMIF('200m Super Men'!$C$7:$C$46,$A49,'200m Super Men'!$Z$7:$Z$46)=0,1+MAX('200m Super Men'!$Z$7:$Z$46),SUMIF('200m Super Men'!$C$7:$C$46,$A49,'200m Super Men'!$Z$7:$Z$46))) -> 12 | H49: =IF($A49="","",IF(SUMIF('100 Resue Men'!$C$7:$C$46,$A49,'100 Resue Men'!$Z$7:$Z$46)=0,1+MAX('100 Resue Men'!$Z$7:$Z$46),SUMIF('100 Resue Men'!$C$7:$C$46,$A49,'100 Resue Men'!$Z$7:$Z$46))) -> 8 | I49: =IF($A49="","",IF(SUMIF('Line Throw Men'!$C$7:$C$46,$A49,'Line Throw Men'!$AB$7:$AB$46)=0,1+MAX('Line Throw Men'!$AB$7:$AB$46),SUMIF('Line Throw Men'!$C$7:$C$46,$A49,'Line Throw Men'!$AB$7:$AB$46))) -> 5 | J49: =IF($A49="","",IF(SUMIF('4 x 50 Obs Relay Men'!$C$7:$C$46,$A49,'4 x 50 Obs Relay Men'!$W$7:$W$46)=0,1+MAX('4 x 50 Obs Relay Men'!$W$7:$W$46),SUMIF('4 x 50 Obs Relay Men'!$C$7:$C$46,$A49,'4 x 50 Obs Relay Men'!$W$7:$W$46))) -> 4 | K49: =IF($A49="","",IF(SUMIF('4 x 50 medley Relay Men'!$C$7:$C$46,$A49,'4 x 50 medley Relay Men'!$W$7:$W$46)=0,1+MAX('4 x 50 medley Relay Men'!$W$7:$W$46),SUMIF('4 x 50 medley Relay Men'!$C$7:$C$46,$A49,'4 x 50 medley Relay Men'!$W$7:$W$46))) -> 4 | L49: =IF($A49="","",IF(SUMIF('4 x 25 Manikin Carry Relay Men'!$C$7:$C$46,$A49,'4 x 25 Manikin Carry Relay Men'!$W$7:$W$46)=0,1+MAX('4 x 25 Manikin Carry Relay Men'!$W$7:$W$46),SUMIF('4 x 25 Manikin Carry Relay Men'!$C$7:$C$46,$A49,'4 x 25 Manikin Carry Relay Men'!$W$7:$W$46))) -> 8 | M49: =IF($A49="","",IF(SUMIF('4 x 12m Line Throw Men'!$C$7:$C$46,$A49,'4 x 12m Line Throw Men'!$W$7:$W$46)=0,1+MAX('4 x 12m Line Throw Men'!$W$7:$W$46),SUMIF('4 x 12m Line Throw Men'!$C$7:$C$46,$A49,'4 x 12m Line Throw Men'!$W$7:$W$46))) -> 3 | N49: 82 | O49: 9
A50: 20 | B50: University of Southampton | C50: =IF($A50="","",IF(SUMIF('50m Manikin Carry Men'!$C$7:$C$46,$A50,'50m Manikin Carry Men'!$Z$7:$Z$46)=0,1+MAX('50m Manikin Carry Men'!$Z$7:$Z$46),SUMIF('50m Manikin Carry Men'!$C$7:$C$46,$A50,'50m Manikin Carry Men'!$Z$7:$Z$46))) -> 5 | D50: =IF($A50="","",IF(SUMIF('100m Manikin Carry Men'!$C$7:$C$46,$A50,'100m Manikin Carry Men'!$Z$7:$Z$46)=0,1+MAX('100m Manikin Carry Men'!$Z$7:$Z$46),SUMIF('100m Manikin Carry Men'!$C$7:$C$46,$A50,'100m Manikin Carry Men'!$Z$7:$Z$46))) -> 2 | E50: =IF($A50="","",IF(SUMIF('100m Manikin Tow Men'!$C$7:$C$46,$A50,'100m Manikin Tow Men'!$Z$7:$Z$46)=0,1+MAX('100m Manikin Tow Men'!$Z$7:$Z$46),SUMIF('100m Manikin Tow Men'!$C$7:$C$46,$A50,'100m Manikin Tow Men'!$Z$7:$Z$46))) -> 5 | F50: =IF($A50="","",IF(SUMIF('200m Obs Men'!$C$7:$C$46,$A50,'200m Obs Men'!$Z$7:$Z$46)=0,1+MAX('200m Obs Men'!$Z$7:$Z$46),SUMIF('200m Obs Men'!$C$7:$C$46,$A50,'200m Obs Men'!$Z$7:$Z$46))) -> 7 | G50: =IF($A50="","",IF(SUMIF('200m Super Men'!$C$7:$C$46,$A50,'200m Super Men'!$Z$7:$Z$46)=0,1+MAX('200m Super Men'!$Z$7:$Z$46),SUMIF('200m Super Men'!$C$7:$C$46,$A50,'200m Super Men'!$Z$7:$Z$46))) -> 7 | H50: =IF($A50="","",IF(SUMIF('100 Resue Men'!$C$7:$C$46,$A50,'100 Resue Men'!$Z$7:$Z$46)=0,1+MAX('100 Resue Men'!$Z$7:$Z$46),SUMIF('100 Resue Men'!$C$7:$C$46,$A50,'100 Resue Men'!$Z$7:$Z$46))) -> 4 | I50: =IF($A50="","",IF(SUMIF('Line Throw Men'!$C$7:$C$46,$A50,'Line Throw Men'!$AB$7:$AB$46)=0,1+MAX('Line Throw Men'!$AB$7:$AB$46),SUMIF('Line Throw Men'!$C$7:$C$46,$A50,'Line Throw Men'!$AB$7:$AB$46))) -> 2 | J50: =IF($A50="","",IF(SUMIF('4 x 50 Obs Relay Men'!$C$7:$C$46,$A50,'4 x 50 Obs Relay Men'!$W$7:$W$46)=0,1+MAX('4 x 50 Obs Relay Men'!$W$7:$W$46),SUMIF('4 x 50 Obs Relay Men'!$C$7:$C$46,$A50,'4 x 50 Obs Relay Men'!$W$7:$W$46))) -> 3 | K50: =IF($A50="","",IF(SUMIF('4 x 50 medley Relay Men'!$C$7:$C$46,$A50,'4 x 50 medley Relay Men'!$W$7:$W$46)=0,1+MAX('4 x 50 medley Relay Men'!$W$7:$W$46),SUMIF('4 x 50 medley Relay Men'!$C$7:$C$46,$A50,'4 x 50 medley Relay Men'!$W$7:$W$46))) -> 3 | L50: =IF($A50="","",IF(SUMIF('4 x 25 Manikin Carry Relay Men'!$C$7:$C$46,$A50,'4 x 25 Manikin Carry Relay Men'!$W$7:$W$46)=0,1+MAX('4 x 25 Manikin Carry Relay Men'!$W$7:$W$46),SUMIF('4 x 25 Manikin Carry Relay Men'!$C$7:$C$46,$A50,'4 x 25 Manikin Carry Relay Men'!$W$7:$W$46))) -> 2 | M50: =IF($A50="","",IF(SUMIF('4 x 12m Line Throw Men'!$C$7:$C$46,$A50,'4 x 12m Line Throw Men'!$W$7:$W$46)=0,1+MAX('4 x 12m Line Throw Men'!$W$7:$W$46),SUMIF('4 x 12m Line Throw Men'!$C$7:$C$46,$A50,'4 x 12m Line Throw Men'!$W$7:$W$46))) -> 7 | N50: 47 | O50: 3
A51: 12 | B51: University of Warwick | C51: =IF($A51="","",IF(SUMIF('50m Manikin Carry Men'!$C$7:$C$46,$A51,'50m Manikin Carry Men'!$Z$7:$Z$46)=0,1+MAX('50m Manikin Carry Men'!$Z$7:$Z$46),SUMIF('50m Manikin Carry Men'!$C$7:$C$46,$A51,'50m Manikin Carry Men'!$Z$7:$Z$46))) -> 7 | D51: =IF($A51="","",IF(SUMIF('100m Manikin Carry Men'!$C$7:$C$46,$A51,'100m Manikin Carry Men'!$Z$7:$Z$46)=0,1+MAX('100m Manikin Carry Men'!$Z$7:$Z$46),SUMIF('100m Manikin Carry Men'!$C$7:$C$46,$A51,'100m Manikin Carry Men'!$Z$7:$Z$46))) -> 4 | E51: =IF($A51="","",IF(SUMIF('100m Manikin Tow Men'!$C$7:$C$46,$A51,'100m Manikin Tow Men'!$Z$7:$Z$46)=0,1+MAX('100m Manikin Tow Men'!$Z$7:$Z$46),SUMIF('100m Manikin Tow Men'!$C$7:$C$46,$A51,'100m Manikin Tow Men'!$Z$7:$Z$46))) -> 4 | F51: =IF($A51="","",IF(SUMIF('200m Obs Men'!$C$7:$C$46,$A51,'200m Obs Men'!$Z$7:$Z$46)=0,1+MAX('200m Obs Men'!$Z$7:$Z$46),SUMIF('200m Obs Men'!$C$7:$C$46,$A51,'200m Obs Men'!$Z$7:$Z$46))) -> 9 | G51: =IF($A51="","",IF(SUMIF('200m Super Men'!$C$7:$C$46,$A51,'200m Super Men'!$Z$7:$Z$46)=0,1+MAX('200m Super Men'!$Z$7:$Z$46),SUMIF('200m Super Men'!$C$7:$C$46,$A51,'200m Super Men'!$Z$7:$Z$46))) -> 6 | H51: =IF($A51="","",IF(SUMIF('100 Resue Men'!$C$7:$C$46,$A51,'100 Resue Men'!$Z$7:$Z$46)=0,1+MAX('100 Resue Men'!$Z$7:$Z$46),SUMIF('100 Resue Men'!$C$7:$C$46,$A51,'100 Resue Men'!$Z$7:$Z$46))) -> 5 | I51: =IF($A51="","",IF(SUMIF('Line Throw Men'!$C$7:$C$46,$A51,'Line Throw Men'!$AB$7:$AB$46)=0,1+MAX('Line Throw Men'!$AB$7:$AB$46),SUMIF('Line Throw Men'!$C$7:$C$46,$A51,'Line Throw Men'!$AB$7:$AB$46))) -> 1 | J51: =IF($A51="","",IF(SUMIF('4 x 50 Obs Relay Men'!$C$7:$C$46,$A51,'4 x 50 Obs Relay Men'!$W$7:$W$46)=0,1+MAX('4 x 50 Obs Relay Men'!$W$7:$W$46),SUMIF('4 x 50 Obs Relay Men'!$C$7:$C$46,$A51,'4 x 50 Obs Relay Men'!$W$7:$W$46))) -> 5 | K51: =IF($A51="","",IF(SUMIF('4 x 50 medley Relay Men'!$C$7:$C$46,$A51,'4 x 50 medley Relay Men'!$W$7:$W$46)=0,1+MAX('4 x 50 medley Relay Men'!$W$7:$W$46),SUMIF('4 x 50 medley Relay Men'!$C$7:$C$46,$A51,'4 x 50 medley Relay Men'!$W$7:$W$46))) -> 5 | L51: =IF($A51="","",IF(SUMIF('4 x 25 Manikin Carry Relay Men'!$C$7:$C$46,$A51,'4 x 25 Manikin Carry Relay Men'!$W$7:$W$46)=0,1+MAX('4 x 25 Manikin Carry Relay Men'!$W$7:$W$46),SUMIF('4 x 25 Manikin Carry Relay Men'!$C$7:$C$46,$A51,'4 x 25 Manikin Carry Relay Men'!$W$7:$W$46))) -> 9 | M51: =IF($A51="","",IF(SUMIF('4 x 12m Line Throw Men'!$C$7:$C$46,$A51,'4 x 12m Line Throw Men'!$W$7:$W$46)=0,1+MAX('4 x 12m Line Throw Men'!$W$7:$W$46),SUMIF('4 x 12m Line Throw Men'!$C$7:$C$46,$A51,'4 x 12m Line Throw Men'!$W$7:$W$46))) -> 7 | N51: 62 | O51: 4
A52: 11 | B52: St. Andrews | C52: =IF($A52="","",IF(SUMIF('50m Manikin Carry Men'!$C$7:$C$46,$A52,'50m Manikin Carry Men'!$Z$7:$Z$46)=0,1+MAX('50m Manikin Carry Men'!$Z$7:$Z$46),SUMIF('50m Manikin Carry Men'!$C$7:$C$46,$A52,'50m Manikin Carry Men'!$Z$7:$Z$46))) -> 9 | D52: =IF($A52="","",IF(SUMIF('100m Manikin Carry Men'!$C$7:$C$46,$A52,'100m Manikin Carry Men'!$Z$7:$Z$46)=0,1+MAX('100m Manikin Carry Men'!$Z$7:$Z$46),SUMIF('100m Manikin Carry Men'!$C$7:$C$46,$A52,'100m Manikin Carry Men'!$Z$7:$Z$46))) -> 9 | E52: =IF($A52="","",IF(SUMIF('100m Manikin Tow Men'!$C$7:$C$46,$A52,'100m Manikin Tow Men'!$Z$7:$Z$46)=0,1+MAX('100m Manikin Tow Men'!$Z$7:$Z$46),SUMIF('100m Manikin Tow Men'!$C$7:$C$46,$A52,'100m Manikin Tow Men'!$Z$7:$Z$46))) -> 8 | F52: =IF($A52="","",IF(SUMIF('200m Obs Men'!$C$7:$C$46,$A52,'200m Obs Men'!$Z$7:$Z$46)=0,1+MAX('200m Obs Men'!$Z$7:$Z$46),SUMIF('200m Obs Men'!$C$7:$C$46,$A52,'200m Obs Men'!$Z$7:$Z$46))) -> 10 | G52: =IF($A52="","",IF(SUMIF('200m Super Men'!$C$7:$C$46,$A52,'200m Super Men'!$Z$7:$Z$46)=0,1+MAX('200m Super Men'!$Z$7:$Z$46),SUMIF('200m Super Men'!$C$7:$C$46,$A52,'200m Super Men'!$Z$7:$Z$46))) -> 10 | H52: =IF($A52="","",IF(SUMIF('100 Resue Men'!$C$7:$C$46,$A52,'100 Resue Men'!$Z$7:$Z$46)=0,1+MAX('100 Resue Men'!$Z$7:$Z$46),SUMIF('100 Resue Men'!$C$7:$C$46,$A52,'100 Resue Men'!$Z$7:$Z$46))) -> 9 | I52: =IF($A52="","",IF(SUMIF('Line Throw Men'!$C$7:$C$46,$A52,'Line Throw Men'!$AB$7:$AB$46)=0,1+MAX('Line Throw Men'!$AB$7:$AB$46),SUMIF('Line Throw Men'!$C$7:$C$46,$A52,'Line Throw Men'!$AB$7:$AB$46))) -> 4 | J52: =IF($A52="","",IF(SUMIF('4 x 50 Obs Relay Men'!$C$7:$C$46,$A52,'4 x 50 Obs Relay Men'!$W$7:$W$46)=0,1+MAX('4 x 50 Obs Relay Men'!$W$7:$W$46),SUMIF('4 x 50 Obs Relay Men'!$C$7:$C$46,$A52,'4 x 50 Obs Relay Men'!$W$7:$W$46))) -> 7 | K52: =IF($A52="","",IF(SUMIF('4 x 50 medley Relay Men'!$C$7:$C$46,$A52,'4 x 50 medley Relay Men'!$W$7:$W$46)=0,1+MAX('4 x 50 medley Relay Men'!$W$7:$W$46),SUMIF('4 x 50 medley Relay Men'!$C$7:$C$46,$A52,'4 x 50 medley Relay Men'!$W$7:$W$46))) -> 7 | L52: =IF($A52="","",IF(SUMIF('4 x 25 Manikin Carry Relay Men'!$C$7:$C$46,$A52,'4 x 25 Manikin Carry Relay Men'!$W$7:$W$46)=0,1+MAX('4 x 25 Manikin Carry Relay Men'!$W$7:$W$46),SUMIF('4 x 25 Manikin Carry Relay Men'!$C$7:$C$46,$A52,'4 x 25 Manikin Carry Relay Men'!$W$7:$W$46))) -> 7 | M52: =IF($A52="","",IF(SUMIF('4 x 12m Line Throw Men'!$C$7:$C$46,$A52,'4 x 12m Line Throw Men'!$W$7:$W$46)=0,1+MAX('4 x 12m Line Throw Men'!$W$7:$W$46),SUMIF('4 x 12m Line Throw Men'!$C$7:$C$46,$A52,'4 x 12m Line Throw Men'!$W$7:$W$46))) -> 7 | N52: 87 | O52: 10
C53: =IF($A53="","",IF(SUMIF('50m Manikin Carry Men'!$C$7:$C$46,$A53,'50m Manikin Carry Men'!$Z$7:$Z$46)=0,1+MAX('50m Manikin Carry Men'!$Z$7:$Z$46),SUMIF('50m Manikin Carry Men'!$C$7:$C$46,$A53,'50m Manikin Carry Men'!$Z$7:$Z$46))) ->  | D53: =IF($A53="","",IF(SUMIF('100m Manikin Carry Men'!$C$7:$C$46,$A53,'100m Manikin Carry Men'!$Z$7:$Z$46)=0,1+MAX('100m Manikin Carry Men'!$Z$7:$Z$46),SUMIF('100m Manikin Carry Men'!$C$7:$C$46,$A53,'100m Manikin Carry Men'!$Z$7:$Z$46))) ->  | E53: =IF($A53="","",IF(SUMIF('100m Manikin Tow Men'!$C$7:$C$46,$A53,'100m Manikin Tow Men'!$Z$7:$Z$46)=0,1+MAX('100m Manikin Tow Men'!$Z$7:$Z$46),SUMIF('100m Manikin Tow Men'!$C$7:$C$46,$A53,'100m Manikin Tow Men'!$Z$7:$Z$46))) ->  | F53: =IF($A53="","",IF(SUMIF('200m Obs Men'!$C$7:$C$46,$A53,'200m Obs Men'!$Z$7:$Z$46)=0,1+MAX('200m Obs Men'!$Z$7:$Z$46),SUMIF('200m Obs Men'!$C$7:$C$46,$A53,'200m Obs Men'!$Z$7:$Z$46))) ->  | G53: =IF($A53="","",IF(SUMIF('200m Super Men'!$C$7:$C$46,$A53,'200m Super Men'!$Z$7:$Z$46)=0,1+MAX('200m Super Men'!$Z$7:$Z$46),SUMIF('200m Super Men'!$C$7:$C$46,$A53,'200m Super Men'!$Z$7:$Z$46))) ->  | H53: =IF($A53="","",IF(SUMIF('100 Resue Men'!$C$7:$C$46,$A53,'100 Resue Men'!$Z$7:$Z$46)=0,1+MAX('100 Resue Men'!$Z$7:$Z$46),SUMIF('100 Resue Men'!$C$7:$C$46,$A53,'100 Resue Men'!$Z$7:$Z$46))) ->  | I53: =IF($A53="","",IF(SUMIF('Line Throw Men'!$C$7:$C$46,$A53,'Line Throw Men'!$AB$7:$AB$46)=0,1+MAX('Line Throw Men'!$AB$7:$AB$46),SUMIF('Line Throw Men'!$C$7:$C$46,$A53,'Line Throw Men'!$AB$7:$AB$46))) ->  | J53: =IF($A53="","",IF(SUMIF('4 x 50 Obs Relay Men'!$C$7:$C$46,$A53,'4 x 50 Obs Relay Men'!$W$7:$W$46)=0,1+MAX('4 x 50 Obs Relay Men'!$W$7:$W$46),SUMIF('4 x 50 Obs Relay Men'!$C$7:$C$46,$A53,'4 x 50 Obs Relay Men'!$W$7:$W$46))) ->  | K53: =IF($A53="","",IF(SUMIF('4 x 50 medley Relay Men'!$C$7:$C$46,$A53,'4 x 50 medley Relay Men'!$W$7:$W$46)=0,1+MAX('4 x 50 medley Relay Men'!$W$7:$W$46),SUMIF('4 x 50 medley Relay Men'!$C$7:$C$46,$A53,'4 x 50 medley Relay Men'!$W$7:$W$46))) ->  | L53: =IF($A53="","",IF(SUMIF('4 x 25 Manikin Carry Relay Men'!$C$7:$C$46,$A53,'4 x 25 Manikin Carry Relay Men'!$W$7:$W$46)=0,1+MAX('4 x 25 Manikin Carry Relay Men'!$W$7:$W$46),SUMIF('4 x 25 Manikin Carry Relay Men'!$C$7:$C$46,$A53,'4 x 25 Manikin Carry Relay Men'!$W$7:$W$46))) ->  | M53: =IF($A53="","",IF(SUMIF('4 x 12m Line Throw Men'!$C$7:$C$46,$A53,'4 x 12m Line Throw Men'!$W$7:$W$46)=0,1+MAX('4 x 12m Line Throw Men'!$W$7:$W$46),SUMIF('4 x 12m Line Throw Men'!$C$7:$C$46,$A53,'4 x 12m Line Throw Men'!$W$7:$W$46))) -> 
C54: =IF($A54="","",IF(SUMIF('50m Manikin Carry Men'!$C$7:$C$46,$A54,'50m Manikin Carry Men'!$Z$7:$Z$46)=0,1+MAX('50m Manikin Carry Men'!$Z$7:$Z$46),SUMIF('50m Manikin Carry Men'!$C$7:$C$46,$A54,'50m Manikin Carry Men'!$Z$7:$Z$46))) ->  | D54: =IF($A54="","",IF(SUMIF('100m Manikin Carry Men'!$C$7:$C$46,$A54,'100m Manikin Carry Men'!$Z$7:$Z$46)=0,1+MAX('100m Manikin Carry Men'!$Z$7:$Z$46),SUMIF('100m Manikin Carry Men'!$C$7:$C$46,$A54,'100m Manikin Carry Men'!$Z$7:$Z$46))) ->  | E54: =IF($A54="","",IF(SUMIF('100m Manikin Tow Men'!$C$7:$C$46,$A54,'100m Manikin Tow Men'!$Z$7:$Z$46)=0,1+MAX('100m Manikin Tow Men'!$Z$7:$Z$46),SUMIF('100m Manikin Tow Men'!$C$7:$C$46,$A54,'100m Manikin Tow Men'!$Z$7:$Z$46))) ->  | F54: =IF($A54="","",IF(SUMIF('200m Obs Men'!$C$7:$C$46,$A54,'200m Obs Men'!$Z$7:$Z$46)=0,1+MAX('200m Obs Men'!$Z$7:$Z$46),SUMIF('200m Obs Men'!$C$7:$C$46,$A54,'200m Obs Men'!$Z$7:$Z$46))) ->  | G54: =IF($A54="","",IF(SUMIF('200m Super Men'!$C$7:$C$46,$A54,'200m Super Men'!$Z$7:$Z$46)=0,1+MAX('200m Super Men'!$Z$7:$Z$46),SUMIF('200m Super Men'!$C$7:$C$46,$A54,'200m Super Men'!$Z$7:$Z$46))) ->  | H54: =IF($A54="","",IF(SUMIF('100 Resue Men'!$C$7:$C$46,$A54,'100 Resue Men'!$Z$7:$Z$46)=0,1+MAX('100 Resue Men'!$Z$7:$Z$46),SUMIF('100 Resue Men'!$C$7:$C$46,$A54,'100 Resue Men'!$Z$7:$Z$46))) ->  | I54: =IF($A54="","",IF(SUMIF('Line Throw Men'!$C$7:$C$46,$A54,'Line Throw Men'!$AB$7:$AB$46)=0,1+MAX('Line Throw Men'!$AB$7:$AB$46),SUMIF('Line Throw Men'!$C$7:$C$46,$A54,'Line Throw Men'!$AB$7:$AB$46))) ->  | J54: =IF($A54="","",IF(SUMIF('4 x 50 Obs Relay Men'!$C$7:$C$46,$A54,'4 x 50 Obs Relay Men'!$W$7:$W$46)=0,1+MAX('4 x 50 Obs Relay Men'!$W$7:$W$46),SUMIF('4 x 50 Obs Relay Men'!$C$7:$C$46,$A54,'4 x 50 Obs Relay Men'!$W$7:$W$46))) ->  | K54: =IF($A54="","",IF(SUMIF('4 x 50 medley Relay Men'!$C$7:$C$46,$A54,'4 x 50 medley Relay Men'!$W$7:$W$46)=0,1+MAX('4 x 50 medley Relay Men'!$W$7:$W$46),SUMIF('4 x 50 medley Relay Men'!$C$7:$C$46,$A54,'4 x 50 medley Relay Men'!$W$7:$W$46))) ->  | L54: =IF($A54="","",IF(SUMIF('4 x 25 Manikin Carry Relay Men'!$C$7:$C$46,$A54,'4 x 25 Manikin Carry Relay Men'!$W$7:$W$46)=0,1+MAX('4 x 25 Manikin Carry Relay Men'!$W$7:$W$46),SUMIF('4 x 25 Manikin Carry Relay Men'!$C$7:$C$46,$A54,'4 x 25 Manikin Carry Relay Men'!$W$7:$W$46))) ->  | M54: =IF($A54="","",IF(SUMIF('4 x 12m Line Throw Men'!$C$7:$C$46,$A54,'4 x 12m Line Throw Men'!$W$7:$W$46)=0,1+MAX('4 x 12m Line Throw Men'!$W$7:$W$46),SUMIF('4 x 12m Line Throw Men'!$C$7:$C$46,$A54,'4 x 12m Line Throw Men'!$W$7:$W$46))) -> 
C55: =IF($A55="","",IF(SUMIF('50m Manikin Carry Men'!$C$7:$C$46,$A55,'50m Manikin Carry Men'!$Z$7:$Z$46)=0,1+MAX('50m Manikin Carry Men'!$Z$7:$Z$46),SUMIF('50m Manikin Carry Men'!$C$7:$C$46,$A55,'50m Manikin Carry Men'!$Z$7:$Z$46))) ->  | D55: =IF($A55="","",IF(SUMIF('100m Manikin Carry Men'!$C$7:$C$46,$A55,'100m Manikin Carry Men'!$Z$7:$Z$46)=0,1+MAX('100m Manikin Carry Men'!$Z$7:$Z$46),SUMIF('100m Manikin Carry Men'!$C$7:$C$46,$A55,'100m Manikin Carry Men'!$Z$7:$Z$46))) ->  | E55: =IF($A55="","",IF(SUMIF('100m Manikin Tow Men'!$C$7:$C$46,$A55,'100m Manikin Tow Men'!$Z$7:$Z$46)=0,1+MAX('100m Manikin Tow Men'!$Z$7:$Z$46),SUMIF('100m Manikin Tow Men'!$C$7:$C$46,$A55,'100m Manikin Tow Men'!$Z$7:$Z$46))) ->  | F55: =IF($A55="","",IF(SUMIF('200m Obs Men'!$C$7:$C$46,$A55,'200m Obs Men'!$Z$7:$Z$46)=0,1+MAX('200m Obs Men'!$Z$7:$Z$46),SUMIF('200m Obs Men'!$C$7:$C$46,$A55,'200m Obs Men'!$Z$7:$Z$46))) ->  | G55: =IF($A55="","",IF(SUMIF('200m Super Men'!$C$7:$C$46,$A55,'200m Super Men'!$Z$7:$Z$46)=0,1+MAX('200m Super Men'!$Z$7:$Z$46),SUMIF('200m Super Men'!$C$7:$C$46,$A55,'200m Super Men'!$Z$7:$Z$46))) ->  | H55: =IF($A55="","",IF(SUMIF('100 Resue Men'!$C$7:$C$46,$A55,'100 Resue Men'!$Z$7:$Z$46)=0,1+MAX('100 Resue Men'!$Z$7:$Z$46),SUMIF('100 Resue Men'!$C$7:$C$46,$A55,'100 Resue Men'!$Z$7:$Z$46))) ->  | I55: =IF($A55="","",IF(SUMIF('Line Throw Men'!$C$7:$C$46,$A55,'Line Throw Men'!$AB$7:$AB$46)=0,1+MAX('Line Throw Men'!$AB$7:$AB$46),SUMIF('Line Throw Men'!$C$7:$C$46,$A55,'Line Throw Men'!$AB$7:$AB$46))) ->  | J55: =IF($A55="","",IF(SUMIF('4 x 50 Obs Relay Men'!$C$7:$C$46,$A55,'4 x 50 Obs Relay Men'!$W$7:$W$46)=0,1+MAX('4 x 50 Obs Relay Men'!$W$7:$W$46),SUMIF('4 x 50 Obs Relay Men'!$C$7:$C$46,$A55,'4 x 50 Obs Relay Men'!$W$7:$W$46))) ->  | K55: =IF($A55="","",IF(SUMIF('4 x 50 medley Relay Men'!$C$7:$C$46,$A55,'4 x 50 medley Relay Men'!$W$7:$W$46)=0,1+MAX('4 x 50 medley Relay Men'!$W$7:$W$46),SUMIF('4 x 50 medley Relay Men'!$C$7:$C$46,$A55,'4 x 50 medley Relay Men'!$W$7:$W$46))) ->  | L55: =IF($A55="","",IF(SUMIF('4 x 25 Manikin Carry Relay Men'!$C$7:$C$46,$A55,'4 x 25 Manikin Carry Relay Men'!$W$7:$W$46)=0,1+MAX('4 x 25 Manikin Carry Relay Men'!$W$7:$W$46),SUMIF('4 x 25 Manikin Carry Relay Men'!$C$7:$C$46,$A55,'4 x 25 Manikin Carry Relay Men'!$W$7:$W$46))) ->  | M55: =IF($A55="","",IF(SUMIF('4 x 12m Line Throw Men'!$C$7:$C$46,$A55,'4 x 12m Line Throw Men'!$W$7:$W$46)=0,1+MAX('4 x 12m Line Throw Men'!$W$7:$W$46),SUMIF('4 x 12m Line Throw Men'!$C$7:$C$46,$A55,'4 x 12m Line Throw Men'!$W$7:$W$46))) -> 
C56: =IF($A56="","",IF(SUMIF('50m Manikin Carry Men'!$C$7:$C$46,$A56,'50m Manikin Carry Men'!$Z$7:$Z$46)=0,1+MAX('50m Manikin Carry Men'!$Z$7:$Z$46),SUMIF('50m Manikin Carry Men'!$C$7:$C$46,$A56,'50m Manikin Carry Men'!$Z$7:$Z$46))) ->  | D56: =IF($A56="","",IF(SUMIF('100m Manikin Carry Men'!$C$7:$C$46,$A56,'100m Manikin Carry Men'!$Z$7:$Z$46)=0,1+MAX('100m Manikin Carry Men'!$Z$7:$Z$46),SUMIF('100m Manikin Carry Men'!$C$7:$C$46,$A56,'100m Manikin Carry Men'!$Z$7:$Z$46))) ->  | E56: =IF($A56="","",IF(SUMIF('100m Manikin Tow Men'!$C$7:$C$46,$A56,'100m Manikin Tow Men'!$Z$7:$Z$46)=0,1+MAX('100m Manikin Tow Men'!$Z$7:$Z$46),SUMIF('100m Manikin Tow Men'!$C$7:$C$46,$A56,'100m Manikin Tow Men'!$Z$7:$Z$46))) ->  | F56: =IF($A56="","",IF(SUMIF('200m Obs Men'!$C$7:$C$46,$A56,'200m Obs Men'!$Z$7:$Z$46)=0,1+MAX('200m Obs Men'!$Z$7:$Z$46),SUMIF('200m Obs Men'!$C$7:$C$46,$A56,'200m Obs Men'!$Z$7:$Z$46))) ->  | G56: =IF($A56="","",IF(SUMIF('200m Super Men'!$C$7:$C$46,$A56,'200m Super Men'!$Z$7:$Z$46)=0,1+MAX('200m Super Men'!$Z$7:$Z$46),SUMIF('200m Super Men'!$C$7:$C$46,$A56,'200m Super Men'!$Z$7:$Z$46))) ->  | H56: =IF($A56="","",IF(SUMIF('100 Resue Men'!$C$7:$C$46,$A56,'100 Resue Men'!$Z$7:$Z$46)=0,1+MAX('100 Resue Men'!$Z$7:$Z$46),SUMIF('100 Resue Men'!$C$7:$C$46,$A56,'100 Resue Men'!$Z$7:$Z$46))) ->  | I56: =IF($A56="","",IF(SUMIF('Line Throw Men'!$C$7:$C$46,$A56,'Line Throw Men'!$AB$7:$AB$46)=0,1+MAX('Line Throw Men'!$AB$7:$AB$46),SUMIF('Line Throw Men'!$C$7:$C$46,$A56,'Line Throw Men'!$AB$7:$AB$46))) ->  | J56: =IF($A56="","",IF(SUMIF('4 x 50 Obs Relay Men'!$C$7:$C$46,$A56,'4 x 50 Obs Relay Men'!$W$7:$W$46)=0,1+MAX('4 x 50 Obs Relay Men'!$W$7:$W$46),SUMIF('4 x 50 Obs Relay Men'!$C$7:$C$46,$A56,'4 x 50 Obs Relay Men'!$W$7:$W$46))) ->  | K56: =IF($A56="","",IF(SUMIF('4 x 50 medley Relay Men'!$C$7:$C$46,$A56,'4 x 50 medley Relay Men'!$W$7:$W$46)=0,1+MAX('4 x 50 medley Relay Men'!$W$7:$W$46),SUMIF('4 x 50 medley Relay Men'!$C$7:$C$46,$A56,'4 x 50 medley Relay Men'!$W$7:$W$46))) ->  | L56: =IF($A56="","",IF(SUMIF('4 x 25 Manikin Carry Relay Men'!$C$7:$C$46,$A56,'4 x 25 Manikin Carry Relay Men'!$W$7:$W$46)=0,1+MAX('4 x 25 Manikin Carry Relay Men'!$W$7:$W$46),SUMIF('4 x 25 Manikin Carry Relay Men'!$C$7:$C$46,$A56,'4 x 25 Manikin Carry Relay Men'!$W$7:$W$46))) ->  | M56: =IF($A56="","",IF(SUMIF('4 x 12m Line Throw Men'!$C$7:$C$46,$A56,'4 x 12m Line Throw Men'!$W$7:$W$46)=0,1+MAX('4 x 12m Line Throw Men'!$W$7:$W$46),SUMIF('4 x 12m Line Throw Men'!$C$7:$C$46,$A56,'4 x 12m Line Throw Men'!$W$7:$W$46))) -> 
C57: =IF($A57="","",IF(SUMIF('50m Manikin Carry Men'!$C$7:$C$46,$A57,'50m Manikin Carry Men'!$Z$7:$Z$46)=0,1+MAX('50m Manikin Carry Men'!$Z$7:$Z$46),SUMIF('50m Manikin Carry Men'!$C$7:$C$46,$A57,'50m Manikin Carry Men'!$Z$7:$Z$46))) ->  | D57: =IF($A57="","",IF(SUMIF('100m Manikin Carry Men'!$C$7:$C$46,$A57,'100m Manikin Carry Men'!$Z$7:$Z$46)=0,1+MAX('100m Manikin Carry Men'!$Z$7:$Z$46),SUMIF('100m Manikin Carry Men'!$C$7:$C$46,$A57,'100m Manikin Carry Men'!$Z$7:$Z$46))) ->  | E57: =IF($A57="","",IF(SUMIF('100m Manikin Tow Men'!$C$7:$C$46,$A57,'100m Manikin Tow Men'!$Z$7:$Z$46)=0,1+MAX('100m Manikin Tow Men'!$Z$7:$Z$46),SUMIF('100m Manikin Tow Men'!$C$7:$C$46,$A57,'100m Manikin Tow Men'!$Z$7:$Z$46))) ->  | F57: =IF($A57="","",IF(SUMIF('200m Obs Men'!$C$7:$C$46,$A57,'200m Obs Men'!$Z$7:$Z$46)=0,1+MAX('200m Obs Men'!$Z$7:$Z$46),SUMIF('200m Obs Men'!$C$7:$C$46,$A57,'200m Obs Men'!$Z$7:$Z$46))) ->  | G57: =IF($A57="","",IF(SUMIF('200m Super Men'!$C$7:$C$46,$A57,'200m Super Men'!$Z$7:$Z$46)=0,1+MAX('200m Super Men'!$Z$7:$Z$46),SUMIF('200m Super Men'!$C$7:$C$46,$A57,'200m Super Men'!$Z$7:$Z$46))) ->  | H57: =IF($A57="","",IF(SUMIF('100 Resue Men'!$C$7:$C$46,$A57,'100 Resue Men'!$Z$7:$Z$46)=0,1+MAX('100 Resue Men'!$Z$7:$Z$46),SUMIF('100 Resue Men'!$C$7:$C$46,$A57,'100 Resue Men'!$Z$7:$Z$46))) ->  | I57: =IF($A57="","",IF(SUMIF('Line Throw Men'!$C$7:$C$46,$A57,'Line Throw Men'!$AB$7:$AB$46)=0,1+MAX('Line Throw Men'!$AB$7:$AB$46),SUMIF('Line Throw Men'!$C$7:$C$46,$A57,'Line Throw Men'!$AB$7:$AB$46))) ->  | J57: =IF($A57="","",IF(SUMIF('4 x 50 Obs Relay Men'!$C$7:$C$46,$A57,'4 x 50 Obs Relay Men'!$W$7:$W$46)=0,1+MAX('4 x 50 Obs Relay Men'!$W$7:$W$46),SUMIF('4 x 50 Obs Relay Men'!$C$7:$C$46,$A57,'4 x 50 Obs Relay Men'!$W$7:$W$46))) ->  | K57: =IF($A57="","",IF(SUMIF('4 x 50 medley Relay Men'!$C$7:$C$46,$A57,'4 x 50 medley Relay Men'!$W$7:$W$46)=0,1+MAX('4 x 50 medley Relay Men'!$W$7:$W$46),SUMIF('4 x 50 medley Relay Men'!$C$7:$C$46,$A57,'4 x 50 medley Relay Men'!$W$7:$W$46))) ->  | L57: =IF($A57="","",IF(SUMIF('4 x 25 Manikin Carry Relay Men'!$C$7:$C$46,$A57,'4 x 25 Manikin Carry Relay Men'!$W$7:$W$46)=0,1+MAX('4 x 25 Manikin Carry Relay Men'!$W$7:$W$46),SUMIF('4 x 25 Manikin Carry Relay Men'!$C$7:$C$46,$A57,'4 x 25 Manikin Carry Relay Men'!$W$7:$W$46))) ->  | M57: =IF($A57="","",IF(SUMIF('4 x 12m Line Throw Men'!$C$7:$C$46,$A57,'4 x 12m Line Throw Men'!$W$7:$W$46)=0,1+MAX('4 x 12m Line Throw Men'!$W$7:$W$46),SUMIF('4 x 12m Line Throw Men'!$C$7:$C$46,$A57,'4 x 12m Line Throw Men'!$W$7:$W$46))) -> 
C58: =IF($A58="","",IF(SUMIF('50m Manikin Carry Men'!$C$7:$C$46,$A58,'50m Manikin Carry Men'!$Z$7:$Z$46)=0,1+MAX('50m Manikin Carry Men'!$Z$7:$Z$46),SUMIF('50m Manikin Carry Men'!$C$7:$C$46,$A58,'50m Manikin Carry Men'!$Z$7:$Z$46))) ->  | D58: =IF($A58="","",IF(SUMIF('100m Manikin Carry Men'!$C$7:$C$46,$A58,'100m Manikin Carry Men'!$Z$7:$Z$46)=0,1+MAX('100m Manikin Carry Men'!$Z$7:$Z$46),SUMIF('100m Manikin Carry Men'!$C$7:$C$46,$A58,'100m Manikin Carry Men'!$Z$7:$Z$46))) ->  | E58: =IF($A58="","",IF(SUMIF('100m Manikin Tow Men'!$C$7:$C$46,$A58,'100m Manikin Tow Men'!$Z$7:$Z$46)=0,1+MAX('100m Manikin Tow Men'!$Z$7:$Z$46),SUMIF('100m Manikin Tow Men'!$C$7:$C$46,$A58,'100m Manikin Tow Men'!$Z$7:$Z$46))) ->  | F58: =IF($A58="","",IF(SUMIF('200m Obs Men'!$C$7:$C$46,$A58,'200m Obs Men'!$Z$7:$Z$46)=0,1+MAX('200m Obs Men'!$Z$7:$Z$46),SUMIF('200m Obs Men'!$C$7:$C$46,$A58,'200m Obs Men'!$Z$7:$Z$46))) ->  | G58: =IF($A58="","",IF(SUMIF('200m Super Men'!$C$7:$C$46,$A58,'200m Super Men'!$Z$7:$Z$46)=0,1+MAX('200m Super Men'!$Z$7:$Z$46),SUMIF('200m Super Men'!$C$7:$C$46,$A58,'200m Super Men'!$Z$7:$Z$46))) ->  | H58: =IF($A58="","",IF(SUMIF('100 Resue Men'!$C$7:$C$46,$A58,'100 Resue Men'!$Z$7:$Z$46)=0,1+MAX('100 Resue Men'!$Z$7:$Z$46),SUMIF('100 Resue Men'!$C$7:$C$46,$A58,'100 Resue Men'!$Z$7:$Z$46))) ->  | I58: =IF($A58="","",IF(SUMIF('Line Throw Men'!$C$7:$C$46,$A58,'Line Throw Men'!$AB$7:$AB$46)=0,1+MAX('Line Throw Men'!$AB$7:$AB$46),SUMIF('Line Throw Men'!$C$7:$C$46,$A58,'Line Throw Men'!$AB$7:$AB$46))) ->  | J58: =IF($A58="","",IF(SUMIF('4 x 50 Obs Relay Men'!$C$7:$C$46,$A58,'4 x 50 Obs Relay Men'!$W$7:$W$46)=0,1+MAX('4 x 50 Obs Relay Men'!$W$7:$W$46),SUMIF('4 x 50 Obs Relay Men'!$C$7:$C$46,$A58,'4 x 50 Obs Relay Men'!$W$7:$W$46))) ->  | K58: =IF($A58="","",IF(SUMIF('4 x 50 medley Relay Men'!$C$7:$C$46,$A58,'4 x 50 medley Relay Men'!$W$7:$W$46)=0,1+MAX('4 x 50 medley Relay Men'!$W$7:$W$46),SUMIF('4 x 50 medley Relay Men'!$C$7:$C$46,$A58,'4 x 50 medley Relay Men'!$W$7:$W$46))) ->  | L58: =IF($A58="","",IF(SUMIF('4 x 25 Manikin Carry Relay Men'!$C$7:$C$46,$A58,'4 x 25 Manikin Carry Relay Men'!$W$7:$W$46)=0,1+MAX('4 x 25 Manikin Carry Relay Men'!$W$7:$W$46),SUMIF('4 x 25 Manikin Carry Relay Men'!$C$7:$C$46,$A58,'4 x 25 Manikin Carry Relay Men'!$W$7:$W$46))) ->  | M58: =IF($A58="","",IF(SUMIF('4 x 12m Line Throw Men'!$C$7:$C$46,$A58,'4 x 12m Line Throw Men'!$W$7:$W$46)=0,1+MAX('4 x 12m Line Throw Men'!$W$7:$W$46),SUMIF('4 x 12m Line Throw Men'!$C$7:$C$46,$A58,'4 x 12m Line Throw Men'!$W$7:$W$46))) -> 
C59: =IF($A59="","",IF(SUMIF('50m Manikin Carry Men'!$C$7:$C$46,$A59,'50m Manikin Carry Men'!$Z$7:$Z$46)=0,1+MAX('50m Manikin Carry Men'!$Z$7:$Z$46),SUMIF('50m Manikin Carry Men'!$C$7:$C$46,$A59,'50m Manikin Carry Men'!$Z$7:$Z$46))) ->  | D59: =IF($A59="","",IF(SUMIF('100m Manikin Carry Men'!$C$7:$C$46,$A59,'100m Manikin Carry Men'!$Z$7:$Z$46)=0,1+MAX('100m Manikin Carry Men'!$Z$7:$Z$46),SUMIF('100m Manikin Carry Men'!$C$7:$C$46,$A59,'100m Manikin Carry Men'!$Z$7:$Z$46))) ->  | E59: =IF($A59="","",IF(SUMIF('100m Manikin Tow Men'!$C$7:$C$46,$A59,'100m Manikin Tow Men'!$Z$7:$Z$46)=0,1+MAX('100m Manikin Tow Men'!$Z$7:$Z$46),SUMIF('100m Manikin Tow Men'!$C$7:$C$46,$A59,'100m Manikin Tow Men'!$Z$7:$Z$46))) ->  | F59: =IF($A59="","",IF(SUMIF('200m Obs Men'!$C$7:$C$46,$A59,'200m Obs Men'!$Z$7:$Z$46)=0,1+MAX('200m Obs Men'!$Z$7:$Z$46),SUMIF('200m Obs Men'!$C$7:$C$46,$A59,'200m Obs Men'!$Z$7:$Z$46))) ->  | G59: =IF($A59="","",IF(SUMIF('200m Super Men'!$C$7:$C$46,$A59,'200m Super Men'!$Z$7:$Z$46)=0,1+MAX('200m Super Men'!$Z$7:$Z$46),SUMIF('200m Super Men'!$C$7:$C$46,$A59,'200m Super Men'!$Z$7:$Z$46))) ->  | H59: =IF($A59="","",IF(SUMIF('100 Resue Men'!$C$7:$C$46,$A59,'100 Resue Men'!$Z$7:$Z$46)=0,1+MAX('100 Resue Men'!$Z$7:$Z$46),SUMIF('100 Resue Men'!$C$7:$C$46,$A59,'100 Resue Men'!$Z$7:$Z$46))) ->  | I59: =IF($A59="","",IF(SUMIF('Line Throw Men'!$C$7:$C$46,$A59,'Line Throw Men'!$AB$7:$AB$46)=0,1+MAX('Line Throw Men'!$AB$7:$AB$46),SUMIF('Line Throw Men'!$C$7:$C$46,$A59,'Line Throw Men'!$AB$7:$AB$46))) ->  | J59: =IF($A59="","",IF(SUMIF('4 x 50 Obs Relay Men'!$C$7:$C$46,$A59,'4 x 50 Obs Relay Men'!$W$7:$W$46)=0,1+MAX('4 x 50 Obs Relay Men'!$W$7:$W$46),SUMIF('4 x 50 Obs Relay Men'!$C$7:$C$46,$A59,'4 x 50 Obs Relay Men'!$W$7:$W$46))) ->  | K59: =IF($A59="","",IF(SUMIF('4 x 50 medley Relay Men'!$C$7:$C$46,$A59,'4 x 50 medley Relay Men'!$W$7:$W$46)=0,1+MAX('4 x 50 medley Relay Men'!$W$7:$W$46),SUMIF('4 x 50 medley Relay Men'!$C$7:$C$46,$A59,'4 x 50 medley Relay Men'!$W$7:$W$46))) ->  | L59: =IF($A59="","",IF(SUMIF('4 x 25 Manikin Carry Relay Men'!$C$7:$C$46,$A59,'4 x 25 Manikin Carry Relay Men'!$W$7:$W$46)=0,1+MAX('4 x 25 Manikin Carry Relay Men'!$W$7:$W$46),SUMIF('4 x 25 Manikin Carry Relay Men'!$C$7:$C$46,$A59,'4 x 25 Manikin Carry Relay Men'!$W$7:$W$46))) ->  | M59: =IF($A59="","",IF(SUMIF('4 x 12m Line Throw Men'!$C$7:$C$46,$A59,'4 x 12m Line Throw Men'!$W$7:$W$46)=0,1+MAX('4 x 12m Line Throw Men'!$W$7:$W$46),SUMIF('4 x 12m Line Throw Men'!$C$7:$C$46,$A59,'4 x 12m Line Throw Men'!$W$7:$W$46))) -> 
C60: =IF($A60="","",IF(SUMIF('50m Manikin Carry Men'!$C$7:$C$46,$A60,'50m Manikin Carry Men'!$Z$7:$Z$46)=0,1+MAX('50m Manikin Carry Men'!$Z$7:$Z$46),SUMIF('50m Manikin Carry Men'!$C$7:$C$46,$A60,'50m Manikin Carry Men'!$Z$7:$Z$46))) ->  | D60: =IF($A60="","",IF(SUMIF('100m Manikin Carry Men'!$C$7:$C$46,$A60,'100m Manikin Carry Men'!$Z$7:$Z$46)=0,1+MAX('100m Manikin Carry Men'!$Z$7:$Z$46),SUMIF('100m Manikin Carry Men'!$C$7:$C$46,$A60,'100m Manikin Carry Men'!$Z$7:$Z$46))) ->  | E60: =IF($A60="","",IF(SUMIF('100m Manikin Tow Men'!$C$7:$C$46,$A60,'100m Manikin Tow Men'!$Z$7:$Z$46)=0,1+MAX('100m Manikin Tow Men'!$Z$7:$Z$46),SUMIF('100m Manikin Tow Men'!$C$7:$C$46,$A60,'100m Manikin Tow Men'!$Z$7:$Z$46))) ->  | F60: =IF($A60="","",IF(SUMIF('200m Obs Men'!$C$7:$C$46,$A60,'200m Obs Men'!$Z$7:$Z$46)=0,1+MAX('200m Obs Men'!$Z$7:$Z$46),SUMIF('200m Obs Men'!$C$7:$C$46,$A60,'200m Obs Men'!$Z$7:$Z$46))) ->  | G60: =IF($A60="","",IF(SUMIF('200m Super Men'!$C$7:$C$46,$A60,'200m Super Men'!$Z$7:$Z$46)=0,1+MAX('200m Super Men'!$Z$7:$Z$46),SUMIF('200m Super Men'!$C$7:$C$46,$A60,'200m Super Men'!$Z$7:$Z$46))) ->  | H60: =IF($A60="","",IF(SUMIF('100 Resue Men'!$C$7:$C$46,$A60,'100 Resue Men'!$Z$7:$Z$46)=0,1+MAX('100 Resue Men'!$Z$7:$Z$46),SUMIF('100 Resue Men'!$C$7:$C$46,$A60,'100 Resue Men'!$Z$7:$Z$46))) ->  | I60: =IF($A60="","",IF(SUMIF('Line Throw Men'!$C$7:$C$46,$A60,'Line Throw Men'!$AB$7:$AB$46)=0,1+MAX('Line Throw Men'!$AB$7:$AB$46),SUMIF('Line Throw Men'!$C$7:$C$46,$A60,'Line Throw Men'!$AB$7:$AB$46))) ->  | J60: =IF($A60="","",IF(SUMIF('4 x 50 Obs Relay Men'!$C$7:$C$46,$A60,'4 x 50 Obs Relay Men'!$W$7:$W$46)=0,1+MAX('4 x 50 Obs Relay Men'!$W$7:$W$46),SUMIF('4 x 50 Obs Relay Men'!$C$7:$C$46,$A60,'4 x 50 Obs Relay Men'!$W$7:$W$46))) ->  | K60: =IF($A60="","",IF(SUMIF('4 x 50 medley Relay Men'!$C$7:$C$46,$A60,'4 x 50 medley Relay Men'!$W$7:$W$46)=0,1+MAX('4 x 50 medley Relay Men'!$W$7:$W$46),SUMIF('4 x 50 medley Relay Men'!$C$7:$C$46,$A60,'4 x 50 medley Relay Men'!$W$7:$W$46))) ->  | L60: =IF($A60="","",IF(SUMIF('4 x 25 Manikin Carry Relay Men'!$C$7:$C$46,$A60,'4 x 25 Manikin Carry Relay Men'!$W$7:$W$46)=0,1+MAX('4 x 25 Manikin Carry Relay Men'!$W$7:$W$46),SUMIF('4 x 25 Manikin Carry Relay Men'!$C$7:$C$46,$A60,'4 x 25 Manikin Carry Relay Men'!$W$7:$W$46))) ->  | M60: =IF($A60="","",IF(SUMIF('4 x 12m Line Throw Men'!$C$7:$C$46,$A60,'4 x 12m Line Throw Men'!$W$7:$W$46)=0,1+MAX('4 x 12m Line Throw Men'!$W$7:$W$46),SUMIF('4 x 12m Line Throw Men'!$C$7:$C$46,$A60,'4 x 12m Line Throw Men'!$W$7:$W$46))) -> 
C61: =IF($A61="","",IF(SUMIF('50m Manikin Carry Men'!$C$7:$C$46,$A61,'50m Manikin Carry Men'!$Z$7:$Z$46)=0,1+MAX('50m Manikin Carry Men'!$Z$7:$Z$46),SUMIF('50m Manikin Carry Men'!$C$7:$C$46,$A61,'50m Manikin Carry Men'!$Z$7:$Z$46))) ->  | D61: =IF($A61="","",IF(SUMIF('100m Manikin Carry Men'!$C$7:$C$46,$A61,'100m Manikin Carry Men'!$Z$7:$Z$46)=0,1+MAX('100m Manikin Carry Men'!$Z$7:$Z$46),SUMIF('100m Manikin Carry Men'!$C$7:$C$46,$A61,'100m Manikin Carry Men'!$Z$7:$Z$46))) ->  | E61: =IF($A61="","",IF(SUMIF('100m Manikin Tow Men'!$C$7:$C$46,$A61,'100m Manikin Tow Men'!$Z$7:$Z$46)=0,1+MAX('100m Manikin Tow Men'!$Z$7:$Z$46),SUMIF('100m Manikin Tow Men'!$C$7:$C$46,$A61,'100m Manikin Tow Men'!$Z$7:$Z$46))) ->  | F61: =IF($A61="","",IF(SUMIF('200m Obs Men'!$C$7:$C$46,$A61,'200m Obs Men'!$Z$7:$Z$46)=0,1+MAX('200m Obs Men'!$Z$7:$Z$46),SUMIF('200m Obs Men'!$C$7:$C$46,$A61,'200m Obs Men'!$Z$7:$Z$46))) ->  | G61: =IF($A61="","",IF(SUMIF('200m Super Men'!$C$7:$C$46,$A61,'200m Super Men'!$Z$7:$Z$46)=0,1+MAX('200m Super Men'!$Z$7:$Z$46),SUMIF('200m Super Men'!$C$7:$C$46,$A61,'200m Super Men'!$Z$7:$Z$46))) ->  | H61: =IF($A61="","",IF(SUMIF('100 Resue Men'!$C$7:$C$46,$A61,'100 Resue Men'!$Z$7:$Z$46)=0,1+MAX('100 Resue Men'!$Z$7:$Z$46),SUMIF('100 Resue Men'!$C$7:$C$46,$A61,'100 Resue Men'!$Z$7:$Z$46))) ->  | I61: =IF($A61="","",IF(SUMIF('Line Throw Men'!$C$7:$C$46,$A61,'Line Throw Men'!$AB$7:$AB$46)=0,1+MAX('Line Throw Men'!$AB$7:$AB$46),SUMIF('Line Throw Men'!$C$7:$C$46,$A61,'Line Throw Men'!$AB$7:$AB$46))) ->  | J61: =IF($A61="","",IF(SUMIF('4 x 50 Obs Relay Men'!$C$7:$C$46,$A61,'4 x 50 Obs Relay Men'!$W$7:$W$46)=0,1+MAX('4 x 50 Obs Relay Men'!$W$7:$W$46),SUMIF('4 x 50 Obs Relay Men'!$C$7:$C$46,$A61,'4 x 50 Obs Relay Men'!$W$7:$W$46))) ->  | K61: =IF($A61="","",IF(SUMIF('4 x 50 medley Relay Men'!$C$7:$C$46,$A61,'4 x 50 medley Relay Men'!$W$7:$W$46)=0,1+MAX('4 x 50 medley Relay Men'!$W$7:$W$46),SUMIF('4 x 50 medley Relay Men'!$C$7:$C$46,$A61,'4 x 50 medley Relay Men'!$W$7:$W$46))) ->  | L61: =IF($A61="","",IF(SUMIF('4 x 25 Manikin Carry Relay Men'!$C$7:$C$46,$A61,'4 x 25 Manikin Carry Relay Men'!$W$7:$W$46)=0,1+MAX('4 x 25 Manikin Carry Relay Men'!$W$7:$W$46),SUMIF('4 x 25 Manikin Carry Relay Men'!$C$7:$C$46,$A61,'4 x 25 Manikin Carry Relay Men'!$W$7:$W$46))) ->  | M61: =IF($A61="","",IF(SUMIF('4 x 12m Line Throw Men'!$C$7:$C$46,$A61,'4 x 12m Line Throw Men'!$W$7:$W$46)=0,1+MAX('4 x 12m Line Throw Men'!$W$7:$W$46),SUMIF('4 x 12m Line Throw Men'!$C$7:$C$46,$A61,'4 x 12m Line Throw Men'!$W$7:$W$46))) -> 
C62: =IF($A62="","",IF(SUMIF('50m Manikin Carry Men'!$C$7:$C$46,$A62,'50m Manikin Carry Men'!$Z$7:$Z$46)=0,1+MAX('50m Manikin Carry Men'!$Z$7:$Z$46),SUMIF('50m Manikin Carry Men'!$C$7:$C$46,$A62,'50m Manikin Carry Men'!$Z$7:$Z$46))) ->  | D62: =IF($A62="","",IF(SUMIF('100m Manikin Carry Men'!$C$7:$C$46,$A62,'100m Manikin Carry Men'!$Z$7:$Z$46)=0,1+MAX('100m Manikin Carry Men'!$Z$7:$Z$46),SUMIF('100m Manikin Carry Men'!$C$7:$C$46,$A62,'100m Manikin Carry Men'!$Z$7:$Z$46))) ->  | E62: =IF($A62="","",IF(SUMIF('100m Manikin Tow Men'!$C$7:$C$46,$A62,'100m Manikin Tow Men'!$Z$7:$Z$46)=0,1+MAX('100m Manikin Tow Men'!$Z$7:$Z$46),SUMIF('100m Manikin Tow Men'!$C$7:$C$46,$A62,'100m Manikin Tow Men'!$Z$7:$Z$46))) ->  | F62: =IF($A62="","",IF(SUMIF('200m Obs Men'!$C$7:$C$46,$A62,'200m Obs Men'!$Z$7:$Z$46)=0,1+MAX('200m Obs Men'!$Z$7:$Z$46),SUMIF('200m Obs Men'!$C$7:$C$46,$A62,'200m Obs Men'!$Z$7:$Z$46))) ->  | G62: =IF($A62="","",IF(SUMIF('200m Super Men'!$C$7:$C$46,$A62,'200m Super Men'!$Z$7:$Z$46)=0,1+MAX('200m Super Men'!$Z$7:$Z$46),SUMIF('200m Super Men'!$C$7:$C$46,$A62,'200m Super Men'!$Z$7:$Z$46))) ->  | H62: =IF($A62="","",IF(SUMIF('100 Resue Men'!$C$7:$C$46,$A62,'100 Resue Men'!$Z$7:$Z$46)=0,1+MAX('100 Resue Men'!$Z$7:$Z$46),SUMIF('100 Resue Men'!$C$7:$C$46,$A62,'100 Resue Men'!$Z$7:$Z$46))) ->  | I62: =IF($A62="","",IF(SUMIF('Line Throw Men'!$C$7:$C$46,$A62,'Line Throw Men'!$AB$7:$AB$46)=0,1+MAX('Line Throw Men'!$AB$7:$AB$46),SUMIF('Line Throw Men'!$C$7:$C$46,$A62,'Line Throw Men'!$AB$7:$AB$46))) ->  | J62: =IF($A62="","",IF(SUMIF('4 x 50 Obs Relay Men'!$C$7:$C$46,$A62,'4 x 50 Obs Relay Men'!$W$7:$W$46)=0,1+MAX('4 x 50 Obs Relay Men'!$W$7:$W$46),SUMIF('4 x 50 Obs Relay Men'!$C$7:$C$46,$A62,'4 x 50 Obs Relay Men'!$W$7:$W$46))) ->  | K62: =IF($A62="","",IF(SUMIF('4 x 50 medley Relay Men'!$C$7:$C$46,$A62,'4 x 50 medley Relay Men'!$W$7:$W$46)=0,1+MAX('4 x 50 medley Relay Men'!$W$7:$W$46),SUMIF('4 x 50 medley Relay Men'!$C$7:$C$46,$A62,'4 x 50 medley Relay Men'!$W$7:$W$46))) ->  | L62: =IF($A62="","",IF(SUMIF('4 x 25 Manikin Carry Relay Men'!$C$7:$C$46,$A62,'4 x 25 Manikin Carry Relay Men'!$W$7:$W$46)=0,1+MAX('4 x 25 Manikin Carry Relay Men'!$W$7:$W$46),SUMIF('4 x 25 Manikin Carry Relay Men'!$C$7:$C$46,$A62,'4 x 25 Manikin Carry Relay Men'!$W$7:$W$46))) ->  | M62: =IF($A62="","",IF(SUMIF('4 x 12m Line Throw Men'!$C$7:$C$46,$A62,'4 x 12m Line Throw Men'!$W$7:$W$46)=0,1+MAX('4 x 12m Line Throw Men'!$W$7:$W$46),SUMIF('4 x 12m Line Throw Men'!$C$7:$C$46,$A62,'4 x 12m Line Throw Men'!$W$7:$W$46))) -> 
C63: =IF($A63="","",IF(SUMIF('50m Manikin Carry Men'!$C$7:$C$46,$A63,'50m Manikin Carry Men'!$Z$7:$Z$46)=0,1+MAX('50m Manikin Carry Men'!$Z$7:$Z$46),SUMIF('50m Manikin Carry Men'!$C$7:$C$46,$A63,'50m Manikin Carry Men'!$Z$7:$Z$46))) ->  | D63: =IF($A63="","",IF(SUMIF('100m Manikin Carry Men'!$C$7:$C$46,$A63,'100m Manikin Carry Men'!$Z$7:$Z$46)=0,1+MAX('100m Manikin Carry Men'!$Z$7:$Z$46),SUMIF('100m Manikin Carry Men'!$C$7:$C$46,$A63,'100m Manikin Carry Men'!$Z$7:$Z$46))) ->  | E63: =IF($A63="","",IF(SUMIF('100m Manikin Tow Men'!$C$7:$C$46,$A63,'100m Manikin Tow Men'!$Z$7:$Z$46)=0,1+MAX('100m Manikin Tow Men'!$Z$7:$Z$46),SUMIF('100m Manikin Tow Men'!$C$7:$C$46,$A63,'100m Manikin Tow Men'!$Z$7:$Z$46))) ->  | F63: =IF($A63="","",IF(SUMIF('200m Obs Men'!$C$7:$C$46,$A63,'200m Obs Men'!$Z$7:$Z$46)=0,1+MAX('200m Obs Men'!$Z$7:$Z$46),SUMIF('200m Obs Men'!$C$7:$C$46,$A63,'200m Obs Men'!$Z$7:$Z$46))) ->  | G63: =IF($A63="","",IF(SUMIF('200m Super Men'!$C$7:$C$46,$A63,'200m Super Men'!$Z$7:$Z$46)=0,1+MAX('200m Super Men'!$Z$7:$Z$46),SUMIF('200m Super Men'!$C$7:$C$46,$A63,'200m Super Men'!$Z$7:$Z$46))) ->  | H63: =IF($A63="","",IF(SUMIF('100 Resue Men'!$C$7:$C$46,$A63,'100 Resue Men'!$Z$7:$Z$46)=0,1+MAX('100 Resue Men'!$Z$7:$Z$46),SUMIF('100 Resue Men'!$C$7:$C$46,$A63,'100 Resue Men'!$Z$7:$Z$46))) ->  | I63: =IF($A63="","",IF(SUMIF('Line Throw Men'!$C$7:$C$46,$A63,'Line Throw Men'!$AB$7:$AB$46)=0,1+MAX('Line Throw Men'!$AB$7:$AB$46),SUMIF('Line Throw Men'!$C$7:$C$46,$A63,'Line Throw Men'!$AB$7:$AB$46))) ->  | J63: =IF($A63="","",IF(SUMIF('4 x 50 Obs Relay Men'!$C$7:$C$46,$A63,'4 x 50 Obs Relay Men'!$W$7:$W$46)=0,1+MAX('4 x 50 Obs Relay Men'!$W$7:$W$46),SUMIF('4 x 50 Obs Relay Men'!$C$7:$C$46,$A63,'4 x 50 Obs Relay Men'!$W$7:$W$46))) ->  | K63: =IF($A63="","",IF(SUMIF('4 x 50 medley Relay Men'!$C$7:$C$46,$A63,'4 x 50 medley Relay Men'!$W$7:$W$46)=0,1+MAX('4 x 50 medley Relay Men'!$W$7:$W$46),SUMIF('4 x 50 medley Relay Men'!$C$7:$C$46,$A63,'4 x 50 medley Relay Men'!$W$7:$W$46))) ->  | L63: =IF($A63="","",IF(SUMIF('4 x 25 Manikin Carry Relay Men'!$C$7:$C$46,$A63,'4 x 25 Manikin Carry Relay Men'!$W$7:$W$46)=0,1+MAX('4 x 25 Manikin Carry Relay Men'!$W$7:$W$46),SUMIF('4 x 25 Manikin Carry Relay Men'!$C$7:$C$46,$A63,'4 x 25 Manikin Carry Relay Men'!$W$7:$W$46))) ->  | M63: =IF($A63="","",IF(SUMIF('4 x 12m Line Throw Men'!$C$7:$C$46,$A63,'4 x 12m Line Throw Men'!$W$7:$W$46)=0,1+MAX('4 x 12m Line Throw Men'!$W$7:$W$46),SUMIF('4 x 12m Line Throw Men'!$C$7:$C$46,$A63,'4 x 12m Line Throw Men'!$W$7:$W$46))) -> 
C64: =IF($A64="","",IF(SUMIF('50m Manikin Carry Men'!$C$7:$C$46,$A64,'50m Manikin Carry Men'!$Z$7:$Z$46)=0,1+MAX('50m Manikin Carry Men'!$Z$7:$Z$46),SUMIF('50m Manikin Carry Men'!$C$7:$C$46,$A64,'50m Manikin Carry Men'!$Z$7:$Z$46))) ->  | D64: =IF($A64="","",IF(SUMIF('100m Manikin Carry Men'!$C$7:$C$46,$A64,'100m Manikin Carry Men'!$Z$7:$Z$46)=0,1+MAX('100m Manikin Carry Men'!$Z$7:$Z$46),SUMIF('100m Manikin Carry Men'!$C$7:$C$46,$A64,'100m Manikin Carry Men'!$Z$7:$Z$46))) ->  | E64: =IF($A64="","",IF(SUMIF('100m Manikin Tow Men'!$C$7:$C$46,$A64,'100m Manikin Tow Men'!$Z$7:$Z$46)=0,1+MAX('100m Manikin Tow Men'!$Z$7:$Z$46),SUMIF('100m Manikin Tow Men'!$C$7:$C$46,$A64,'100m Manikin Tow Men'!$Z$7:$Z$46))) ->  | F64: =IF($A64="","",IF(SUMIF('200m Obs Men'!$C$7:$C$46,$A64,'200m Obs Men'!$Z$7:$Z$46)=0,1+MAX('200m Obs Men'!$Z$7:$Z$46),SUMIF('200m Obs Men'!$C$7:$C$46,$A64,'200m Obs Men'!$Z$7:$Z$46))) ->  | G64: =IF($A64="","",IF(SUMIF('200m Super Men'!$C$7:$C$46,$A64,'200m Super Men'!$Z$7:$Z$46)=0,1+MAX('200m Super Men'!$Z$7:$Z$46),SUMIF('200m Super Men'!$C$7:$C$46,$A64,'200m Super Men'!$Z$7:$Z$46))) ->  | H64: =IF($A64="","",IF(SUMIF('100 Resue Men'!$C$7:$C$46,$A64,'100 Resue Men'!$Z$7:$Z$46)=0,1+MAX('100 Resue Men'!$Z$7:$Z$46),SUMIF('100 Resue Men'!$C$7:$C$46,$A64,'100 Resue Men'!$Z$7:$Z$46))) ->  | I64: =IF($A64="","",IF(SUMIF('Line Throw Men'!$C$7:$C$46,$A64,'Line Throw Men'!$AB$7:$AB$46)=0,1+MAX('Line Throw Men'!$AB$7:$AB$46),SUMIF('Line Throw Men'!$C$7:$C$46,$A64,'Line Throw Men'!$AB$7:$AB$46))) ->  | J64: =IF($A64="","",IF(SUMIF('4 x 50 Obs Relay Men'!$C$7:$C$46,$A64,'4 x 50 Obs Relay Men'!$W$7:$W$46)=0,1+MAX('4 x 50 Obs Relay Men'!$W$7:$W$46),SUMIF('4 x 50 Obs Relay Men'!$C$7:$C$46,$A64,'4 x 50 Obs Relay Men'!$W$7:$W$46))) ->  | K64: =IF($A64="","",IF(SUMIF('4 x 50 medley Relay Men'!$C$7:$C$46,$A64,'4 x 50 medley Relay Men'!$W$7:$W$46)=0,1+MAX('4 x 50 medley Relay Men'!$W$7:$W$46),SUMIF('4 x 50 medley Relay Men'!$C$7:$C$46,$A64,'4 x 50 medley Relay Men'!$W$7:$W$46))) ->  | L64: =IF($A64="","",IF(SUMIF('4 x 25 Manikin Carry Relay Men'!$C$7:$C$46,$A64,'4 x 25 Manikin Carry Relay Men'!$W$7:$W$46)=0,1+MAX('4 x 25 Manikin Carry Relay Men'!$W$7:$W$46),SUMIF('4 x 25 Manikin Carry Relay Men'!$C$7:$C$46,$A64,'4 x 25 Manikin Carry Relay Men'!$W$7:$W$46))) ->  | M64: =IF($A64="","",IF(SUMIF('4 x 12m Line Throw Men'!$C$7:$C$46,$A64,'4 x 12m Line Throw Men'!$W$7:$W$46)=0,1+MAX('4 x 12m Line Throw Men'!$W$7:$W$46),SUMIF('4 x 12m Line Throw Men'!$C$7:$C$46,$A64,'4 x 12m Line Throw Men'!$W$7:$W$46))) -> 
C65: =IF($A65="","",IF(SUMIF('50m Manikin Carry Men'!$C$7:$C$46,$A65,'50m Manikin Carry Men'!$Z$7:$Z$46)=0,1+MAX('50m Manikin Carry Men'!$Z$7:$Z$46),SUMIF('50m Manikin Carry Men'!$C$7:$C$46,$A65,'50m Manikin Carry Men'!$Z$7:$Z$46))) ->  | D65: =IF($A65="","",IF(SUMIF('100m Manikin Carry Men'!$C$7:$C$46,$A65,'100m Manikin Carry Men'!$Z$7:$Z$46)=0,1+MAX('100m Manikin Carry Men'!$Z$7:$Z$46),SUMIF('100m Manikin Carry Men'!$C$7:$C$46,$A65,'100m Manikin Carry Men'!$Z$7:$Z$46))) ->  | E65: =IF($A65="","",IF(SUMIF('100m Manikin Tow Men'!$C$7:$C$46,$A65,'100m Manikin Tow Men'!$Z$7:$Z$46)=0,1+MAX('100m Manikin Tow Men'!$Z$7:$Z$46),SUMIF('100m Manikin Tow Men'!$C$7:$C$46,$A65,'100m Manikin Tow Men'!$Z$7:$Z$46))) ->  | F65: =IF($A65="","",IF(SUMIF('200m Obs Men'!$C$7:$C$46,$A65,'200m Obs Men'!$Z$7:$Z$46)=0,1+MAX('200m Obs Men'!$Z$7:$Z$46),SUMIF('200m Obs Men'!$C$7:$C$46,$A65,'200m Obs Men'!$Z$7:$Z$46))) ->  | G65: =IF($A65="","",IF(SUMIF('200m Super Men'!$C$7:$C$46,$A65,'200m Super Men'!$Z$7:$Z$46)=0,1+MAX('200m Super Men'!$Z$7:$Z$46),SUMIF('200m Super Men'!$C$7:$C$46,$A65,'200m Super Men'!$Z$7:$Z$46))) ->  | H65: =IF($A65="","",IF(SUMIF('100 Resue Men'!$C$7:$C$46,$A65,'100 Resue Men'!$Z$7:$Z$46)=0,1+MAX('100 Resue Men'!$Z$7:$Z$46),SUMIF('100 Resue Men'!$C$7:$C$46,$A65,'100 Resue Men'!$Z$7:$Z$46))) ->  | I65: =IF($A65="","",IF(SUMIF('Line Throw Men'!$C$7:$C$46,$A65,'Line Throw Men'!$AB$7:$AB$46)=0,1+MAX('Line Throw Men'!$AB$7:$AB$46),SUMIF('Line Throw Men'!$C$7:$C$46,$A65,'Line Throw Men'!$AB$7:$AB$46))) ->  | J65: =IF($A65="","",IF(SUMIF('4 x 50 Obs Relay Men'!$C$7:$C$46,$A65,'4 x 50 Obs Relay Men'!$W$7:$W$46)=0,1+MAX('4 x 50 Obs Relay Men'!$W$7:$W$46),SUMIF('4 x 50 Obs Relay Men'!$C$7:$C$46,$A65,'4 x 50 Obs Relay Men'!$W$7:$W$46))) ->  | K65: =IF($A65="","",IF(SUMIF('4 x 50 medley Relay Men'!$C$7:$C$46,$A65,'4 x 50 medley Relay Men'!$W$7:$W$46)=0,1+MAX('4 x 50 medley Relay Men'!$W$7:$W$46),SUMIF('4 x 50 medley Relay Men'!$C$7:$C$46,$A65,'4 x 50 medley Relay Men'!$W$7:$W$46))) ->  | L65: =IF($A65="","",IF(SUMIF('4 x 25 Manikin Carry Relay Men'!$C$7:$C$46,$A65,'4 x 25 Manikin Carry Relay Men'!$W$7:$W$46)=0,1+MAX('4 x 25 Manikin Carry Relay Men'!$W$7:$W$46),SUMIF('4 x 25 Manikin Carry Relay Men'!$C$7:$C$46,$A65,'4 x 25 Manikin Carry Relay Men'!$W$7:$W$46))) ->  | M65: =IF($A65="","",IF(SUMIF('4 x 12m Line Throw Men'!$C$7:$C$46,$A65,'4 x 12m Line Throw Men'!$W$7:$W$46)=0,1+MAX('4 x 12m Line Throw Men'!$W$7:$W$46),SUMIF('4 x 12m Line Throw Men'!$C$7:$C$46,$A65,'4 x 12m Line Throw Men'!$W$7:$W$46))) -> 
C66: =IF($A66="","",IF(SUMIF('50m Manikin Carry Men'!$C$7:$C$46,$A66,'50m Manikin Carry Men'!$Z$7:$Z$46)=0,1+MAX('50m Manikin Carry Men'!$Z$7:$Z$46),SUMIF('50m Manikin Carry Men'!$C$7:$C$46,$A66,'50m Manikin Carry Men'!$Z$7:$Z$46))) ->  | D66: =IF($A66="","",IF(SUMIF('100m Manikin Carry Men'!$C$7:$C$46,$A66,'100m Manikin Carry Men'!$Z$7:$Z$46)=0,1+MAX('100m Manikin Carry Men'!$Z$7:$Z$46),SUMIF('100m Manikin Carry Men'!$C$7:$C$46,$A66,'100m Manikin Carry Men'!$Z$7:$Z$46))) ->  | E66: =IF($A66="","",IF(SUMIF('100m Manikin Tow Men'!$C$7:$C$46,$A66,'100m Manikin Tow Men'!$Z$7:$Z$46)=0,1+MAX('100m Manikin Tow Men'!$Z$7:$Z$46),SUMIF('100m Manikin Tow Men'!$C$7:$C$46,$A66,'100m Manikin Tow Men'!$Z$7:$Z$46))) ->  | F66: =IF($A66="","",IF(SUMIF('200m Obs Men'!$C$7:$C$46,$A66,'200m Obs Men'!$Z$7:$Z$46)=0,1+MAX('200m Obs Men'!$Z$7:$Z$46),SUMIF('200m Obs Men'!$C$7:$C$46,$A66,'200m Obs Men'!$Z$7:$Z$46))) ->  | G66: =IF($A66="","",IF(SUMIF('200m Super Men'!$C$7:$C$46,$A66,'200m Super Men'!$Z$7:$Z$46)=0,1+MAX('200m Super Men'!$Z$7:$Z$46),SUMIF('200m Super Men'!$C$7:$C$46,$A66,'200m Super Men'!$Z$7:$Z$46))) ->  | H66: =IF($A66="","",IF(SUMIF('100 Resue Men'!$C$7:$C$46,$A66,'100 Resue Men'!$Z$7:$Z$46)=0,1+MAX('100 Resue Men'!$Z$7:$Z$46),SUMIF('100 Resue Men'!$C$7:$C$46,$A66,'100 Resue Men'!$Z$7:$Z$46))) ->  | I66: =IF($A66="","",IF(SUMIF('Line Throw Men'!$C$7:$C$46,$A66,'Line Throw Men'!$AB$7:$AB$46)=0,1+MAX('Line Throw Men'!$AB$7:$AB$46),SUMIF('Line Throw Men'!$C$7:$C$46,$A66,'Line Throw Men'!$AB$7:$AB$46))) ->  | J66: =IF($A66="","",IF(SUMIF('4 x 50 Obs Relay Men'!$C$7:$C$46,$A66,'4 x 50 Obs Relay Men'!$W$7:$W$46)=0,1+MAX('4 x 50 Obs Relay Men'!$W$7:$W$46),SUMIF('4 x 50 Obs Relay Men'!$C$7:$C$46,$A66,'4 x 50 Obs Relay Men'!$W$7:$W$46))) ->  | K66: =IF($A66="","",IF(SUMIF('4 x 50 medley Relay Men'!$C$7:$C$46,$A66,'4 x 50 medley Relay Men'!$W$7:$W$46)=0,1+MAX('4 x 50 medley Relay Men'!$W$7:$W$46),SUMIF('4 x 50 medley Relay Men'!$C$7:$C$46,$A66,'4 x 50 medley Relay Men'!$W$7:$W$46))) ->  | L66: =IF($A66="","",IF(SUMIF('4 x 25 Manikin Carry Relay Men'!$C$7:$C$46,$A66,'4 x 25 Manikin Carry Relay Men'!$W$7:$W$46)=0,1+MAX('4 x 25 Manikin Carry Relay Men'!$W$7:$W$46),SUMIF('4 x 25 Manikin Carry Relay Men'!$C$7:$C$46,$A66,'4 x 25 Manikin Carry Relay Men'!$W$7:$W$46))) ->  | M66: =IF($A66="","",IF(SUMIF('4 x 12m Line Throw Men'!$C$7:$C$46,$A66,'4 x 12m Line Throw Men'!$W$7:$W$46)=0,1+MAX('4 x 12m Line Throw Men'!$W$7:$W$46),SUMIF('4 x 12m Line Throw Men'!$C$7:$C$46,$A66,'4 x 12m Line Throw Men'!$W$7:$W$46))) -> 
C67: =IF($A67="","",IF(SUMIF('50m Manikin Carry Men'!$C$7:$C$46,$A67,'50m Manikin Carry Men'!$Z$7:$Z$46)=0,1+MAX('50m Manikin Carry Men'!$Z$7:$Z$46),SUMIF('50m Manikin Carry Men'!$C$7:$C$46,$A67,'50m Manikin Carry Men'!$Z$7:$Z$46))) ->  | D67: =IF($A67="","",IF(SUMIF('100m Manikin Carry Men'!$C$7:$C$46,$A67,'100m Manikin Carry Men'!$Z$7:$Z$46)=0,1+MAX('100m Manikin Carry Men'!$Z$7:$Z$46),SUMIF('100m Manikin Carry Men'!$C$7:$C$46,$A67,'100m Manikin Carry Men'!$Z$7:$Z$46))) ->  | E67: =IF($A67="","",IF(SUMIF('100m Manikin Tow Men'!$C$7:$C$46,$A67,'100m Manikin Tow Men'!$Z$7:$Z$46)=0,1+MAX('100m Manikin Tow Men'!$Z$7:$Z$46),SUMIF('100m Manikin Tow Men'!$C$7:$C$46,$A67,'100m Manikin Tow Men'!$Z$7:$Z$46))) ->  | F67: =IF($A67="","",IF(SUMIF('200m Obs Men'!$C$7:$C$46,$A67,'200m Obs Men'!$Z$7:$Z$46)=0,1+MAX('200m Obs Men'!$Z$7:$Z$46),SUMIF('200m Obs Men'!$C$7:$C$46,$A67,'200m Obs Men'!$Z$7:$Z$46))) ->  | G67: =IF($A67="","",IF(SUMIF('200m Super Men'!$C$7:$C$46,$A67,'200m Super Men'!$Z$7:$Z$46)=0,1+MAX('200m Super Men'!$Z$7:$Z$46),SUMIF('200m Super Men'!$C$7:$C$46,$A67,'200m Super Men'!$Z$7:$Z$46))) ->  | H67: =IF($A67="","",IF(SUMIF('100 Resue Men'!$C$7:$C$46,$A67,'100 Resue Men'!$Z$7:$Z$46)=0,1+MAX('100 Resue Men'!$Z$7:$Z$46),SUMIF('100 Resue Men'!$C$7:$C$46,$A67,'100 Resue Men'!$Z$7:$Z$46))) ->  | I67: =IF($A67="","",IF(SUMIF('Line Throw Men'!$C$7:$C$46,$A67,'Line Throw Men'!$AB$7:$AB$46)=0,1+MAX('Line Throw Men'!$AB$7:$AB$46),SUMIF('Line Throw Men'!$C$7:$C$46,$A67,'Line Throw Men'!$AB$7:$AB$46))) ->  | J67: =IF($A67="","",IF(SUMIF('4 x 50 Obs Relay Men'!$C$7:$C$46,$A67,'4 x 50 Obs Relay Men'!$W$7:$W$46)=0,1+MAX('4 x 50 Obs Relay Men'!$W$7:$W$46),SUMIF('4 x 50 Obs Relay Men'!$C$7:$C$46,$A67,'4 x 50 Obs Relay Men'!$W$7:$W$46))) ->  | K67: =IF($A67="","",IF(SUMIF('4 x 50 medley Relay Men'!$C$7:$C$46,$A67,'4 x 50 medley Relay Men'!$W$7:$W$46)=0,1+MAX('4 x 50 medley Relay Men'!$W$7:$W$46),SUMIF('4 x 50 medley Relay Men'!$C$7:$C$46,$A67,'4 x 50 medley Relay Men'!$W$7:$W$46))) ->  | L67: =IF($A67="","",IF(SUMIF('4 x 25 Manikin Carry Relay Men'!$C$7:$C$46,$A67,'4 x 25 Manikin Carry Relay Men'!$W$7:$W$46)=0,1+MAX('4 x 25 Manikin Carry Relay Men'!$W$7:$W$46),SUMIF('4 x 25 Manikin Carry Relay Men'!$C$7:$C$46,$A67,'4 x 25 Manikin Carry Relay Men'!$W$7:$W$46))) ->  | M67: =IF($A67="","",IF(SUMIF('4 x 12m Line Throw Men'!$C$7:$C$46,$A67,'4 x 12m Line Throw Men'!$W$7:$W$46)=0,1+MAX('4 x 12m Line Throw Men'!$W$7:$W$46),SUMIF('4 x 12m Line Throw Men'!$C$7:$C$46,$A67,'4 x 12m Line Throw Men'!$W$7:$W$46))) -> 
C68: =IF($A68="","",IF(SUMIF('50m Manikin Carry Men'!$C$7:$C$46,$A68,'50m Manikin Carry Men'!$Z$7:$Z$46)=0,1+MAX('50m Manikin Carry Men'!$Z$7:$Z$46),SUMIF('50m Manikin Carry Men'!$C$7:$C$46,$A68,'50m Manikin Carry Men'!$Z$7:$Z$46))) ->  | D68: =IF($A68="","",IF(SUMIF('100m Manikin Carry Men'!$C$7:$C$46,$A68,'100m Manikin Carry Men'!$Z$7:$Z$46)=0,1+MAX('100m Manikin Carry Men'!$Z$7:$Z$46),SUMIF('100m Manikin Carry Men'!$C$7:$C$46,$A68,'100m Manikin Carry Men'!$Z$7:$Z$46))) ->  | E68: =IF($A68="","",IF(SUMIF('100m Manikin Tow Men'!$C$7:$C$46,$A68,'100m Manikin Tow Men'!$Z$7:$Z$46)=0,1+MAX('100m Manikin Tow Men'!$Z$7:$Z$46),SUMIF('100m Manikin Tow Men'!$C$7:$C$46,$A68,'100m Manikin Tow Men'!$Z$7:$Z$46))) ->  | F68: =IF($A68="","",IF(SUMIF('200m Obs Men'!$C$7:$C$46,$A68,'200m Obs Men'!$Z$7:$Z$46)=0,1+MAX('200m Obs Men'!$Z$7:$Z$46),SUMIF('200m Obs Men'!$C$7:$C$46,$A68,'200m Obs Men'!$Z$7:$Z$46))) ->  | G68: =IF($A68="","",IF(SUMIF('200m Super Men'!$C$7:$C$46,$A68,'200m Super Men'!$Z$7:$Z$46)=0,1+MAX('200m Super Men'!$Z$7:$Z$46),SUMIF('200m Super Men'!$C$7:$C$46,$A68,'200m Super Men'!$Z$7:$Z$46))) ->  | H68: =IF($A68="","",IF(SUMIF('100 Resue Men'!$C$7:$C$46,$A68,'100 Resue Men'!$Z$7:$Z$46)=0,1+MAX('100 Resue Men'!$Z$7:$Z$46),SUMIF('100 Resue Men'!$C$7:$C$46,$A68,'100 Resue Men'!$Z$7:$Z$46))) ->  | I68: =IF($A68="","",IF(SUMIF('Line Throw Men'!$C$7:$C$46,$A68,'Line Throw Men'!$AB$7:$AB$46)=0,1+MAX('Line Throw Men'!$AB$7:$AB$46),SUMIF('Line Throw Men'!$C$7:$C$46,$A68,'Line Throw Men'!$AB$7:$AB$46))) ->  | J68: =IF($A68="","",IF(SUMIF('4 x 50 Obs Relay Men'!$C$7:$C$46,$A68,'4 x 50 Obs Relay Men'!$W$7:$W$46)=0,1+MAX('4 x 50 Obs Relay Men'!$W$7:$W$46),SUMIF('4 x 50 Obs Relay Men'!$C$7:$C$46,$A68,'4 x 50 Obs Relay Men'!$W$7:$W$46))) ->  | K68: =IF($A68="","",IF(SUMIF('4 x 50 medley Relay Men'!$C$7:$C$46,$A68,'4 x 50 medley Relay Men'!$W$7:$W$46)=0,1+MAX('4 x 50 medley Relay Men'!$W$7:$W$46),SUMIF('4 x 50 medley Relay Men'!$C$7:$C$46,$A68,'4 x 50 medley Relay Men'!$W$7:$W$46))) ->  | L68: =IF($A68="","",IF(SUMIF('4 x 25 Manikin Carry Relay Men'!$C$7:$C$46,$A68,'4 x 25 Manikin Carry Relay Men'!$W$7:$W$46)=0,1+MAX('4 x 25 Manikin Carry Relay Men'!$W$7:$W$46),SUMIF('4 x 25 Manikin Carry Relay Men'!$C$7:$C$46,$A68,'4 x 25 Manikin Carry Relay Men'!$W$7:$W$46))) ->  | M68: =IF($A68="","",IF(SUMIF('4 x 12m Line Throw Men'!$C$7:$C$46,$A68,'4 x 12m Line Throw Men'!$W$7:$W$46)=0,1+MAX('4 x 12m Line Throw Men'!$W$7:$W$46),SUMIF('4 x 12m Line Throw Men'!$C$7:$C$46,$A68,'4 x 12m Line Throw Men'!$W$7:$W$46))) -> 
C69: =IF($A69="","",IF(SUMIF('50m Manikin Carry Men'!$C$7:$C$46,$A69,'50m Manikin Carry Men'!$Z$7:$Z$46)=0,1+MAX('50m Manikin Carry Men'!$Z$7:$Z$46),SUMIF('50m Manikin Carry Men'!$C$7:$C$46,$A69,'50m Manikin Carry Men'!$Z$7:$Z$46))) ->  | D69: =IF($A69="","",IF(SUMIF('100m Manikin Carry Men'!$C$7:$C$46,$A69,'100m Manikin Carry Men'!$Z$7:$Z$46)=0,1+MAX('100m Manikin Carry Men'!$Z$7:$Z$46),SUMIF('100m Manikin Carry Men'!$C$7:$C$46,$A69,'100m Manikin Carry Men'!$Z$7:$Z$46))) ->  | E69: =IF($A69="","",IF(SUMIF('100m Manikin Tow Men'!$C$7:$C$46,$A69,'100m Manikin Tow Men'!$Z$7:$Z$46)=0,1+MAX('100m Manikin Tow Men'!$Z$7:$Z$46),SUMIF('100m Manikin Tow Men'!$C$7:$C$46,$A69,'100m Manikin Tow Men'!$Z$7:$Z$46))) ->  | F69: =IF($A69="","",IF(SUMIF('200m Obs Men'!$C$7:$C$46,$A69,'200m Obs Men'!$Z$7:$Z$46)=0,1+MAX('200m Obs Men'!$Z$7:$Z$46),SUMIF('200m Obs Men'!$C$7:$C$46,$A69,'200m Obs Men'!$Z$7:$Z$46))) ->  | G69: =IF($A69="","",IF(SUMIF('200m Super Men'!$C$7:$C$46,$A69,'200m Super Men'!$Z$7:$Z$46)=0,1+MAX('200m Super Men'!$Z$7:$Z$46),SUMIF('200m Super Men'!$C$7:$C$46,$A69,'200m Super Men'!$Z$7:$Z$46))) ->  | H69: =IF($A69="","",IF(SUMIF('100 Resue Men'!$C$7:$C$46,$A69,'100 Resue Men'!$Z$7:$Z$46)=0,1+MAX('100 Resue Men'!$Z$7:$Z$46),SUMIF('100 Resue Men'!$C$7:$C$46,$A69,'100 Resue Men'!$Z$7:$Z$46))) ->  | I69: =IF($A69="","",IF(SUMIF('Line Throw Men'!$C$7:$C$46,$A69,'Line Throw Men'!$AB$7:$AB$46)=0,1+MAX('Line Throw Men'!$AB$7:$AB$46),SUMIF('Line Throw Men'!$C$7:$C$46,$A69,'Line Throw Men'!$AB$7:$AB$46))) ->  | J69: =IF($A69="","",IF(SUMIF('4 x 50 Obs Relay Men'!$C$7:$C$46,$A69,'4 x 50 Obs Relay Men'!$W$7:$W$46)=0,1+MAX('4 x 50 Obs Relay Men'!$W$7:$W$46),SUMIF('4 x 50 Obs Relay Men'!$C$7:$C$46,$A69,'4 x 50 Obs Relay Men'!$W$7:$W$46))) ->  | K69: =IF($A69="","",IF(SUMIF('4 x 50 medley Relay Men'!$C$7:$C$46,$A69,'4 x 50 medley Relay Men'!$W$7:$W$46)=0,1+MAX('4 x 50 medley Relay Men'!$W$7:$W$46),SUMIF('4 x 50 medley Relay Men'!$C$7:$C$46,$A69,'4 x 50 medley Relay Men'!$W$7:$W$46))) ->  | L69: =IF($A69="","",IF(SUMIF('4 x 25 Manikin Carry Relay Men'!$C$7:$C$46,$A69,'4 x 25 Manikin Carry Relay Men'!$W$7:$W$46)=0,1+MAX('4 x 25 Manikin Carry Relay Men'!$W$7:$W$46),SUMIF('4 x 25 Manikin Carry Relay Men'!$C$7:$C$46,$A69,'4 x 25 Manikin Carry Relay Men'!$W$7:$W$46))) ->  | M69: =IF($A69="","",IF(SUMIF('4 x 12m Line Throw Men'!$C$7:$C$46,$A69,'4 x 12m Line Throw Men'!$W$7:$W$46)=0,1+MAX('4 x 12m Line Throw Men'!$W$7:$W$46),SUMIF('4 x 12m Line Throw Men'!$C$7:$C$46,$A69,'4 x 12m Line Throw Men'!$W$7:$W$46))) -> 
B71: Women's Students
A73: Club Code | B73: Club Name | C73: 50m Manikin Carry | D73: 100m Carry with Fins | E73: 100m tow with fins | F73: 200m Obs | G73: 200 Super | H73: 100 rescue | I73: Line Throw | J73: 4 x 50 obs Relay | K73: 4 x 50 medley Relay | L73: 4 x 25 Manikin Carry Relay | M73: 4 x 12m Line Throw Relay | N73: Totals | O73: Position
A74: =IF(A4="","",A4) -> 15 | B74: =IF(B4="","",B4) -> Bristol University | C74: =IF($A74="","",IF(SUMIF('50m Manikin Carry Women'!$C$7:$C$46,$A74,'50m Manikin Carry Women'!$Z$7:$Z$46)=0,1+MAX('50m Manikin Carry Women'!$Z$7:$Z$46),SUMIF('50m Manikin Carry Women'!$C$7:$C$46,$A74,'50m Manikin Carry Women'!$Z$7:$Z$46))) -> 8 | D74: =IF($A74="","",IF(SUMIF('100m Manikin Carry Women'!$C$7:$C$46,$A74,'100m Manikin Carry Women'!$Z$7:$Z$46)=0,1+MAX('100m Manikin Carry Women'!$Z$7:$Z$46),SUMIF('100m Manikin Carry Women'!$C$7:$C$46,$A74,'100m Manikin Carry Women'!$Z$7:$Z$46))) -> 10 | E74: =IF($A74="","",IF(SUMIF('100m Manikin Tow Women'!$C$7:$C$46,$A74,'100m Manikin Tow Women'!$Z$7:$Z$46)=0,1+MAX('100m Manikin Tow Women'!$Z$7:$Z$46),SUMIF('100m Manikin Tow Women'!$C$7:$C$46,$A74,'100m Manikin Tow Women'!$Z$7:$Z$46))) -> 12 | F74: =IF($A74="","",IF(SUMIF('200m Obs Women'!$C$7:$C$46,$A74,'200m Obs Women'!$Z$7:$Z$46)=0,1+MAX('200m Obs Women'!$Z$7:$Z$46),SUMIF('200m Obs Women'!$C$7:$C$46,$A74,'200m Obs Women'!$Z$7:$Z$46))) -> 7 | G74: =IF($A74="","",IF(SUMIF('200m Super Women'!$C$7:$C$46,$A74,'200m Super Women'!$Z$7:$Z$46)=0,1+MAX('200m Super Women'!$Z$7:$Z$46),SUMIF('200m Super Women'!$C$7:$C$46,$A74,'200m Super Women'!$Z$7:$Z$46))) -> 12 | H74: =IF($A74="","",IF(SUMIF('100 Resue Women'!$C$7:$C$46,$A74,'100 Resue Women'!$Z$7:$Z$46)=0,1+MAX('100 Resue Women'!$Z$7:$Z$46),SUMIF('100 Resue Women'!$C$7:$C$46,$A74,'100 Resue Women'!$Z$7:$Z$46))) -> 11 | I74: =IF($A74="","",IF(SUMIF('Line Throw Women'!$C$7:$C$46,$A74,'Line Throw Women'!$AB$7:$AB$46)=0,1+MAX('Line Throw Women'!$AB$7:$AB$46),SUMIF('Line Throw Women'!$C$7:$C$46,$A74,'Line Throw Women'!$AB$7:$AB$46))) -> 9 | J74: =IF($A74="","",IF(SUMIF('4 x 50 Obs Relay Women'!$C$7:$C$46,$A74,'4 x 50 Obs Relay Women'!$W$7:$W$46)=0,1+MAX('4 x 50 Obs Relay Women'!$W$7:$W$46),SUMIF('4 x 50 Obs Relay Women'!$C$7:$C$46,$A74,'4 x 50 Obs Relay Women'!$W$7:$W$46))) -> 10 | K74: =IF($A74="","",IF(SUMIF('4 x 50 medley Relay Women'!$C$7:$C$46,$A74,'4 x 50 medley Relay Women'!$W$7:$W$46)=0,1+MAX('4 x 50 medley Relay Women'!$W$7:$W$46),SUMIF('4 x 50 medley Relay Women'!$C$7:$C$46,$A74,'4 x 50 medley Relay Women'!$W$7:$W$46))) -> 10 | L74: =IF($A74="","",IF(SUMIF('4 x 25 Manikin Carry Women'!$C$7:$C$46,$A74,'4 x 25 Manikin Carry Women'!$W$7:$W$46)=0,1+MAX('4 x 25 Manikin Carry Women'!$W$7:$W$46),SUMIF('4 x 25 Manikin Carry Women'!$C$7:$C$46,$A74,'4 x 25 Manikin Carry Women'!$W$7:$W$46))) -> 10 | M74: =IF($A74="","",IF(SUMIF('4 x 12m Line Throw Women'!$C$7:$C$46,$A74,'4 x 12m Line Throw Women'!$W$7:$W$46)=0,1+MAX('4 x 12m Line Throw Women'!$W$7:$W$46),SUMIF('4 x 12m Line Throw Women'!$C$7:$C$46,$A74,'4 x 12m Line Throw Women'!$W$7:$W$46))) -> 4 | N74: =IF(A74="","",SUM(C74:M74)) -> 103 | O74: =IF(A74="","",RANK(N74,$N$74:$N$104,1)) -> 11
A75: =IF(A5="","",A5) -> 49 | B75: =IF(B5="","",B5) -> Cardiff University | C75: =IF($A75="","",IF(SUMIF('50m Manikin Carry Women'!$C$7:$C$46,$A75,'50m Manikin Carry Women'!$Z$7:$Z$46)=0,1+MAX('50m Manikin Carry Women'!$Z$7:$Z$46),SUMIF('50m Manikin Carry Women'!$C$7:$C$46,$A75,'50m Manikin Carry Women'!$Z$7:$Z$46))) -> 13 | D75: =IF($A75="","",IF(SUMIF('100m Manikin Carry Women'!$C$7:$C$46,$A75,'100m Manikin Carry Women'!$Z$7:$Z$46)=0,1+MAX('100m Manikin Carry Women'!$Z$7:$Z$46),SUMIF('100m Manikin Carry Women'!$C$7:$C$46,$A75,'100m Manikin Carry Women'!$Z$7:$Z$46))) -> 13 | E75: =IF($A75="","",IF(SUMIF('100m Manikin Tow Women'!$C$7:$C$46,$A75,'100m Manikin Tow Women'!$Z$7:$Z$46)=0,1+MAX('100m Manikin Tow Women'!$Z$7:$Z$46),SUMIF('100m Manikin Tow Women'!$C$7:$C$46,$A75,'100m Manikin Tow Women'!$Z$7:$Z$46))) -> 13 | F75: =IF($A75="","",IF(SUMIF('200m Obs Women'!$C$7:$C$46,$A75,'200m Obs Women'!$Z$7:$Z$46)=0,1+MAX('200m Obs Women'!$Z$7:$Z$46),SUMIF('200m Obs Women'!$C$7:$C$46,$A75,'200m Obs Women'!$Z$7:$Z$46))) -> 13 | G75: =IF($A75="","",IF(SUMIF('200m Super Women'!$C$7:$C$46,$A75,'200m Super Women'!$Z$7:$Z$46)=0,1+MAX('200m Super Women'!$Z$7:$Z$46),SUMIF('200m Super Women'!$C$7:$C$46,$A75,'200m Super Women'!$Z$7:$Z$46))) -> 12 | H75: =IF($A75="","",IF(SUMIF('100 Resue Women'!$C$7:$C$46,$A75,'100 Resue Women'!$Z$7:$Z$46)=0,1+MAX('100 Resue Women'!$Z$7:$Z$46),SUMIF('100 Resue Women'!$C$7:$C$46,$A75,'100 Resue Women'!$Z$7:$Z$46))) -> 11 | I75: =IF($A75="","",IF(SUMIF('Line Throw Women'!$C$7:$C$46,$A75,'Line Throw Women'!$AB$7:$AB$46)=0,1+MAX('Line Throw Women'!$AB$7:$AB$46),SUMIF('Line Throw Women'!$C$7:$C$46,$A75,'Line Throw Women'!$AB$7:$AB$46))) -> 9 | J75: =IF($A75="","",IF(SUMIF('4 x 50 Obs Relay Women'!$C$7:$C$46,$A75,'4 x 50 Obs Relay Women'!$W$7:$W$46)=0,1+MAX('4 x 50 Obs Relay Women'!$W$7:$W$46),SUMIF('4 x 50 Obs Relay Women'!$C$7:$C$46,$A75,'4 x 50 Obs Relay Women'!$W$7:$W$46))) -> 10 | K75: =IF($A75="","",IF(SUMIF('4 x 50 medley Relay Women'!$C$7:$C$46,$A75,'4 x 50 medley Relay Women'!$W$7:$W$46)=0,1+MAX('4 x 50 medley Relay Women'!$W$7:$W$46),SUMIF('4 x 50 medley Relay Women'!$C$7:$C$46,$A75,'4 x 50 medley Relay Women'!$W$7:$W$46))) -> 10 | L75: =IF($A75="","",IF(SUMIF('4 x 25 Manikin Carry Women'!$C$7:$C$46,$A75,'4 x 25 Manikin Carry Women'!$W$7:$W$46)=0,1+MAX('4 x 25 Manikin Carry Women'!$W$7:$W$46),SUMIF('4 x 25 Manikin Carry Women'!$C$7:$C$46,$A75,'4 x 25 Manikin Carry Women'!$W$7:$W$46))) -> 10 | M75: =IF($A75="","",IF(SUMIF('4 x 12m Line Throw Women'!$C$7:$C$46,$A75,'4 x 12m Line Throw Women'!$W$7:$W$46)=0,1+MAX('4 x 12m Line Throw Women'!$W$7:$W$46),SUMIF('4 x 12m Line Throw Women'!$C$7:$C$46,$A75,'4 x 12m Line Throw Women'!$W$7:$W$46))) -> 4 | N75: =IF(A75="","",SUM(C75:M75)) -> 118 | O75: =IF(A75="","",RANK(N75,$N$74:$N$104,1)) -> 13
A76: 7 | B76: Loughborough University | C76: =IF($A76="","",IF(SUMIF('50m Manikin Carry Women'!$C$7:$C$46,$A76,'50m Manikin Carry Women'!$Z$7:$Z$46)=0,1+MAX('50m Manikin Carry Women'!$Z$7:$Z$46),SUMIF('50m Manikin Carry Women'!$C$7:$C$46,$A76,'50m Manikin Carry Women'!$Z$7:$Z$46))) -> 1 | D76: =IF($A76="","",IF(SUMIF('100m Manikin Carry Women'!$C$7:$C$46,$A76,'100m Manikin Carry Women'!$Z$7:$Z$46)=0,1+MAX('100m Manikin Carry Women'!$Z$7:$Z$46),SUMIF('100m Manikin Carry Women'!$C$7:$C$46,$A76,'100m Manikin Carry Women'!$Z$7:$Z$46))) -> 2 | E76: =IF($A76="","",IF(SUMIF('100m Manikin Tow Women'!$C$7:$C$46,$A76,'100m Manikin Tow Women'!$Z$7:$Z$46)=0,1+MAX('100m Manikin Tow Women'!$Z$7:$Z$46),SUMIF('100m Manikin Tow Women'!$C$7:$C$46,$A76,'100m Manikin Tow Women'!$Z$7:$Z$46))) -> 3 | F76: =IF($A76="","",IF(SUMIF('200m Obs Women'!$C$7:$C$46,$A76,'200m Obs Women'!$Z$7:$Z$46)=0,1+MAX('200m Obs Women'!$Z$7:$Z$46),SUMIF('200m Obs Women'!$C$7:$C$46,$A76,'200m Obs Women'!$Z$7:$Z$46))) -> 2 | G76: =IF($A76="","",IF(SUMIF('200m Super Women'!$C$7:$C$46,$A76,'200m Super Women'!$Z$7:$Z$46)=0,1+MAX('200m Super Women'!$Z$7:$Z$46),SUMIF('200m Super Women'!$C$7:$C$46,$A76,'200m Super Women'!$Z$7:$Z$46))) -> 3 | H76: =IF($A76="","",IF(SUMIF('100 Resue Women'!$C$7:$C$46,$A76,'100 Resue Women'!$Z$7:$Z$46)=0,1+MAX('100 Resue Women'!$Z$7:$Z$46),SUMIF('100 Resue Women'!$C$7:$C$46,$A76,'100 Resue Women'!$Z$7:$Z$46))) -> 1 | I76: =IF($A76="","",IF(SUMIF('Line Throw Women'!$C$7:$C$46,$A76,'Line Throw Women'!$AB$7:$AB$46)=0,1+MAX('Line Throw Women'!$AB$7:$AB$46),SUMIF('Line Throw Women'!$C$7:$C$46,$A76,'Line Throw Women'!$AB$7:$AB$46))) -> 1 | J76: =IF($A76="","",IF(SUMIF('4 x 50 Obs Relay Women'!$C$7:$C$46,$A76,'4 x 50 Obs Relay Women'!$W$7:$W$46)=0,1+MAX('4 x 50 Obs Relay Women'!$W$7:$W$46),SUMIF('4 x 50 Obs Relay Women'!$C$7:$C$46,$A76,'4 x 50 Obs Relay Women'!$W$7:$W$46))) -> 3 | K76: =IF($A76="","",IF(SUMIF('4 x 50 medley Relay Women'!$C$7:$C$46,$A76,'4 x 50 medley Relay Women'!$W$7:$W$46)=0,1+MAX('4 x 50 medley Relay Women'!$W$7:$W$46),SUMIF('4 x 50 medley Relay Women'!$C$7:$C$46,$A76,'4 x 50 medley Relay Women'!$W$7:$W$46))) -> 2 | L76: =IF($A76="","",IF(SUMIF('4 x 25 Manikin Carry Women'!$C$7:$C$46,$A76,'4 x 25 Manikin Carry Women'!$W$7:$W$46)=0,1+MAX('4 x 25 Manikin Carry Women'!$W$7:$W$46),SUMIF('4 x 25 Manikin Carry Women'!$C$7:$C$46,$A76,'4 x 25 Manikin Carry Women'!$W$7:$W$46))) -> 1 | M76: =IF($A76="","",IF(SUMIF('4 x 12m Line Throw Women'!$C$7:$C$46,$A76,'4 x 12m Line Throw Women'!$W$7:$W$46)=0,1+MAX('4 x 12m Line Throw Women'!$W$7:$W$46),SUMIF('4 x 12m Line Throw Women'!$C$7:$C$46,$A76,'4 x 12m Line Throw Women'!$W$7:$W$46))) -> 2 | N76: 21 | O76: 1
A77: 21 | B77: Swansea Universities Lifesaving | C77: =IF($A77="","",IF(SUMIF('50m Manikin Carry Women'!$C$7:$C$46,$A77,'50m Manikin Carry Women'!$Z$7:$Z$46)=0,1+MAX('50m Manikin Carry Women'!$Z$7:$Z$46),SUMIF('50m Manikin Carry Women'!$C$7:$C$46,$A77,'50m Manikin Carry Women'!$Z$7:$Z$46))) -> 3 | D77: =IF($A77="","",IF(SUMIF('100m Manikin Carry Women'!$C$7:$C$46,$A77,'100m Manikin Carry Women'!$Z$7:$Z$46)=0,1+MAX('100m Manikin Carry Women'!$Z$7:$Z$46),SUMIF('100m Manikin Carry Women'!$C$7:$C$46,$A77,'100m Manikin Carry Women'!$Z$7:$Z$46))) -> 1 | E77: =IF($A77="","",IF(SUMIF('100m Manikin Tow Women'!$C$7:$C$46,$A77,'100m Manikin Tow Women'!$Z$7:$Z$46)=0,1+MAX('100m Manikin Tow Women'!$Z$7:$Z$46),SUMIF('100m Manikin Tow Women'!$C$7:$C$46,$A77,'100m Manikin Tow Women'!$Z$7:$Z$46))) -> 1 | F77: =IF($A77="","",IF(SUMIF('200m Obs Women'!$C$7:$C$46,$A77,'200m Obs Women'!$Z$7:$Z$46)=0,1+MAX('200m Obs Women'!$Z$7:$Z$46),SUMIF('200m Obs Women'!$C$7:$C$46,$A77,'200m Obs Women'!$Z$7:$Z$46))) -> 1 | G77: =IF($A77="","",IF(SUMIF('200m Super Women'!$C$7:$C$46,$A77,'200m Super Women'!$Z$7:$Z$46)=0,1+MAX('200m Super Women'!$Z$7:$Z$46),SUMIF('200m Super Women'!$C$7:$C$46,$A77,'200m Super Women'!$Z$7:$Z$46))) -> 1 | H77: =IF($A77="","",IF(SUMIF('100 Resue Women'!$C$7:$C$46,$A77,'100 Resue Women'!$Z$7:$Z$46)=0,1+MAX('100 Resue Women'!$Z$7:$Z$46),SUMIF('100 Resue Women'!$C$7:$C$46,$A77,'100 Resue Women'!$Z$7:$Z$46))) -> 6 | I77: =IF($A77="","",IF(SUMIF('Line Throw Women'!$C$7:$C$46,$A77,'Line Throw Women'!$AB$7:$AB$46)=0,1+MAX('Line Throw Women'!$AB$7:$AB$46),SUMIF('Line Throw Women'!$C$7:$C$46,$A77,'Line Throw Women'!$AB$7:$AB$46))) -> 2 | J77: =IF($A77="","",IF(SUMIF('4 x 50 Obs Relay Women'!$C$7:$C$46,$A77,'4 x 50 Obs Relay Women'!$W$7:$W$46)=0,1+MAX('4 x 50 Obs Relay Women'!$W$7:$W$46),SUMIF('4 x 50 Obs Relay Women'!$C$7:$C$46,$A77,'4 x 50 Obs Relay Women'!$W$7:$W$46))) -> 1 | K77: =IF($A77="","",IF(SUMIF('4 x 50 medley Relay Women'!$C$7:$C$46,$A77,'4 x 50 medley Relay Women'!$W$7:$W$46)=0,1+MAX('4 x 50 medley Relay Women'!$W$7:$W$46),SUMIF('4 x 50 medley Relay Women'!$C$7:$C$46,$A77,'4 x 50 medley Relay Women'!$W$7:$W$46))) -> 1 | L77: =IF($A77="","",IF(SUMIF('4 x 25 Manikin Carry Women'!$C$7:$C$46,$A77,'4 x 25 Manikin Carry Women'!$W$7:$W$46)=0,1+MAX('4 x 25 Manikin Carry Women'!$W$7:$W$46),SUMIF('4 x 25 Manikin Carry Women'!$C$7:$C$46,$A77,'4 x 25 Manikin Carry Women'!$W$7:$W$46))) -> 6 | M77: =IF($A77="","",IF(SUMIF('4 x 12m Line Throw Women'!$C$7:$C$46,$A77,'4 x 12m Line Throw Women'!$W$7:$W$46)=0,1+MAX('4 x 12m Line Throw Women'!$W$7:$W$46),SUMIF('4 x 12m Line Throw Women'!$C$7:$C$46,$A77,'4 x 12m Line Throw Women'!$W$7:$W$46))) -> 3 | N77: 26 | O77: 2
A78: 2 | B78: University of Bath | C78: =IF($A78="","",IF(SUMIF('50m Manikin Carry Women'!$C$7:$C$46,$A78,'50m Manikin Carry Women'!$Z$7:$Z$46)=0,1+MAX('50m Manikin Carry Women'!$Z$7:$Z$46),SUMIF('50m Manikin Carry Women'!$C$7:$C$46,$A78,'50m Manikin Carry Women'!$Z$7:$Z$46))) -> 13 | D78: =IF($A78="","",IF(SUMIF('100m Manikin Carry Women'!$C$7:$C$46,$A78,'100m Manikin Carry Women'!$Z$7:$Z$46)=0,1+MAX('100m Manikin Carry Women'!$Z$7:$Z$46),SUMIF('100m Manikin Carry Women'!$C$7:$C$46,$A78,'100m Manikin Carry Women'!$Z$7:$Z$46))) -> 13 | E78: =IF($A78="","",IF(SUMIF('100m Manikin Tow Women'!$C$7:$C$46,$A78,'100m Manikin Tow Women'!$Z$7:$Z$46)=0,1+MAX('100m Manikin Tow Women'!$Z$7:$Z$46),SUMIF('100m Manikin Tow Women'!$C$7:$C$46,$A78,'100m Manikin Tow Women'!$Z$7:$Z$46))) -> 13 | F78: =IF($A78="","",IF(SUMIF('200m Obs Women'!$C$7:$C$46,$A78,'200m Obs Women'!$Z$7:$Z$46)=0,1+MAX('200m Obs Women'!$Z$7:$Z$46),SUMIF('200m Obs Women'!$C$7:$C$46,$A78,'200m Obs Women'!$Z$7:$Z$46))) -> 13 | G78: =IF($A78="","",IF(SUMIF('200m Super Women'!$C$7:$C$46,$A78,'200m Super Women'!$Z$7:$Z$46)=0,1+MAX('200m Super Women'!$Z$7:$Z$46),SUMIF('200m Super Women'!$C$7:$C$46,$A78,'200m Super Women'!$Z$7:$Z$46))) -> 12 | H78: =IF($A78="","",IF(SUMIF('100 Resue Women'!$C$7:$C$46,$A78,'100 Resue Women'!$Z$7:$Z$46)=0,1+MAX('100 Resue Women'!$Z$7:$Z$46),SUMIF('100 Resue Women'!$C$7:$C$46,$A78,'100 Resue Women'!$Z$7:$Z$46))) -> 11 | I78: =IF($A78="","",IF(SUMIF('Line Throw Women'!$C$7:$C$46,$A78,'Line Throw Women'!$AB$7:$AB$46)=0,1+MAX('Line Throw Women'!$AB$7:$AB$46),SUMIF('Line Throw Women'!$C$7:$C$46,$A78,'Line Throw Women'!$AB$7:$AB$46))) -> 9 | J78: =IF($A78="","",IF(SUMIF('4 x 50 Obs Relay Women'!$C$7:$C$46,$A78,'4 x 50 Obs Relay Women'!$W$7:$W$46)=0,1+MAX('4 x 50 Obs Relay Women'!$W$7:$W$46),SUMIF('4 x 50 Obs Relay Women'!$C$7:$C$46,$A78,'4 x 50 Obs Relay Women'!$W$7:$W$46))) -> 10 | K78: =IF($A78="","",IF(SUMIF('4 x 50 medley Relay Women'!$C$7:$C$46,$A78,'4 x 50 medley Relay Women'!$W$7:$W$46)=0,1+MAX('4 x 50 medley Relay Women'!$W$7:$W$46),SUMIF('4 x 50 medley Relay Women'!$C$7:$C$46,$A78,'4 x 50 medley Relay Women'!$W$7:$W$46))) -> 10 | L78: =IF($A78="","",IF(SUMIF('4 x 25 Manikin Carry Women'!$C$7:$C$46,$A78,'4 x 25 Manikin Carry Women'!$W$7:$W$46)=0,1+MAX('4 x 25 Manikin Carry Women'!$W$7:$W$46),SUMIF('4 x 25 Manikin Carry Women'!$C$7:$C$46,$A78,'4 x 25 Manikin Carry Women'!$W$7:$W$46))) -> 10 | M78: =IF($A78="","",IF(SUMIF('4 x 12m Line Throw Women'!$C$7:$C$46,$A78,'4 x 12m Line Throw Women'!$W$7:$W$46)=0,1+MAX('4 x 12m Line Throw Women'!$W$7:$W$46),SUMIF('4 x 12m Line Throw Women'!$C$7:$C$46,$A78,'4 x 12m Line Throw Women'!$W$7:$W$46))) -> 4 | N78: 118 | O78: 13
A79: 14 | B79: University of Birmingham | C79: =IF($A79="","",IF(SUMIF('50m Manikin Carry Women'!$C$7:$C$46,$A79,'50m Manikin Carry Women'!$Z$7:$Z$46)=0,1+MAX('50m Manikin Carry Women'!$Z$7:$Z$46),SUMIF('50m Manikin Carry Women'!$C$7:$C$46,$A79,'50m Manikin Carry Women'!$Z$7:$Z$46))) -> 7 | D79: =IF($A79="","",IF(SUMIF('100m Manikin Carry Women'!$C$7:$C$46,$A79,'100m Manikin Carry Women'!$Z$7:$Z$46)=0,1+MAX('100m Manikin Carry Women'!$Z$7:$Z$46),SUMIF('100m Manikin Carry Women'!$C$7:$C$46,$A79,'100m Manikin Carry Women'!$Z$7:$Z$46))) -> 9 | E79: =IF($A79="","",IF(SUMIF('100m Manikin Tow Women'!$C$7:$C$46,$A79,'100m Manikin Tow Women'!$Z$7:$Z$46)=0,1+MAX('100m Manikin Tow Women'!$Z$7:$Z$46),SUMIF('100m Manikin Tow Women'!$C$7:$C$46,$A79,'100m Manikin Tow Women'!$Z$7:$Z$46))) -> 4 | F79: =IF($A79="","",IF(SUMIF('200m Obs Women'!$C$7:$C$46,$A79,'200m Obs Women'!$Z$7:$Z$46)=0,1+MAX('200m Obs Women'!$Z$7:$Z$46),SUMIF('200m Obs Women'!$C$7:$C$46,$A79,'200m Obs Women'!$Z$7:$Z$46))) -> 9 | G79: =IF($A79="","",IF(SUMIF('200m Super Women'!$C$7:$C$46,$A79,'200m Super Women'!$Z$7:$Z$46)=0,1+MAX('200m Super Women'!$Z$7:$Z$46),SUMIF('200m Super Women'!$C$7:$C$46,$A79,'200m Super Women'!$Z$7:$Z$46))) -> 6 | H79: =IF($A79="","",IF(SUMIF('100 Resue Women'!$C$7:$C$46,$A79,'100 Resue Women'!$Z$7:$Z$46)=0,1+MAX('100 Resue Women'!$Z$7:$Z$46),SUMIF('100 Resue Women'!$C$7:$C$46,$A79,'100 Resue Women'!$Z$7:$Z$46))) -> 4 | I79: =IF($A79="","",IF(SUMIF('Line Throw Women'!$C$7:$C$46,$A79,'Line Throw Women'!$AB$7:$AB$46)=0,1+MAX('Line Throw Women'!$AB$7:$AB$46),SUMIF('Line Throw Women'!$C$7:$C$46,$A79,'Line Throw Women'!$AB$7:$AB$46))) -> 6 | J79: =IF($A79="","",IF(SUMIF('4 x 50 Obs Relay Women'!$C$7:$C$46,$A79,'4 x 50 Obs Relay Women'!$W$7:$W$46)=0,1+MAX('4 x 50 Obs Relay Women'!$W$7:$W$46),SUMIF('4 x 50 Obs Relay Women'!$C$7:$C$46,$A79,'4 x 50 Obs Relay Women'!$W$7:$W$46))) -> 6 | K79: =IF($A79="","",IF(SUMIF('4 x 50 medley Relay Women'!$C$7:$C$46,$A79,'4 x 50 medley Relay Women'!$W$7:$W$46)=0,1+MAX('4 x 50 medley Relay Women'!$W$7:$W$46),SUMIF('4 x 50 medley Relay Women'!$C$7:$C$46,$A79,'4 x 50 medley Relay Women'!$W$7:$W$46))) -> 4 | L79: =IF($A79="","",IF(SUMIF('4 x 25 Manikin Carry Women'!$C$7:$C$46,$A79,'4 x 25 Manikin Carry Women'!$W$7:$W$46)=0,1+MAX('4 x 25 Manikin Carry Women'!$W$7:$W$46),SUMIF('4 x 25 Manikin Carry Women'!$C$7:$C$46,$A79,'4 x 25 Manikin Carry Women'!$W$7:$W$46))) -> 4 | M79: =IF($A79="","",IF(SUMIF('4 x 12m Line Throw Women'!$C$7:$C$46,$A79,'4 x 12m Line Throw Women'!$W$7:$W$46)=0,1+MAX('4 x 12m Line Throw Women'!$W$7:$W$46),SUMIF('4 x 12m Line Throw Women'!$C$7:$C$46,$A79,'4 x 12m Line Throw Women'!$W$7:$W$46))) -> 3 | N79: 62 | O79: 4
A80: 5 | B80: University of Cambridge | C80: 12 | D80: 12 | E80: =IF($A80="","",IF(SUMIF('100m Manikin Tow Women'!$C$7:$C$46,$A80,'100m Manikin Tow Women'!$Z$7:$Z$46)=0,1+MAX('100m Manikin Tow Women'!$Z$7:$Z$46),SUMIF('100m Manikin Tow Women'!$C$7:$C$46,$A80,'100m Manikin Tow Women'!$Z$7:$Z$46))) -> 11 | F80: =IF($A80="","",IF(SUMIF('200m Obs Women'!$C$7:$C$46,$A80,'200m Obs Women'!$Z$7:$Z$46)=0,1+MAX('200m Obs Women'!$Z$7:$Z$46),SUMIF('200m Obs Women'!$C$7:$C$46,$A80,'200m Obs Women'!$Z$7:$Z$46))) -> 12 | G80: =IF($A80="","",IF(SUMIF('200m Super Women'!$C$7:$C$46,$A80,'200m Super Women'!$Z$7:$Z$46)=0,1+MAX('200m Super Women'!$Z$7:$Z$46),SUMIF('200m Super Women'!$C$7:$C$46,$A80,'200m Super Women'!$Z$7:$Z$46))) -> 11 | H80: =IF($A80="","",IF(SUMIF('100 Resue Women'!$C$7:$C$46,$A80,'100 Resue Women'!$Z$7:$Z$46)=0,1+MAX('100 Resue Women'!$Z$7:$Z$46),SUMIF('100 Resue Women'!$C$7:$C$46,$A80,'100 Resue Women'!$Z$7:$Z$46))) -> 8 | I80: =IF($A80="","",IF(SUMIF('Line Throw Women'!$C$7:$C$46,$A80,'Line Throw Women'!$AB$7:$AB$46)=0,1+MAX('Line Throw Women'!$AB$7:$AB$46),SUMIF('Line Throw Women'!$C$7:$C$46,$A80,'Line Throw Women'!$AB$7:$AB$46))) -> 8 | J80: =IF($A80="","",IF(SUMIF('4 x 50 Obs Relay Women'!$C$7:$C$46,$A80,'4 x 50 Obs Relay Women'!$W$7:$W$46)=0,1+MAX('4 x 50 Obs Relay Women'!$W$7:$W$46),SUMIF('4 x 50 Obs Relay Women'!$C$7:$C$46,$A80,'4 x 50 Obs Relay Women'!$W$7:$W$46))) -> 10 | K80: =IF($A80="","",IF(SUMIF('4 x 50 medley Relay Women'!$C$7:$C$46,$A80,'4 x 50 medley Relay Women'!$W$7:$W$46)=0,1+MAX('4 x 50 medley Relay Women'!$W$7:$W$46),SUMIF('4 x 50 medley Relay Women'!$C$7:$C$46,$A80,'4 x 50 medley Relay Women'!$W$7:$W$46))) -> 10 | L80: =IF($A80="","",IF(SUMIF('4 x 25 Manikin Carry Women'!$C$7:$C$46,$A80,'4 x 25 Manikin Carry Women'!$W$7:$W$46)=0,1+MAX('4 x 25 Manikin Carry Women'!$W$7:$W$46),SUMIF('4 x 25 Manikin Carry Women'!$C$7:$C$46,$A80,'4 x 25 Manikin Carry Women'!$W$7:$W$46))) -> 10 | M80: =IF($A80="","",IF(SUMIF('4 x 12m Line Throw Women'!$C$7:$C$46,$A80,'4 x 12m Line Throw Women'!$W$7:$W$46)=0,1+MAX('4 x 12m Line Throw Women'!$W$7:$W$46),SUMIF('4 x 12m Line Throw Women'!$C$7:$C$46,$A80,'4 x 12m Line Throw Women'!$W$7:$W$46))) -> 4 | N80: 108 | O80: 12
A81: 16 | B81: University of London Union | C81: =IF($A81="","",IF(SUMIF('50m Manikin Carry Women'!$C$7:$C$46,$A81,'50m Manikin Carry Women'!$Z$7:$Z$46)=0,1+MAX('50m Manikin Carry Women'!$Z$7:$Z$46),SUMIF('50m Manikin Carry Women'!$C$7:$C$46,$A81,'50m Manikin Carry Women'!$Z$7:$Z$46))) -> 11 | D81: =IF($A81="","",IF(SUMIF('100m Manikin Carry Women'!$C$7:$C$46,$A81,'100m Manikin Carry Women'!$Z$7:$Z$46)=0,1+MAX('100m Manikin Carry Women'!$Z$7:$Z$46),SUMIF('100m Manikin Carry Women'!$C$7:$C$46,$A81,'100m Manikin Carry Women'!$Z$7:$Z$46))) -> 11 | E81: =IF($A81="","",IF(SUMIF('100m Manikin Tow Women'!$C$7:$C$46,$A81,'100m Manikin Tow Women'!$Z$7:$Z$46)=0,1+MAX('100m Manikin Tow Women'!$Z$7:$Z$46),SUMIF('100m Manikin Tow Women'!$C$7:$C$46,$A81,'100m Manikin Tow Women'!$Z$7:$Z$46))) -> 9 | F81: =IF($A81="","",IF(SUMIF('200m Obs Women'!$C$7:$C$46,$A81,'200m Obs Women'!$Z$7:$Z$46)=0,1+MAX('200m Obs Women'!$Z$7:$Z$46),SUMIF('200m Obs Women'!$C$7:$C$46,$A81,'200m Obs Women'!$Z$7:$Z$46))) -> 11 | G81: =IF($A81="","",IF(SUMIF('200m Super Women'!$C$7:$C$46,$A81,'200m Super Women'!$Z$7:$Z$46)=0,1+MAX('200m Super Women'!$Z$7:$Z$46),SUMIF('200m Super Women'!$C$7:$C$46,$A81,'200m Super Women'!$Z$7:$Z$46))) -> 7 | H81: =IF($A81="","",IF(SUMIF('100 Resue Women'!$C$7:$C$46,$A81,'100 Resue Women'!$Z$7:$Z$46)=0,1+MAX('100 Resue Women'!$Z$7:$Z$46),SUMIF('100 Resue Women'!$C$7:$C$46,$A81,'100 Resue Women'!$Z$7:$Z$46))) -> 11 | I81: =IF($A81="","",IF(SUMIF('Line Throw Women'!$C$7:$C$46,$A81,'Line Throw Women'!$AB$7:$AB$46)=0,1+MAX('Line Throw Women'!$AB$7:$AB$46),SUMIF('Line Throw Women'!$C$7:$C$46,$A81,'Line Throw Women'!$AB$7:$AB$46))) -> 3 | J81: =IF($A81="","",IF(SUMIF('4 x 50 Obs Relay Women'!$C$7:$C$46,$A81,'4 x 50 Obs Relay Women'!$W$7:$W$46)=0,1+MAX('4 x 50 Obs Relay Women'!$W$7:$W$46),SUMIF('4 x 50 Obs Relay Women'!$C$7:$C$46,$A81,'4 x 50 Obs Relay Women'!$W$7:$W$46))) -> 9 | K81: =IF($A81="","",IF(SUMIF('4 x 50 medley Relay Women'!$C$7:$C$46,$A81,'4 x 50 medley Relay Women'!$W$7:$W$46)=0,1+MAX('4 x 50 medley Relay Women'!$W$7:$W$46),SUMIF('4 x 50 medley Relay Women'!$C$7:$C$46,$A81,'4 x 50 medley Relay Women'!$W$7:$W$46))) -> 7 | L81: =IF($A81="","",IF(SUMIF('4 x 25 Manikin Carry Women'!$C$7:$C$46,$A81,'4 x 25 Manikin Carry Women'!$W$7:$W$46)=0,1+MAX('4 x 25 Manikin Carry Women'!$W$7:$W$46),SUMIF('4 x 25 Manikin Carry Women'!$C$7:$C$46,$A81,'4 x 25 Manikin Carry Women'!$W$7:$W$46))) -> 5 | M81: =IF($A81="","",IF(SUMIF('4 x 12m Line Throw Women'!$C$7:$C$46,$A81,'4 x 12m Line Throw Women'!$W$7:$W$46)=0,1+MAX('4 x 12m Line Throw Women'!$W$7:$W$46),SUMIF('4 x 12m Line Throw Women'!$C$7:$C$46,$A81,'4 x 12m Line Throw Women'!$W$7:$W$46))) -> 3 | N81: 87 | O81: 10
A82: 8 | B82: University of Nottingham | C82: =IF($A82="","",IF(SUMIF('50m Manikin Carry Women'!$C$7:$C$46,$A82,'50m Manikin Carry Women'!$Z$7:$Z$46)=0,1+MAX('50m Manikin Carry Women'!$Z$7:$Z$46),SUMIF('50m Manikin Carry Women'!$C$7:$C$46,$A82,'50m Manikin Carry Women'!$Z$7:$Z$46))) -> 6 | D82: =IF($A82="","",IF(SUMIF('100m Manikin Carry Women'!$C$7:$C$46,$A82,'100m Manikin Carry Women'!$Z$7:$Z$46)=0,1+MAX('100m Manikin Carry Women'!$Z$7:$Z$46),SUMIF('100m Manikin Carry Women'!$C$7:$C$46,$A82,'100m Manikin Carry Women'!$Z$7:$Z$46))) -> 7 | E82: =IF($A82="","",IF(SUMIF('100m Manikin Tow Women'!$C$7:$C$46,$A82,'100m Manikin Tow Women'!$Z$7:$Z$46)=0,1+MAX('100m Manikin Tow Women'!$Z$7:$Z$46),SUMIF('100m Manikin Tow Women'!$C$7:$C$46,$A82,'100m Manikin Tow Women'!$Z$7:$Z$46))) -> 8 | F82: =IF($A82="","",IF(SUMIF('200m Obs Women'!$C$7:$C$46,$A82,'200m Obs Women'!$Z$7:$Z$46)=0,1+MAX('200m Obs Women'!$Z$7:$Z$46),SUMIF('200m Obs Women'!$C$7:$C$46,$A82,'200m Obs Women'!$Z$7:$Z$46))) -> 6 | G82: =IF($A82="","",IF(SUMIF('200m Super Women'!$C$7:$C$46,$A82,'200m Super Women'!$Z$7:$Z$46)=0,1+MAX('200m Super Women'!$Z$7:$Z$46),SUMIF('200m Super Women'!$C$7:$C$46,$A82,'200m Super Women'!$Z$7:$Z$46))) -> 10 | H82: =IF($A82="","",IF(SUMIF('100 Resue Women'!$C$7:$C$46,$A82,'100 Resue Women'!$Z$7:$Z$46)=0,1+MAX('100 Resue Women'!$Z$7:$Z$46),SUMIF('100 Resue Women'!$C$7:$C$46,$A82,'100 Resue Women'!$Z$7:$Z$46))) -> 9 | I82: 8 | J82: =IF($A82="","",IF(SUMIF('4 x 50 Obs Relay Women'!$C$7:$C$46,$A82,'4 x 50 Obs Relay Women'!$W$7:$W$46)=0,1+MAX('4 x 50 Obs Relay Women'!$W$7:$W$46),SUMIF('4 x 50 Obs Relay Women'!$C$7:$C$46,$A82,'4 x 50 Obs Relay Women'!$W$7:$W$46))) -> 4 | K82: =IF($A82="","",IF(SUMIF('4 x 50 medley Relay Women'!$C$7:$C$46,$A82,'4 x 50 medley Relay Women'!$W$7:$W$46)=0,1+MAX('4 x 50 medley Relay Women'!$W$7:$W$46),SUMIF('4 x 50 medley Relay Women'!$C$7:$C$46,$A82,'4 x 50 medley Relay Women'!$W$7:$W$46))) -> 5 | L82: =IF($A82="","",IF(SUMIF('4 x 25 Manikin Carry Women'!$C$7:$C$46,$A82,'4 x 25 Manikin Carry Women'!$W$7:$W$46)=0,1+MAX('4 x 25 Manikin Carry Women'!$W$7:$W$46),SUMIF('4 x 25 Manikin Carry Women'!$C$7:$C$46,$A82,'4 x 25 Manikin Carry Women'!$W$7:$W$46))) -> 7 | M82: =IF($A82="","",IF(SUMIF('4 x 12m Line Throw Women'!$C$7:$C$46,$A82,'4 x 12m Line Throw Women'!$W$7:$W$46)=0,1+MAX('4 x 12m Line Throw Women'!$W$7:$W$46),SUMIF('4 x 12m Line Throw Women'!$C$7:$C$46,$A82,'4 x 12m Line Throw Women'!$W$7:$W$46))) -> 3 | N82: 73 | O82: 8
A83: 18 | B83: University of Oxford | C83: =IF($A83="","",IF(SUMIF('50m Manikin Carry Women'!$C$7:$C$46,$A83,'50m Manikin Carry Women'!$Z$7:$Z$46)=0,1+MAX('50m Manikin Carry Women'!$Z$7:$Z$46),SUMIF('50m Manikin Carry Women'!$C$7:$C$46,$A83,'50m Manikin Carry Women'!$Z$7:$Z$46))) -> 4 | D83: =IF($A83="","",IF(SUMIF('100m Manikin Carry Women'!$C$7:$C$46,$A83,'100m Manikin Carry Women'!$Z$7:$Z$46)=0,1+MAX('100m Manikin Carry Women'!$Z$7:$Z$46),SUMIF('100m Manikin Carry Women'!$C$7:$C$46,$A83,'100m Manikin Carry Women'!$Z$7:$Z$46))) -> 5 | E83: =IF($A83="","",IF(SUMIF('100m Manikin Tow Women'!$C$7:$C$46,$A83,'100m Manikin Tow Women'!$Z$7:$Z$46)=0,1+MAX('100m Manikin Tow Women'!$Z$7:$Z$46),SUMIF('100m Manikin Tow Women'!$C$7:$C$46,$A83,'100m Manikin Tow Women'!$Z$7:$Z$46))) -> 6 | F83: =IF($A83="","",IF(SUMIF('200m Obs Women'!$C$7:$C$46,$A83,'200m Obs Women'!$Z$7:$Z$46)=0,1+MAX('200m Obs Women'!$Z$7:$Z$46),SUMIF('200m Obs Women'!$C$7:$C$46,$A83,'200m Obs Women'!$Z$7:$Z$46))) -> 5 | G83: =IF($A83="","",IF(SUMIF('200m Super Women'!$C$7:$C$46,$A83,'200m Super Women'!$Z$7:$Z$46)=0,1+MAX('200m Super Women'!$Z$7:$Z$46),SUMIF('200m Super Women'!$C$7:$C$46,$A83,'200m Super Women'!$Z$7:$Z$46))) -> 5 | H83: =IF($A83="","",IF(SUMIF('100 Resue Women'!$C$7:$C$46,$A83,'100 Resue Women'!$Z$7:$Z$46)=0,1+MAX('100 Resue Women'!$Z$7:$Z$46),SUMIF('100 Resue Women'!$C$7:$C$46,$A83,'100 Resue Women'!$Z$7:$Z$46))) -> 3 | I83: =IF($A83="","",IF(SUMIF('Line Throw Women'!$C$7:$C$46,$A83,'Line Throw Women'!$AB$7:$AB$46)=0,1+MAX('Line Throw Women'!$AB$7:$AB$46),SUMIF('Line Throw Women'!$C$7:$C$46,$A83,'Line Throw Women'!$AB$7:$AB$46))) -> 7 | J83: =IF($A83="","",IF(SUMIF('4 x 50 Obs Relay Women'!$C$7:$C$46,$A83,'4 x 50 Obs Relay Women'!$W$7:$W$46)=0,1+MAX('4 x 50 Obs Relay Women'!$W$7:$W$46),SUMIF('4 x 50 Obs Relay Women'!$C$7:$C$46,$A83,'4 x 50 Obs Relay Women'!$W$7:$W$46))) -> 10 | K83: =IF($A83="","",IF(SUMIF('4 x 50 medley Relay Women'!$C$7:$C$46,$A83,'4 x 50 medley Relay Women'!$W$7:$W$46)=0,1+MAX('4 x 50 medley Relay Women'!$W$7:$W$46),SUMIF('4 x 50 medley Relay Women'!$C$7:$C$46,$A83,'4 x 50 medley Relay Women'!$W$7:$W$46))) -> 10 | L83: =IF($A83="","",IF(SUMIF('4 x 25 Manikin Carry Women'!$C$7:$C$46,$A83,'4 x 25 Manikin Carry Women'!$W$7:$W$46)=0,1+MAX('4 x 25 Manikin Carry Women'!$W$7:$W$46),SUMIF('4 x 25 Manikin Carry Women'!$C$7:$C$46,$A83,'4 x 25 Manikin Carry Women'!$W$7:$W$46))) -> 10 | M83: =IF($A83="","",IF(SUMIF('4 x 12m Line Throw Women'!$C$7:$C$46,$A83,'4 x 12m Line Throw Women'!$W$7:$W$46)=0,1+MAX('4 x 12m Line Throw Women'!$W$7:$W$46),SUMIF('4 x 12m Line Throw Women'!$C$7:$C$46,$A83,'4 x 12m Line Throw Women'!$W$7:$W$46))) -> 4 | N83: 69 | O83: 6
A84: 9 | B84: University of Plymouth | C84: =IF($A84="","",IF(SUMIF('50m Manikin Carry Women'!$C$7:$C$46,$A84,'50m Manikin Carry Women'!$Z$7:$Z$46)=0,1+MAX('50m Manikin Carry Women'!$Z$7:$Z$46),SUMIF('50m Manikin Carry Women'!$C$7:$C$46,$A84,'50m Manikin Carry Women'!$Z$7:$Z$46))) -> 10 | D84: =IF($A84="","",IF(SUMIF('100m Manikin Carry Women'!$C$7:$C$46,$A84,'100m Manikin Carry Women'!$Z$7:$Z$46)=0,1+MAX('100m Manikin Carry Women'!$Z$7:$Z$46),SUMIF('100m Manikin Carry Women'!$C$7:$C$46,$A84,'100m Manikin Carry Women'!$Z$7:$Z$46))) -> 4 | E84: =IF($A84="","",IF(SUMIF('100m Manikin Tow Women'!$C$7:$C$46,$A84,'100m Manikin Tow Women'!$Z$7:$Z$46)=0,1+MAX('100m Manikin Tow Women'!$Z$7:$Z$46),SUMIF('100m Manikin Tow Women'!$C$7:$C$46,$A84,'100m Manikin Tow Women'!$Z$7:$Z$46))) -> 10 | F84: =IF($A84="","",IF(SUMIF('200m Obs Women'!$C$7:$C$46,$A84,'200m Obs Women'!$Z$7:$Z$46)=0,1+MAX('200m Obs Women'!$Z$7:$Z$46),SUMIF('200m Obs Women'!$C$7:$C$46,$A84,'200m Obs Women'!$Z$7:$Z$46))) -> 4 | G84: =IF($A84="","",IF(SUMIF('200m Super Women'!$C$7:$C$46,$A84,'200m Super Women'!$Z$7:$Z$46)=0,1+MAX('200m Super Women'!$Z$7:$Z$46),SUMIF('200m Super Women'!$C$7:$C$46,$A84,'200m Super Women'!$Z$7:$Z$46))) -> 4 | H84: =IF($A84="","",IF(SUMIF('100 Resue Women'!$C$7:$C$46,$A84,'100 Resue Women'!$Z$7:$Z$46)=0,1+MAX('100 Resue Women'!$Z$7:$Z$46),SUMIF('100 Resue Women'!$C$7:$C$46,$A84,'100 Resue Women'!$Z$7:$Z$46))) -> 5 | I84: 8 | J84: =IF($A84="","",IF(SUMIF('4 x 50 Obs Relay Women'!$C$7:$C$46,$A84,'4 x 50 Obs Relay Women'!$W$7:$W$46)=0,1+MAX('4 x 50 Obs Relay Women'!$W$7:$W$46),SUMIF('4 x 50 Obs Relay Women'!$C$7:$C$46,$A84,'4 x 50 Obs Relay Women'!$W$7:$W$46))) -> 5 | K84: =IF($A84="","",IF(SUMIF('4 x 50 medley Relay Women'!$C$7:$C$46,$A84,'4 x 50 medley Relay Women'!$W$7:$W$46)=0,1+MAX('4 x 50 medley Relay Women'!$W$7:$W$46),SUMIF('4 x 50 medley Relay Women'!$C$7:$C$46,$A84,'4 x 50 medley Relay Women'!$W$7:$W$46))) -> 8 | L84: =IF($A84="","",IF(SUMIF('4 x 25 Manikin Carry Women'!$C$7:$C$46,$A84,'4 x 25 Manikin Carry Women'!$W$7:$W$46)=0,1+MAX('4 x 25 Manikin Carry Women'!$W$7:$W$46),SUMIF('4 x 25 Manikin Carry Women'!$C$7:$C$46,$A84,'4 x 25 Manikin Carry Women'!$W$7:$W$46))) -> 8 | M84: =IF($A84="","",IF(SUMIF('4 x 12m Line Throw Women'!$C$7:$C$46,$A84,'4 x 12m Line Throw Women'!$W$7:$W$46)=0,1+MAX('4 x 12m Line Throw Women'!$W$7:$W$46),SUMIF('4 x 12m Line Throw Women'!$C$7:$C$46,$A84,'4 x 12m Line Throw Women'!$W$7:$W$46))) -> 3 | N84: 69 | O84: 6
A85: 20 | B85: University of Southampton | C85: =IF($A85="","",IF(SUMIF('50m Manikin Carry Women'!$C$7:$C$46,$A85,'50m Manikin Carry Women'!$Z$7:$Z$46)=0,1+MAX('50m Manikin Carry Women'!$Z$7:$Z$46),SUMIF('50m Manikin Carry Women'!$C$7:$C$46,$A85,'50m Manikin Carry Women'!$Z$7:$Z$46))) -> 2 | D85: =IF($A85="","",IF(SUMIF('100m Manikin Carry Women'!$C$7:$C$46,$A85,'100m Manikin Carry Women'!$Z$7:$Z$46)=0,1+MAX('100m Manikin Carry Women'!$Z$7:$Z$46),SUMIF('100m Manikin Carry Women'!$C$7:$C$46,$A85,'100m Manikin Carry Women'!$Z$7:$Z$46))) -> 3 | E85: =IF($A85="","",IF(SUMIF('100m Manikin Tow Women'!$C$7:$C$46,$A85,'100m Manikin Tow Women'!$Z$7:$Z$46)=0,1+MAX('100m Manikin Tow Women'!$Z$7:$Z$46),SUMIF('100m Manikin Tow Women'!$C$7:$C$46,$A85,'100m Manikin Tow Women'!$Z$7:$Z$46))) -> 2 | F85: =IF($A85="","",IF(SUMIF('200m Obs Women'!$C$7:$C$46,$A85,'200m Obs Women'!$Z$7:$Z$46)=0,1+MAX('200m Obs Women'!$Z$7:$Z$46),SUMIF('200m Obs Women'!$C$7:$C$46,$A85,'200m Obs Women'!$Z$7:$Z$46))) -> 3 | G85: =IF($A85="","",IF(SUMIF('200m Super Women'!$C$7:$C$46,$A85,'200m Super Women'!$Z$7:$Z$46)=0,1+MAX('200m Super Women'!$Z$7:$Z$46),SUMIF('200m Super Women'!$C$7:$C$46,$A85,'200m Super Women'!$Z$7:$Z$46))) -> 2 | H85: =IF($A85="","",IF(SUMIF('100 Resue Women'!$C$7:$C$46,$A85,'100 Resue Women'!$Z$7:$Z$46)=0,1+MAX('100 Resue Women'!$Z$7:$Z$46),SUMIF('100 Resue Women'!$C$7:$C$46,$A85,'100 Resue Women'!$Z$7:$Z$46))) -> 2 | I85: 8 | J85: =IF($A85="","",IF(SUMIF('4 x 50 Obs Relay Women'!$C$7:$C$46,$A85,'4 x 50 Obs Relay Women'!$W$7:$W$46)=0,1+MAX('4 x 50 Obs Relay Women'!$W$7:$W$46),SUMIF('4 x 50 Obs Relay Women'!$C$7:$C$46,$A85,'4 x 50 Obs Relay Women'!$W$7:$W$46))) -> 2 | K85: =IF($A85="","",IF(SUMIF('4 x 50 medley Relay Women'!$C$7:$C$46,$A85,'4 x 50 medley Relay Women'!$W$7:$W$46)=0,1+MAX('4 x 50 medley Relay Women'!$W$7:$W$46),SUMIF('4 x 50 medley Relay Women'!$C$7:$C$46,$A85,'4 x 50 medley Relay Women'!$W$7:$W$46))) -> 3 | L85: =IF($A85="","",IF(SUMIF('4 x 25 Manikin Carry Women'!$C$7:$C$46,$A85,'4 x 25 Manikin Carry Women'!$W$7:$W$46)=0,1+MAX('4 x 25 Manikin Carry Women'!$W$7:$W$46),SUMIF('4 x 25 Manikin Carry Women'!$C$7:$C$46,$A85,'4 x 25 Manikin Carry Women'!$W$7:$W$46))) -> 2 | M85: =IF($A85="","",IF(SUMIF('4 x 12m Line Throw Women'!$C$7:$C$46,$A85,'4 x 12m Line Throw Women'!$W$7:$W$46)=0,1+MAX('4 x 12m Line Throw Women'!$W$7:$W$46),SUMIF('4 x 12m Line Throw Women'!$C$7:$C$46,$A85,'4 x 12m Line Throw Women'!$W$7:$W$46))) -> 1 | N85: 30 | O85: 3
A86: 12 | B86: University of Warwick | C86: =IF($A86="","",IF(SUMIF('50m Manikin Carry Women'!$C$7:$C$46,$A86,'50m Manikin Carry Women'!$Z$7:$Z$46)=0,1+MAX('50m Manikin Carry Women'!$Z$7:$Z$46),SUMIF('50m Manikin Carry Women'!$C$7:$C$46,$A86,'50m Manikin Carry Women'!$Z$7:$Z$46))) -> 5 | D86: =IF($A86="","",IF(SUMIF('100m Manikin Carry Women'!$C$7:$C$46,$A86,'100m Manikin Carry Women'!$Z$7:$Z$46)=0,1+MAX('100m Manikin Carry Women'!$Z$7:$Z$46),SUMIF('100m Manikin Carry Women'!$C$7:$C$46,$A86,'100m Manikin Carry Women'!$Z$7:$Z$46))) -> 8 | E86: =IF($A86="","",IF(SUMIF('100m Manikin Tow Women'!$C$7:$C$46,$A86,'100m Manikin Tow Women'!$Z$7:$Z$46)=0,1+MAX('100m Manikin Tow Women'!$Z$7:$Z$46),SUMIF('100m Manikin Tow Women'!$C$7:$C$46,$A86,'100m Manikin Tow Women'!$Z$7:$Z$46))) -> 5 | F86: =IF($A86="","",IF(SUMIF('200m Obs Women'!$C$7:$C$46,$A86,'200m Obs Women'!$Z$7:$Z$46)=0,1+MAX('200m Obs Women'!$Z$7:$Z$46),SUMIF('200m Obs Women'!$C$7:$C$46,$A86,'200m Obs Women'!$Z$7:$Z$46))) -> 8 | G86: =IF($A86="","",IF(SUMIF('200m Super Women'!$C$7:$C$46,$A86,'200m Super Women'!$Z$7:$Z$46)=0,1+MAX('200m Super Women'!$Z$7:$Z$46),SUMIF('200m Super Women'!$C$7:$C$46,$A86,'200m Super Women'!$Z$7:$Z$46))) -> 8 | H86: =IF($A86="","",IF(SUMIF('100 Resue Women'!$C$7:$C$46,$A86,'100 Resue Women'!$Z$7:$Z$46)=0,1+MAX('100 Resue Women'!$Z$7:$Z$46),SUMIF('100 Resue Women'!$C$7:$C$46,$A86,'100 Resue Women'!$Z$7:$Z$46))) -> 7 | I86: =IF($A86="","",IF(SUMIF('Line Throw Women'!$C$7:$C$46,$A86,'Line Throw Women'!$AB$7:$AB$46)=0,1+MAX('Line Throw Women'!$AB$7:$AB$46),SUMIF('Line Throw Women'!$C$7:$C$46,$A86,'Line Throw Women'!$AB$7:$AB$46))) -> 5 | J86: =IF($A86="","",IF(SUMIF('4 x 50 Obs Relay Women'!$C$7:$C$46,$A86,'4 x 50 Obs Relay Women'!$W$7:$W$46)=0,1+MAX('4 x 50 Obs Relay Women'!$W$7:$W$46),SUMIF('4 x 50 Obs Relay Women'!$C$7:$C$46,$A86,'4 x 50 Obs Relay Women'!$W$7:$W$46))) -> 7 | K86: =IF($A86="","",IF(SUMIF('4 x 50 medley Relay Women'!$C$7:$C$46,$A86,'4 x 50 medley Relay Women'!$W$7:$W$46)=0,1+MAX('4 x 50 medley Relay Women'!$W$7:$W$46),SUMIF('4 x 50 medley Relay Women'!$C$7:$C$46,$A86,'4 x 50 medley Relay Women'!$W$7:$W$46))) -> 6 | L86: =IF($A86="","",IF(SUMIF('4 x 25 Manikin Carry Women'!$C$7:$C$46,$A86,'4 x 25 Manikin Carry Women'!$W$7:$W$46)=0,1+MAX('4 x 25 Manikin Carry Women'!$W$7:$W$46),SUMIF('4 x 25 Manikin Carry Women'!$C$7:$C$46,$A86,'4 x 25 Manikin Carry Women'!$W$7:$W$46))) -> 3 | M86: =IF($A86="","",IF(SUMIF('4 x 12m Line Throw Women'!$C$7:$C$46,$A86,'4 x 12m Line Throw Women'!$W$7:$W$46)=0,1+MAX('4 x 12m Line Throw Women'!$W$7:$W$46),SUMIF('4 x 12m Line Throw Women'!$C$7:$C$46,$A86,'4 x 12m Line Throw Women'!$W$7:$W$46))) -> 3 | N86: 65 | O86: 5
A87: 11 | B87: St. Andrews | C87: =IF($A87="","",IF(SUMIF('50m Manikin Carry Women'!$C$7:$C$46,$A87,'50m Manikin Carry Women'!$Z$7:$Z$46)=0,1+MAX('50m Manikin Carry Women'!$Z$7:$Z$46),SUMIF('50m Manikin Carry Women'!$C$7:$C$46,$A87,'50m Manikin Carry Women'!$Z$7:$Z$46))) -> 9 | D87: =IF($A87="","",IF(SUMIF('100m Manikin Carry Women'!$C$7:$C$46,$A87,'100m Manikin Carry Women'!$Z$7:$Z$46)=0,1+MAX('100m Manikin Carry Women'!$Z$7:$Z$46),SUMIF('100m Manikin Carry Women'!$C$7:$C$46,$A87,'100m Manikin Carry Women'!$Z$7:$Z$46))) -> 6 | E87: =IF($A87="","",IF(SUMIF('100m Manikin Tow Women'!$C$7:$C$46,$A87,'100m Manikin Tow Women'!$Z$7:$Z$46)=0,1+MAX('100m Manikin Tow Women'!$Z$7:$Z$46),SUMIF('100m Manikin Tow Women'!$C$7:$C$46,$A87,'100m Manikin Tow Women'!$Z$7:$Z$46))) -> 7 | F87: =IF($A87="","",IF(SUMIF('200m Obs Women'!$C$7:$C$46,$A87,'200m Obs Women'!$Z$7:$Z$46)=0,1+MAX('200m Obs Women'!$Z$7:$Z$46),SUMIF('200m Obs Women'!$C$7:$C$46,$A87,'200m Obs Women'!$Z$7:$Z$46))) -> 10 | G87: =IF($A87="","",IF(SUMIF('200m Super Women'!$C$7:$C$46,$A87,'200m Super Women'!$Z$7:$Z$46)=0,1+MAX('200m Super Women'!$Z$7:$Z$46),SUMIF('200m Super Women'!$C$7:$C$46,$A87,'200m Super Women'!$Z$7:$Z$46))) -> 9 | H87: =IF($A87="","",IF(SUMIF('100 Resue Women'!$C$7:$C$46,$A87,'100 Resue Women'!$Z$7:$Z$46)=0,1+MAX('100 Resue Women'!$Z$7:$Z$46),SUMIF('100 Resue Women'!$C$7:$C$46,$A87,'100 Resue Women'!$Z$7:$Z$46))) -> 10 | I87: =IF($A87="","",IF(SUMIF('Line Throw Women'!$C$7:$C$46,$A87,'Line Throw Women'!$AB$7:$AB$46)=0,1+MAX('Line Throw Women'!$AB$7:$AB$46),SUMIF('Line Throw Women'!$C$7:$C$46,$A87,'Line Throw Women'!$AB$7:$AB$46))) -> 4 | J87: =IF($A87="","",IF(SUMIF('4 x 50 Obs Relay Women'!$C$7:$C$46,$A87,'4 x 50 Obs Relay Women'!$W$7:$W$46)=0,1+MAX('4 x 50 Obs Relay Women'!$W$7:$W$46),SUMIF('4 x 50 Obs Relay Women'!$C$7:$C$46,$A87,'4 x 50 Obs Relay Women'!$W$7:$W$46))) -> 8 | K87: =IF($A87="","",IF(SUMIF('4 x 50 medley Relay Women'!$C$7:$C$46,$A87,'4 x 50 medley Relay Women'!$W$7:$W$46)=0,1+MAX('4 x 50 medley Relay Women'!$W$7:$W$46),SUMIF('4 x 50 medley Relay Women'!$C$7:$C$46,$A87,'4 x 50 medley Relay Women'!$W$7:$W$46))) -> 9 | L87: =IF($A87="","",IF(SUMIF('4 x 25 Manikin Carry Women'!$C$7:$C$46,$A87,'4 x 25 Manikin Carry Women'!$W$7:$W$46)=0,1+MAX('4 x 25 Manikin Carry Women'!$W$7:$W$46),SUMIF('4 x 25 Manikin Carry Women'!$C$7:$C$46,$A87,'4 x 25 Manikin Carry Women'!$W$7:$W$46))) -> 9 | M87: =IF($A87="","",IF(SUMIF('4 x 12m Line Throw Women'!$C$7:$C$46,$A87,'4 x 12m Line Throw Women'!$W$7:$W$46)=0,1+MAX('4 x 12m Line Throw Women'!$W$7:$W$46),SUMIF('4 x 12m Line Throw Women'!$C$7:$C$46,$A87,'4 x 12m Line Throw Women'!$W$7:$W$46))) -> 3 | N87: 84 | O87: 9
C88: =IF($A88="","",IF(SUMIF('50m Manikin Carry Women'!$C$7:$C$46,$A88,'50m Manikin Carry Women'!$Z$7:$Z$46)=0,1+MAX('50m Manikin Carry Women'!$Z$7:$Z$46),SUMIF('50m Manikin Carry Women'!$C$7:$C$46,$A88,'50m Manikin Carry Women'!$Z$7:$Z$46))) ->  | D88: =IF($A88="","",IF(SUMIF('100m Manikin Carry Women'!$C$7:$C$46,$A88,'100m Manikin Carry Women'!$Z$7:$Z$46)=0,1+MAX('100m Manikin Carry Women'!$Z$7:$Z$46),SUMIF('100m Manikin Carry Women'!$C$7:$C$46,$A88,'100m Manikin Carry Women'!$Z$7:$Z$46))) ->  | E88: =IF($A88="","",IF(SUMIF('100m Manikin Tow Women'!$C$7:$C$46,$A88,'100m Manikin Tow Women'!$Z$7:$Z$46)=0,1+MAX('100m Manikin Tow Women'!$Z$7:$Z$46),SUMIF('100m Manikin Tow Women'!$C$7:$C$46,$A88,'100m Manikin Tow Women'!$Z$7:$Z$46))) ->  | F88: =IF($A88="","",IF(SUMIF('200m Obs Women'!$C$7:$C$46,$A88,'200m Obs Women'!$Z$7:$Z$46)=0,1+MAX('200m Obs Women'!$Z$7:$Z$46),SUMIF('200m Obs Women'!$C$7:$C$46,$A88,'200m Obs Women'!$Z$7:$Z$46))) ->  | G88: =IF($A88="","",IF(SUMIF('200m Super Women'!$C$7:$C$46,$A88,'200m Super Women'!$Z$7:$Z$46)=0,1+MAX('200m Super Women'!$Z$7:$Z$46),SUMIF('200m Super Women'!$C$7:$C$46,$A88,'200m Super Women'!$Z$7:$Z$46))) ->  | H88: =IF($A88="","",IF(SUMIF('100 Resue Women'!$C$7:$C$46,$A88,'100 Resue Women'!$Z$7:$Z$46)=0,1+MAX('100 Resue Women'!$Z$7:$Z$46),SUMIF('100 Resue Women'!$C$7:$C$46,$A88,'100 Resue Women'!$Z$7:$Z$46))) ->  | I88: =IF($A88="","",IF(SUMIF('Line Throw Women'!$C$7:$C$46,$A88,'Line Throw Women'!$AB$7:$AB$46)=0,1+MAX('Line Throw Women'!$AB$7:$AB$46),SUMIF('Line Throw Women'!$C$7:$C$46,$A88,'Line Throw Women'!$AB$7:$AB$46))) ->  | J88: =IF($A88="","",IF(SUMIF('4 x 50 Obs Relay Women'!$C$7:$C$46,$A88,'4 x 50 Obs Relay Women'!$W$7:$W$46)=0,1+MAX('4 x 50 Obs Relay Women'!$W$7:$W$46),SUMIF('4 x 50 Obs Relay Women'!$C$7:$C$46,$A88,'4 x 50 Obs Relay Women'!$W$7:$W$46))) ->  | K88: =IF($A88="","",IF(SUMIF('4 x 50 medley Relay Women'!$C$7:$C$46,$A88,'4 x 50 medley Relay Women'!$W$7:$W$46)=0,1+MAX('4 x 50 medley Relay Women'!$W$7:$W$46),SUMIF('4 x 50 medley Relay Women'!$C$7:$C$46,$A88,'4 x 50 medley Relay Women'!$W$7:$W$46))) ->  | L88: =IF($A88="","",IF(SUMIF('4 x 25 Manikin Carry Women'!$C$7:$C$46,$A88,'4 x 25 Manikin Carry Women'!$W$7:$W$46)=0,1+MAX('4 x 25 Manikin Carry Women'!$W$7:$W$46),SUMIF('4 x 25 Manikin Carry Women'!$C$7:$C$46,$A88,'4 x 25 Manikin Carry Women'!$W$7:$W$46))) ->  | M88: =IF($A88="","",IF(SUMIF('4 x 12m Line Throw Women'!$C$7:$C$46,$A88,'4 x 12m Line Throw Women'!$W$7:$W$46)=0,1+MAX('4 x 12m Line Throw Women'!$W$7:$W$46),SUMIF('4 x 12m Line Throw Women'!$C$7:$C$46,$A88,'4 x 12m Line Throw Women'!$W$7:$W$46))) -> 
C89: =IF($A89="","",IF(SUMIF('50m Manikin Carry Women'!$C$7:$C$46,$A89,'50m Manikin Carry Women'!$Z$7:$Z$46)=0,1+MAX('50m Manikin Carry Women'!$Z$7:$Z$46),SUMIF('50m Manikin Carry Women'!$C$7:$C$46,$A89,'50m Manikin Carry Women'!$Z$7:$Z$46))) ->  | D89: =IF($A89="","",IF(SUMIF('100m Manikin Carry Women'!$C$7:$C$46,$A89,'100m Manikin Carry Women'!$Z$7:$Z$46)=0,1+MAX('100m Manikin Carry Women'!$Z$7:$Z$46),SUMIF('100m Manikin Carry Women'!$C$7:$C$46,$A89,'100m Manikin Carry Women'!$Z$7:$Z$46))) ->  | E89: =IF($A89="","",IF(SUMIF('100m Manikin Tow Women'!$C$7:$C$46,$A89,'100m Manikin Tow Women'!$Z$7:$Z$46)=0,1+MAX('100m Manikin Tow Women'!$Z$7:$Z$46),SUMIF('100m Manikin Tow Women'!$C$7:$C$46,$A89,'100m Manikin Tow Women'!$Z$7:$Z$46))) ->  | F89: =IF($A89="","",IF(SUMIF('200m Obs Women'!$C$7:$C$46,$A89,'200m Obs Women'!$Z$7:$Z$46)=0,1+MAX('200m Obs Women'!$Z$7:$Z$46),SUMIF('200m Obs Women'!$C$7:$C$46,$A89,'200m Obs Women'!$Z$7:$Z$46))) ->  | G89: =IF($A89="","",IF(SUMIF('200m Super Women'!$C$7:$C$46,$A89,'200m Super Women'!$Z$7:$Z$46)=0,1+MAX('200m Super Women'!$Z$7:$Z$46),SUMIF('200m Super Women'!$C$7:$C$46,$A89,'200m Super Women'!$Z$7:$Z$46))) ->  | H89: =IF($A89="","",IF(SUMIF('100 Resue Women'!$C$7:$C$46,$A89,'100 Resue Women'!$Z$7:$Z$46)=0,1+MAX('100 Resue Women'!$Z$7:$Z$46),SUMIF('100 Resue Women'!$C$7:$C$46,$A89,'100 Resue Women'!$Z$7:$Z$46))) ->  | I89: =IF($A89="","",IF(SUMIF('Line Throw Women'!$C$7:$C$46,$A89,'Line Throw Women'!$AB$7:$AB$46)=0,1+MAX('Line Throw Women'!$AB$7:$AB$46),SUMIF('Line Throw Women'!$C$7:$C$46,$A89,'Line Throw Women'!$AB$7:$AB$46))) ->  | J89: =IF($A89="","",IF(SUMIF('4 x 50 Obs Relay Women'!$C$7:$C$46,$A89,'4 x 50 Obs Relay Women'!$W$7:$W$46)=0,1+MAX('4 x 50 Obs Relay Women'!$W$7:$W$46),SUMIF('4 x 50 Obs Relay Women'!$C$7:$C$46,$A89,'4 x 50 Obs Relay Women'!$W$7:$W$46))) ->  | K89: =IF($A89="","",IF(SUMIF('4 x 50 medley Relay Women'!$C$7:$C$46,$A89,'4 x 50 medley Relay Women'!$W$7:$W$46)=0,1+MAX('4 x 50 medley Relay Women'!$W$7:$W$46),SUMIF('4 x 50 medley Relay Women'!$C$7:$C$46,$A89,'4 x 50 medley Relay Women'!$W$7:$W$46))) ->  | L89: =IF($A89="","",IF(SUMIF('4 x 25 Manikin Carry Women'!$C$7:$C$46,$A89,'4 x 25 Manikin Carry Women'!$W$7:$W$46)=0,1+MAX('4 x 25 Manikin Carry Women'!$W$7:$W$46),SUMIF('4 x 25 Manikin Carry Women'!$C$7:$C$46,$A89,'4 x 25 Manikin Carry Women'!$W$7:$W$46))) ->  | M89: =IF($A89="","",IF(SUMIF('4 x 12m Line Throw Women'!$C$7:$C$46,$A89,'4 x 12m Line Throw Women'!$W$7:$W$46)=0,1+MAX('4 x 12m Line Throw Women'!$W$7:$W$46),SUMIF('4 x 12m Line Throw Women'!$C$7:$C$46,$A89,'4 x 12m Line Throw Women'!$W$7:$W$46))) -> 
C90: =IF($A90="","",IF(SUMIF('50m Manikin Carry Women'!$C$7:$C$46,$A90,'50m Manikin Carry Women'!$Z$7:$Z$46)=0,1+MAX('50m Manikin Carry Women'!$Z$7:$Z$46),SUMIF('50m Manikin Carry Women'!$C$7:$C$46,$A90,'50m Manikin Carry Women'!$Z$7:$Z$46))) ->  | D90: =IF($A90="","",IF(SUMIF('100m Manikin Carry Women'!$C$7:$C$46,$A90,'100m Manikin Carry Women'!$Z$7:$Z$46)=0,1+MAX('100m Manikin Carry Women'!$Z$7:$Z$46),SUMIF('100m Manikin Carry Women'!$C$7:$C$46,$A90,'100m Manikin Carry Women'!$Z$7:$Z$46))) ->  | E90: =IF($A90="","",IF(SUMIF('100m Manikin Tow Women'!$C$7:$C$46,$A90,'100m Manikin Tow Women'!$Z$7:$Z$46)=0,1+MAX('100m Manikin Tow Women'!$Z$7:$Z$46),SUMIF('100m Manikin Tow Women'!$C$7:$C$46,$A90,'100m Manikin Tow Women'!$Z$7:$Z$46))) ->  | F90: =IF($A90="","",IF(SUMIF('200m Obs Women'!$C$7:$C$46,$A90,'200m Obs Women'!$Z$7:$Z$46)=0,1+MAX('200m Obs Women'!$Z$7:$Z$46),SUMIF('200m Obs Women'!$C$7:$C$46,$A90,'200m Obs Women'!$Z$7:$Z$46))) ->  | G90: =IF($A90="","",IF(SUMIF('200m Super Women'!$C$7:$C$46,$A90,'200m Super Women'!$Z$7:$Z$46)=0,1+MAX('200m Super Women'!$Z$7:$Z$46),SUMIF('200m Super Women'!$C$7:$C$46,$A90,'200m Super Women'!$Z$7:$Z$46))) ->  | H90: =IF($A90="","",IF(SUMIF('100 Resue Women'!$C$7:$C$46,$A90,'100 Resue Women'!$Z$7:$Z$46)=0,1+MAX('100 Resue Women'!$Z$7:$Z$46),SUMIF('100 Resue Women'!$C$7:$C$46,$A90,'100 Resue Women'!$Z$7:$Z$46))) ->  | I90: =IF($A90="","",IF(SUMIF('Line Throw Women'!$C$7:$C$46,$A90,'Line Throw Women'!$AB$7:$AB$46)=0,1+MAX('Line Throw Women'!$AB$7:$AB$46),SUMIF('Line Throw Women'!$C$7:$C$46,$A90,'Line Throw Women'!$AB$7:$AB$46))) ->  | J90: =IF($A90="","",IF(SUMIF('4 x 50 Obs Relay Women'!$C$7:$C$46,$A90,'4 x 50 Obs Relay Women'!$W$7:$W$46)=0,1+MAX('4 x 50 Obs Relay Women'!$W$7:$W$46),SUMIF('4 x 50 Obs Relay Women'!$C$7:$C$46,$A90,'4 x 50 Obs Relay Women'!$W$7:$W$46))) ->  | K90: =IF($A90="","",IF(SUMIF('4 x 50 medley Relay Women'!$C$7:$C$46,$A90,'4 x 50 medley Relay Women'!$W$7:$W$46)=0,1+MAX('4 x 50 medley Relay Women'!$W$7:$W$46),SUMIF('4 x 50 medley Relay Women'!$C$7:$C$46,$A90,'4 x 50 medley Relay Women'!$W$7:$W$46))) ->  | L90: =IF($A90="","",IF(SUMIF('4 x 25 Manikin Carry Women'!$C$7:$C$46,$A90,'4 x 25 Manikin Carry Women'!$W$7:$W$46)=0,1+MAX('4 x 25 Manikin Carry Women'!$W$7:$W$46),SUMIF('4 x 25 Manikin Carry Women'!$C$7:$C$46,$A90,'4 x 25 Manikin Carry Women'!$W$7:$W$46))) ->  | M90: =IF($A90="","",IF(SUMIF('4 x 12m Line Throw Women'!$C$7:$C$46,$A90,'4 x 12m Line Throw Women'!$W$7:$W$46)=0,1+MAX('4 x 12m Line Throw Women'!$W$7:$W$46),SUMIF('4 x 12m Line Throw Women'!$C$7:$C$46,$A90,'4 x 12m Line Throw Women'!$W$7:$W$46))) -> 
C91: =IF($A91="","",IF(SUMIF('50m Manikin Carry Women'!$C$7:$C$46,$A91,'50m Manikin Carry Women'!$Z$7:$Z$46)=0,1+MAX('50m Manikin Carry Women'!$Z$7:$Z$46),SUMIF('50m Manikin Carry Women'!$C$7:$C$46,$A91,'50m Manikin Carry Women'!$Z$7:$Z$46))) ->  | D91: =IF($A91="","",IF(SUMIF('100m Manikin Carry Women'!$C$7:$C$46,$A91,'100m Manikin Carry Women'!$Z$7:$Z$46)=0,1+MAX('100m Manikin Carry Women'!$Z$7:$Z$46),SUMIF('100m Manikin Carry Women'!$C$7:$C$46,$A91,'100m Manikin Carry Women'!$Z$7:$Z$46))) ->  | E91: =IF($A91="","",IF(SUMIF('100m Manikin Tow Women'!$C$7:$C$46,$A91,'100m Manikin Tow Women'!$Z$7:$Z$46)=0,1+MAX('100m Manikin Tow Women'!$Z$7:$Z$46),SUMIF('100m Manikin Tow Women'!$C$7:$C$46,$A91,'100m Manikin Tow Women'!$Z$7:$Z$46))) ->  | F91: =IF($A91="","",IF(SUMIF('200m Obs Women'!$C$7:$C$46,$A91,'200m Obs Women'!$Z$7:$Z$46)=0,1+MAX('200m Obs Women'!$Z$7:$Z$46),SUMIF('200m Obs Women'!$C$7:$C$46,$A91,'200m Obs Women'!$Z$7:$Z$46))) ->  | G91: =IF($A91="","",IF(SUMIF('200m Super Women'!$C$7:$C$46,$A91,'200m Super Women'!$Z$7:$Z$46)=0,1+MAX('200m Super Women'!$Z$7:$Z$46),SUMIF('200m Super Women'!$C$7:$C$46,$A91,'200m Super Women'!$Z$7:$Z$46))) ->  | H91: =IF($A91="","",IF(SUMIF('100 Resue Women'!$C$7:$C$46,$A91,'100 Resue Women'!$Z$7:$Z$46)=0,1+MAX('100 Resue Women'!$Z$7:$Z$46),SUMIF('100 Resue Women'!$C$7:$C$46,$A91,'100 Resue Women'!$Z$7:$Z$46))) ->  | I91: =IF($A91="","",IF(SUMIF('Line Throw Women'!$C$7:$C$46,$A91,'Line Throw Women'!$AB$7:$AB$46)=0,1+MAX('Line Throw Women'!$AB$7:$AB$46),SUMIF('Line Throw Women'!$C$7:$C$46,$A91,'Line Throw Women'!$AB$7:$AB$46))) ->  | J91: =IF($A91="","",IF(SUMIF('4 x 50 Obs Relay Women'!$C$7:$C$46,$A91,'4 x 50 Obs Relay Women'!$W$7:$W$46)=0,1+MAX('4 x 50 Obs Relay Women'!$W$7:$W$46),SUMIF('4 x 50 Obs Relay Women'!$C$7:$C$46,$A91,'4 x 50 Obs Relay Women'!$W$7:$W$46))) ->  | K91: =IF($A91="","",IF(SUMIF('4 x 50 medley Relay Women'!$C$7:$C$46,$A91,'4 x 50 medley Relay Women'!$W$7:$W$46)=0,1+MAX('4 x 50 medley Relay Women'!$W$7:$W$46),SUMIF('4 x 50 medley Relay Women'!$C$7:$C$46,$A91,'4 x 50 medley Relay Women'!$W$7:$W$46))) ->  | L91: =IF($A91="","",IF(SUMIF('4 x 25 Manikin Carry Women'!$C$7:$C$46,$A91,'4 x 25 Manikin Carry Women'!$W$7:$W$46)=0,1+MAX('4 x 25 Manikin Carry Women'!$W$7:$W$46),SUMIF('4 x 25 Manikin Carry Women'!$C$7:$C$46,$A91,'4 x 25 Manikin Carry Women'!$W$7:$W$46))) ->  | M91: =IF($A91="","",IF(SUMIF('4 x 12m Line Throw Women'!$C$7:$C$46,$A91,'4 x 12m Line Throw Women'!$W$7:$W$46)=0,1+MAX('4 x 12m Line Throw Women'!$W$7:$W$46),SUMIF('4 x 12m Line Throw Women'!$C$7:$C$46,$A91,'4 x 12m Line Throw Women'!$W$7:$W$46))) -> 
C92: =IF($A92="","",IF(SUMIF('50m Manikin Carry Women'!$C$7:$C$46,$A92,'50m Manikin Carry Women'!$Z$7:$Z$46)=0,1+MAX('50m Manikin Carry Women'!$Z$7:$Z$46),SUMIF('50m Manikin Carry Women'!$C$7:$C$46,$A92,'50m Manikin Carry Women'!$Z$7:$Z$46))) ->  | D92: =IF($A92="","",IF(SUMIF('100m Manikin Carry Women'!$C$7:$C$46,$A92,'100m Manikin Carry Women'!$Z$7:$Z$46)=0,1+MAX('100m Manikin Carry Women'!$Z$7:$Z$46),SUMIF('100m Manikin Carry Women'!$C$7:$C$46,$A92,'100m Manikin Carry Women'!$Z$7:$Z$46))) ->  | E92: =IF($A92="","",IF(SUMIF('100m Manikin Tow Women'!$C$7:$C$46,$A92,'100m Manikin Tow Women'!$Z$7:$Z$46)=0,1+MAX('100m Manikin Tow Women'!$Z$7:$Z$46),SUMIF('100m Manikin Tow Women'!$C$7:$C$46,$A92,'100m Manikin Tow Women'!$Z$7:$Z$46))) ->  | F92: =IF($A92="","",IF(SUMIF('200m Obs Women'!$C$7:$C$46,$A92,'200m Obs Women'!$Z$7:$Z$46)=0,1+MAX('200m Obs Women'!$Z$7:$Z$46),SUMIF('200m Obs Women'!$C$7:$C$46,$A92,'200m Obs Women'!$Z$7:$Z$46))) ->  | G92: =IF($A92="","",IF(SUMIF('200m Super Women'!$C$7:$C$46,$A92,'200m Super Women'!$Z$7:$Z$46)=0,1+MAX('200m Super Women'!$Z$7:$Z$46),SUMIF('200m Super Women'!$C$7:$C$46,$A92,'200m Super Women'!$Z$7:$Z$46))) ->  | H92: =IF($A92="","",IF(SUMIF('100 Resue Women'!$C$7:$C$46,$A92,'100 Resue Women'!$Z$7:$Z$46)=0,1+MAX('100 Resue Women'!$Z$7:$Z$46),SUMIF('100 Resue Women'!$C$7:$C$46,$A92,'100 Resue Women'!$Z$7:$Z$46))) ->  | I92: =IF($A92="","",IF(SUMIF('Line Throw Women'!$C$7:$C$46,$A92,'Line Throw Women'!$AB$7:$AB$46)=0,1+MAX('Line Throw Women'!$AB$7:$AB$46),SUMIF('Line Throw Women'!$C$7:$C$46,$A92,'Line Throw Women'!$AB$7:$AB$46))) ->  | J92: =IF($A92="","",IF(SUMIF('4 x 50 Obs Relay Women'!$C$7:$C$46,$A92,'4 x 50 Obs Relay Women'!$W$7:$W$46)=0,1+MAX('4 x 50 Obs Relay Women'!$W$7:$W$46),SUMIF('4 x 50 Obs Relay Women'!$C$7:$C$46,$A92,'4 x 50 Obs Relay Women'!$W$7:$W$46))) ->  | K92: =IF($A92="","",IF(SUMIF('4 x 50 medley Relay Women'!$C$7:$C$46,$A92,'4 x 50 medley Relay Women'!$W$7:$W$46)=0,1+MAX('4 x 50 medley Relay Women'!$W$7:$W$46),SUMIF('4 x 50 medley Relay Women'!$C$7:$C$46,$A92,'4 x 50 medley Relay Women'!$W$7:$W$46))) ->  | L92: =IF($A92="","",IF(SUMIF('4 x 25 Manikin Carry Women'!$C$7:$C$46,$A92,'4 x 25 Manikin Carry Women'!$W$7:$W$46)=0,1+MAX('4 x 25 Manikin Carry Women'!$W$7:$W$46),SUMIF('4 x 25 Manikin Carry Women'!$C$7:$C$46,$A92,'4 x 25 Manikin Carry Women'!$W$7:$W$46))) ->  | M92: =IF($A92="","",IF(SUMIF('4 x 12m Line Throw Women'!$C$7:$C$46,$A92,'4 x 12m Line Throw Women'!$W$7:$W$46)=0,1+MAX('4 x 12m Line Throw Women'!$W$7:$W$46),SUMIF('4 x 12m Line Throw Women'!$C$7:$C$46,$A92,'4 x 12m Line Throw Women'!$W$7:$W$46))) -> 
C93: =IF($A93="","",IF(SUMIF('50m Manikin Carry Women'!$C$7:$C$46,$A93,'50m Manikin Carry Women'!$Z$7:$Z$46)=0,1+MAX('50m Manikin Carry Women'!$Z$7:$Z$46),SUMIF('50m Manikin Carry Women'!$C$7:$C$46,$A93,'50m Manikin Carry Women'!$Z$7:$Z$46))) ->  | D93: =IF($A93="","",IF(SUMIF('100m Manikin Carry Women'!$C$7:$C$46,$A93,'100m Manikin Carry Women'!$Z$7:$Z$46)=0,1+MAX('100m Manikin Carry Women'!$Z$7:$Z$46),SUMIF('100m Manikin Carry Women'!$C$7:$C$46,$A93,'100m Manikin Carry Women'!$Z$7:$Z$46))) ->  | E93: =IF($A93="","",IF(SUMIF('100m Manikin Tow Women'!$C$7:$C$46,$A93,'100m Manikin Tow Women'!$Z$7:$Z$46)=0,1+MAX('100m Manikin Tow Women'!$Z$7:$Z$46),SUMIF('100m Manikin Tow Women'!$C$7:$C$46,$A93,'100m Manikin Tow Women'!$Z$7:$Z$46))) ->  | F93: =IF($A93="","",IF(SUMIF('200m Obs Women'!$C$7:$C$46,$A93,'200m Obs Women'!$Z$7:$Z$46)=0,1+MAX('200m Obs Women'!$Z$7:$Z$46),SUMIF('200m Obs Women'!$C$7:$C$46,$A93,'200m Obs Women'!$Z$7:$Z$46))) ->  | G93: =IF($A93="","",IF(SUMIF('200m Super Women'!$C$7:$C$46,$A93,'200m Super Women'!$Z$7:$Z$46)=0,1+MAX('200m Super Women'!$Z$7:$Z$46),SUMIF('200m Super Women'!$C$7:$C$46,$A93,'200m Super Women'!$Z$7:$Z$46))) ->  | H93: =IF($A93="","",IF(SUMIF('100 Resue Women'!$C$7:$C$46,$A93,'100 Resue Women'!$Z$7:$Z$46)=0,1+MAX('100 Resue Women'!$Z$7:$Z$46),SUMIF('100 Resue Women'!$C$7:$C$46,$A93,'100 Resue Women'!$Z$7:$Z$46))) ->  | I93: =IF($A93="","",IF(SUMIF('Line Throw Women'!$C$7:$C$46,$A93,'Line Throw Women'!$AB$7:$AB$46)=0,1+MAX('Line Throw Women'!$AB$7:$AB$46),SUMIF('Line Throw Women'!$C$7:$C$46,$A93,'Line Throw Women'!$AB$7:$AB$46))) ->  | J93: =IF($A93="","",IF(SUMIF('4 x 50 Obs Relay Women'!$C$7:$C$46,$A93,'4 x 50 Obs Relay Women'!$W$7:$W$46)=0,1+MAX('4 x 50 Obs Relay Women'!$W$7:$W$46),SUMIF('4 x 50 Obs Relay Women'!$C$7:$C$46,$A93,'4 x 50 Obs Relay Women'!$W$7:$W$46))) ->  | K93: =IF($A93="","",IF(SUMIF('4 x 50 medley Relay Women'!$C$7:$C$46,$A93,'4 x 50 medley Relay Women'!$W$7:$W$46)=0,1+MAX('4 x 50 medley Relay Women'!$W$7:$W$46),SUMIF('4 x 50 medley Relay Women'!$C$7:$C$46,$A93,'4 x 50 medley Relay Women'!$W$7:$W$46))) ->  | L93: =IF($A93="","",IF(SUMIF('4 x 25 Manikin Carry Women'!$C$7:$C$46,$A93,'4 x 25 Manikin Carry Women'!$W$7:$W$46)=0,1+MAX('4 x 25 Manikin Carry Women'!$W$7:$W$46),SUMIF('4 x 25 Manikin Carry Women'!$C$7:$C$46,$A93,'4 x 25 Manikin Carry Women'!$W$7:$W$46))) ->  | M93: =IF($A93="","",IF(SUMIF('4 x 12m Line Throw Women'!$C$7:$C$46,$A93,'4 x 12m Line Throw Women'!$W$7:$W$46)=0,1+MAX('4 x 12m Line Throw Women'!$W$7:$W$46),SUMIF('4 x 12m Line Throw Women'!$C$7:$C$46,$A93,'4 x 12m Line Throw Women'!$W$7:$W$46))) -> 
